Workbook

Sheet ACCUEILPRO
A1: Accueil
F7: =ACCUEIL!F7 -> 2022-04-24

Sheet ACCUEILPREM
A1: Accueil
F7: =ACCUEIL!F7 -> 2022-04-24

Sheet ACCUEILGP
A1: Accueil
F7: =ACCUEIL!F7 -> 2022-04-24

Sheet ACCUEIL
F7: 2022-04-24

Sheet Accueilagence
A1: Accueil
E7: =ACCUEIL!F7 -> 2022-04-24

Sheet Accueilsecteur
A1: Accueil
E7: =ACCUEIL!F7 -> 2022-04-24

Sheet AccueilDircom
A1: Accueil
E7: =ACCUEIL!F7 -> 2022-04-24

Sheet DC_FICHE
A1: Accueil
A2: BAROMETRE BDD
A4: UNITE: | B4: DIRECTION REGIONALE | E4: ETP perf : | F4: =VLOOKUP(A5,'RECAP DIRCOM'!$G$6:$I$12,3,FALSE) -> 218.57
A5: =VLOOKUP(B5,LISTES!$M$6:$N$12,2,FALSE) -> 262 | B5: BAS-RHIN
C6: Coefficient du critére | E6: Résultats | I6: Ecart au 1ier | M6: Evolution | O6: Rang
E7: du 1ier | G7: DIRECTION | I7: Du mois | K7: Au 31/12/2019
A9: RANG au CLASSEMENT GENERAL | K9: =VLOOKUP($A$5,#REF!,168,FALSE) ->  | M9: =+K9-O9 ->  | O9: =VLOOKUP($A$5,'RECAP DIRCOM'!$G$6:$CY$312,168,FALSE) -> 
A11: CRITERE CLIENTS | C11: 15% | O11: =VLOOKUP($A$5,'RECAP DIRCOM'!$G$6:$CY$312,23,FALSE) -> 18.84522121
B12: PNB Evolution nette Clients BP | C12: 4% | E12: ='RECAP DIRCOM'!#REF! ->  | G12: =VLOOKUP($A$5,'RECAP DIRCOM'!$G$6:$CY$312,6,FALSE) -> 0.8 | I12: =VLOOKUP($A$5,'RECAP DIRCOM'!$G$6:$CY$312,7,FALSE) -> 500% | K12: =VLOOKUP($A$5,#REF!,7,FALSE) ->  | M12: =+K12-I12 ->  | O12: =VLOOKUP($A$5,'RECAP DIRCOM'!$G$6:$CY$312,8,FALSE) -> 0.5850166008
B13: PNB Evolution nette Clients PREMIUM | C13: 5% | E13: ='RECAP DIRCOM'!#REF! ->  | G13: =VLOOKUP($A$5,'RECAP DIRCOM'!$G$6:$CY$312,10,FALSE) -> 4.0 | I13: =VLOOKUP($A$5,'RECAP DIRCOM'!$G$6:$CY$312,11,FALSE) -> 47% | K13: =VLOOKUP($A$5,#REF!,11,FALSE) ->  | M13: =+K13-I13 ->  | O13: =VLOOKUP($A$5,'RECAP DIRCOM'!$G$6:$CY$312,12,FALSE) -> 0.4733671981
B14: PNB Evolution nette Clients Jeunes Equipés | C14: 3% | E14: ='RECAP DIRCOM'!#REF! ->  | G14: =VLOOKUP($A$5,'RECAP DIRCOM'!$G$6:$CY$312,14,FALSE) -> 0.0 | I14: =VLOOKUP($A$5,'RECAP DIRCOM'!$G$6:$CY$312,15,FALSE) -> 0% | K14: =VLOOKUP($A$5,#REF!,15,FALSE) ->  | M14: =+K14-I14 ->  | O14: =VLOOKUP($A$5,'RECAP DIRCOM'!$G$6:$CY$312,16,FALSE) -> 0
B15: PNB Evolution nette Clients Pro Actifs Equipés | C15: 3% | E15: ='RECAP DIRCOM'!W4 -> 0.0 | G15: =VLOOKUP($A$5,'RECAP DIRCOM'!$G$6:$CY$312,18,FALSE) -> 1776.7 | I15: =VLOOKUP($A$5,'RECAP DIRCOM'!$G$6:$CY$312,19,FALSE) -> 813% | K15: =VLOOKUP($A$5,#REF!,19,FALSE) ->  | M15: =+K15-I15 ->  | O15: =VLOOKUP($A$5,'RECAP DIRCOM'!$G$6:$CY$312,20,FALSE) -> 0.2435078561
A17: CRITERE BANCARISATION | C17: 15% | O17: =VLOOKUP($A$5,'RECAP DIRCOM'!$G$6:$CY$312,48,FALSE) -> 4624.088794
B18: PNB Ventes nettes forfaits | C18: 4% | E18: ='RECAP DIRCOM'!X4 -> 10.7 | G18: =VLOOKUP($A$5,'RECAP DIRCOM'!$G$6:$CY$312,31,FALSE) -> 0.0 | I18: =VLOOKUP($A$5,'RECAP DIRCOM'!$G$6:$CY$312,32,FALSE) -> 0% | K18: =VLOOKUP($A$5,#REF!,32,FALSE) ->  | M18: =+K18-I18 ->  | O18: =VLOOKUP($A$5,'RECAP DIRCOM'!$G$6:$CY$312,33,FALSE) -> 36120.06976
B19: PNB Ventes nettes IZICARTES Débit Différé | C19: 4% | E19: ='RECAP DIRCOM'!AB4 -> 23.9 | G19: =VLOOKUP($A$5,'RECAP DIRCOM'!$G$6:$CY$312,35,FALSE) -> 0.1 | I19: =VLOOKUP($A$5,'RECAP DIRCOM'!$G$6:$CY$312,36,FALSE) -> 300% | K19: =VLOOKUP($A$5,#REF!,36,FALSE) ->  | M19: =+K19-I19 ->  | O19: =VLOOKUP($A$5,'RECAP DIRCOM'!$G$6:$CY$312,37,FALSE) -> 4455
B20: PNB Ventes nettes cartes HDG Débit Différé | C20: 4% | E20: ='RECAP DIRCOM'!#REF! ->  | G20: =VLOOKUP($A$5,'RECAP DIRCOM'!$G$6:$CY$312,39,FALSE) -> 0.2 | I20: =VLOOKUP($A$5,'RECAP DIRCOM'!$G$6:$CY$312,40,FALSE) -> 300% | K20: =VLOOKUP($A$5,#REF!,40,FALSE) ->  | M20: =+K20-I20 ->  | O20: =VLOOKUP($A$5,'RECAP DIRCOM'!$G$6:$CY$312,41,FALSE) -> 0.1296406754
B21: PNB Ventes nettes Forfaits Pro, Carte pro | C21: 3% | E21: ='RECAP DIRCOM'!#REF! ->  | G21: =VLOOKUP($A$5,'RECAP DIRCOM'!$G$6:$CY$312,43,FALSE) -> 2.0 | I21: =VLOOKUP($A$5,'RECAP DIRCOM'!$G$6:$CY$312,44,FALSE) -> 0% | K21: =VLOOKUP($A$5,#REF!,44,FALSE) ->  | M21: =+K21-I21 ->  | O21: =VLOOKUP($A$5,'RECAP DIRCOM'!$G$6:$CY$312,45,FALSE) -> 0
A23: CRITERE EPARGNE | C23: 10% | O23: =VLOOKUP($A$5,'RECAP DIRCOM'!$G$6:$CY$312,69,FALSE) -> 0.2767083268
B24: PNB Epargne Liquide | C24: 3% | E24: ='RECAP DIRCOM'!AM4 -> 177.9 | G24: =VLOOKUP($A$5,'RECAP DIRCOM'!$G$6:$CY$312,56,FALSE) -> 1432.0 | I24: =VLOOKUP($A$5,'RECAP DIRCOM'!$G$6:$CY$312,57,FALSE) -> 655% | K24: =VLOOKUP($A$5,#REF!,57,FALSE) ->  | M24: =+K24-I24 ->  | O24: =VLOOKUP($A$5,'RECAP DIRCOM'!$G$6:$CY$312,58,FALSE) -> 0.4080395908
B25: PNB CA UC + arbitrage | C25: 4% | E25: ='RECAP DIRCOM'!AQ4 -> 26.0 | G25: =VLOOKUP($A$5,'RECAP DIRCOM'!$G$6:$CY$312,60,FALSE) -> 0.4 | I25: =VLOOKUP($A$5,'RECAP DIRCOM'!$G$6:$CY$312,61,FALSE) -> 35% | K25: =VLOOKUP($A$5,#REF!,61,FALSE) ->  | M25: =+K25-I25 ->  | O25: =VLOOKUP($A$5,'RECAP DIRCOM'!$G$6:$CY$312,62,FALSE) -> 6
B26: PNB Excédent assurance vie | C26: 3% | E26: ='RECAP DIRCOM'!#REF! ->  | G26: =VLOOKUP($A$5,'RECAP DIRCOM'!$G$6:$CY$312,64,FALSE) -> 0.0 | I26: =VLOOKUP($A$5,'RECAP DIRCOM'!$G$6:$CY$312,65,FALSE) -> 0% | K26: =VLOOKUP($A$5,#REF!,65,FALSE) ->  | M26: =+K26-I26 ->  | O26: =VLOOKUP($A$5,'RECAP DIRCOM'!$G$6:$CY$312,66,FALSE) -> 0
A28: CRITERE CREDITS | C28: 15% | O28: =VLOOKUP($A$5,'RECAP DIRCOM'!$G$6:$CY$312,102,FALSE) -> 
B29: PNB crédit conso | C29: 4% | E29: ='RECAP DIRCOM'!BB4 -> 46.9 | G29: =VLOOKUP($A$5,'RECAP DIRCOM'!$G$6:$CY$312,77,FALSE) -> 3.0 | I29: =VLOOKUP($A$5,'RECAP DIRCOM'!$G$6:$CY$312,78,FALSE) -> 0% | K29: =VLOOKUP($A$5,#REF!,78,FALSE) ->  | M29: =+K29-I29 ->  | O29: =VLOOKUP($A$5,'RECAP DIRCOM'!$G$6:$CY$312,79,FALSE) -> 0
B30: PNB ADE crédit conso | C30: 1% | E30: ='RECAP DIRCOM'!#REF! ->  | G30: =VLOOKUP($A$5,'RECAP DIRCOM'!$G$6:$CY$312,81,FALSE) -> 0.0 | I30: =VLOOKUP($A$5,'RECAP DIRCOM'!$G$6:$CY$312,82,FALSE) -> 0% | K30: =VLOOKUP($A$5,#REF!,82,FALSE) ->  | O30: =VLOOKUP($A$5,'RECAP DIRCOM'!$G$6:$CY$312,83,FALSE) -> 0
B31: PNB crédit immo | C31: 4% | E31: ='RECAP DIRCOM'!BF4 -> 26.1 | G31: =VLOOKUP($A$5,'RECAP DIRCOM'!$G$6:$CY$312,85,FALSE) -> 0.0 | I31: =VLOOKUP($A$5,'RECAP DIRCOM'!$G$6:$CY$312,86,FALSE) -> 0% | K31: =VLOOKUP($A$5,#REF!,86,FALSE) ->  | O31: =VLOOKUP($A$5,'RECAP DIRCOM'!$G$6:$CY$312,87,FALSE) -> 0
B32: PNB ADE crédit immo | C32: 2% | E32: ='RECAP DIRCOM'!#REF! ->  | G32: =VLOOKUP($A$5,'RECAP DIRCOM'!$G$6:$CY$312,89,FALSE) -> 0.0 | I32: =VLOOKUP($A$5,'RECAP DIRCOM'!$G$6:$CY$312,90,FALSE) -> 0% | K32: =VLOOKUP($A$5,#REF!,90,FALSE) ->  | O32: =VLOOKUP($A$5,'RECAP DIRCOM'!$G$6:$CY$312,91,FALSE) -> 0
B33: PNB SACCEF | C33: 2% | E33: ='RECAP DIRCOM'!#REF! ->  | G33: =VLOOKUP($A$5,'RECAP DIRCOM'!$G$6:$CY$312,93,FALSE) -> 0.0 | I33: =VLOOKUP($A$5,'RECAP DIRCOM'!$G$6:$CY$312,94,FALSE) -> 28% | K33: =VLOOKUP($A$5,#REF!,94,FALSE) ->  | O33: =VLOOKUP($A$5,'RECAP DIRCOM'!$G$6:$CY$312,95,FALSE) -> 0.2194925534
B34: PNB Crédit MLT + Crédit Bail | C34: 2% | E34: ='RECAP DIRCOM'!BJ4 -> 11.1 | G34: =VLOOKUP($A$5,'RECAP DIRCOM'!$G$6:$CY$312,97,FALSE) -> 0.0 | I34: =VLOOKUP($A$5,'RECAP DIRCOM'!$G$6:$CY$312,98,FALSE) ->  | K34: =VLOOKUP($A$5,#REF!,98,FALSE) ->  | O34: =VLOOKUP($A$5,'RECAP DIRCOM'!$G$6:$CY$312,99,FALSE) -> 
A36: CRITERE IARD PREVOYANCE | C36: 15% | O36: =VLOOKUP($A$5,'RECAP DIRCOM'!$G$6:$CY$312,119,FALSE) -> 
B37: PNB Ventes nettes IARD | C37: 9% | E37: ='RECAP DIRCOM'!BU4 -> 69.6 | G37: =VLOOKUP($A$5,'RECAP DIRCOM'!$G$6:$CY$312,110,FALSE) ->  | I37: =VLOOKUP($A$5,'RECAP DIRCOM'!$G$6:$CY$312,111,FALSE) ->  | K37: =VLOOKUP($A$5,#REF!,111,FALSE) ->  | M37: =+K37-I37 ->  | O37: =VLOOKUP($A$5,'RECAP DIRCOM'!$G$6:$CY$312,112,FALSE) -> 
B38: PNB Ventes nettes Prévoyance | C38: 6% | E38: ='RECAP DIRCOM'!BY4 -> 18.1 | G38: =VLOOKUP($A$5,'RECAP DIRCOM'!$G$6:$CY$312,114,FALSE) ->  | I38: =VLOOKUP($A$5,'RECAP DIRCOM'!$G$6:$CY$312,115,FALSE) ->  | K38: =VLOOKUP($A$5,#REF!,115,FALSE) ->  | M38: =+K38-I38 ->  | O38: =VLOOKUP($A$5,'RECAP DIRCOM'!$G$6:$CY$312,116,FALSE) -> 
A40: CRITERE ACCELERATEURS PNB | C40: 15% | O40: =VLOOKUP($A$5,'RECAP DIRCOM'!$G$6:$CY$312,144,FALSE) -> 
B41: PNB Ventes brutes SED Finalisées | C41: 6% | E41: ='RECAP DIRCOM'!#REF! ->  | G41: =VLOOKUP($A$5,'RECAP DIRCOM'!$G$6:$CY$312,127,FALSE) ->  | I41: =VLOOKUP($A$5,'RECAP DIRCOM'!$G$6:$CY$312,128,FALSE) ->  | K41: =VLOOKUP($A$5,#REF!,128,FALSE) ->  | M41: =+K41-I41 ->  | O41: =VLOOKUP($A$5,'RECAP DIRCOM'!$G$6:$CY$312,129,FALSE) -> 
B42: PNB clients équipés E documents | C42: 3% | E42: ='RECAP DIRCOM'!#REF! ->  | G42: =VLOOKUP($A$5,'RECAP DIRCOM'!$G$6:$CY$312,131,FALSE) ->  | I42: =VLOOKUP($A$5,'RECAP DIRCOM'!$G$6:$CY$312,132,FALSE) ->  | K42: =VLOOKUP($A$5,#REF!,132,FALSE) ->  | M42: =+K42-I42 ->  | O42: =VLOOKUP($A$5,'RECAP DIRCOM'!$G$6:$CY$312,133,FALSE) -> 
B43: Economie opt'in | C43: 3% | E43: ='RECAP DIRCOM'!#REF! ->  | G43: =VLOOKUP($A$5,'RECAP DIRCOM'!$G$6:$CY$312,135,FALSE) ->  | I43: =VLOOKUP($A$5,'RECAP DIRCOM'!$G$6:$CY$312,136,FALSE) ->  | K43: =VLOOKUP($A$5,#REF!,136,FALSE) ->  | M43: =+K43-I43 ->  | O43: =VLOOKUP($A$5,'RECAP DIRCOM'!$G$6:$CY$312,137,FALSE) -> 
B44: Remises commerciales | C44: 3% | E44: ='RECAP DIRCOM'!#REF! ->  | G44: =VLOOKUP($A$5,'RECAP DIRCOM'!$G$6:$CY$312,139,FALSE) ->  | I44: =VLOOKUP($A$5,'RECAP DIRCOM'!$G$6:$CY$312,140,FALSE) ->  | K44: =VLOOKUP($A$5,#REF!,140,FALSE) ->  | M44: =+K44-I44 ->  | O44: =VLOOKUP($A$5,'RECAP DIRCOM'!$G$6:$CY$312,141,FALSE) -> 
A46: CRITERE Qualité-Satisfaction Clients | C46: 15% | O46: =VLOOKUP($A$5,'RECAP DIRCOM'!$G$6:$CY$312,159,FALSE) -> 
B47: Objectifs NPS* | C47: 8% | E47: ='RECAP DIRCOM'!K4 -> 23 | G47: =VLOOKUP($A$5,'RECAP DIRCOM'!$G$6:$CY$312,151,FALSE) ->  | I47: =VLOOKUP($A$5,'RECAP DIRCOM'!$G$6:$CY$312,152,FALSE) ->  | K47: =VLOOKUP($A$5,#REF!,152,FALSE) ->  | M47: =+K47-I47 ->  | O47: =VLOOKUP($A$5,'RECAP DIRCOM'!$G$6:$CY$312,153,FALSE) -> 
B48: Enquête Qualité Haute Définition | C48: 7% | E48: ='RECAP DIRCOM'!N4 -> 68% | G48: =VLOOKUP($A$5,'RECAP DIRCOM'!$G$6:$CY$312,154,FALSE) ->  | I48: =VLOOKUP($A$5,'RECAP DIRCOM'!$G$6:$CY$312,155,FALSE) ->  | K48: =VLOOKUP($A$5,#REF!,155,FALSE) ->  | M48: =+K48-I48 ->  | O48: =VLOOKUP($A$5,'RECAP DIRCOM'!$G$6:$CY$312,156,FALSE) -> 

Sheet DC_TOTAL
B1: Accueil | D1: BAROMETRE BDD - DIRECTIONS REGIONALES
D2: TOTAL GENERAL
D3: =ACCUEIL!F7 -> 2022-04-24
D7: TOTAL GENERAL | G7: Total Satisfaction Clients | J7: Total Bancarisation | M7: Total Epargne | P7: Total IARD Prévoyance | S7: Total Crédits
E8: coef | F8: =+I8+L8+O8+R8+U8 -> 100% | H8: coef | I8: =DC_SATISFACTION!L8 -> 20% | K8: coef | L8: =DC_BANCA!N8 -> 20% | N8: coef | O8: =DC_EPARGNE!N8 -> 20% | Q8: coef | R8: =DC_IARD!N8 -> 20% | T8: coef | U8: =DC_CREDIT!R8 -> 20%
A9: eds | B9: Direction | C9: ="ETP perf "&DATEMAJ!$C$28 -> ETP perf 24-avr | D9: Moyenne ecart au 1er | E9: % Ecart au 1er | F9: Rang CEGEE | G9: Moyenne ecart au 1er | H9: % Ecart au 1er | I9: Rang CEGEE | J9: Moyenne ecart au 1er | K9: % Ecart au 1er | L9: Rang CEGEE | M9: Moyenne ecart au 1er | N9: % Ecart au 1er | O9: Rang CEGEE | P9: Moyenne ecart au 1er | Q9: % Ecart au 1er | R9: Rang CEGEE | S9: Moyenne ecart au 1er | T9: % Ecart au 1er | U9: Rang CEGEE
A10: 50 | B10: Moselle | C10: 228 | D10: 6% | E10: 0% | F10: 1 | G10: 23% | H10: 23% | I10: 3 | J10: 0% | K10: 0% | L10: 1 | M10: 1% | N10: 0% | O10: 1 | P10: 0% | Q10: 0% | R10: 1 | S10: 9% | T10: 5% | U10: 2
A11: 262 | B11: Marne-Ardennes | C11: 195 | D11: 12% | E11: 6% | F11: 2 | G11: 13% | H11: 13% | I11: 2 | J11: 10% | K11: 10% | L11: 2 | M11: 30% | N11: 29% | O11: 4 | P11: 7% | Q11: 7% | R11: 2 | S11: 4% | T11: 0% | U11: 1
A12: 264 | B12: Meurthe et Moselle Meuse | C12: 203 | D12: 24% | E12: 18% | F12: 3 | G12: 42% | H12: 42% | I12: 4 | J12: 19% | K12: 19% | L12: 3 | M12: 31% | N12: 30% | O12: 5 | P12: 23% | Q12: 23% | R12: 4 | S12: 11% | T12: 6% | U12: 3
A13: 30 | B13: Vosges | C13: 119 | D13: 25% | E13: 19% | F13: 4 | G13: 0% | H13: 0% | I13: 1 | J13: 38% | K13: 38% | L13: 5 | M13: 13% | N13: 12% | O13: 3 | P13: 40% | Q13: 40% | R13: 6 | S13: 37% | T13: 33% | U13: 5
A14: 110 | B14: Bas-Rhin | C14: 219 | D14: 28% | E14: 22% | F14: 5 | G14: 47% | H14: 47% | I14: 5 | J14: 23% | K14: 23% | L14: 4 | M14: 13% | N14: 12% | O14: 2 | P14: 21% | Q14: 21% | R14: 3 | S14: 39% | T14: 35% | U14: 6
A15: 160 | B15: Aube Haute Marne | C15: 114 | D15: 40% | E15: 35% | F15: 6 | G15: 52% | H15: 52% | I15: 6 | J15: 44% | K15: 44% | L15: 6 | M15: 52% | N15: 51% | O15: 7 | P15: 27% | Q15: 27% | R15: 5 | S15: 34% | T15: 29% | U15: 4
A16: 80 | B16: Haut-Rhin | C16: 126 | D16: 51% | E16: 45% | F16: 7 | G16: 57% | H16: 57% | I16: 7 | J16: 62% | K16: 62% | L16: 7 | M16: 48% | N16: 47% | O16: 6 | P16: 44% | Q16: 44% | R16: 7 | S16: 48% | T16: 43% | U16: 7
B17: Total CEGEE Directions Régionales | C17: =SUM(C10:C16) -> 1203

Sheet DC_BANCA
B1: Accueil | D1: BAROMETRE BDD - DIRECTIONS REGIONALES
D2: BANCARISATION
D3: =ACCUEIL!F7 -> 2022-04-24
D7: Ventes Nettes produits pondérés | H7: Ventes sur client non détenteur de l’univers | L7: Total Bancarisation
D8: =DATEMAJ!C8 -> au 24/04 | F8: coef | G8: ='RECAP DIRCOM'!AA4 -> 12% | H8: =DATEMAJ!C9 -> au 24/04 | J8: coef | K8: ='RECAP DIRCOM'!AE4 -> 8% | M8: coef | N8: ='RECAP DIRCOM'!AH4 -> 20%
B9: Direction | C9: ="ETP perf "&DATEMAJ!$C$28 -> ETP perf 24-avr | D9: VN | E9: VN / ETP | F9: % Ecart au 1er | G9: Rang | H9: VB | I9: VB / ETP | J9: % Ecart au 1er | K9: Rang | L9: Moyenne ecart au 1er | M9: % Ecart au 1er | N9: Rang CEGEE
A10: 50 | B10: Aube Haute Marne | C10: =VLOOKUP($A10,'RECAP DIRCOM'!$G$6:$CU$12,3,FALSE) -> 114 | D10: =VLOOKUP($A10,'RECAP DIRCOM'!$G$6:$CU$12,18,FALSE) -> 508 | E10: =VLOOKUP($A10,'RECAP DIRCOM'!$G$6:$CU$12,19,FALSE) -> 4.45 | F10: =VLOOKUP($A10,'RECAP DIRCOM'!$G$6:$CU$12,20,FALSE) -> 59% | G10: =VLOOKUP($A10,'RECAP DIRCOM'!$G$6:$CU$12,21,FALSE) -> 6 | H10: =VLOOKUP($A10,'RECAP DIRCOM'!$G$6:$CU$12,22,FALSE) -> 2,145 | I10: =VLOOKUP($A10,'RECAP DIRCOM'!$G$6:$CU$12,23,FALSE) -> 18.79 | J10: =VLOOKUP($A10,'RECAP DIRCOM'!$G$6:$CU$12,24,FALSE) -> 21% | K10: =VLOOKUP($A10,'RECAP DIRCOM'!$G$6:$CU$12,25,FALSE) -> 5 | L10: =VLOOKUP($A10,'RECAP DIRCOM'!$G$6:$CU$12,26,FALSE) -> 44% | M10: =VLOOKUP($A10,'RECAP DIRCOM'!$G$6:$CU$12,27,FALSE) -> 44% | N10: =VLOOKUP($A10,'RECAP DIRCOM'!$G$6:$CU$12,28,FALSE) -> 6
A11: 262 | B11: Bas-Rhin | C11: =VLOOKUP($A11,'RECAP DIRCOM'!$G$6:$CU$12,3,FALSE) -> 219 | D11: =VLOOKUP($A11,'RECAP DIRCOM'!$G$6:$CU$12,18,FALSE) -> 1,777 | E11: =VLOOKUP($A11,'RECAP DIRCOM'!$G$6:$CU$12,19,FALSE) -> 8.13 | F11: =VLOOKUP($A11,'RECAP DIRCOM'!$G$6:$CU$12,20,FALSE) -> 24% | G11: =VLOOKUP($A11,'RECAP DIRCOM'!$G$6:$CU$12,21,FALSE) -> 3 | H11: =VLOOKUP($A11,'RECAP DIRCOM'!$G$6:$CU$12,22,FALSE) -> 4,119 | I11: =VLOOKUP($A11,'RECAP DIRCOM'!$G$6:$CU$12,23,FALSE) -> 18.85 | J11: =VLOOKUP($A11,'RECAP DIRCOM'!$G$6:$CU$12,24,FALSE) -> 21% | K11: =VLOOKUP($A11,'RECAP DIRCOM'!$G$6:$CU$12,25,FALSE) -> 4 | L11: =VLOOKUP($A11,'RECAP DIRCOM'!$G$6:$CU$12,26,FALSE) -> 23% | M11: =VLOOKUP($A11,'RECAP DIRCOM'!$G$6:$CU$12,27,FALSE) -> 23% | N11: =VLOOKUP($A11,'RECAP DIRCOM'!$G$6:$CU$12,28,FALSE) -> 4
A12: 264 | B12: Haut-Rhin | C12: =VLOOKUP($A12,'RECAP DIRCOM'!$G$6:$CU$12,3,FALSE) -> 126 | D12: =VLOOKUP($A12,'RECAP DIRCOM'!$G$6:$CU$12,18,FALSE) -> 282 | E12: =VLOOKUP($A12,'RECAP DIRCOM'!$G$6:$CU$12,19,FALSE) -> 2.24 | F12: =VLOOKUP($A12,'RECAP DIRCOM'!$G$6:$CU$12,20,FALSE) -> 79% | G12: =VLOOKUP($A12,'RECAP DIRCOM'!$G$6:$CU$12,21,FALSE) -> 7 | H12: =VLOOKUP($A12,'RECAP DIRCOM'!$G$6:$CU$12,22,FALSE) -> 1,894 | I12: =VLOOKUP($A12,'RECAP DIRCOM'!$G$6:$CU$12,23,FALSE) -> 15.03 | J12: =VLOOKUP($A12,'RECAP DIRCOM'!$G$6:$CU$12,24,FALSE) -> 37% | K12: =VLOOKUP($A12,'RECAP DIRCOM'!$G$6:$CU$12,25,FALSE) -> 7 | L12: =VLOOKUP($A12,'RECAP DIRCOM'!$G$6:$CU$12,26,FALSE) -> 62% | M12: =VLOOKUP($A12,'RECAP DIRCOM'!$G$6:$CU$12,27,FALSE) -> 62% | N12: =VLOOKUP($A12,'RECAP DIRCOM'!$G$6:$CU$12,28,FALSE) -> 7
A13: 30 | B13: Marne-Ardennes | C13: =VLOOKUP($A13,'RECAP DIRCOM'!$G$6:$CU$12,3,FALSE) -> 195 | D13: =VLOOKUP($A13,'RECAP DIRCOM'!$G$6:$CU$12,18,FALSE) -> 1,736 | E13: =VLOOKUP($A13,'RECAP DIRCOM'!$G$6:$CU$12,19,FALSE) -> 8.91 | F13: =VLOOKUP($A13,'RECAP DIRCOM'!$G$6:$CU$12,20,FALSE) -> 17% | G13: =VLOOKUP($A13,'RECAP DIRCOM'!$G$6:$CU$12,21,FALSE) -> 2 | H13: =VLOOKUP($A13,'RECAP DIRCOM'!$G$6:$CU$12,22,FALSE) -> 4,629 | I13: =VLOOKUP($A13,'RECAP DIRCOM'!$G$6:$CU$12,23,FALSE) -> 23.76 | J13: =VLOOKUP($A13,'RECAP DIRCOM'!$G$6:$CU$12,24,FALSE) -> 1% | K13: =VLOOKUP($A13,'RECAP DIRCOM'!$G$6:$CU$12,25,FALSE) -> 2 | L13: =VLOOKUP($A13,'RECAP DIRCOM'!$G$6:$CU$12,26,FALSE) -> 10% | M13: =VLOOKUP($A13,'RECAP DIRCOM'!$G$6:$CU$12,27,FALSE) -> 10% | N13: =VLOOKUP($A13,'RECAP DIRCOM'!$G$6:$CU$12,28,FALSE) -> 2
A14: 110 | B14: Meurthe et Moselle Meuse | C14: =VLOOKUP($A14,'RECAP DIRCOM'!$G$6:$CU$12,3,FALSE) -> 203 | D14: =VLOOKUP($A14,'RECAP DIRCOM'!$G$6:$CU$12,18,FALSE) -> 1,556 | E14: =VLOOKUP($A14,'RECAP DIRCOM'!$G$6:$CU$12,19,FALSE) -> 7.67 | F14: =VLOOKUP($A14,'RECAP DIRCOM'!$G$6:$CU$12,20,FALSE) -> 29% | G14: =VLOOKUP($A14,'RECAP DIRCOM'!$G$6:$CU$12,21,FALSE) -> 4 | H14: =VLOOKUP($A14,'RECAP DIRCOM'!$G$6:$CU$12,22,FALSE) -> 4,676 | I14: =VLOOKUP($A14,'RECAP DIRCOM'!$G$6:$CU$12,23,FALSE) -> 23.05 | J14: =VLOOKUP($A14,'RECAP DIRCOM'!$G$6:$CU$12,24,FALSE) -> 4% | K14: =VLOOKUP($A14,'RECAP DIRCOM'!$G$6:$CU$12,25,FALSE) -> 3 | L14: =VLOOKUP($A14,'RECAP DIRCOM'!$G$6:$CU$12,26,FALSE) -> 19% | M14: =VLOOKUP($A14,'RECAP DIRCOM'!$G$6:$CU$12,27,FALSE) -> 19% | N14: =VLOOKUP($A14,'RECAP DIRCOM'!$G$6:$CU$12,28,FALSE) -> 3
A15: 160 | B15: Moselle | C15: =VLOOKUP($A15,'RECAP DIRCOM'!$G$6:$CU$12,3,FALSE) -> 228 | D15: =VLOOKUP($A15,'RECAP DIRCOM'!$G$6:$CU$12,18,FALSE) -> 2,454 | E15: =VLOOKUP($A15,'RECAP DIRCOM'!$G$6:$CU$12,19,FALSE) -> 10.75 | F15: =VLOOKUP($A15,'RECAP DIRCOM'!$G$6:$CU$12,20,FALSE) -> 0% | G15: =VLOOKUP($A15,'RECAP DIRCOM'!$G$6:$CU$12,21,FALSE) -> 1 | H15: =VLOOKUP($A15,'RECAP DIRCOM'!$G$6:$CU$12,22,FALSE) -> 5,462 | I15: =VLOOKUP($A15,'RECAP DIRCOM'!$G$6:$CU$12,23,FALSE) -> 23.92 | J15: =VLOOKUP($A15,'RECAP DIRCOM'!$G$6:$CU$12,24,FALSE) -> 0% | K15: =VLOOKUP($A15,'RECAP DIRCOM'!$G$6:$CU$12,25,FALSE) -> 1 | L15: =VLOOKUP($A15,'RECAP DIRCOM'!$G$6:$CU$12,26,FALSE) -> 0% | M15: =VLOOKUP($A15,'RECAP DIRCOM'!$G$6:$CU$12,27,FALSE) -> 0% | N15: =VLOOKUP($A15,'RECAP DIRCOM'!$G$6:$CU$12,28,FALSE) -> 1
A16: 80 | B16: Vosges | C16: =VLOOKUP($A16,'RECAP DIRCOM'!$G$6:$CU$12,3,FALSE) -> 119 | D16: =VLOOKUP($A16,'RECAP DIRCOM'!$G$6:$CU$12,18,FALSE) -> 722 | E16: =VLOOKUP($A16,'RECAP DIRCOM'!$G$6:$CU$12,19,FALSE) -> 6.09 | F16: =VLOOKUP($A16,'RECAP DIRCOM'!$G$6:$CU$12,20,FALSE) -> 43% | G16: =VLOOKUP($A16,'RECAP DIRCOM'!$G$6:$CU$12,21,FALSE) -> 5 | H16: =VLOOKUP($A16,'RECAP DIRCOM'!$G$6:$CU$12,22,FALSE) -> 1,969 | I16: =VLOOKUP($A16,'RECAP DIRCOM'!$G$6:$CU$12,23,FALSE) -> 16.60 | J16: =VLOOKUP($A16,'RECAP DIRCOM'!$G$6:$CU$12,24,FALSE) -> 31% | K16: =VLOOKUP($A16,'RECAP DIRCOM'!$G$6:$CU$12,25,FALSE) -> 6 | L16: =VLOOKUP($A16,'RECAP DIRCOM'!$G$6:$CU$12,26,FALSE) -> 38% | M16: =VLOOKUP($A16,'RECAP DIRCOM'!$G$6:$CU$12,27,FALSE) -> 38% | N16: =VLOOKUP($A16,'RECAP DIRCOM'!$G$6:$CU$12,28,FALSE) -> 5
B17: Total CEGEE Directions Régionales | C17: =SUM(C10:C16) -> 1203

Sheet DC_EPARGNE
B1: Accueil | D1: BAROMETRE BDD - DIRECTIONS REGIONALES
D2: EPARGNE
D3: =ACCUEIL!F7 -> 2022-04-24
D7: Excédent Epargne hors DAV pondéré | H7: Ventes sur client non détenteur de l’univers | L7: Total Epargne
D8: =DATEMAJ!C14 -> au 24/04 | F8: coef | G8: ='RECAP DIRCOM'!AP4 -> 12% | H8: =DATEMAJ!C15 -> au 24/04 | J8: coef | K8: ='RECAP DIRCOM'!AT4 -> 8% | M8: coef | N8: ='RECAP DIRCOM'!AW4 -> 20%
B9: Direction | C9: ="ETP perf "&DATEMAJ!$C$28 -> ETP perf 24-avr | D9: Excédent | E9: Excédent / ETP | F9: % Ecart au 1er | G9: Rang | H9: VB | I9: VB / ETP | J9: % Ecart au 1er | K9: Rang | L9: Moyenne ecart au 1er | M9: % Ecart au 1er | N9: Rang CEGEE
A10: 50 | B10: Aube Haute Marne | C10: =VLOOKUP($A10,'RECAP DIRCOM'!$G$6:$CU$12,3,FALSE) -> 114 | D10: =VLOOKUP($A10,'RECAP DIRCOM'!$G$6:$CU$12,33,FALSE) -> 6,931 | E10: =VLOOKUP($A10,'RECAP DIRCOM'!$G$6:$CU$12,34,FALSE) -> 60.72 | F10: =VLOOKUP($A10,'RECAP DIRCOM'!$G$6:$CU$12,35,FALSE) -> 66% | G10: =VLOOKUP($A10,'RECAP DIRCOM'!$G$6:$CU$12,36,FALSE) -> 7 | H10: =VLOOKUP($A10,'RECAP DIRCOM'!$G$6:$CU$12,37,FALSE) -> 2,076 | I10: =VLOOKUP($A10,'RECAP DIRCOM'!$G$6:$CU$12,38,FALSE) -> 18.19 | J10: =VLOOKUP($A10,'RECAP DIRCOM'!$G$6:$CU$12,39,FALSE) -> 30% | K10: =VLOOKUP($A10,'RECAP DIRCOM'!$G$6:$CU$12,40,FALSE) -> 5 | L10: =VLOOKUP($A10,'RECAP DIRCOM'!$G$6:$CU$12,41,FALSE) -> 52% | M10: =VLOOKUP($A10,'RECAP DIRCOM'!$G$6:$CU$12,42,FALSE) -> 51% | N10: =VLOOKUP($A10,'RECAP DIRCOM'!$G$6:$CU$12,43,FALSE) -> 7
A11: 262 | B11: Bas-Rhin | C11: =VLOOKUP($A11,'RECAP DIRCOM'!$G$6:$CU$12,3,FALSE) -> 219 | D11: =VLOOKUP($A11,'RECAP DIRCOM'!$G$6:$CU$12,33,FALSE) -> 36,120 | E11: =VLOOKUP($A11,'RECAP DIRCOM'!$G$6:$CU$12,34,FALSE) -> 165.26 | F11: =VLOOKUP($A11,'RECAP DIRCOM'!$G$6:$CU$12,35,FALSE) -> 7% | G11: =VLOOKUP($A11,'RECAP DIRCOM'!$G$6:$CU$12,36,FALSE) -> 3 | H11: =VLOOKUP($A11,'RECAP DIRCOM'!$G$6:$CU$12,37,FALSE) -> 4,455 | I11: =VLOOKUP($A11,'RECAP DIRCOM'!$G$6:$CU$12,38,FALSE) -> 20.38 | J11: =VLOOKUP($A11,'RECAP DIRCOM'!$G$6:$CU$12,39,FALSE) -> 22% | K11: =VLOOKUP($A11,'RECAP DIRCOM'!$G$6:$CU$12,40,FALSE) -> 3 | L11: =VLOOKUP($A11,'RECAP DIRCOM'!$G$6:$CU$12,41,FALSE) -> 13% | M11: =VLOOKUP($A11,'RECAP DIRCOM'!$G$6:$CU$12,42,FALSE) -> 12% | N11: =VLOOKUP($A11,'RECAP DIRCOM'!$G$6:$CU$12,43,FALSE) -> 2
A12: 264 | B12: Haut-Rhin | C12: =VLOOKUP($A12,'RECAP DIRCOM'!$G$6:$CU$12,3,FALSE) -> 126 | D12: =VLOOKUP($A12,'RECAP DIRCOM'!$G$6:$CU$12,33,FALSE) -> 11,607 | E12: =VLOOKUP($A12,'RECAP DIRCOM'!$G$6:$CU$12,34,FALSE) -> 92.10 | F12: =VLOOKUP($A12,'RECAP DIRCOM'!$G$6:$CU$12,35,FALSE) -> 48% | G12: =VLOOKUP($A12,'RECAP DIRCOM'!$G$6:$CU$12,36,FALSE) -> 6 | H12: =VLOOKUP($A12,'RECAP DIRCOM'!$G$6:$CU$12,37,FALSE) -> 1,725 | I12: =VLOOKUP($A12,'RECAP DIRCOM'!$G$6:$CU$12,38,FALSE) -> 13.69 | J12: =VLOOKUP($A12,'RECAP DIRCOM'!$G$6:$CU$12,39,FALSE) -> 47% | K12: =VLOOKUP($A12,'RECAP DIRCOM'!$G$6:$CU$12,40,FALSE) -> 7 | L12: =VLOOKUP($A12,'RECAP DIRCOM'!$G$6:$CU$12,41,FALSE) -> 48% | M12: =VLOOKUP($A12,'RECAP DIRCOM'!$G$6:$CU$12,42,FALSE) -> 47% | N12: =VLOOKUP($A12,'RECAP DIRCOM'!$G$6:$CU$12,43,FALSE) -> 6
A13: 30 | B13: Marne-Ardennes | C13: =VLOOKUP($A13,'RECAP DIRCOM'!$G$6:$CU$12,3,FALSE) -> 195 | D13: =VLOOKUP($A13,'RECAP DIRCOM'!$G$6:$CU$12,33,FALSE) -> 18,947 | E13: =VLOOKUP($A13,'RECAP DIRCOM'!$G$6:$CU$12,34,FALSE) -> 97.26 | F13: =VLOOKUP($A13,'RECAP DIRCOM'!$G$6:$CU$12,35,FALSE) -> 45% | G13: =VLOOKUP($A13,'RECAP DIRCOM'!$G$6:$CU$12,36,FALSE) -> 5 | H13: =VLOOKUP($A13,'RECAP DIRCOM'!$G$6:$CU$12,37,FALSE) -> 4,744 | I13: =VLOOKUP($A13,'RECAP DIRCOM'!$G$6:$CU$12,38,FALSE) -> 24.35 | J13: =VLOOKUP($A13,'RECAP DIRCOM'!$G$6:$CU$12,39,FALSE) -> 6% | K13: =VLOOKUP($A13,'RECAP DIRCOM'!$G$6:$CU$12,40,FALSE) -> 2 | L13: =VLOOKUP($A13,'RECAP DIRCOM'!$G$6:$CU$12,41,FALSE) -> 30% | M13: =VLOOKUP($A13,'RECAP DIRCOM'!$G$6:$CU$12,42,FALSE) -> 29% | N13: =VLOOKUP($A13,'RECAP DIRCOM'!$G$6:$CU$12,43,FALSE) -> 4
A14: 110 | B14: Meurthe et Moselle Meuse | C14: =VLOOKUP($A14,'RECAP DIRCOM'!$G$6:$CU$12,3,FALSE) -> 203 | D14: =VLOOKUP($A14,'RECAP DIRCOM'!$G$6:$CU$12,33,FALSE) -> 23,162 | E14: =VLOOKUP($A14,'RECAP DIRCOM'!$G$6:$CU$12,34,FALSE) -> 114.17 | F14: =VLOOKUP($A14,'RECAP DIRCOM'!$G$6:$CU$12,35,FALSE) -> 36% | G14: =VLOOKUP($A14,'RECAP DIRCOM'!$G$6:$CU$12,36,FALSE) -> 4 | H14: =VLOOKUP($A14,'RECAP DIRCOM'!$G$6:$CU$12,37,FALSE) -> 4,050 | I14: =VLOOKUP($A14,'RECAP DIRCOM'!$G$6:$CU$12,38,FALSE) -> 19.96 | J14: =VLOOKUP($A14,'RECAP DIRCOM'!$G$6:$CU$12,39,FALSE) -> 23% | K14: =VLOOKUP($A14,'RECAP DIRCOM'!$G$6:$CU$12,40,FALSE) -> 4 | L14: =VLOOKUP($A14,'RECAP DIRCOM'!$G$6:$CU$12,41,FALSE) -> 31% | M14: =VLOOKUP($A14,'RECAP DIRCOM'!$G$6:$CU$12,42,FALSE) -> 30% | N14: =VLOOKUP($A14,'RECAP DIRCOM'!$G$6:$CU$12,43,FALSE) -> 5
A15: 160 | B15: Moselle | C15: =VLOOKUP($A15,'RECAP DIRCOM'!$G$6:$CU$12,3,FALSE) -> 228 | D15: =VLOOKUP($A15,'RECAP DIRCOM'!$G$6:$CU$12,33,FALSE) -> 39,946 | E15: =VLOOKUP($A15,'RECAP DIRCOM'!$G$6:$CU$12,34,FALSE) -> 174.93 | F15: =VLOOKUP($A15,'RECAP DIRCOM'!$G$6:$CU$12,35,FALSE) -> 2% | G15: =VLOOKUP($A15,'RECAP DIRCOM'!$G$6:$CU$12,36,FALSE) -> 2 | H15: =VLOOKUP($A15,'RECAP DIRCOM'!$G$6:$CU$12,37,FALSE) -> 5,947 | I15: =VLOOKUP($A15,'RECAP DIRCOM'!$G$6:$CU$12,38,FALSE) -> 26.04 | J15: =VLOOKUP($A15,'RECAP DIRCOM'!$G$6:$CU$12,39,FALSE) -> 0% | K15: =VLOOKUP($A15,'RECAP DIRCOM'!$G$6:$CU$12,40,FALSE) -> 1 | L15: =VLOOKUP($A15,'RECAP DIRCOM'!$G$6:$CU$12,41,FALSE) -> 1% | M15: =VLOOKUP($A15,'RECAP DIRCOM'!$G$6:$CU$12,42,FALSE) -> 0% | N15: =VLOOKUP($A15,'RECAP DIRCOM'!$G$6:$CU$12,43,FALSE) -> 1
A16: 80 | B16: Vosges | C16: =VLOOKUP($A16,'RECAP DIRCOM'!$G$6:$CU$12,3,FALSE) -> 119 | D16: =VLOOKUP($A16,'RECAP DIRCOM'!$G$6:$CU$12,33,FALSE) -> 21,110 | E16: =VLOOKUP($A16,'RECAP DIRCOM'!$G$6:$CU$12,34,FALSE) -> 177.92 | F16: =VLOOKUP($A16,'RECAP DIRCOM'!$G$6:$CU$12,35,FALSE) -> 0% | G16: =VLOOKUP($A16,'RECAP DIRCOM'!$G$6:$CU$12,36,FALSE) -> 1 | H16: =VLOOKUP($A16,'RECAP DIRCOM'!$G$6:$CU$12,37,FALSE) -> 2,085 | I16: =VLOOKUP($A16,'RECAP DIRCOM'!$G$6:$CU$12,38,FALSE) -> 17.57 | J16: =VLOOKUP($A16,'RECAP DIRCOM'!$G$6:$CU$12,39,FALSE) -> 33% | K16: =VLOOKUP($A16,'RECAP DIRCOM'!$G$6:$CU$12,40,FALSE) -> 6 | L16: =VLOOKUP($A16,'RECAP DIRCOM'!$G$6:$CU$12,41,FALSE) -> 13% | M16: =VLOOKUP($A16,'RECAP DIRCOM'!$G$6:$CU$12,42,FALSE) -> 12% | N16: =VLOOKUP($A16,'RECAP DIRCOM'!$G$6:$CU$12,43,FALSE) -> 3
B17: Total CEGEE Directions Régionales | C17: =SUM(C10:C16) -> 1203

Sheet DC_CREDIT
B1: Accueil | D1: BAROMETRE BDD - DIRECTIONS REGIONALES
D2: CREDITS
D3: =ACCUEIL!F7 -> 2022-04-24
D7: Engagements et ventes accessoires pondérés Immo | H7: Engagements et ventes accessoires pondérés Conso | L7: Ventes sur client non détenteur de l’univers | P7: Total Crédits
D8: =DATEMAJ!C18 -> au 24/04 | F8: coef | G8: ='RECAP DIRCOM'!BE4 -> 6% | H8: =DATEMAJ!C19 -> au 24/04 | J8: coef | K8: ='RECAP DIRCOM'!BI4 -> 6% | L8: =DATEMAJ!C20 -> au 24/04 | N8: coef | O8: ='RECAP DIRCOM'!BM4 -> 8% | Q8: coef | R8: ='RECAP DIRCOM'!BP4 -> 20%
B9: Direction | C9: ="ETP perf "&DATEMAJ!$C$28 -> ETP perf 24-avr | D9: PNB | E9: PNB / ETP | F9: % Ecart au 1er | G9: Rang | H9: PNB | I9: PNB / ETP | J9: % Ecart au 1er | K9: Rang | L9: VB | M9: VB / ETP | N9: % Ecart au 1er | O9: Rang | P9: Moyenne ecart au 1er | Q9: % Ecart au 1er | R9: Rang CEGEE
A10: 50 | B10: Aube Haute Marne | C10: =VLOOKUP($A10,'RECAP DIRCOM'!$G$6:$CU$12,3,FALSE) -> 114 | D10: =VLOOKUP($A10,'RECAP DIRCOM'!$G$6:$CU$12,48,FALSE) -> 2,274 | E10: =VLOOKUP($A10,'RECAP DIRCOM'!$G$6:$CU$12,49,FALSE) -> 19.92 | F10: =VLOOKUP($A10,'RECAP DIRCOM'!$G$6:$CU$12,50,FALSE) -> 58% | G10: =VLOOKUP($A10,'RECAP DIRCOM'!$G$6:$CU$12,51,FALSE) -> 5 | H10: =VLOOKUP($A10,'RECAP DIRCOM'!$G$6:$CU$12,52,FALSE) -> 2,658 | I10: =VLOOKUP($A10,'RECAP DIRCOM'!$G$6:$CU$12,53,FALSE) -> 23.28 | J10: =VLOOKUP($A10,'RECAP DIRCOM'!$G$6:$CU$12,54,FALSE) -> 11% | K10: =VLOOKUP($A10,'RECAP DIRCOM'!$G$6:$CU$12,55,FALSE) -> 3 | L10: =VLOOKUP($A10,'RECAP DIRCOM'!$G$6:$CU$12,56,FALSE) -> 845 | M10: =VLOOKUP($A10,'RECAP DIRCOM'!$G$6:$CU$12,57,FALSE) -> 7.40 | N10: =VLOOKUP($A10,'RECAP DIRCOM'!$G$6:$CU$12,58,FALSE) -> 33% | O10: =VLOOKUP($A10,'RECAP DIRCOM'!$G$6:$CU$12,59,FALSE) -> 5 | P10: =VLOOKUP($A10,'RECAP DIRCOM'!$G$6:$CU$12,60,FALSE) -> 34% | Q10: =VLOOKUP($A10,'RECAP DIRCOM'!$G$6:$CU$12,61,FALSE) -> 29% | R10: =VLOOKUP($A10,'RECAP DIRCOM'!$G$6:$CU$12,62,FALSE) -> 4
A11: 262 | B11: Bas-Rhin | C11: =VLOOKUP($A11,'RECAP DIRCOM'!$G$6:$CU$12,3,FALSE) -> 219 | D11: =VLOOKUP($A11,'RECAP DIRCOM'!$G$6:$CU$12,48,FALSE) -> 4,624 | E11: =VLOOKUP($A11,'RECAP DIRCOM'!$G$6:$CU$12,49,FALSE) -> 21.16 | F11: =VLOOKUP($A11,'RECAP DIRCOM'!$G$6:$CU$12,50,FALSE) -> 55% | G11: =VLOOKUP($A11,'RECAP DIRCOM'!$G$6:$CU$12,51,FALSE) -> 4 | H11: =VLOOKUP($A11,'RECAP DIRCOM'!$G$6:$CU$12,52,FALSE) -> 4,468 | I11: =VLOOKUP($A11,'RECAP DIRCOM'!$G$6:$CU$12,53,FALSE) -> 20.44 | J11: =VLOOKUP($A11,'RECAP DIRCOM'!$G$6:$CU$12,54,FALSE) -> 22% | K11: =VLOOKUP($A11,'RECAP DIRCOM'!$G$6:$CU$12,55,FALSE) -> 5 | L11: =VLOOKUP($A11,'RECAP DIRCOM'!$G$6:$CU$12,56,FALSE) -> 1,432 | M11: =VLOOKUP($A11,'RECAP DIRCOM'!$G$6:$CU$12,57,FALSE) -> 6.55 | N11: =VLOOKUP($A11,'RECAP DIRCOM'!$G$6:$CU$12,58,FALSE) -> 41% | O11: =VLOOKUP($A11,'RECAP DIRCOM'!$G$6:$CU$12,59,FALSE) -> 6 | P11: =VLOOKUP($A11,'RECAP DIRCOM'!$G$6:$CU$12,60,FALSE) -> 39% | Q11: =VLOOKUP($A11,'RECAP DIRCOM'!$G$6:$CU$12,61,FALSE) -> 35% | R11: =VLOOKUP($A11,'RECAP DIRCOM'!$G$6:$CU$12,62,FALSE) -> 6
A12: 264 | B12: Haut-Rhin | C12: =VLOOKUP($A12,'RECAP DIRCOM'!$G$6:$CU$12,3,FALSE) -> 126 | D12: =VLOOKUP($A12,'RECAP DIRCOM'!$G$6:$CU$12,48,FALSE) -> 2,367 | E12: =VLOOKUP($A12,'RECAP DIRCOM'!$G$6:$CU$12,49,FALSE) -> 18.78 | F12: =VLOOKUP($A12,'RECAP DIRCOM'!$G$6:$CU$12,50,FALSE) -> 60% | G12: =VLOOKUP($A12,'RECAP DIRCOM'!$G$6:$CU$12,51,FALSE) -> 7 | H12: =VLOOKUP($A12,'RECAP DIRCOM'!$G$6:$CU$12,52,FALSE) -> 2,227 | I12: =VLOOKUP($A12,'RECAP DIRCOM'!$G$6:$CU$12,53,FALSE) -> 17.67 | J12: =VLOOKUP($A12,'RECAP DIRCOM'!$G$6:$CU$12,54,FALSE) -> 32% | K12: =VLOOKUP($A12,'RECAP DIRCOM'!$G$6:$CU$12,55,FALSE) -> 7 | L12: =VLOOKUP($A12,'RECAP DIRCOM'!$G$6:$CU$12,56,FALSE) -> 703 | M12: =VLOOKUP($A12,'RECAP DIRCOM'!$G$6:$CU$12,57,FALSE) -> 5.58 | N12: =VLOOKUP($A12,'RECAP DIRCOM'!$G$6:$CU$12,58,FALSE) -> 50% | O12: =VLOOKUP($A12,'RECAP DIRCOM'!$G$6:$CU$12,59,FALSE) -> 7 | P12: =VLOOKUP($A12,'RECAP DIRCOM'!$G$6:$CU$12,60,FALSE) -> 48% | Q12: =VLOOKUP($A12,'RECAP DIRCOM'!$G$6:$CU$12,61,FALSE) -> 43% | R12: =VLOOKUP($A12,'RECAP DIRCOM'!$G$6:$CU$12,62,FALSE) -> 7
A13: 30 | B13: Marne-Ardennes | C13: =VLOOKUP($A13,'RECAP DIRCOM'!$G$6:$CU$12,3,FALSE) -> 195 | D13: =VLOOKUP($A13,'RECAP DIRCOM'!$G$6:$CU$12,48,FALSE) -> 9,138 | E13: =VLOOKUP($A13,'RECAP DIRCOM'!$G$6:$CU$12,49,FALSE) -> 46.91 | F13: =VLOOKUP($A13,'RECAP DIRCOM'!$G$6:$CU$12,50,FALSE) -> 0% | G13: =VLOOKUP($A13,'RECAP DIRCOM'!$G$6:$CU$12,51,FALSE) -> 1 | H13: =VLOOKUP($A13,'RECAP DIRCOM'!$G$6:$CU$12,52,FALSE) -> 4,363 | I13: =VLOOKUP($A13,'RECAP DIRCOM'!$G$6:$CU$12,53,FALSE) -> 22.40 | J13: =VLOOKUP($A13,'RECAP DIRCOM'!$G$6:$CU$12,54,FALSE) -> 14% | K13: =VLOOKUP($A13,'RECAP DIRCOM'!$G$6:$CU$12,55,FALSE) -> 4 | L13: =VLOOKUP($A13,'RECAP DIRCOM'!$G$6:$CU$12,56,FALSE) -> 2,156 | M13: =VLOOKUP($A13,'RECAP DIRCOM'!$G$6:$CU$12,57,FALSE) -> 11.07 | N13: =VLOOKUP($A13,'RECAP DIRCOM'!$G$6:$CU$12,58,FALSE) -> 0% | O13: =VLOOKUP($A13,'RECAP DIRCOM'!$G$6:$CU$12,59,FALSE) -> 1 | P13: =VLOOKUP($A13,'RECAP DIRCOM'!$G$6:$CU$12,60,FALSE) -> 4% | Q13: =VLOOKUP($A13,'RECAP DIRCOM'!$G$6:$CU$12,61,FALSE) -> 0% | R13: =VLOOKUP($A13,'RECAP DIRCOM'!$G$6:$CU$12,62,FALSE) -> 1
A14: 110 | B14: Meurthe et Moselle Meuse | C14: =VLOOKUP($A14,'RECAP DIRCOM'!$G$6:$CU$12,3,FALSE) -> 203 | D14: =VLOOKUP($A14,'RECAP DIRCOM'!$G$6:$CU$12,48,FALSE) -> 8,082 | E14: =VLOOKUP($A14,'RECAP DIRCOM'!$G$6:$CU$12,49,FALSE) -> 39.84 | F14: =VLOOKUP($A14,'RECAP DIRCOM'!$G$6:$CU$12,50,FALSE) -> 15% | G14: =VLOOKUP($A14,'RECAP DIRCOM'!$G$6:$CU$12,51,FALSE) -> 2 | H14: =VLOOKUP($A14,'RECAP DIRCOM'!$G$6:$CU$12,52,FALSE) -> 4,969 | I14: =VLOOKUP($A14,'RECAP DIRCOM'!$G$6:$CU$12,53,FALSE) -> 24.49 | J14: =VLOOKUP($A14,'RECAP DIRCOM'!$G$6:$CU$12,54,FALSE) -> 6% | K14: =VLOOKUP($A14,'RECAP DIRCOM'!$G$6:$CU$12,55,FALSE) -> 2 | L14: =VLOOKUP($A14,'RECAP DIRCOM'!$G$6:$CU$12,56,FALSE) -> 2,001 | M14: =VLOOKUP($A14,'RECAP DIRCOM'!$G$6:$CU$12,57,FALSE) -> 9.86 | N14: =VLOOKUP($A14,'RECAP DIRCOM'!$G$6:$CU$12,58,FALSE) -> 11% | O14: =VLOOKUP($A14,'RECAP DIRCOM'!$G$6:$CU$12,59,FALSE) -> 3 | P14: =VLOOKUP($A14,'RECAP DIRCOM'!$G$6:$CU$12,60,FALSE) -> 11% | Q14: =VLOOKUP($A14,'RECAP DIRCOM'!$G$6:$CU$12,61,FALSE) -> 6% | R14: =VLOOKUP($A14,'RECAP DIRCOM'!$G$6:$CU$12,62,FALSE) -> 3
A15: 160 | B15: Moselle | C15: =VLOOKUP($A15,'RECAP DIRCOM'!$G$6:$CU$12,3,FALSE) -> 228 | D15: =VLOOKUP($A15,'RECAP DIRCOM'!$G$6:$CU$12,48,FALSE) -> 8,787 | E15: =VLOOKUP($A15,'RECAP DIRCOM'!$G$6:$CU$12,49,FALSE) -> 38.48 | F15: =VLOOKUP($A15,'RECAP DIRCOM'!$G$6:$CU$12,50,FALSE) -> 18% | G15: =VLOOKUP($A15,'RECAP DIRCOM'!$G$6:$CU$12,51,FALSE) -> 3 | H15: =VLOOKUP($A15,'RECAP DIRCOM'!$G$6:$CU$12,52,FALSE) -> 5,967 | I15: =VLOOKUP($A15,'RECAP DIRCOM'!$G$6:$CU$12,53,FALSE) -> 26.13 | J15: =VLOOKUP($A15,'RECAP DIRCOM'!$G$6:$CU$12,54,FALSE) -> 0% | K15: =VLOOKUP($A15,'RECAP DIRCOM'!$G$6:$CU$12,55,FALSE) -> 1 | L15: =VLOOKUP($A15,'RECAP DIRCOM'!$G$6:$CU$12,56,FALSE) -> 2,289 | M15: =VLOOKUP($A15,'RECAP DIRCOM'!$G$6:$CU$12,57,FALSE) -> 10.02 | N15: =VLOOKUP($A15,'RECAP DIRCOM'!$G$6:$CU$12,58,FALSE) -> 9% | O15: =VLOOKUP($A15,'RECAP DIRCOM'!$G$6:$CU$12,59,FALSE) -> 2 | P15: =VLOOKUP($A15,'RECAP DIRCOM'!$G$6:$CU$12,60,FALSE) -> 9% | Q15: =VLOOKUP($A15,'RECAP DIRCOM'!$G$6:$CU$12,61,FALSE) -> 5% | R15: =VLOOKUP($A15,'RECAP DIRCOM'!$G$6:$CU$12,62,FALSE) -> 2
A16: 80 | B16: Vosges | C16: =VLOOKUP($A16,'RECAP DIRCOM'!$G$6:$CU$12,3,FALSE) -> 119 | D16: =VLOOKUP($A16,'RECAP DIRCOM'!$G$6:$CU$12,48,FALSE) -> 2,289 | E16: =VLOOKUP($A16,'RECAP DIRCOM'!$G$6:$CU$12,49,FALSE) -> 19.29 | F16: =VLOOKUP($A16,'RECAP DIRCOM'!$G$6:$CU$12,50,FALSE) -> 59% | G16: =VLOOKUP($A16,'RECAP DIRCOM'!$G$6:$CU$12,51,FALSE) -> 6 | H16: =VLOOKUP($A16,'RECAP DIRCOM'!$G$6:$CU$12,52,FALSE) -> 2,328 | I16: =VLOOKUP($A16,'RECAP DIRCOM'!$G$6:$CU$12,53,FALSE) -> 19.62 | J16: =VLOOKUP($A16,'RECAP DIRCOM'!$G$6:$CU$12,54,FALSE) -> 25% | K16: =VLOOKUP($A16,'RECAP DIRCOM'!$G$6:$CU$12,55,FALSE) -> 6 | L16: =VLOOKUP($A16,'RECAP DIRCOM'!$G$6:$CU$12,56,FALSE) -> 912 | M16: =VLOOKUP($A16,'RECAP DIRCOM'!$G$6:$CU$12,57,FALSE) -> 7.69 | N16: =VLOOKUP($A16,'RECAP DIRCOM'!$G$6:$CU$12,58,FALSE) -> 31% | O16: =VLOOKUP($A16,'RECAP DIRCOM'!$G$6:$CU$12,59,FALSE) -> 4 | P16: =VLOOKUP($A16,'RECAP DIRCOM'!$G$6:$CU$12,60,FALSE) -> 37% | Q16: =VLOOKUP($A16,'RECAP DIRCOM'!$G$6:$CU$12,61,FALSE) -> 33% | R16: =VLOOKUP($A16,'RECAP DIRCOM'!$G$6:$CU$12,62,FALSE) -> 5
B17: Total CEGEE Directions Régionales | C17: =SUM(C10:C16) -> 1203

Sheet DC_IARD
B1: Accueil | D1: BAROMETRE BDD - DIRECTIONS REGIONALES
D2: IARD ET PREVOYANCE
D3: =ACCUEIL!F7 -> 2022-04-24
D7: Ventes Nettes produits pondérés | H7: Ventes sur client non détenteur de l’univers | L7: Total IARD Prévoyance
D8: =DATEMAJ!C23 -> au 24/04 | F8: coef | G8: ='RECAP DIRCOM'!BX4 -> 12% | H8: =DATEMAJ!C24 -> au 24/04 | J8: coef | K8: ='RECAP DIRCOM'!CB4 -> 8% | M8: coef | N8: ='RECAP DIRCOM'!CE4 -> 20%
B9: Direction | C9: ="ETP perf "&DATEMAJ!$C$28 -> ETP perf 24-avr | D9: VN | E9: VN / ETP | F9: % Ecart au 1er | G9: Rang | H9: VB | I9: VB / ETP | J9: % Ecart au 1er | K9: Rang | L9: Moyenne ecart au 1er | M9: % Ecart au 1er | N9: Rang CEGEE
A10: 50 | B10: Aube Haute Marne | C10: =VLOOKUP($A10,'RECAP DIRCOM'!$G$6:$CU$12,3,FALSE) -> 114 | D10: =VLOOKUP($A10,'RECAP DIRCOM'!$G$6:$CU$12,67,FALSE) -> 5,456 | E10: =VLOOKUP($A10,'RECAP DIRCOM'!$G$6:$CU$12,68,FALSE) -> 47.79 | F10: =VLOOKUP($A10,'RECAP DIRCOM'!$G$6:$CU$12,69,FALSE) -> 31% | G10: =VLOOKUP($A10,'RECAP DIRCOM'!$G$6:$CU$12,70,FALSE) -> 4 | H10: =VLOOKUP($A10,'RECAP DIRCOM'!$G$6:$CU$12,71,FALSE) -> 1,649 | I10: =VLOOKUP($A10,'RECAP DIRCOM'!$G$6:$CU$12,72,FALSE) -> 14.44 | J10: =VLOOKUP($A10,'RECAP DIRCOM'!$G$6:$CU$12,73,FALSE) -> 20% | K10: =VLOOKUP($A10,'RECAP DIRCOM'!$G$6:$CU$12,74,FALSE) -> 5 | L10: =VLOOKUP($A10,'RECAP DIRCOM'!$G$6:$CU$12,75,FALSE) -> 27% | M10: =VLOOKUP($A10,'RECAP DIRCOM'!$G$6:$CU$12,76,FALSE) -> 27% | N10: =VLOOKUP($A10,'RECAP DIRCOM'!$G$6:$CU$12,77,FALSE) -> 5
A11: 262 | B11: Bas-Rhin | C11: =VLOOKUP($A11,'RECAP DIRCOM'!$G$6:$CU$12,3,FALSE) -> 219 | D11: =VLOOKUP($A11,'RECAP DIRCOM'!$G$6:$CU$12,67,FALSE) -> 11,008 | E11: =VLOOKUP($A11,'RECAP DIRCOM'!$G$6:$CU$12,68,FALSE) -> 50.36 | F11: =VLOOKUP($A11,'RECAP DIRCOM'!$G$6:$CU$12,69,FALSE) -> 28% | G11: =VLOOKUP($A11,'RECAP DIRCOM'!$G$6:$CU$12,70,FALSE) -> 3 | H11: =VLOOKUP($A11,'RECAP DIRCOM'!$G$6:$CU$12,71,FALSE) -> 3,551 | I11: =VLOOKUP($A11,'RECAP DIRCOM'!$G$6:$CU$12,72,FALSE) -> 16.25 | J11: =VLOOKUP($A11,'RECAP DIRCOM'!$G$6:$CU$12,73,FALSE) -> 10% | K11: =VLOOKUP($A11,'RECAP DIRCOM'!$G$6:$CU$12,74,FALSE) -> 4 | L11: =VLOOKUP($A11,'RECAP DIRCOM'!$G$6:$CU$12,75,FALSE) -> 21% | M11: =VLOOKUP($A11,'RECAP DIRCOM'!$G$6:$CU$12,76,FALSE) -> 21% | N11: =VLOOKUP($A11,'RECAP DIRCOM'!$G$6:$CU$12,77,FALSE) -> 3
A12: 264 | B12: Haut-Rhin | C12: =VLOOKUP($A12,'RECAP DIRCOM'!$G$6:$CU$12,3,FALSE) -> 126 | D12: =VLOOKUP($A12,'RECAP DIRCOM'!$G$6:$CU$12,67,FALSE) -> 4,021 | E12: =VLOOKUP($A12,'RECAP DIRCOM'!$G$6:$CU$12,68,FALSE) -> 31.91 | F12: =VLOOKUP($A12,'RECAP DIRCOM'!$G$6:$CU$12,69,FALSE) -> 54% | G12: =VLOOKUP($A12,'RECAP DIRCOM'!$G$6:$CU$12,70,FALSE) -> 7 | H12: =VLOOKUP($A12,'RECAP DIRCOM'!$G$6:$CU$12,71,FALSE) -> 1,594 | I12: =VLOOKUP($A12,'RECAP DIRCOM'!$G$6:$CU$12,72,FALSE) -> 12.65 | J12: =VLOOKUP($A12,'RECAP DIRCOM'!$G$6:$CU$12,73,FALSE) -> 30% | K12: =VLOOKUP($A12,'RECAP DIRCOM'!$G$6:$CU$12,74,FALSE) -> 7 | L12: =VLOOKUP($A12,'RECAP DIRCOM'!$G$6:$CU$12,75,FALSE) -> 44% | M12: =VLOOKUP($A12,'RECAP DIRCOM'!$G$6:$CU$12,76,FALSE) -> 44% | N12: =VLOOKUP($A12,'RECAP DIRCOM'!$G$6:$CU$12,77,FALSE) -> 7
A13: 30 | B13: Marne-Ardennes | C13: =VLOOKUP($A13,'RECAP DIRCOM'!$G$6:$CU$12,3,FALSE) -> 195 | D13: =VLOOKUP($A13,'RECAP DIRCOM'!$G$6:$CU$12,67,FALSE) -> 12,082 | E13: =VLOOKUP($A13,'RECAP DIRCOM'!$G$6:$CU$12,68,FALSE) -> 62.02 | F13: =VLOOKUP($A13,'RECAP DIRCOM'!$G$6:$CU$12,69,FALSE) -> 11% | G13: =VLOOKUP($A13,'RECAP DIRCOM'!$G$6:$CU$12,70,FALSE) -> 2 | H13: =VLOOKUP($A13,'RECAP DIRCOM'!$G$6:$CU$12,71,FALSE) -> 3,446 | I13: =VLOOKUP($A13,'RECAP DIRCOM'!$G$6:$CU$12,72,FALSE) -> 17.69 | J13: =VLOOKUP($A13,'RECAP DIRCOM'!$G$6:$CU$12,73,FALSE) -> 2% | K13: =VLOOKUP($A13,'RECAP DIRCOM'!$G$6:$CU$12,74,FALSE) -> 2 | L13: =VLOOKUP($A13,'RECAP DIRCOM'!$G$6:$CU$12,75,FALSE) -> 7% | M13: =VLOOKUP($A13,'RECAP DIRCOM'!$G$6:$CU$12,76,FALSE) -> 7% | N13: =VLOOKUP($A13,'RECAP DIRCOM'!$G$6:$CU$12,77,FALSE) -> 2
A14: 110 | B14: Meurthe et Moselle Meuse | C14: =VLOOKUP($A14,'RECAP DIRCOM'!$G$6:$CU$12,3,FALSE) -> 203 | D14: =VLOOKUP($A14,'RECAP DIRCOM'!$G$6:$CU$12,67,FALSE) -> 9,461 | E14: =VLOOKUP($A14,'RECAP DIRCOM'!$G$6:$CU$12,68,FALSE) -> 46.63 | F14: =VLOOKUP($A14,'RECAP DIRCOM'!$G$6:$CU$12,69,FALSE) -> 33% | G14: =VLOOKUP($A14,'RECAP DIRCOM'!$G$6:$CU$12,70,FALSE) -> 5 | H14: =VLOOKUP($A14,'RECAP DIRCOM'!$G$6:$CU$12,71,FALSE) -> 3,351 | I14: =VLOOKUP($A14,'RECAP DIRCOM'!$G$6:$CU$12,72,FALSE) -> 16.52 | J14: =VLOOKUP($A14,'RECAP DIRCOM'!$G$6:$CU$12,73,FALSE) -> 9% | K14: =VLOOKUP($A14,'RECAP DIRCOM'!$G$6:$CU$12,74,FALSE) -> 3 | L14: =VLOOKUP($A14,'RECAP DIRCOM'!$G$6:$CU$12,75,FALSE) -> 23% | M14: =VLOOKUP($A14,'RECAP DIRCOM'!$G$6:$CU$12,76,FALSE) -> 23% | N14: =VLOOKUP($A14,'RECAP DIRCOM'!$G$6:$CU$12,77,FALSE) -> 4
A15: 160 | B15: Moselle | C15: =VLOOKUP($A15,'RECAP DIRCOM'!$G$6:$CU$12,3,FALSE) -> 228 | D15: =VLOOKUP($A15,'RECAP DIRCOM'!$G$6:$CU$12,67,FALSE) -> 15,901 | E15: =VLOOKUP($A15,'RECAP DIRCOM'!$G$6:$CU$12,68,FALSE) -> 69.63 | F15: =VLOOKUP($A15,'RECAP DIRCOM'!$G$6:$CU$12,69,FALSE) -> 0% | G15: =VLOOKUP($A15,'RECAP DIRCOM'!$G$6:$CU$12,70,FALSE) -> 1 | H15: =VLOOKUP($A15,'RECAP DIRCOM'!$G$6:$CU$12,71,FALSE) -> 4,124 | I15: =VLOOKUP($A15,'RECAP DIRCOM'!$G$6:$CU$12,72,FALSE) -> 18.06 | J15: =VLOOKUP($A15,'RECAP DIRCOM'!$G$6:$CU$12,73,FALSE) -> 0% | K15: =VLOOKUP($A15,'RECAP DIRCOM'!$G$6:$CU$12,74,FALSE) -> 1 | L15: =VLOOKUP($A15,'RECAP DIRCOM'!$G$6:$CU$12,75,FALSE) -> 0% | M15: =VLOOKUP($A15,'RECAP DIRCOM'!$G$6:$CU$12,76,FALSE) -> 0% | N15: =VLOOKUP($A15,'RECAP DIRCOM'!$G$6:$CU$12,77,FALSE) -> 1
A16: 80 | B16: Vosges | C16: =VLOOKUP($A16,'RECAP DIRCOM'!$G$6:$CU$12,3,FALSE) -> 119 | D16: =VLOOKUP($A16,'RECAP DIRCOM'!$G$6:$CU$12,67,FALSE) -> 4,312 | E16: =VLOOKUP($A16,'RECAP DIRCOM'!$G$6:$CU$12,68,FALSE) -> 36.34 | F16: =VLOOKUP($A16,'RECAP DIRCOM'!$G$6:$CU$12,69,FALSE) -> 48% | G16: =VLOOKUP($A16,'RECAP DIRCOM'!$G$6:$CU$12,70,FALSE) -> 6 | H16: =VLOOKUP($A16,'RECAP DIRCOM'!$G$6:$CU$12,71,FALSE) -> 1,522 | I16: =VLOOKUP($A16,'RECAP DIRCOM'!$G$6:$CU$12,72,FALSE) -> 12.83 | J16: =VLOOKUP($A16,'RECAP DIRCOM'!$G$6:$CU$12,73,FALSE) -> 29% | K16: =VLOOKUP($A16,'RECAP DIRCOM'!$G$6:$CU$12,74,FALSE) -> 6 | L16: =VLOOKUP($A16,'RECAP DIRCOM'!$G$6:$CU$12,75,FALSE) -> 40% | M16: =VLOOKUP($A16,'RECAP DIRCOM'!$G$6:$CU$12,76,FALSE) -> 40% | N16: =VLOOKUP($A16,'RECAP DIRCOM'!$G$6:$CU$12,77,FALSE) -> 6
B17: Total CEGEE Directions Régionales | C17: =SUM(C10:C16) -> 1203

Sheet DC_SATISFACTION
B1: Accueil | D1: BAROMETRE BDD - DIRECTIONS REGIONALES
D2: SATISFACTION
D3: =ACCUEIL!F7 -> 2022-04-24
D7: NPS à froid (SAE) | G7: NPS à chaud (QHD) | J7: Total Satisfaction Clients
D8: =DATEMAJ!E4 -> au 31/03 | E8: coef | F8: ='RECAP DIRCOM'!M4 -> 10% | G8: =DATEMAJ!C5 -> au 28/02 | H8: coef | I8: ='RECAP DIRCOM'!P4 -> 10% | K8: coef | L8: ='RECAP DIRCOM'!S4 -> 20%
B9: Direction | C9: ="ETP perf "&DATEMAJ!$C$28 -> ETP perf 24-avr | E9: % Ecart au 1er | F9: Rang | H9: % Ecart au 1er | I9: Rang | J9: Moyenne ecart au 1er | K9: % Ecart au 1er | L9: Rang CEGEE
A10: 50 | B10: Aube Haute Marne | C10: =VLOOKUP($A10,'RECAP DIRCOM'!$G$6:$CU$12,3,FALSE) -> 114 | D10: =VLOOKUP($A10,'RECAP DIRCOM'!$G$6:$CU$12,5,FALSE) -> 4.25 | E10: =VLOOKUP($A10,'RECAP DIRCOM'!$G$6:$CU$12,6,FALSE) -> 82% | F10: =VLOOKUP($A10,'RECAP DIRCOM'!$G$6:$CU$12,7,FALSE) -> 6 | G10: =VLOOKUP($A10,'RECAP DIRCOM'!$G$6:$CU$12,8,FALSE) -> 53% | H10: =VLOOKUP($A10,'RECAP DIRCOM'!$G$6:$CU$12,9,FALSE) -> 22% | I10: =VLOOKUP($A10,'RECAP DIRCOM'!$G$6:$CU$12,10,FALSE) -> 6 | J10: =VLOOKUP($A10,'RECAP DIRCOM'!$G$6:$CU$12,11,FALSE) -> 52% | K10: =VLOOKUP($A10,'RECAP DIRCOM'!$G$6:$CU$12,12,FALSE) -> 52% | L10: =VLOOKUP($A10,'RECAP DIRCOM'!$G$6:$CU$12,13,FALSE) -> 6
A11: 262 | B11: Bas-Rhin | C11: =VLOOKUP($A11,'RECAP DIRCOM'!$G$6:$CU$12,3,FALSE) -> 219 | D11: =VLOOKUP($A11,'RECAP DIRCOM'!$G$6:$CU$12,5,FALSE) -> 4.5 | E11: =VLOOKUP($A11,'RECAP DIRCOM'!$G$6:$CU$12,6,FALSE) -> 81% | F11: =VLOOKUP($A11,'RECAP DIRCOM'!$G$6:$CU$12,7,FALSE) -> 5 | G11: =VLOOKUP($A11,'RECAP DIRCOM'!$G$6:$CU$12,8,FALSE) -> 59% | H11: =VLOOKUP($A11,'RECAP DIRCOM'!$G$6:$CU$12,9,FALSE) -> 14% | I11: =VLOOKUP($A11,'RECAP DIRCOM'!$G$6:$CU$12,10,FALSE) -> 4 | J11: =VLOOKUP($A11,'RECAP DIRCOM'!$G$6:$CU$12,11,FALSE) -> 47% | K11: =VLOOKUP($A11,'RECAP DIRCOM'!$G$6:$CU$12,12,FALSE) -> 47% | L11: =VLOOKUP($A11,'RECAP DIRCOM'!$G$6:$CU$12,13,FALSE) -> 5
A12: 264 | B12: Haut-Rhin | C12: =VLOOKUP($A12,'RECAP DIRCOM'!$G$6:$CU$12,3,FALSE) -> 126 | D12: =VLOOKUP($A12,'RECAP DIRCOM'!$G$6:$CU$12,5,FALSE) -> 3.25 | E12: =VLOOKUP($A12,'RECAP DIRCOM'!$G$6:$CU$12,6,FALSE) -> 86% | F12: =VLOOKUP($A12,'RECAP DIRCOM'!$G$6:$CU$12,7,FALSE) -> 7 | G12: =VLOOKUP($A12,'RECAP DIRCOM'!$G$6:$CU$12,8,FALSE) -> 49% | H12: =VLOOKUP($A12,'RECAP DIRCOM'!$G$6:$CU$12,9,FALSE) -> 28% | I12: =VLOOKUP($A12,'RECAP DIRCOM'!$G$6:$CU$12,10,FALSE) -> 7 | J12: =VLOOKUP($A12,'RECAP DIRCOM'!$G$6:$CU$12,11,FALSE) -> 57% | K12: =VLOOKUP($A12,'RECAP DIRCOM'!$G$6:$CU$12,12,FALSE) -> 57% | L12: =VLOOKUP($A12,'RECAP DIRCOM'!$G$6:$CU$12,13,FALSE) -> 7
A13: 30 | B13: Marne-Ardennes | C13: =VLOOKUP($A13,'RECAP DIRCOM'!$G$6:$CU$12,3,FALSE) -> 195 | D13: =VLOOKUP($A13,'RECAP DIRCOM'!$G$6:$CU$12,5,FALSE) -> 17.25 | E13: =VLOOKUP($A13,'RECAP DIRCOM'!$G$6:$CU$12,6,FALSE) -> 26% | F13: =VLOOKUP($A13,'RECAP DIRCOM'!$G$6:$CU$12,7,FALSE) -> 2 | G13: =VLOOKUP($A13,'RECAP DIRCOM'!$G$6:$CU$12,8,FALSE) -> 68% | H13: =VLOOKUP($A13,'RECAP DIRCOM'!$G$6:$CU$12,9,FALSE) -> 1% | I13: =VLOOKUP($A13,'RECAP DIRCOM'!$G$6:$CU$12,10,FALSE) -> 2 | J13: =VLOOKUP($A13,'RECAP DIRCOM'!$G$6:$CU$12,11,FALSE) -> 13% | K13: =VLOOKUP($A13,'RECAP DIRCOM'!$G$6:$CU$12,12,FALSE) -> 13% | L13: =VLOOKUP($A13,'RECAP DIRCOM'!$G$6:$CU$12,13,FALSE) -> 2
A14: 110 | B14: Meurthe et Moselle Meuse | C14: =VLOOKUP($A14,'RECAP DIRCOM'!$G$6:$CU$12,3,FALSE) -> 203 | D14: =VLOOKUP($A14,'RECAP DIRCOM'!$G$6:$CU$12,5,FALSE) -> 8.25 | E14: =VLOOKUP($A14,'RECAP DIRCOM'!$G$6:$CU$12,6,FALSE) -> 65% | F14: =VLOOKUP($A14,'RECAP DIRCOM'!$G$6:$CU$12,7,FALSE) -> 4 | G14: =VLOOKUP($A14,'RECAP DIRCOM'!$G$6:$CU$12,8,FALSE) -> 55% | H14: =VLOOKUP($A14,'RECAP DIRCOM'!$G$6:$CU$12,9,FALSE) -> 19% | I14: =VLOOKUP($A14,'RECAP DIRCOM'!$G$6:$CU$12,10,FALSE) -> 5 | J14: =VLOOKUP($A14,'RECAP DIRCOM'!$G$6:$CU$12,11,FALSE) -> 42% | K14: =VLOOKUP($A14,'RECAP DIRCOM'!$G$6:$CU$12,12,FALSE) -> 42% | L14: =VLOOKUP($A14,'RECAP DIRCOM'!$G$6:$CU$12,13,FALSE) -> 4
A15: 160 | B15: Moselle | C15: =VLOOKUP($A15,'RECAP DIRCOM'!$G$6:$CU$12,3,FALSE) -> 228 | D15: =VLOOKUP($A15,'RECAP DIRCOM'!$G$6:$CU$12,5,FALSE) -> 14 | E15: =VLOOKUP($A15,'RECAP DIRCOM'!$G$6:$CU$12,6,FALSE) -> 40% | F15: =VLOOKUP($A15,'RECAP DIRCOM'!$G$6:$CU$12,7,FALSE) -> 3 | G15: =VLOOKUP($A15,'RECAP DIRCOM'!$G$6:$CU$12,8,FALSE) -> 63% | H15: =VLOOKUP($A15,'RECAP DIRCOM'!$G$6:$CU$12,9,FALSE) -> 7% | I15: =VLOOKUP($A15,'RECAP DIRCOM'!$G$6:$CU$12,10,FALSE) -> 3 | J15: =VLOOKUP($A15,'RECAP DIRCOM'!$G$6:$CU$12,11,FALSE) -> 23% | K15: =VLOOKUP($A15,'RECAP DIRCOM'!$G$6:$CU$12,12,FALSE) -> 23% | L15: =VLOOKUP($A15,'RECAP DIRCOM'!$G$6:$CU$12,13,FALSE) -> 3
A16: 80 | B16: Vosges | C16: =VLOOKUP($A16,'RECAP DIRCOM'!$G$6:$CU$12,3,FALSE) -> 119 | D16: =VLOOKUP($A16,'RECAP DIRCOM'!$G$6:$CU$12,5,FALSE) -> 23.25 | E16: =VLOOKUP($A16,'RECAP DIRCOM'!$G$6:$CU$12,6,FALSE) -> 0% | F16: =VLOOKUP($A16,'RECAP DIRCOM'!$G$6:$CU$12,7,FALSE) -> 1 | G16: =VLOOKUP($A16,'RECAP DIRCOM'!$G$6:$CU$12,8,FALSE) -> 68% | H16: =VLOOKUP($A16,'RECAP DIRCOM'!$G$6:$CU$12,9,FALSE) -> 0% | I16: =VLOOKUP($A16,'RECAP DIRCOM'!$G$6:$CU$12,10,FALSE) -> 1 | J16: =VLOOKUP($A16,'RECAP DIRCOM'!$G$6:$CU$12,11,FALSE) -> 0% | K16: =VLOOKUP($A16,'RECAP DIRCOM'!$G$6:$CU$12,12,FALSE) -> 0% | L16: =VLOOKUP($A16,'RECAP DIRCOM'!$G$6:$CU$12,13,FALSE) -> 1
B17: Total CEGEE Directions Régionales | C17: =SUM(C10:C16) -> 1203

Sheet SE_FICHE
A1: Accueil
A2: BAROMETRE BDD
A4: UNITE: | B4: TERRITOIRE | E4: ETP perf : | F4: =VLOOKUP(A5,'RECAP SECT'!$G$6:$I$23,3,FALSE) -> 50.47
A5: =VLOOKUP(B5,LISTES!$H$6:$I$23,2,FALSE) -> 5130 | B5: COLMAR
C6: Coefficient du critére | E6: Résultats | I6: Ecart au 1ier | M6: Evolution | O6: Rang
E7: du 1ier | G7: du territoire | I7: Du mois | K7: Au 31/12/2019
A9: RANG au CLASSEMENT GENERAL | K9: =VLOOKUP($A$5,#REF!,168,FALSE) ->  | M9: =+K9-O9 ->  | O9: =VLOOKUP($A$5,'RECAP SECT'!$G$6:$CY$312,168,FALSE) ->  | S9: =VLOOKUP($A$5,#REF!,154,FALSE) ->  | U9: =+S9-O9 -> 
A11: CRITERE CONQUETE | C11: 15% | O11: =VLOOKUP($A$5,'RECAP SECT'!$G$6:$CY$312,23,FALSE) -> 18.6249257
B12: PNB Evolution nette Clients BP | C12: 4% | E12: ='RECAP SECT'!#REF! ->  | G12: =VLOOKUP($A$5,'RECAP SECT'!$G$6:$CY$312,6,FALSE) -> 0.9 | I12: =VLOOKUP($A$5,'RECAP SECT'!$G$6:$CY$312,7,FALSE) -> 1400% | K12: =VLOOKUP($A$5,#REF!,7,FALSE) ->  | M12: =+K12-I12 ->  | O12: =VLOOKUP($A$5,'RECAP SECT'!$G$6:$CY$312,8,FALSE) -> 0.5154433095 | S12: =VLOOKUP($A$5,#REF!,6,FALSE) ->  | U12: =+S12-I12 -> 
B13: PNB Evolution nette Clients PREMIUM | C13: 5% | E13: ='RECAP SECT'!#REF! ->  | G13: =VLOOKUP($A$5,'RECAP SECT'!$G$6:$CY$312,10,FALSE) -> 15.0 | I13: =VLOOKUP($A$5,'RECAP SECT'!$G$6:$CY$312,11,FALSE) -> 59% | K13: =VLOOKUP($A$5,#REF!,11,FALSE) ->  | M13: =+K13-I13 ->  | O13: =VLOOKUP($A$5,'RECAP SECT'!$G$6:$CY$312,12,FALSE) -> 0.5496027079 | S13: =VLOOKUP($A$5,#REF!,9,FALSE) ->  | U13: =+S13-I13 -> 
B14: PNB Evolution nette Clients Jeunes Equipés | C14: 3% | E14: ='RECAP SECT'!#REF! ->  | G14: =VLOOKUP($A$5,'RECAP SECT'!$G$6:$CY$312,14,FALSE) -> 0.0 | I14: =VLOOKUP($A$5,'RECAP SECT'!$G$6:$CY$312,15,FALSE) -> 0% | K14: =VLOOKUP($A$5,#REF!,15,FALSE) ->  | M14: =+K14-I14 ->  | O14: =VLOOKUP($A$5,'RECAP SECT'!$G$6:$CY$312,16,FALSE) -> 0 | S14: =VLOOKUP($A$5,#REF!,12,FALSE) ->  | U14: =+S14-I14 -> 
B15: PNB Evolution nette Clients Pro Actifs Equipés | C15: 3% | E15: ='RECAP SECT'!W4 -> 0.0 | G15: =VLOOKUP($A$5,'RECAP SECT'!$G$6:$CY$312,18,FALSE) -> 262.2 | I15: =VLOOKUP($A$5,'RECAP SECT'!$G$6:$CY$312,19,FALSE) -> 520% | K15: =VLOOKUP($A$5,#REF!,19,FALSE) ->  | M15: =+K15-I15 ->  | O15: =VLOOKUP($A$5,'RECAP SECT'!$G$6:$CY$312,20,FALSE) -> 0.7022744656 | S15: =VLOOKUP($A$5,#REF!,15,FALSE) ->  | U15: =+S15-I15 -> 
A17: CRITERE BANCARISATION | C17: 15% | O17: =VLOOKUP($A$5,'RECAP SECT'!$G$6:$CY$312,48,FALSE) -> 952.7445447
B18: PNB Ventes nettes forfaits | C18: 4% | E18: ='RECAP SECT'!X4 -> 17.4 | G18: =VLOOKUP($A$5,'RECAP SECT'!$G$6:$CY$312,31,FALSE) -> 0.0 | I18: =VLOOKUP($A$5,'RECAP SECT'!$G$6:$CY$312,32,FALSE) -> 0% | K18: =VLOOKUP($A$5,#REF!,32,FALSE) ->  | M18: =+K18-I18 ->  | O18: =VLOOKUP($A$5,'RECAP SECT'!$G$6:$CY$312,33,FALSE) -> 10636.89108 | S18: =VLOOKUP($A$5,#REF!,27,FALSE) ->  | U18: =+S18-I18 -> 
B19: PNB Ventes nettes IZICARTES Débit Différé | C19: 4% | E19: ='RECAP SECT'!AB4 -> 33.0 | G19: =VLOOKUP($A$5,'RECAP SECT'!$G$6:$CY$312,35,FALSE) -> 0.3 | I19: =VLOOKUP($A$5,'RECAP SECT'!$G$6:$CY$312,36,FALSE) -> 500% | K19: =VLOOKUP($A$5,#REF!,36,FALSE) ->  | M19: =+K19-I19 ->  | O19: =VLOOKUP($A$5,'RECAP SECT'!$G$6:$CY$312,37,FALSE) -> 870 | S19: =VLOOKUP($A$5,#REF!,30,FALSE) ->  | U19: =+S19-I19 -> 
B20: PNB Ventes nettes cartes HDG Débit Différé | C20: 4% | E20: ='RECAP SECT'!#REF! ->  | G20: =VLOOKUP($A$5,'RECAP SECT'!$G$6:$CY$312,39,FALSE) -> 0.5 | I20: =VLOOKUP($A$5,'RECAP SECT'!$G$6:$CY$312,40,FALSE) -> 1800% | K20: =VLOOKUP($A$5,#REF!,40,FALSE) ->  | M20: =+K20-I20 ->  | O20: =VLOOKUP($A$5,'RECAP SECT'!$G$6:$CY$312,41,FALSE) -> 0.3733365942 | S20: =VLOOKUP($A$5,#REF!,33,FALSE) ->  | U20: =+S20-I20 -> 
B21: PNB Ventes nettes Forfaits Pro, Carte pro | C21: 3% | E21: ='RECAP SECT'!#REF! ->  | G21: =VLOOKUP($A$5,'RECAP SECT'!$G$6:$CY$312,43,FALSE) -> 11.0 | I21: =VLOOKUP($A$5,'RECAP SECT'!$G$6:$CY$312,44,FALSE) -> 0% | K21: =VLOOKUP($A$5,#REF!,44,FALSE) ->  | M21: =+K21-I21 ->  | O21: =VLOOKUP($A$5,'RECAP SECT'!$G$6:$CY$312,45,FALSE) -> 0 | S21: =VLOOKUP($A$5,#REF!,39,FALSE) ->  | U21: =+S21-I21 -> 
A23: CRITERE EPARGNE | C23: 10% | O23: =VLOOKUP($A$5,'RECAP SECT'!$G$6:$CY$312,69,FALSE) -> 0.4536474009
B24: PNB Epargne Liquide | C24: 3% | E24: ='RECAP SECT'!AM4 -> 297.0 | G24: =VLOOKUP($A$5,'RECAP SECT'!$G$6:$CY$312,56,FALSE) -> 366.0 | I24: =VLOOKUP($A$5,'RECAP SECT'!$G$6:$CY$312,57,FALSE) -> 725% | K24: =VLOOKUP($A$5,#REF!,57,FALSE) ->  | M24: =+K24-I24 ->  | O24: =VLOOKUP($A$5,'RECAP SECT'!$G$6:$CY$312,58,FALSE) -> 0.5344444336 | S24: =VLOOKUP($A$5,#REF!,51,FALSE) ->  | U24: =+S24-I24 -> 
B25: PNB CA UC + arbitrage | C25: 4% | E25: ='RECAP SECT'!AQ4 -> 34.3 | G25: =VLOOKUP($A$5,'RECAP SECT'!$G$6:$CY$312,60,FALSE) -> 0.5 | I25: =VLOOKUP($A$5,'RECAP SECT'!$G$6:$CY$312,61,FALSE) -> 49% | K25: =VLOOKUP($A$5,#REF!,61,FALSE) ->  | M25: =+K25-I25 ->  | O25: =VLOOKUP($A$5,'RECAP SECT'!$G$6:$CY$312,62,FALSE) -> 18 | S25: =VLOOKUP($A$5,#REF!,57,FALSE) ->  | U25: =+S25-I25 -> 
B26: PNB Excédent assurance vie | C26: 3% | E26: ='RECAP SECT'!#REF! ->  | G26: =VLOOKUP($A$5,'RECAP SECT'!$G$6:$CY$312,64,FALSE) -> 0.0 | I26: =VLOOKUP($A$5,'RECAP SECT'!$G$6:$CY$312,65,FALSE) -> 0% | K26: =VLOOKUP($A$5,#REF!,65,FALSE) ->  | M26: =+K26-I26 ->  | O26: =VLOOKUP($A$5,'RECAP SECT'!$G$6:$CY$312,66,FALSE) -> 0 | S26: =VLOOKUP($A$5,#REF!,60,FALSE) ->  | U26: =+S26-I26 -> 
A28: CRITERE CREDITS | C28: 15% | O28: =VLOOKUP($A$5,'RECAP SECT'!$G$6:$CY$312,102,FALSE) -> 
B29: PNB crédit conso | C29: 4% | E29: ='RECAP SECT'!BB4 -> 68.8 | G29: =VLOOKUP($A$5,'RECAP SECT'!$G$6:$CY$312,77,FALSE) -> 16.0 | I29: =VLOOKUP($A$5,'RECAP SECT'!$G$6:$CY$312,78,FALSE) -> 0% | K29: =VLOOKUP($A$5,#REF!,78,FALSE) ->  | M29: =+K29-I29 ->  | O29: =VLOOKUP($A$5,'RECAP SECT'!$G$6:$CY$312,79,FALSE) -> 0 | S29: =VLOOKUP($A$5,#REF!,75,FALSE) ->  | U29: =+S29-I29 -> 
B30: PNB ADE crédit conso | C30: 1% | E30: ='RECAP SECT'!#REF! ->  | G30: =VLOOKUP($A$5,'RECAP SECT'!$G$6:$CY$312,81,FALSE) -> 0.0 | I30: =VLOOKUP($A$5,'RECAP SECT'!$G$6:$CY$312,82,FALSE) -> 0% | K30: =VLOOKUP($A$5,#REF!,82,FALSE) ->  | O30: =VLOOKUP($A$5,'RECAP SECT'!$G$6:$CY$312,83,FALSE) -> 0 | S30: =VLOOKUP($A$5,#REF!,78,FALSE) -> 
B31: PNB crédit immo | C31: 4% | E31: ='RECAP SECT'!BF4 -> 33.9 | G31: =VLOOKUP($A$5,'RECAP SECT'!$G$6:$CY$312,85,FALSE) -> 0.0 | I31: =VLOOKUP($A$5,'RECAP SECT'!$G$6:$CY$312,86,FALSE) -> 0% | K31: =VLOOKUP($A$5,#REF!,86,FALSE) ->  | O31: =VLOOKUP($A$5,'RECAP SECT'!$G$6:$CY$312,87,FALSE) -> 0 | S31: =VLOOKUP($A$5,#REF!,81,FALSE) -> 
B32: PNB ADE crédit immo | C32: 2% | E32: ='RECAP SECT'!#REF! ->  | G32: =VLOOKUP($A$5,'RECAP SECT'!$G$6:$CY$312,89,FALSE) -> 0.0 | I32: =VLOOKUP($A$5,'RECAP SECT'!$G$6:$CY$312,90,FALSE) -> 0% | K32: =VLOOKUP($A$5,#REF!,90,FALSE) ->  | O32: =VLOOKUP($A$5,'RECAP SECT'!$G$6:$CY$312,91,FALSE) -> 0 | S32: =VLOOKUP($A$5,#REF!,84,FALSE) -> 
B33: PNB SACCEF | C33: 2% | E33: ='RECAP SECT'!#REF! ->  | G33: =VLOOKUP($A$5,'RECAP SECT'!$G$6:$CY$312,93,FALSE) -> 0.0 | I33: =VLOOKUP($A$5,'RECAP SECT'!$G$6:$CY$312,94,FALSE) -> 46% | K33: =VLOOKUP($A$5,#REF!,94,FALSE) ->  | O33: =VLOOKUP($A$5,'RECAP SECT'!$G$6:$CY$312,95,FALSE) -> 0.3294590809 | S33: =VLOOKUP($A$5,#REF!,87,FALSE) -> 
B34: PNB Crédit MLT + Crédit Bail | C34: 2% | E34: ='RECAP SECT'!BJ4 -> 15.6 | G34: =VLOOKUP($A$5,'RECAP SECT'!$G$6:$CY$312,97,FALSE) -> 0.0 | I34: =VLOOKUP($A$5,'RECAP SECT'!$G$6:$CY$312,98,FALSE) ->  | K34: =VLOOKUP($A$5,#REF!,98,FALSE) ->  | O34: =VLOOKUP($A$5,'RECAP SECT'!$G$6:$CY$312,99,FALSE) ->  | S34: =VLOOKUP($A$5,#REF!,90,FALSE) -> 
A36: CRITERE IARD PREVOYANCE | C36: 15% | O36: =VLOOKUP($A$5,'RECAP SECT'!$G$6:$CY$312,119,FALSE) -> 
B37: PNB Ventes nettes IARD | C37: 9% | E37: ='RECAP SECT'!BU4 -> 99.5 | G37: =VLOOKUP($A$5,'RECAP SECT'!$G$6:$CY$312,110,FALSE) ->  | I37: =VLOOKUP($A$5,'RECAP SECT'!$G$6:$CY$312,111,FALSE) ->  | K37: =VLOOKUP($A$5,#REF!,111,FALSE) ->  | M37: =+K37-I37 ->  | O37: =VLOOKUP($A$5,'RECAP SECT'!$G$6:$CY$312,112,FALSE) ->  | S37: =VLOOKUP($A$5,#REF!,102,FALSE) ->  | U37: =+S37-I37 -> 
B38: PNB Ventes nettes Prévoyance | C38: 6% | E38: ='RECAP SECT'!BY4 -> 26.0 | G38: =VLOOKUP($A$5,'RECAP SECT'!$G$6:$CY$312,114,FALSE) ->  | I38: =VLOOKUP($A$5,'RECAP SECT'!$G$6:$CY$312,115,FALSE) ->  | K38: =VLOOKUP($A$5,#REF!,115,FALSE) ->  | M38: =+K38-I38 ->  | O38: =VLOOKUP($A$5,'RECAP SECT'!$G$6:$CY$312,116,FALSE) ->  | S38: =VLOOKUP($A$5,#REF!,105,FALSE) ->  | U38: =+S38-I38 -> 
A40: CRITERE ACCELERATEURS PNB | C40: 15% | O40: =VLOOKUP($A$5,'RECAP SECT'!$G$6:$CY$312,144,FALSE) -> 
B41: PNB Ventes brutes SED Finalisées | C41: 6% | E41: ='RECAP SECT'!#REF! ->  | G41: =VLOOKUP($A$5,'RECAP SECT'!$G$6:$CY$312,127,FALSE) ->  | I41: =VLOOKUP($A$5,'RECAP SECT'!$G$6:$CY$312,128,FALSE) ->  | K41: =VLOOKUP($A$5,#REF!,128,FALSE) ->  | M41: =+K41-I41 ->  | O41: =VLOOKUP($A$5,'RECAP SECT'!$G$6:$CY$312,129,FALSE) ->  | S41: =VLOOKUP($A$5,#REF!,120,FALSE) ->  | U41: =+S41-I41 -> 
B42: PNB clients équipés E documents | C42: 3% | E42: ='RECAP SECT'!#REF! ->  | G42: =VLOOKUP($A$5,'RECAP SECT'!$G$6:$CY$312,131,FALSE) ->  | I42: =VLOOKUP($A$5,'RECAP SECT'!$G$6:$CY$312,132,FALSE) ->  | K42: =VLOOKUP($A$5,#REF!,132,FALSE) ->  | M42: =+K42-I42 ->  | O42: =VLOOKUP($A$5,'RECAP SECT'!$G$6:$CY$312,133,FALSE) ->  | S42: =VLOOKUP($A$5,#REF!,123,FALSE) ->  | U42: =+S42-I42 -> 
B43: Economie opt'in | C43: 3% | E43: ='RECAP SECT'!#REF! ->  | G43: =VLOOKUP($A$5,'RECAP SECT'!$G$6:$CY$312,135,FALSE) ->  | I43: =VLOOKUP($A$5,'RECAP SECT'!$G$6:$CY$312,136,FALSE) ->  | K43: =VLOOKUP($A$5,#REF!,136,FALSE) ->  | M43: =+K43-I43 ->  | O43: =VLOOKUP($A$5,'RECAP SECT'!$G$6:$CY$312,137,FALSE) -> 
B44: Remises commerciales | C44: 3% | E44: ='RECAP SECT'!#REF! ->  | G44: =VLOOKUP($A$5,'RECAP SECT'!$G$6:$CY$312,139,FALSE) ->  | I44: =VLOOKUP($A$5,'RECAP SECT'!$G$6:$CY$312,140,FALSE) ->  | K44: =VLOOKUP($A$5,#REF!,140,FALSE) ->  | M44: =+K44-I44 ->  | O44: =VLOOKUP($A$5,'RECAP SECT'!$G$6:$CY$312,141,FALSE) ->  | S44: =VLOOKUP($A$5,#REF!,126,FALSE) ->  | U44: =+S44-I44 -> 
A46: CRITERE Satisfaction Clients | C46: 15% | O46: =VLOOKUP($A$5,'RECAP SECT'!$G$6:$CY$312,159,FALSE) -> 
B47: Objectifs NPS* | C47: 8% | E47: ='RECAP SECT'!K4 -> 28 | G47: =VLOOKUP($A$5,'RECAP SECT'!$G$6:$CY$312,151,FALSE) ->  | I47: =VLOOKUP($A$5,'RECAP SECT'!$G$6:$CY$312,152,FALSE) ->  | K47: =VLOOKUP($A$5,#REF!,152,FALSE) ->  | M47: =+K47-I47 ->  | O47: =VLOOKUP($A$5,'RECAP SECT'!$G$6:$CY$312,153,FALSE) ->  | S47: =VLOOKUP($A$5,#REF!,138,FALSE) ->  | U47: =+S47-I47 -> 
B48: Enquête Qualité Haute Définition | C48: 7% | E48: ='RECAP SECT'!N4 -> 74% | G48: =VLOOKUP($A$5,'RECAP SECT'!$G$6:$CY$312,154,FALSE) ->  | I48: =VLOOKUP($A$5,'RECAP SECT'!$G$6:$CY$312,155,FALSE) ->  | K48: =VLOOKUP($A$5,#REF!,155,FALSE) ->  | M48: =+K48-I48 ->  | O48: =VLOOKUP($A$5,'RECAP SECT'!$G$6:$CY$312,156,FALSE) ->  | S48: =VLOOKUP($A$5,#REF!,141,FALSE) ->  | U48: =+S48-I48 -> 

Sheet SE_TOTAL
B1: Accueil | F1: BAROMETRE BDD - TERRITOIRES
F2: TOTAL GENERAL
F3: =ACCUEIL!F7 -> 2022-04-24
F7: TOTAL GENERAL | I7: Total Satisfaction Clients | L7: Total Bancarisation | O7: Total Epargne | R7: Total IARD Prévoyance | U7: Total Crédits
G8: coef | H8: =K8+N8+Q8+T8+W8 -> 100% | J8: coef | K8: =SE_SATISFACTION!N8 -> 20% | M8: coef | N8: =SE_BANCA!P8 -> 20% | P8: coef | Q8: =SE_EPARGNE!P8 -> 20% | S8: coef | T8: =SE_IARD!P8 -> 20% | V8: coef | W8: =SE_CREDIT!T8 -> 20%
B9: Direction | C9: eds | D9: Territoire | E9: ="ETP perf "&DATEMAJ!$C$28 -> ETP perf 24-avr | F9: Moyenne ecart au 1er | G9: % Ecart au 1er | H9: Rang CEGEE | I9: Moyenne ecart au 1er | J9: % Ecart au 1er | K9: Rang CEGEE | L9: Moyenne ecart au 1er | M9: % Ecart au 1er | N9: Rang CEGEE | O9: Moyenne ecart au 1er | P9: % Ecart au 1er | Q9: Rang CEGEE | R9: Moyenne ecart au 1er | S9: % Ecart au 1er | T9: Rang CEGEE | U9: Moyenne ecart au 1er | V9: % Ecart au 1er | W9: Rang CEGEE
A10: 50 | B10: MOSELLE | C10: 44 | D10: MOSELLE NORD | E10: 57.4 | F10: 13% | G10: 0% | H10: 1 | I10: 40% | J10: 36% | K10: 12 | L10: 2% | M10: 0% | N10: 1 | O10: 35% | P10: 27% | Q10: 8 | R10: 2% | S10: 0% | T10: 1 | U10: 7% | V10: 4% | W10: 2
A11: 50 | B11: MOSELLE | C11: 42 | D11: MOSELLE EST | E11: 60.8 | F11: 17% | G11: 4% | H11: 2 | I11: 25% | J11: 21% | K11: 4 | L11: 18% | M11: 16% | N11: 3 | O11: 26% | P11: 19% | Q11: 4 | R11: 13% | S11: 11% | T11: 2 | U11: 24% | V11: 20% | W11: 7
A12: 262 | B12: MARNE-ARDENNES | C12: 11 | D12: REIMS | E12: 69.3 | F12: 18% | G12: 4% | H12: 3 | I12: 29% | J12: 25% | K12: 7 | L12: 13% | M12: 11% | N12: 2 | O12: 42% | P12: 35% | Q12: 14 | R12: 19% | S12: 17% | T12: 5 | U12: 4% | V12: 0% | W12: 1
A13: 262 | B13: MARNE-ARDENNES | C13: 2 | D13: CHARLEVILLE MEZIERES | E13: 49.1 | F13: 23% | G13: 9% | H13: 4 | I13: 29% | J13: 25% | K13: 6 | L13: 39% | M13: 37% | N13: 10 | O13: 28% | P13: 21% | Q13: 5 | R13: 18% | S13: 16% | T13: 4 | U13: 19% | V13: 15% | W13: 4
A14: 262 | B14: BAS-RHIN | C14: 5006 | D14: STRASBOURG | E14: 65.1 | F14: 23% | G14: 10% | H14: 5 | I14: 36% | J14: 32% | K14: 11 | L14: 30% | M14: 27% | N14: 4 | O14: 15% | P14: 8% | Q14: 2 | R14: 14% | S14: 12% | T14: 3 | U14: 40% | V14: 36% | W14: 12
A15: 264 | B15: MOSELLE | C15: 45 | D15: METZ | E15: 72.4 | F15: 24% | G15: 10% | H15: 6 | I15: 30% | J15: 26% | K15: 9 | L15: 39% | M15: 37% | N15: 11 | O15: 7% | P15: 0% | Q15: 1 | R15: 31% | S15: 29% | T15: 8 | U15: 30% | V15: 26% | W15: 8
A16: 264 | B16: MARNE-ARDENNES | C16: 6 | D16: CHALONS EN CHAMPAGNE | E16: 39.0 | F16: 26% | G16: 13% | H16: 7 | I16: 7% | J16: 3% | K16: 2 | L16: 35% | M16: 33% | N16: 9 | O16: 54% | P16: 47% | Q16: 16 | R16: 25% | S16: 23% | T16: 7 | U16: 30% | V16: 26% | W16: 9
A17: 30 | B17: AUBE HAUTE MARNE | C17: 21 | D17: CHAUMONT | E17: 34.0 | F17: 30% | G17: 17% | H17: 8 | I17: 29% | J17: 25% | K17: 8 | L17: 40% | M17: 38% | N17: 12 | O17: 34% | P17: 27% | Q17: 7 | R17: 31% | S17: 29% | T17: 9 | U17: 34% | V17: 31% | W17: 10
A18: 30 | B18: VOSGES | C18: 57 | D18: EPINAL | E18: 54.1 | F18: 30% | G18: 17% | H18: 9 | I18: 16% | J18: 12% | K18: 3 | L18: 47% | M18: 45% | N18: 14 | O18: 24% | P18: 17% | Q18: 3 | R18: 39% | S18: 37% | T18: 13 | U18: 46% | V18: 42% | W18: 15
A19: 30 | B19: MEURTHE ET MOSELLE MEUSE | C19: 31 | D19: VERDUN | E19: 47.9 | F19: 31% | G19: 17% | H19: 10 | I19: 28% | J19: 23% | K19: 5 | L19: 30% | M19: 28% | N19: 5 | O19: 53% | P19: 46% | Q19: 15 | R19: 39% | S19: 37% | T19: 14 | U19: 23% | V19: 19% | W19: 6
A20: 110 | B20: MEURTHE ET MOSELLE MEUSE | C20: 27 | D20: PONT A MOUSSON | E20: 59.5 | F20: 31% | G20: 18% | H20: 11 | I20: 63% | J20: 59% | K20: 16 | L20: 32% | M20: 30% | N20: 6 | O20: 35% | P20: 28% | Q20: 9 | R20: 24% | S20: 22% | T20: 6 | U20: 21% | V20: 17% | W20: 5
A21: 110 | B21: MEURTHE ET MOSELLE MEUSE | C21: 26 | D21: NANCY | E21: 55.8 | F21: 31% | G21: 18% | H21: 12 | I21: 47% | J21: 43% | K21: 13 | L21: 34% | M21: 32% | N21: 8 | O21: 41% | P21: 34% | Q21: 13 | R21: 38% | S21: 36% | T21: 12 | U21: 16% | V21: 12% | W21: 3
A22: 110 | B22: VOSGES | C22: 55 | D22: SAINT DIE | E22: 40.7 | F22: 34% | G22: 21% | H22: 13 | I22: 4% | J22: 0% | K22: 1 | L22: 51% | M22: 49% | N22: 15 | O22: 37% | P22: 30% | Q22: 10 | R22: 60% | S22: 58% | T22: 18 | U22: 39% | V22: 35% | W22: 11
A23: 160 | B23: BAS-RHIN | C23: 5060 | D23: HAGUENAU | E23: 56.7 | F23: 35% | G23: 22% | H23: 14 | I23: 34% | J23: 30% | K23: 10 | L23: 43% | M23: 41% | N23: 13 | O23: 30% | P23: 23% | Q23: 6 | R23: 40% | S23: 38% | T23: 15 | U23: 48% | V23: 44% | W23: 17
A24: 160 | B24: BAS-RHIN | C24: 5101 | D24: SELESTAT | E24: 48.9 | F24: 39% | G24: 26% | H24: 15 | I24: 63% | J24: 59% | K24: 17 | L24: 33% | M24: 31% | N24: 7 | O24: 39% | P24: 32% | Q24: 12 | R24: 37% | S24: 35% | T24: 11 | U24: 43% | V24: 40% | W24: 14
A25: 160 | B25: HAUT-RHIN | C25: 5130 | D25: COLMAR | E25: 50.5 | F25: 46% | G25: 33% | H25: 16 | I25: 59% | J25: 55% | K25: 14 | L25: 60% | M25: 58% | N25: 17 | O25: 37% | P25: 30% | Q25: 11 | R25: 42% | S25: 40% | T25: 16 | U25: 53% | V25: 49% | W25: 18
A26: 80 | B26: AUBE HAUTE MARNE | C26: 14 | D26: TROYES | E26: 54.6 | F26: 51% | G26: 37% | H26: 17 | I26: 68% | J26: 64% | K26: 18 | L26: 58% | M26: 56% | N26: 16 | O26: 71% | P26: 64% | Q26: 17 | R26: 36% | S26: 34% | T26: 10 | U26: 40% | V26: 36% | W26: 13
A27: 80 | B27: HAUT-RHIN | C27: 5169 | D27: MULHOUSE | E27: 46.0 | F27: 59% | G27: 46% | H27: 18 | I27: 63% | J27: 58% | K27: 15 | L27: 73% | M27: 71% | N27: 18 | O27: 74% | P27: 67% | Q27: 18 | R27: 57% | S27: 55% | T27: 17 | U27: 48% | V27: 44% | W27: 16
A28: Total CEGEE Directions Régionales | E28: =SUM(E10:E27) -> 962

Sheet SE_BANCA
B1: Accueil | F1: BAROMETRE BDD - TERRITOIRES
F2: BANCARISATION
F3: =ACCUEIL!F7 -> 2022-04-24
F7: Ventes Nettes produits pondérés | J7: Ventes sur client non détenteur de l’univers | N7: Total Bancarisation
F8: =DATEMAJ!C8 -> au 24/04 | H8: coef | I8: ='RECAP DIRCOM'!AA4 -> 12% | J8: =DATEMAJ!C9 -> au 24/04 | L8: coef | M8: ='RECAP DIRCOM'!AE4 -> 8% | O8: coef | P8: ='RECAP DIRCOM'!AH4 -> 20%
B9: Direction | C9: eds | D9: Territoire | E9: ="ETP perf "&DATEMAJ!$C$28 -> ETP perf 24-avr | F9: VN | G9: VN / ETP | H9: % Ecart au 1er | I9: Rang | J9: VB | K9: VB / ETP | L9: % Ecart au 1er | M9: Rang | N9: Moyenne ecart au 1er | O9: % Ecart au 1er | P9: Rang CEGEE
A10: 50 | B10: AUBE HAUTE MARNE | C10: 21 | D10: CHAUMONT | E10: =VLOOKUP($C10,'RECAP SECT'!$G$6:$CU$253,3,FALSE) -> 34.0 | F10: =VLOOKUP($C10,'RECAP SECT'!$G$6:$CU$253,18,FALSE) -> 297 | G10: =VLOOKUP($C10,'RECAP SECT'!$G$6:$CU$253,19,FALSE) -> 8.74 | H10: =VLOOKUP($C10,'RECAP SECT'!$G$6:$CU$253,20,FALSE) -> 50% | I10: =VLOOKUP($C10,'RECAP SECT'!$G$6:$CU$253,21,FALSE) -> 11 | J10: =VLOOKUP($C10,'RECAP SECT'!$G$6:$CU$253,22,FALSE) -> 838 | K10: =VLOOKUP($C10,'RECAP SECT'!$G$6:$CU$253,23,FALSE) -> 24.65 | L10: =VLOOKUP($C10,'RECAP SECT'!$G$6:$CU$253,24,FALSE) -> 25% | M10: =VLOOKUP($C10,'RECAP SECT'!$G$6:$CU$253,25,FALSE) -> 10 | N10: =VLOOKUP($C10,'RECAP SECT'!$G$6:$CU$253,26,FALSE) -> 40% | O10: =VLOOKUP($C10,'RECAP SECT'!$G$6:$CU$253,27,FALSE) -> 38% | P10: =VLOOKUP($C10,'RECAP SECT'!$G$6:$CU$253,28,FALSE) -> 12
A11: 50 | B11: AUBE HAUTE MARNE | C11: 14 | D11: TROYES | E11: =VLOOKUP($C11,'RECAP SECT'!$G$6:$CU$253,3,FALSE) -> 54.6 | F11: =VLOOKUP($C11,'RECAP SECT'!$G$6:$CU$253,18,FALSE) -> 211 | G11: =VLOOKUP($C11,'RECAP SECT'!$G$6:$CU$253,19,FALSE) -> 3.87 | H11: =VLOOKUP($C11,'RECAP SECT'!$G$6:$CU$253,20,FALSE) -> 78% | I11: =VLOOKUP($C11,'RECAP SECT'!$G$6:$CU$253,21,FALSE) -> 17 | J11: =VLOOKUP($C11,'RECAP SECT'!$G$6:$CU$253,22,FALSE) -> 1,307 | K11: =VLOOKUP($C11,'RECAP SECT'!$G$6:$CU$253,23,FALSE) -> 23.94 | L11: =VLOOKUP($C11,'RECAP SECT'!$G$6:$CU$253,24,FALSE) -> 28% | M11: =VLOOKUP($C11,'RECAP SECT'!$G$6:$CU$253,25,FALSE) -> 11 | N11: =VLOOKUP($C11,'RECAP SECT'!$G$6:$CU$253,26,FALSE) -> 58% | O11: =VLOOKUP($C11,'RECAP SECT'!$G$6:$CU$253,27,FALSE) -> 56% | P11: =VLOOKUP($C11,'RECAP SECT'!$G$6:$CU$253,28,FALSE) -> 16
A12: 262 | B12: BAS-RHIN | C12: 5060 | D12: HAGUENAU | E12: =VLOOKUP($C12,'RECAP SECT'!$G$6:$CU$253,3,FALSE) -> 56.7 | F12: =VLOOKUP($C12,'RECAP SECT'!$G$6:$CU$253,18,FALSE) -> 553 | G12: =VLOOKUP($C12,'RECAP SECT'!$G$6:$CU$253,19,FALSE) -> 9.75 | H12: =VLOOKUP($C12,'RECAP SECT'!$G$6:$CU$253,20,FALSE) -> 44% | I12: =VLOOKUP($C12,'RECAP SECT'!$G$6:$CU$253,21,FALSE) -> 8 | J12: =VLOOKUP($C12,'RECAP SECT'!$G$6:$CU$253,22,FALSE) -> 1,111 | K12: =VLOOKUP($C12,'RECAP SECT'!$G$6:$CU$253,23,FALSE) -> 19.60 | L12: =VLOOKUP($C12,'RECAP SECT'!$G$6:$CU$253,24,FALSE) -> 41% | M12: =VLOOKUP($C12,'RECAP SECT'!$G$6:$CU$253,25,FALSE) -> 16 | N12: =VLOOKUP($C12,'RECAP SECT'!$G$6:$CU$253,26,FALSE) -> 43% | O12: =VLOOKUP($C12,'RECAP SECT'!$G$6:$CU$253,27,FALSE) -> 41% | P12: =VLOOKUP($C12,'RECAP SECT'!$G$6:$CU$253,28,FALSE) -> 13
A13: 262 | B13: BAS-RHIN | C13: 5101 | D13: SELESTAT | E13: =VLOOKUP($C13,'RECAP SECT'!$G$6:$CU$253,3,FALSE) -> 48.9 | F13: =VLOOKUP($C13,'RECAP SECT'!$G$6:$CU$253,18,FALSE) -> 570 | G13: =VLOOKUP($C13,'RECAP SECT'!$G$6:$CU$253,19,FALSE) -> 11.65 | H13: =VLOOKUP($C13,'RECAP SECT'!$G$6:$CU$253,20,FALSE) -> 33% | I13: =VLOOKUP($C13,'RECAP SECT'!$G$6:$CU$253,21,FALSE) -> 4 | J13: =VLOOKUP($C13,'RECAP SECT'!$G$6:$CU$253,22,FALSE) -> 1,076 | K13: =VLOOKUP($C13,'RECAP SECT'!$G$6:$CU$253,23,FALSE) -> 22.00 | L13: =VLOOKUP($C13,'RECAP SECT'!$G$6:$CU$253,24,FALSE) -> 33% | M13: =VLOOKUP($C13,'RECAP SECT'!$G$6:$CU$253,25,FALSE) -> 14 | N13: =VLOOKUP($C13,'RECAP SECT'!$G$6:$CU$253,26,FALSE) -> 33% | O13: =VLOOKUP($C13,'RECAP SECT'!$G$6:$CU$253,27,FALSE) -> 31% | P13: =VLOOKUP($C13,'RECAP SECT'!$G$6:$CU$253,28,FALSE) -> 7
A14: 262 | B14: BAS-RHIN | C14: 5006 | D14: STRASBOURG | E14: =VLOOKUP($C14,'RECAP SECT'!$G$6:$CU$253,3,FALSE) -> 65.1 | F14: =VLOOKUP($C14,'RECAP SECT'!$G$6:$CU$253,18,FALSE) -> 654 | G14: =VLOOKUP($C14,'RECAP SECT'!$G$6:$CU$253,19,FALSE) -> 10.05 | H14: =VLOOKUP($C14,'RECAP SECT'!$G$6:$CU$253,20,FALSE) -> 42% | I14: =VLOOKUP($C14,'RECAP SECT'!$G$6:$CU$253,21,FALSE) -> 7 | J14: =VLOOKUP($C14,'RECAP SECT'!$G$6:$CU$253,22,FALSE) -> 1,932 | K14: =VLOOKUP($C14,'RECAP SECT'!$G$6:$CU$253,23,FALSE) -> 29.69 | L14: =VLOOKUP($C14,'RECAP SECT'!$G$6:$CU$253,24,FALSE) -> 10% | M14: =VLOOKUP($C14,'RECAP SECT'!$G$6:$CU$253,25,FALSE) -> 3 | N14: =VLOOKUP($C14,'RECAP SECT'!$G$6:$CU$253,26,FALSE) -> 30% | O14: =VLOOKUP($C14,'RECAP SECT'!$G$6:$CU$253,27,FALSE) -> 27% | P14: =VLOOKUP($C14,'RECAP SECT'!$G$6:$CU$253,28,FALSE) -> 4
A15: 264 | B15: HAUT-RHIN | C15: 5130 | D15: COLMAR | E15: =VLOOKUP($C15,'RECAP SECT'!$G$6:$CU$253,3,FALSE) -> 50.5 | F15: =VLOOKUP($C15,'RECAP SECT'!$G$6:$CU$253,18,FALSE) -> 262 | G15: =VLOOKUP($C15,'RECAP SECT'!$G$6:$CU$253,19,FALSE) -> 5.20 | H15: =VLOOKUP($C15,'RECAP SECT'!$G$6:$CU$253,20,FALSE) -> 70% | I15: =VLOOKUP($C15,'RECAP SECT'!$G$6:$CU$253,21,FALSE) -> 16 | J15: =VLOOKUP($C15,'RECAP SECT'!$G$6:$CU$253,22,FALSE) -> 940 | K15: =VLOOKUP($C15,'RECAP SECT'!$G$6:$CU$253,23,FALSE) -> 18.62 | L15: =VLOOKUP($C15,'RECAP SECT'!$G$6:$CU$253,24,FALSE) -> 44% | M15: =VLOOKUP($C15,'RECAP SECT'!$G$6:$CU$253,25,FALSE) -> 18 | N15: =VLOOKUP($C15,'RECAP SECT'!$G$6:$CU$253,26,FALSE) -> 60% | O15: =VLOOKUP($C15,'RECAP SECT'!$G$6:$CU$253,27,FALSE) -> 58% | P15: =VLOOKUP($C15,'RECAP SECT'!$G$6:$CU$253,28,FALSE) -> 17
A16: 264 | B16: HAUT-RHIN | C16: 5169 | D16: MULHOUSE | E16: =VLOOKUP($C16,'RECAP SECT'!$G$6:$CU$253,3,FALSE) -> 46.0 | F16: =VLOOKUP($C16,'RECAP SECT'!$G$6:$CU$253,18,FALSE) -> 20 | G16: =VLOOKUP($C16,'RECAP SECT'!$G$6:$CU$253,19,FALSE) -> 0.44 | H16: =VLOOKUP($C16,'RECAP SECT'!$G$6:$CU$253,20,FALSE) -> 97% | I16: =VLOOKUP($C16,'RECAP SECT'!$G$6:$CU$253,21,FALSE) -> 18 | J16: =VLOOKUP($C16,'RECAP SECT'!$G$6:$CU$253,22,FALSE) -> 954 | K16: =VLOOKUP($C16,'RECAP SECT'!$G$6:$CU$253,23,FALSE) -> 20.73 | L16: =VLOOKUP($C16,'RECAP SECT'!$G$6:$CU$253,24,FALSE) -> 37% | M16: =VLOOKUP($C16,'RECAP SECT'!$G$6:$CU$253,25,FALSE) -> 15 | N16: =VLOOKUP($C16,'RECAP SECT'!$G$6:$CU$253,26,FALSE) -> 73% | O16: =VLOOKUP($C16,'RECAP SECT'!$G$6:$CU$253,27,FALSE) -> 71% | P16: =VLOOKUP($C16,'RECAP SECT'!$G$6:$CU$253,28,FALSE) -> 18
A17: 30 | B17: MARNE-ARDENNES | C17: 6 | D17: CHALONS EN CHAMPAGNE | E17: =VLOOKUP($C17,'RECAP SECT'!$G$6:$CU$253,3,FALSE) -> 39.0 | F17: =VLOOKUP($C17,'RECAP SECT'!$G$6:$CU$253,18,FALSE) -> 411 | G17: =VLOOKUP($C17,'RECAP SECT'!$G$6:$CU$253,19,FALSE) -> 10.54 | H17: =VLOOKUP($C17,'RECAP SECT'!$G$6:$CU$253,20,FALSE) -> 40% | I17: =VLOOKUP($C17,'RECAP SECT'!$G$6:$CU$253,21,FALSE) -> 6 | J17: =VLOOKUP($C17,'RECAP SECT'!$G$6:$CU$253,22,FALSE) -> 920 | K17: =VLOOKUP($C17,'RECAP SECT'!$G$6:$CU$253,23,FALSE) -> 23.59 | L17: =VLOOKUP($C17,'RECAP SECT'!$G$6:$CU$253,24,FALSE) -> 29% | M17: =VLOOKUP($C17,'RECAP SECT'!$G$6:$CU$253,25,FALSE) -> 12 | N17: =VLOOKUP($C17,'RECAP SECT'!$G$6:$CU$253,26,FALSE) -> 35% | O17: =VLOOKUP($C17,'RECAP SECT'!$G$6:$CU$253,27,FALSE) -> 33% | P17: =VLOOKUP($C17,'RECAP SECT'!$G$6:$CU$253,28,FALSE) -> 9
A18: 30 | B18: MARNE-ARDENNES | C18: 2 | D18: CHARLEVILLE MEZIERES | E18: =VLOOKUP($C18,'RECAP SECT'!$G$6:$CU$253,3,FALSE) -> 49.1 | F18: =VLOOKUP($C18,'RECAP SECT'!$G$6:$CU$253,18,FALSE) -> 376 | G18: =VLOOKUP($C18,'RECAP SECT'!$G$6:$CU$253,19,FALSE) -> 7.65 | H18: =VLOOKUP($C18,'RECAP SECT'!$G$6:$CU$253,20,FALSE) -> 56% | I18: =VLOOKUP($C18,'RECAP SECT'!$G$6:$CU$253,21,FALSE) -> 14 | J18: =VLOOKUP($C18,'RECAP SECT'!$G$6:$CU$253,22,FALSE) -> 1,420 | K18: =VLOOKUP($C18,'RECAP SECT'!$G$6:$CU$253,23,FALSE) -> 28.91 | L18: =VLOOKUP($C18,'RECAP SECT'!$G$6:$CU$253,24,FALSE) -> 13% | M18: =VLOOKUP($C18,'RECAP SECT'!$G$6:$CU$253,25,FALSE) -> 6 | N18: =VLOOKUP($C18,'RECAP SECT'!$G$6:$CU$253,26,FALSE) -> 39% | O18: =VLOOKUP($C18,'RECAP SECT'!$G$6:$CU$253,27,FALSE) -> 37% | P18: =VLOOKUP($C18,'RECAP SECT'!$G$6:$CU$253,28,FALSE) -> 10
A19: 30 | B19: MARNE-ARDENNES | C19: 11 | D19: REIMS | E19: =VLOOKUP($C19,'RECAP SECT'!$G$6:$CU$253,3,FALSE) -> 69.3 | F19: =VLOOKUP($C19,'RECAP SECT'!$G$6:$CU$253,18,FALSE) -> 949 | G19: =VLOOKUP($C19,'RECAP SECT'!$G$6:$CU$253,19,FALSE) -> 13.70 | H19: =VLOOKUP($C19,'RECAP SECT'!$G$6:$CU$253,20,FALSE) -> 21% | I19: =VLOOKUP($C19,'RECAP SECT'!$G$6:$CU$253,21,FALSE) -> 3 | J19: =VLOOKUP($C19,'RECAP SECT'!$G$6:$CU$253,22,FALSE) -> 2,289 | K19: =VLOOKUP($C19,'RECAP SECT'!$G$6:$CU$253,23,FALSE) -> 33.04 | L19: =VLOOKUP($C19,'RECAP SECT'!$G$6:$CU$253,24,FALSE) -> 0% | M19: =VLOOKUP($C19,'RECAP SECT'!$G$6:$CU$253,25,FALSE) -> 1 | N19: =VLOOKUP($C19,'RECAP SECT'!$G$6:$CU$253,26,FALSE) -> 13% | O19: =VLOOKUP($C19,'RECAP SECT'!$G$6:$CU$253,27,FALSE) -> 11% | P19: =VLOOKUP($C19,'RECAP SECT'!$G$6:$CU$253,28,FALSE) -> 2
A20: 110 | B20: MEURTHE ET MOSELLE MEUSE | C20: 26 | D20: NANCY | E20: =VLOOKUP($C20,'RECAP SECT'!$G$6:$CU$253,3,FALSE) -> 55.8 | F20: =VLOOKUP($C20,'RECAP SECT'!$G$6:$CU$253,18,FALSE) -> 493 | G20: =VLOOKUP($C20,'RECAP SECT'!$G$6:$CU$253,19,FALSE) -> 8.84 | H20: =VLOOKUP($C20,'RECAP SECT'!$G$6:$CU$253,20,FALSE) -> 49% | I20: =VLOOKUP($C20,'RECAP SECT'!$G$6:$CU$253,21,FALSE) -> 10 | J20: =VLOOKUP($C20,'RECAP SECT'!$G$6:$CU$253,22,FALSE) -> 1,624 | K20: =VLOOKUP($C20,'RECAP SECT'!$G$6:$CU$253,23,FALSE) -> 29.13 | L20: =VLOOKUP($C20,'RECAP SECT'!$G$6:$CU$253,24,FALSE) -> 12% | M20: =VLOOKUP($C20,'RECAP SECT'!$G$6:$CU$253,25,FALSE) -> 5 | N20: =VLOOKUP($C20,'RECAP SECT'!$G$6:$CU$253,26,FALSE) -> 34% | O20: =VLOOKUP($C20,'RECAP SECT'!$G$6:$CU$253,27,FALSE) -> 32% | P20: =VLOOKUP($C20,'RECAP SECT'!$G$6:$CU$253,28,FALSE) -> 8
A21: 110 | B21: MEURTHE ET MOSELLE MEUSE | C21: 27 | D21: PONT A MOUSSON | E21: =VLOOKUP($C21,'RECAP SECT'!$G$6:$CU$253,3,FALSE) -> 59.5 | F21: =VLOOKUP($C21,'RECAP SECT'!$G$6:$CU$253,18,FALSE) -> 547 | G21: =VLOOKUP($C21,'RECAP SECT'!$G$6:$CU$253,19,FALSE) -> 9.20 | H21: =VLOOKUP($C21,'RECAP SECT'!$G$6:$CU$253,20,FALSE) -> 47% | I21: =VLOOKUP($C21,'RECAP SECT'!$G$6:$CU$253,21,FALSE) -> 9 | J21: =VLOOKUP($C21,'RECAP SECT'!$G$6:$CU$253,22,FALSE) -> 1,764 | K21: =VLOOKUP($C21,'RECAP SECT'!$G$6:$CU$253,23,FALSE) -> 29.66 | L21: =VLOOKUP($C21,'RECAP SECT'!$G$6:$CU$253,24,FALSE) -> 10% | M21: =VLOOKUP($C21,'RECAP SECT'!$G$6:$CU$253,25,FALSE) -> 4 | N21: =VLOOKUP($C21,'RECAP SECT'!$G$6:$CU$253,26,FALSE) -> 32% | O21: =VLOOKUP($C21,'RECAP SECT'!$G$6:$CU$253,27,FALSE) -> 30% | P21: =VLOOKUP($C21,'RECAP SECT'!$G$6:$CU$253,28,FALSE) -> 6
A22: 110 | B22: MEURTHE ET MOSELLE MEUSE | C22: 31 | D22: VERDUN | E22: =VLOOKUP($C22,'RECAP SECT'!$G$6:$CU$253,3,FALSE) -> 47.9 | F22: =VLOOKUP($C22,'RECAP SECT'!$G$6:$CU$253,18,FALSE) -> 516 | G22: =VLOOKUP($C22,'RECAP SECT'!$G$6:$CU$253,19,FALSE) -> 10.76 | H22: =VLOOKUP($C22,'RECAP SECT'!$G$6:$CU$253,20,FALSE) -> 38% | I22: =VLOOKUP($C22,'RECAP SECT'!$G$6:$CU$253,21,FALSE) -> 5 | J22: =VLOOKUP($C22,'RECAP SECT'!$G$6:$CU$253,22,FALSE) -> 1,288 | K22: =VLOOKUP($C22,'RECAP SECT'!$G$6:$CU$253,23,FALSE) -> 26.89 | L22: =VLOOKUP($C22,'RECAP SECT'!$G$6:$CU$253,24,FALSE) -> 19% | M22: =VLOOKUP($C22,'RECAP SECT'!$G$6:$CU$253,25,FALSE) -> 8 | N22: =VLOOKUP($C22,'RECAP SECT'!$G$6:$CU$253,26,FALSE) -> 30% | O22: =VLOOKUP($C22,'RECAP SECT'!$G$6:$CU$253,27,FALSE) -> 28% | P22: =VLOOKUP($C22,'RECAP SECT'!$G$6:$CU$253,28,FALSE) -> 5
A23: 160 | B23: MOSELLE | C23: 45 | D23: METZ | E23: =VLOOKUP($C23,'RECAP SECT'!$G$6:$CU$253,3,FALSE) -> 72.4 | F23: =VLOOKUP($C23,'RECAP SECT'!$G$6:$CU$253,18,FALSE) -> 612 | G23: =VLOOKUP($C23,'RECAP SECT'!$G$6:$CU$253,19,FALSE) -> 8.46 | H23: =VLOOKUP($C23,'RECAP SECT'!$G$6:$CU$253,20,FALSE) -> 52% | I23: =VLOOKUP($C23,'RECAP SECT'!$G$6:$CU$253,21,FALSE) -> 12 | J23: =VLOOKUP($C23,'RECAP SECT'!$G$6:$CU$253,22,FALSE) -> 1,908 | K23: =VLOOKUP($C23,'RECAP SECT'!$G$6:$CU$253,23,FALSE) -> 26.36 | L23: =VLOOKUP($C23,'RECAP SECT'!$G$6:$CU$253,24,FALSE) -> 20% | M23: =VLOOKUP($C23,'RECAP SECT'!$G$6:$CU$253,25,FALSE) -> 9 | N23: =VLOOKUP($C23,'RECAP SECT'!$G$6:$CU$253,26,FALSE) -> 39% | O23: =VLOOKUP($C23,'RECAP SECT'!$G$6:$CU$253,27,FALSE) -> 37% | P23: =VLOOKUP($C23,'RECAP SECT'!$G$6:$CU$253,28,FALSE) -> 11
A24: 160 | B24: MOSELLE | C24: 42 | D24: MOSELLE EST | E24: =VLOOKUP($C24,'RECAP SECT'!$G$6:$CU$253,3,FALSE) -> 60.8 | F24: =VLOOKUP($C24,'RECAP SECT'!$G$6:$CU$253,18,FALSE) -> 840 | G24: =VLOOKUP($C24,'RECAP SECT'!$G$6:$CU$253,19,FALSE) -> 13.80 | H24: =VLOOKUP($C24,'RECAP SECT'!$G$6:$CU$253,20,FALSE) -> 21% | I24: =VLOOKUP($C24,'RECAP SECT'!$G$6:$CU$253,21,FALSE) -> 2 | J24: =VLOOKUP($C24,'RECAP SECT'!$G$6:$CU$253,22,FALSE) -> 1,753 | K24: =VLOOKUP($C24,'RECAP SECT'!$G$6:$CU$253,23,FALSE) -> 28.82 | L24: =VLOOKUP($C24,'RECAP SECT'!$G$6:$CU$253,24,FALSE) -> 13% | M24: =VLOOKUP($C24,'RECAP SECT'!$G$6:$CU$253,25,FALSE) -> 7 | N24: =VLOOKUP($C24,'RECAP SECT'!$G$6:$CU$253,26,FALSE) -> 18% | O24: =VLOOKUP($C24,'RECAP SECT'!$G$6:$CU$253,27,FALSE) -> 16% | P24: =VLOOKUP($C24,'RECAP SECT'!$G$6:$CU$253,28,FALSE) -> 3
A25: 160 | B25: MOSELLE | C25: 44 | D25: MOSELLE NORD | E25: =VLOOKUP($C25,'RECAP SECT'!$G$6:$CU$253,3,FALSE) -> 57.4 | F25: =VLOOKUP($C25,'RECAP SECT'!$G$6:$CU$253,18,FALSE) -> 1,002 | G25: =VLOOKUP($C25,'RECAP SECT'!$G$6:$CU$253,19,FALSE) -> 17.45 | H25: =VLOOKUP($C25,'RECAP SECT'!$G$6:$CU$253,20,FALSE) -> 0% | I25: =VLOOKUP($C25,'RECAP SECT'!$G$6:$CU$253,21,FALSE) -> 1 | J25: =VLOOKUP($C25,'RECAP SECT'!$G$6:$CU$253,22,FALSE) -> 1,801 | K25: =VLOOKUP($C25,'RECAP SECT'!$G$6:$CU$253,23,FALSE) -> 31.35 | L25: =VLOOKUP($C25,'RECAP SECT'!$G$6:$CU$253,24,FALSE) -> 5% | M25: =VLOOKUP($C25,'RECAP SECT'!$G$6:$CU$253,25,FALSE) -> 2 | N25: =VLOOKUP($C25,'RECAP SECT'!$G$6:$CU$253,26,FALSE) -> 2% | O25: =VLOOKUP($C25,'RECAP SECT'!$G$6:$CU$253,27,FALSE) -> 0% | P25: =VLOOKUP($C25,'RECAP SECT'!$G$6:$CU$253,28,FALSE) -> 1
A26: 80 | B26: VOSGES | C26: 57 | D26: EPINAL | E26: =VLOOKUP($C26,'RECAP SECT'!$G$6:$CU$253,3,FALSE) -> 54.1 | F26: =VLOOKUP($C26,'RECAP SECT'!$G$6:$CU$253,18,FALSE) -> 410 | G26: =VLOOKUP($C26,'RECAP SECT'!$G$6:$CU$253,19,FALSE) -> 7.58 | H26: =VLOOKUP($C26,'RECAP SECT'!$G$6:$CU$253,20,FALSE) -> 57% | I26: =VLOOKUP($C26,'RECAP SECT'!$G$6:$CU$253,21,FALSE) -> 15 | J26: =VLOOKUP($C26,'RECAP SECT'!$G$6:$CU$253,22,FALSE) -> 1,199 | K26: =VLOOKUP($C26,'RECAP SECT'!$G$6:$CU$253,23,FALSE) -> 22.18 | L26: =VLOOKUP($C26,'RECAP SECT'!$G$6:$CU$253,24,FALSE) -> 33% | M26: =VLOOKUP($C26,'RECAP SECT'!$G$6:$CU$253,25,FALSE) -> 13 | N26: =VLOOKUP($C26,'RECAP SECT'!$G$6:$CU$253,26,FALSE) -> 47% | O26: =VLOOKUP($C26,'RECAP SECT'!$G$6:$CU$253,27,FALSE) -> 45% | P26: =VLOOKUP($C26,'RECAP SECT'!$G$6:$CU$253,28,FALSE) -> 14
A27: 80 | B27: VOSGES | C27: 55 | D27: SAINT DIE | E27: =VLOOKUP($C27,'RECAP SECT'!$G$6:$CU$253,3,FALSE) -> 40.7 | F27: =VLOOKUP($C27,'RECAP SECT'!$G$6:$CU$253,18,FALSE) -> 313 | G27: =VLOOKUP($C27,'RECAP SECT'!$G$6:$CU$253,19,FALSE) -> 7.68 | H27: =VLOOKUP($C27,'RECAP SECT'!$G$6:$CU$253,20,FALSE) -> 56% | I27: =VLOOKUP($C27,'RECAP SECT'!$G$6:$CU$253,21,FALSE) -> 13 | J27: =VLOOKUP($C27,'RECAP SECT'!$G$6:$CU$253,22,FALSE) -> 770 | K27: =VLOOKUP($C27,'RECAP SECT'!$G$6:$CU$253,23,FALSE) -> 18.93 | L27: =VLOOKUP($C27,'RECAP SECT'!$G$6:$CU$253,24,FALSE) -> 43% | M27: =VLOOKUP($C27,'RECAP SECT'!$G$6:$CU$253,25,FALSE) -> 17 | N27: =VLOOKUP($C27,'RECAP SECT'!$G$6:$CU$253,26,FALSE) -> 51% | O27: =VLOOKUP($C27,'RECAP SECT'!$G$6:$CU$253,27,FALSE) -> 49% | P27: =VLOOKUP($C27,'RECAP SECT'!$G$6:$CU$253,28,FALSE) -> 15
A28: Total CEGEE Directions Régionales | E28: =SUM(E10:E27) -> 962

Sheet SE_EPARGNE
B1: Accueil | F1: BAROMETRE BDD - TERRITOIRES
F2: EPARGNE
F3: =ACCUEIL!F7 -> 2022-04-24
F7: Excédent Epargne hors DAV pondéré | J7: Ventes sur client non détenteur de l’univers | N7: Total Epargne
F8: =DATEMAJ!C14 -> au 24/04 | H8: coef | I8: ='RECAP DIRCOM'!AP4 -> 12% | J8: =DATEMAJ!C15 -> au 24/04 | L8: coef | M8: ='RECAP DIRCOM'!AT4 -> 8% | O8: coef | P8: ='RECAP DIRCOM'!AW4 -> 20%
A9: eds | B9: Direction | C9: eds | D9: Territoire | E9: ="ETP perf "&DATEMAJ!$C$28 -> ETP perf 24-avr | F9: Excédent | G9: Excédent / ETP | H9: % Ecart au 1er | I9: Rang | J9: VB | K9: VB / ETP | L9: % Ecart au 1er | M9: Rang | N9: Moyenne ecart au 1er | O9: % Ecart au 1er | P9: Rang CEGEE
A10: 50 | B10: AUBE HAUTE MARNE | C10: 21 | D10: CHAUMONT | E10: =VLOOKUP($C10,'RECAP SECT'!$G$6:$CU$253,3,FALSE) -> 34.0 | F10: =VLOOKUP($C10,'RECAP SECT'!$G$6:$CU$253,33,FALSE) -> 6,551 | G10: =VLOOKUP($C10,'RECAP SECT'!$G$6:$CU$253,34,FALSE) -> 192.67 | H10: =VLOOKUP($C10,'RECAP SECT'!$G$6:$CU$253,35,FALSE) -> 35% | I10: =VLOOKUP($C10,'RECAP SECT'!$G$6:$CU$253,36,FALSE) -> 7 | J10: =VLOOKUP($C10,'RECAP SECT'!$G$6:$CU$253,37,FALSE) -> 783 | K10: =VLOOKUP($C10,'RECAP SECT'!$G$6:$CU$253,38,FALSE) -> 23.03 | L10: =VLOOKUP($C10,'RECAP SECT'!$G$6:$CU$253,39,FALSE) -> 33% | M10: =VLOOKUP($C10,'RECAP SECT'!$G$6:$CU$253,40,FALSE) -> 14 | N10: =VLOOKUP($C10,'RECAP SECT'!$G$6:$CU$253,41,FALSE) -> 34% | O10: =VLOOKUP($C10,'RECAP SECT'!$G$6:$CU$253,42,FALSE) -> 27% | P10: =VLOOKUP($C10,'RECAP SECT'!$G$6:$CU$253,43,FALSE) -> 7
A11: 50 | B11: AUBE HAUTE MARNE | C11: 14 | D11: TROYES | E11: =VLOOKUP($C11,'RECAP SECT'!$G$6:$CU$253,3,FALSE) -> 54.6 | F11: =VLOOKUP($C11,'RECAP SECT'!$G$6:$CU$253,33,FALSE) -> 381 | G11: =VLOOKUP($C11,'RECAP SECT'!$G$6:$CU$253,34,FALSE) -> 6.98 | H11: =VLOOKUP($C11,'RECAP SECT'!$G$6:$CU$253,35,FALSE) -> 98% | I11: =VLOOKUP($C11,'RECAP SECT'!$G$6:$CU$253,36,FALSE) -> 18 | J11: =VLOOKUP($C11,'RECAP SECT'!$G$6:$CU$253,37,FALSE) -> 1,293 | K11: =VLOOKUP($C11,'RECAP SECT'!$G$6:$CU$253,38,FALSE) -> 23.69 | L11: =VLOOKUP($C11,'RECAP SECT'!$G$6:$CU$253,39,FALSE) -> 31% | M11: =VLOOKUP($C11,'RECAP SECT'!$G$6:$CU$253,40,FALSE) -> 11 | N11: =VLOOKUP($C11,'RECAP SECT'!$G$6:$CU$253,41,FALSE) -> 71% | O11: =VLOOKUP($C11,'RECAP SECT'!$G$6:$CU$253,42,FALSE) -> 64% | P11: =VLOOKUP($C11,'RECAP SECT'!$G$6:$CU$253,43,FALSE) -> 17
A12: 262 | B12: BAS-RHIN | C12: 5060 | D12: HAGUENAU | E12: =VLOOKUP($C12,'RECAP SECT'!$G$6:$CU$253,3,FALSE) -> 56.7 | F12: =VLOOKUP($C12,'RECAP SECT'!$G$6:$CU$253,33,FALSE) -> 12,818 | G12: =VLOOKUP($C12,'RECAP SECT'!$G$6:$CU$253,34,FALSE) -> 226.18 | H12: =VLOOKUP($C12,'RECAP SECT'!$G$6:$CU$253,35,FALSE) -> 24% | I12: =VLOOKUP($C12,'RECAP SECT'!$G$6:$CU$253,36,FALSE) -> 4 | J12: =VLOOKUP($C12,'RECAP SECT'!$G$6:$CU$253,37,FALSE) -> 1,186 | K12: =VLOOKUP($C12,'RECAP SECT'!$G$6:$CU$253,38,FALSE) -> 20.93 | L12: =VLOOKUP($C12,'RECAP SECT'!$G$6:$CU$253,39,FALSE) -> 39% | M12: =VLOOKUP($C12,'RECAP SECT'!$G$6:$CU$253,40,FALSE) -> 15 | N12: =VLOOKUP($C12,'RECAP SECT'!$G$6:$CU$253,41,FALSE) -> 30% | O12: =VLOOKUP($C12,'RECAP SECT'!$G$6:$CU$253,42,FALSE) -> 23% | P12: =VLOOKUP($C12,'RECAP SECT'!$G$6:$CU$253,43,FALSE) -> 6
A13: 262 | B13: BAS-RHIN | C13: 5101 | D13: SELESTAT | E13: =VLOOKUP($C13,'RECAP SECT'!$G$6:$CU$253,3,FALSE) -> 48.9 | F13: =VLOOKUP($C13,'RECAP SECT'!$G$6:$CU$253,33,FALSE) -> 7,909 | G13: =VLOOKUP($C13,'RECAP SECT'!$G$6:$CU$253,34,FALSE) -> 161.67 | H13: =VLOOKUP($C13,'RECAP SECT'!$G$6:$CU$253,35,FALSE) -> 46% | I13: =VLOOKUP($C13,'RECAP SECT'!$G$6:$CU$253,36,FALSE) -> 11 | J13: =VLOOKUP($C13,'RECAP SECT'!$G$6:$CU$253,37,FALSE) -> 1,193 | K13: =VLOOKUP($C13,'RECAP SECT'!$G$6:$CU$253,38,FALSE) -> 24.39 | L13: =VLOOKUP($C13,'RECAP SECT'!$G$6:$CU$253,39,FALSE) -> 29% | M13: =VLOOKUP($C13,'RECAP SECT'!$G$6:$CU$253,40,FALSE) -> 9 | N13: =VLOOKUP($C13,'RECAP SECT'!$G$6:$CU$253,41,FALSE) -> 39% | O13: =VLOOKUP($C13,'RECAP SECT'!$G$6:$CU$253,42,FALSE) -> 32% | P13: =VLOOKUP($C13,'RECAP SECT'!$G$6:$CU$253,43,FALSE) -> 12
A14: 262 | B14: BAS-RHIN | C14: 5006 | D14: STRASBOURG | E14: =VLOOKUP($C14,'RECAP SECT'!$G$6:$CU$253,3,FALSE) -> 65.1 | F14: =VLOOKUP($C14,'RECAP SECT'!$G$6:$CU$253,33,FALSE) -> 15,393 | G14: =VLOOKUP($C14,'RECAP SECT'!$G$6:$CU$253,34,FALSE) -> 236.53 | H14: =VLOOKUP($C14,'RECAP SECT'!$G$6:$CU$253,35,FALSE) -> 20% | I14: =VLOOKUP($C14,'RECAP SECT'!$G$6:$CU$253,36,FALSE) -> 3 | J14: =VLOOKUP($C14,'RECAP SECT'!$G$6:$CU$253,37,FALSE) -> 2,076 | K14: =VLOOKUP($C14,'RECAP SECT'!$G$6:$CU$253,38,FALSE) -> 31.90 | L14: =VLOOKUP($C14,'RECAP SECT'!$G$6:$CU$253,39,FALSE) -> 7% | M14: =VLOOKUP($C14,'RECAP SECT'!$G$6:$CU$253,40,FALSE) -> 2 | N14: =VLOOKUP($C14,'RECAP SECT'!$G$6:$CU$253,41,FALSE) -> 15% | O14: =VLOOKUP($C14,'RECAP SECT'!$G$6:$CU$253,42,FALSE) -> 8% | P14: =VLOOKUP($C14,'RECAP SECT'!$G$6:$CU$253,43,FALSE) -> 2
A15: 264 | B15: HAUT-RHIN | C15: 5130 | D15: COLMAR | E15: =VLOOKUP($C15,'RECAP SECT'!$G$6:$CU$253,3,FALSE) -> 50.5 | F15: =VLOOKUP($C15,'RECAP SECT'!$G$6:$CU$253,33,FALSE) -> 10,637 | G15: =VLOOKUP($C15,'RECAP SECT'!$G$6:$CU$253,34,FALSE) -> 210.76 | H15: =VLOOKUP($C15,'RECAP SECT'!$G$6:$CU$253,35,FALSE) -> 29% | I15: =VLOOKUP($C15,'RECAP SECT'!$G$6:$CU$253,36,FALSE) -> 5 | J15: =VLOOKUP($C15,'RECAP SECT'!$G$6:$CU$253,37,FALSE) -> 870 | K15: =VLOOKUP($C15,'RECAP SECT'!$G$6:$CU$253,38,FALSE) -> 17.24 | L15: =VLOOKUP($C15,'RECAP SECT'!$G$6:$CU$253,39,FALSE) -> 50% | M15: =VLOOKUP($C15,'RECAP SECT'!$G$6:$CU$253,40,FALSE) -> 18 | N15: =VLOOKUP($C15,'RECAP SECT'!$G$6:$CU$253,41,FALSE) -> 37% | O15: =VLOOKUP($C15,'RECAP SECT'!$G$6:$CU$253,42,FALSE) -> 30% | P15: =VLOOKUP($C15,'RECAP SECT'!$G$6:$CU$253,43,FALSE) -> 11
A16: 264 | B16: HAUT-RHIN | C16: 5169 | D16: MULHOUSE | E16: =VLOOKUP($C16,'RECAP SECT'!$G$6:$CU$253,3,FALSE) -> 46.0 | F16: =VLOOKUP($C16,'RECAP SECT'!$G$6:$CU$253,33,FALSE) -> 970 | G16: =VLOOKUP($C16,'RECAP SECT'!$G$6:$CU$253,34,FALSE) -> 21.08 | H16: =VLOOKUP($C16,'RECAP SECT'!$G$6:$CU$253,35,FALSE) -> 93% | I16: =VLOOKUP($C16,'RECAP SECT'!$G$6:$CU$253,36,FALSE) -> 17 | J16: =VLOOKUP($C16,'RECAP SECT'!$G$6:$CU$253,37,FALSE) -> 855 | K16: =VLOOKUP($C16,'RECAP SECT'!$G$6:$CU$253,38,FALSE) -> 18.58 | L16: =VLOOKUP($C16,'RECAP SECT'!$G$6:$CU$253,39,FALSE) -> 46% | M16: =VLOOKUP($C16,'RECAP SECT'!$G$6:$CU$253,40,FALSE) -> 17 | N16: =VLOOKUP($C16,'RECAP SECT'!$G$6:$CU$253,41,FALSE) -> 74% | O16: =VLOOKUP($C16,'RECAP SECT'!$G$6:$CU$253,42,FALSE) -> 67% | P16: =VLOOKUP($C16,'RECAP SECT'!$G$6:$CU$253,43,FALSE) -> 18
A17: 30 | B17: MARNE-ARDENNES | C17: 6 | D17: CHALONS EN CHAMPAGNE | E17: =VLOOKUP($C17,'RECAP SECT'!$G$6:$CU$253,3,FALSE) -> 39.0 | F17: =VLOOKUP($C17,'RECAP SECT'!$G$6:$CU$253,33,FALSE) -> 2,843 | G17: =VLOOKUP($C17,'RECAP SECT'!$G$6:$CU$253,34,FALSE) -> 72.91 | H17: =VLOOKUP($C17,'RECAP SECT'!$G$6:$CU$253,35,FALSE) -> 75% | I17: =VLOOKUP($C17,'RECAP SECT'!$G$6:$CU$253,36,FALSE) -> 16 | J17: =VLOOKUP($C17,'RECAP SECT'!$G$6:$CU$253,37,FALSE) -> 1,051 | K17: =VLOOKUP($C17,'RECAP SECT'!$G$6:$CU$253,38,FALSE) -> 26.95 | L17: =VLOOKUP($C17,'RECAP SECT'!$G$6:$CU$253,39,FALSE) -> 22% | M17: =VLOOKUP($C17,'RECAP SECT'!$G$6:$CU$253,40,FALSE) -> 8 | N17: =VLOOKUP($C17,'RECAP SECT'!$G$6:$CU$253,41,FALSE) -> 54% | O17: =VLOOKUP($C17,'RECAP SECT'!$G$6:$CU$253,42,FALSE) -> 47% | P17: =VLOOKUP($C17,'RECAP SECT'!$G$6:$CU$253,43,FALSE) -> 16
A18: 30 | B18: MARNE-ARDENNES | C18: 2 | D18: CHARLEVILLE MEZIERES | E18: =VLOOKUP($C18,'RECAP SECT'!$G$6:$CU$253,3,FALSE) -> 49.1 | F18: =VLOOKUP($C18,'RECAP SECT'!$G$6:$CU$253,33,FALSE) -> 8,835 | G18: =VLOOKUP($C18,'RECAP SECT'!$G$6:$CU$253,34,FALSE) -> 179.86 | H18: =VLOOKUP($C18,'RECAP SECT'!$G$6:$CU$253,35,FALSE) -> 39% | I18: =VLOOKUP($C18,'RECAP SECT'!$G$6:$CU$253,36,FALSE) -> 10 | J18: =VLOOKUP($C18,'RECAP SECT'!$G$6:$CU$253,37,FALSE) -> 1,518 | K18: =VLOOKUP($C18,'RECAP SECT'!$G$6:$CU$253,38,FALSE) -> 30.90 | L18: =VLOOKUP($C18,'RECAP SECT'!$G$6:$CU$253,39,FALSE) -> 10% | M18: =VLOOKUP($C18,'RECAP SECT'!$G$6:$CU$253,40,FALSE) -> 5 | N18: =VLOOKUP($C18,'RECAP SECT'!$G$6:$CU$253,41,FALSE) -> 28% | O18: =VLOOKUP($C18,'RECAP SECT'!$G$6:$CU$253,42,FALSE) -> 21% | P18: =VLOOKUP($C18,'RECAP SECT'!$G$6:$CU$253,43,FALSE) -> 5
A19: 30 | B19: MARNE-ARDENNES | C19: 11 | D19: REIMS | E19: =VLOOKUP($C19,'RECAP SECT'!$G$6:$CU$253,3,FALSE) -> 69.3 | F19: =VLOOKUP($C19,'RECAP SECT'!$G$6:$CU$253,33,FALSE) -> 7,269 | G19: =VLOOKUP($C19,'RECAP SECT'!$G$6:$CU$253,34,FALSE) -> 104.94 | H19: =VLOOKUP($C19,'RECAP SECT'!$G$6:$CU$253,35,FALSE) -> 65% | I19: =VLOOKUP($C19,'RECAP SECT'!$G$6:$CU$253,36,FALSE) -> 14 | J19: =VLOOKUP($C19,'RECAP SECT'!$G$6:$CU$253,37,FALSE) -> 2,175 | K19: =VLOOKUP($C19,'RECAP SECT'!$G$6:$CU$253,38,FALSE) -> 31.40 | L19: =VLOOKUP($C19,'RECAP SECT'!$G$6:$CU$253,39,FALSE) -> 9% | M19: =VLOOKUP($C19,'RECAP SECT'!$G$6:$CU$253,40,FALSE) -> 4 | N19: =VLOOKUP($C19,'RECAP SECT'!$G$6:$CU$253,41,FALSE) -> 42% | O19: =VLOOKUP($C19,'RECAP SECT'!$G$6:$CU$253,42,FALSE) -> 35% | P19: =VLOOKUP($C19,'RECAP SECT'!$G$6:$CU$253,43,FALSE) -> 14
A20: 110 | B20: MEURTHE ET MOSELLE MEUSE | C20: 26 | D20: NANCY | E20: =VLOOKUP($C20,'RECAP SECT'!$G$6:$CU$253,3,FALSE) -> 55.8 | F20: =VLOOKUP($C20,'RECAP SECT'!$G$6:$CU$253,33,FALSE) -> 7,577 | G20: =VLOOKUP($C20,'RECAP SECT'!$G$6:$CU$253,34,FALSE) -> 135.91 | H20: =VLOOKUP($C20,'RECAP SECT'!$G$6:$CU$253,35,FALSE) -> 54% | I20: =VLOOKUP($C20,'RECAP SECT'!$G$6:$CU$253,36,FALSE) -> 12 | J20: =VLOOKUP($C20,'RECAP SECT'!$G$6:$CU$253,37,FALSE) -> 1,519 | K20: =VLOOKUP($C20,'RECAP SECT'!$G$6:$CU$253,38,FALSE) -> 27.25 | L20: =VLOOKUP($C20,'RECAP SECT'!$G$6:$CU$253,39,FALSE) -> 21% | M20: =VLOOKUP($C20,'RECAP SECT'!$G$6:$CU$253,40,FALSE) -> 7 | N20: =VLOOKUP($C20,'RECAP SECT'!$G$6:$CU$253,41,FALSE) -> 41% | O20: =VLOOKUP($C20,'RECAP SECT'!$G$6:$CU$253,42,FALSE) -> 34% | P20: =VLOOKUP($C20,'RECAP SECT'!$G$6:$CU$253,43,FALSE) -> 13
A21: 110 | B21: MEURTHE ET MOSELLE MEUSE | C21: 27 | D21: PONT A MOUSSON | E21: =VLOOKUP($C21,'RECAP SECT'!$G$6:$CU$253,3,FALSE) -> 59.5 | F21: =VLOOKUP($C21,'RECAP SECT'!$G$6:$CU$253,33,FALSE) -> 10,988 | G21: =VLOOKUP($C21,'RECAP SECT'!$G$6:$CU$253,34,FALSE) -> 184.74 | H21: =VLOOKUP($C21,'RECAP SECT'!$G$6:$CU$253,35,FALSE) -> 38% | I21: =VLOOKUP($C21,'RECAP SECT'!$G$6:$CU$253,36,FALSE) -> 8 | J21: =VLOOKUP($C21,'RECAP SECT'!$G$6:$CU$253,37,FALSE) -> 1,402 | K21: =VLOOKUP($C21,'RECAP SECT'!$G$6:$CU$253,38,FALSE) -> 23.57 | L21: =VLOOKUP($C21,'RECAP SECT'!$G$6:$CU$253,39,FALSE) -> 31% | M21: =VLOOKUP($C21,'RECAP SECT'!$G$6:$CU$253,40,FALSE) -> 12 | N21: =VLOOKUP($C21,'RECAP SECT'!$G$6:$CU$253,41,FALSE) -> 35% | O21: =VLOOKUP($C21,'RECAP SECT'!$G$6:$CU$253,42,FALSE) -> 28% | P21: =VLOOKUP($C21,'RECAP SECT'!$G$6:$CU$253,43,FALSE) -> 9
A22: 110 | B22: MEURTHE ET MOSELLE MEUSE | C22: 31 | D22: VERDUN | E22: =VLOOKUP($C22,'RECAP SECT'!$G$6:$CU$253,3,FALSE) -> 47.9 | F22: =VLOOKUP($C22,'RECAP SECT'!$G$6:$CU$253,33,FALSE) -> 4,596 | G22: =VLOOKUP($C22,'RECAP SECT'!$G$6:$CU$253,34,FALSE) -> 95.96 | H22: =VLOOKUP($C22,'RECAP SECT'!$G$6:$CU$253,35,FALSE) -> 68% | I22: =VLOOKUP($C22,'RECAP SECT'!$G$6:$CU$253,36,FALSE) -> 15 | J22: =VLOOKUP($C22,'RECAP SECT'!$G$6:$CU$253,37,FALSE) -> 1,129 | K22: =VLOOKUP($C22,'RECAP SECT'!$G$6:$CU$253,38,FALSE) -> 23.57 | L22: =VLOOKUP($C22,'RECAP SECT'!$G$6:$CU$253,39,FALSE) -> 31% | M22: =VLOOKUP($C22,'RECAP SECT'!$G$6:$CU$253,40,FALSE) -> 13 | N22: =VLOOKUP($C22,'RECAP SECT'!$G$6:$CU$253,41,FALSE) -> 53% | O22: =VLOOKUP($C22,'RECAP SECT'!$G$6:$CU$253,42,FALSE) -> 46% | P22: =VLOOKUP($C22,'RECAP SECT'!$G$6:$CU$253,43,FALSE) -> 15
A23: 160 | B23: MOSELLE | C23: 45 | D23: METZ | E23: =VLOOKUP($C23,'RECAP SECT'!$G$6:$CU$253,3,FALSE) -> 72.4 | F23: =VLOOKUP($C23,'RECAP SECT'!$G$6:$CU$253,33,FALSE) -> 21,491 | G23: =VLOOKUP($C23,'RECAP SECT'!$G$6:$CU$253,34,FALSE) -> 296.96 | H23: =VLOOKUP($C23,'RECAP SECT'!$G$6:$CU$253,35,FALSE) -> 0% | I23: =VLOOKUP($C23,'RECAP SECT'!$G$6:$CU$253,36,FALSE) -> 1 | J23: =VLOOKUP($C23,'RECAP SECT'!$G$6:$CU$253,37,FALSE) -> 2,045 | K23: =VLOOKUP($C23,'RECAP SECT'!$G$6:$CU$253,38,FALSE) -> 28.26 | L23: =VLOOKUP($C23,'RECAP SECT'!$G$6:$CU$253,39,FALSE) -> 18% | M23: =VLOOKUP($C23,'RECAP SECT'!$G$6:$CU$253,40,FALSE) -> 6 | N23: =VLOOKUP($C23,'RECAP SECT'!$G$6:$CU$253,41,FALSE) -> 7% | O23: =VLOOKUP($C23,'RECAP SECT'!$G$6:$CU$253,42,FALSE) -> 0% | P23: =VLOOKUP($C23,'RECAP SECT'!$G$6:$CU$253,43,FALSE) -> 1
A24: 160 | B24: MOSELLE | C24: 42 | D24: MOSELLE EST | E24: =VLOOKUP($C24,'RECAP SECT'!$G$6:$CU$253,3,FALSE) -> 60.8 | F24: =VLOOKUP($C24,'RECAP SECT'!$G$6:$CU$253,33,FALSE) -> 11,214 | G24: =VLOOKUP($C24,'RECAP SECT'!$G$6:$CU$253,34,FALSE) -> 184.38 | H24: =VLOOKUP($C24,'RECAP SECT'!$G$6:$CU$253,35,FALSE) -> 38% | I24: =VLOOKUP($C24,'RECAP SECT'!$G$6:$CU$253,36,FALSE) -> 9 | J24: =VLOOKUP($C24,'RECAP SECT'!$G$6:$CU$253,37,FALSE) -> 1,930 | K24: =VLOOKUP($C24,'RECAP SECT'!$G$6:$CU$253,38,FALSE) -> 31.73 | L24: =VLOOKUP($C24,'RECAP SECT'!$G$6:$CU$253,39,FALSE) -> 8% | M24: =VLOOKUP($C24,'RECAP SECT'!$G$6:$CU$253,40,FALSE) -> 3 | N24: =VLOOKUP($C24,'RECAP SECT'!$G$6:$CU$253,41,FALSE) -> 26% | O24: =VLOOKUP($C24,'RECAP SECT'!$G$6:$CU$253,42,FALSE) -> 19% | P24: =VLOOKUP($C24,'RECAP SECT'!$G$6:$CU$253,43,FALSE) -> 4
A25: 160 | B25: MOSELLE | C25: 44 | D25: MOSELLE NORD | E25: =VLOOKUP($C25,'RECAP SECT'!$G$6:$CU$253,3,FALSE) -> 57.4 | F25: =VLOOKUP($C25,'RECAP SECT'!$G$6:$CU$253,33,FALSE) -> 7,241 | G25: =VLOOKUP($C25,'RECAP SECT'!$G$6:$CU$253,34,FALSE) -> 126.07 | H25: =VLOOKUP($C25,'RECAP SECT'!$G$6:$CU$253,35,FALSE) -> 58% | I25: =VLOOKUP($C25,'RECAP SECT'!$G$6:$CU$253,36,FALSE) -> 13 | J25: =VLOOKUP($C25,'RECAP SECT'!$G$6:$CU$253,37,FALSE) -> 1,972 | K25: =VLOOKUP($C25,'RECAP SECT'!$G$6:$CU$253,38,FALSE) -> 34.33 | L25: =VLOOKUP($C25,'RECAP SECT'!$G$6:$CU$253,39,FALSE) -> 0% | M25: =VLOOKUP($C25,'RECAP SECT'!$G$6:$CU$253,40,FALSE) -> 1 | N25: =VLOOKUP($C25,'RECAP SECT'!$G$6:$CU$253,41,FALSE) -> 35% | O25: =VLOOKUP($C25,'RECAP SECT'!$G$6:$CU$253,42,FALSE) -> 27% | P25: =VLOOKUP($C25,'RECAP SECT'!$G$6:$CU$253,43,FALSE) -> 8
A26: 80 | B26: VOSGES | C26: 57 | D26: EPINAL | E26: =VLOOKUP($C26,'RECAP SECT'!$G$6:$CU$253,3,FALSE) -> 54.1 | F26: =VLOOKUP($C26,'RECAP SECT'!$G$6:$CU$253,33,FALSE) -> 12,957 | G26: =VLOOKUP($C26,'RECAP SECT'!$G$6:$CU$253,34,FALSE) -> 239.71 | H26: =VLOOKUP($C26,'RECAP SECT'!$G$6:$CU$253,35,FALSE) -> 19% | I26: =VLOOKUP($C26,'RECAP SECT'!$G$6:$CU$253,36,FALSE) -> 2 | J26: =VLOOKUP($C26,'RECAP SECT'!$G$6:$CU$253,37,FALSE) -> 1,285 | K26: =VLOOKUP($C26,'RECAP SECT'!$G$6:$CU$253,38,FALSE) -> 23.77 | L26: =VLOOKUP($C26,'RECAP SECT'!$G$6:$CU$253,39,FALSE) -> 31% | M26: =VLOOKUP($C26,'RECAP SECT'!$G$6:$CU$253,40,FALSE) -> 10 | N26: =VLOOKUP($C26,'RECAP SECT'!$G$6:$CU$253,41,FALSE) -> 24% | O26: =VLOOKUP($C26,'RECAP SECT'!$G$6:$CU$253,42,FALSE) -> 17% | P26: =VLOOKUP($C26,'RECAP SECT'!$G$6:$CU$253,43,FALSE) -> 3
A27: 80 | B27: VOSGES | C27: 55 | D27: SAINT DIE | E27: =VLOOKUP($C27,'RECAP SECT'!$G$6:$CU$253,3,FALSE) -> 40.7 | F27: =VLOOKUP($C27,'RECAP SECT'!$G$6:$CU$253,33,FALSE) -> 8,154 | G27: =VLOOKUP($C27,'RECAP SECT'!$G$6:$CU$253,34,FALSE) -> 200.44 | H27: =VLOOKUP($C27,'RECAP SECT'!$G$6:$CU$253,35,FALSE) -> 33% | I27: =VLOOKUP($C27,'RECAP SECT'!$G$6:$CU$253,36,FALSE) -> 6 | J27: =VLOOKUP($C27,'RECAP SECT'!$G$6:$CU$253,37,FALSE) -> 800 | K27: =VLOOKUP($C27,'RECAP SECT'!$G$6:$CU$253,38,FALSE) -> 19.67 | L27: =VLOOKUP($C27,'RECAP SECT'!$G$6:$CU$253,39,FALSE) -> 43% | M27: =VLOOKUP($C27,'RECAP SECT'!$G$6:$CU$253,40,FALSE) -> 16 | N27: =VLOOKUP($C27,'RECAP SECT'!$G$6:$CU$253,41,FALSE) -> 37% | O27: =VLOOKUP($C27,'RECAP SECT'!$G$6:$CU$253,42,FALSE) -> 30% | P27: =VLOOKUP($C27,'RECAP SECT'!$G$6:$CU$253,43,FALSE) -> 10
A28: Total CEGEE Directions Régionales | E28: =SUM(E10:E27) -> 962

Sheet SE_CREDIT
B1: Accueil | F1: BAROMETRE BDD - TERRITOIRES
F2: CREDITS
F3: =ACCUEIL!F7 -> 2022-04-24
F7: Engagements et ventes accessoires pondérés Immo | J7: Engagements et ventes accessoires pondérés Conso | N7: Ventes sur client non détenteur de l’univers | R7: Total Crédits
F8: =DATEMAJ!C18 -> au 24/04 | H8: coef | I8: ='RECAP DIRCOM'!BE4 -> 6% | J8: =DATEMAJ!C19 -> au 24/04 | L8: coef | M8: ='RECAP DIRCOM'!BI4 -> 6% | N8: =DATEMAJ!C20 -> au 24/04 | P8: coef | Q8: ='RECAP DIRCOM'!BM4 -> 8% | S8: coef | T8: ='RECAP DIRCOM'!BP4 -> 20%
B9: Direction | C9: eds | D9: Territoire | E9: ="ETP perf "&DATEMAJ!$C$28 -> ETP perf 24-avr | F9: PNB | G9: PNB / ETP | H9: % Ecart au 1er | I9: Rang | J9: PNB | K9: PNB / ETP | L9: % Ecart au 1er | M9: Rang | N9: VB | O9: VB / ETP | P9: % Ecart au 1er | Q9: Rang | R9: Moyenne ecart au 1er | S9: % Ecart au 1er | T9: Rang CEGEE
A10: 50 | B10: AUBE HAUTE MARNE | C10: 21 | D10: CHAUMONT | E10: =VLOOKUP($C10,'RECAP SECT'!$G$6:$CU$253,3,FALSE) -> 34.0 | F10: =VLOOKUP($C10,'RECAP SECT'!$G$6:$CU$253,48,FALSE) -> 650 | G10: =VLOOKUP($C10,'RECAP SECT'!$G$6:$CU$253,49,FALSE) -> 19.12 | H10: =VLOOKUP($C10,'RECAP SECT'!$G$6:$CU$253,50,FALSE) -> 72% | I10: =VLOOKUP($C10,'RECAP SECT'!$G$6:$CU$253,51,FALSE) -> 17 | J10: =VLOOKUP($C10,'RECAP SECT'!$G$6:$CU$253,52,FALSE) -> 1,120 | K10: =VLOOKUP($C10,'RECAP SECT'!$G$6:$CU$253,53,FALSE) -> 32.95 | L10: =VLOOKUP($C10,'RECAP SECT'!$G$6:$CU$253,54,FALSE) -> 3% | M10: =VLOOKUP($C10,'RECAP SECT'!$G$6:$CU$253,55,FALSE) -> 3 | N10: =VLOOKUP($C10,'RECAP SECT'!$G$6:$CU$253,56,FALSE) -> 373 | O10: =VLOOKUP($C10,'RECAP SECT'!$G$6:$CU$253,57,FALSE) -> 10.97 | P10: =VLOOKUP($C10,'RECAP SECT'!$G$6:$CU$253,58,FALSE) -> 30% | Q10: =VLOOKUP($C10,'RECAP SECT'!$G$6:$CU$253,59,FALSE) -> 7 | R10: =VLOOKUP($C10,'RECAP SECT'!$G$6:$CU$253,60,FALSE) -> 34% | S10: =VLOOKUP($C10,'RECAP SECT'!$G$6:$CU$253,61,FALSE) -> 31% | T10: =VLOOKUP($C10,'RECAP SECT'!$G$6:$CU$253,62,FALSE) -> 10
A11: 50 | B11: AUBE HAUTE MARNE | C11: 14 | D11: TROYES | E11: =VLOOKUP($C11,'RECAP SECT'!$G$6:$CU$253,3,FALSE) -> 54.6 | F11: =VLOOKUP($C11,'RECAP SECT'!$G$6:$CU$253,48,FALSE) -> 1,623 | G11: =VLOOKUP($C11,'RECAP SECT'!$G$6:$CU$253,49,FALSE) -> 29.74 | H11: =VLOOKUP($C11,'RECAP SECT'!$G$6:$CU$253,50,FALSE) -> 57% | I11: =VLOOKUP($C11,'RECAP SECT'!$G$6:$CU$253,51,FALSE) -> 12 | J11: =VLOOKUP($C11,'RECAP SECT'!$G$6:$CU$253,52,FALSE) -> 1,538 | K11: =VLOOKUP($C11,'RECAP SECT'!$G$6:$CU$253,53,FALSE) -> 28.17 | L11: =VLOOKUP($C11,'RECAP SECT'!$G$6:$CU$253,54,FALSE) -> 17% | M11: =VLOOKUP($C11,'RECAP SECT'!$G$6:$CU$253,55,FALSE) -> 10 | N11: =VLOOKUP($C11,'RECAP SECT'!$G$6:$CU$253,56,FALSE) -> 472 | O11: =VLOOKUP($C11,'RECAP SECT'!$G$6:$CU$253,57,FALSE) -> 8.65 | P11: =VLOOKUP($C11,'RECAP SECT'!$G$6:$CU$253,58,FALSE) -> 44% | Q11: =VLOOKUP($C11,'RECAP SECT'!$G$6:$CU$253,59,FALSE) -> 14 | R11: =VLOOKUP($C11,'RECAP SECT'!$G$6:$CU$253,60,FALSE) -> 40% | S11: =VLOOKUP($C11,'RECAP SECT'!$G$6:$CU$253,61,FALSE) -> 36% | T11: =VLOOKUP($C11,'RECAP SECT'!$G$6:$CU$253,62,FALSE) -> 13
A12: 262 | B12: BAS-RHIN | C12: 5060 | D12: HAGUENAU | E12: =VLOOKUP($C12,'RECAP SECT'!$G$6:$CU$253,3,FALSE) -> 56.7 | F12: =VLOOKUP($C12,'RECAP SECT'!$G$6:$CU$253,48,FALSE) -> 1,353 | G12: =VLOOKUP($C12,'RECAP SECT'!$G$6:$CU$253,49,FALSE) -> 23.87 | H12: =VLOOKUP($C12,'RECAP SECT'!$G$6:$CU$253,50,FALSE) -> 65% | I12: =VLOOKUP($C12,'RECAP SECT'!$G$6:$CU$253,51,FALSE) -> 15 | J12: =VLOOKUP($C12,'RECAP SECT'!$G$6:$CU$253,52,FALSE) -> 1,522 | K12: =VLOOKUP($C12,'RECAP SECT'!$G$6:$CU$253,53,FALSE) -> 26.86 | L12: =VLOOKUP($C12,'RECAP SECT'!$G$6:$CU$253,54,FALSE) -> 21% | M12: =VLOOKUP($C12,'RECAP SECT'!$G$6:$CU$253,55,FALSE) -> 13 | N12: =VLOOKUP($C12,'RECAP SECT'!$G$6:$CU$253,56,FALSE) -> 400 | O12: =VLOOKUP($C12,'RECAP SECT'!$G$6:$CU$253,57,FALSE) -> 7.06 | P12: =VLOOKUP($C12,'RECAP SECT'!$G$6:$CU$253,58,FALSE) -> 55% | Q12: =VLOOKUP($C12,'RECAP SECT'!$G$6:$CU$253,59,FALSE) -> 18 | R12: =VLOOKUP($C12,'RECAP SECT'!$G$6:$CU$253,60,FALSE) -> 48% | S12: =VLOOKUP($C12,'RECAP SECT'!$G$6:$CU$253,61,FALSE) -> 44% | T12: =VLOOKUP($C12,'RECAP SECT'!$G$6:$CU$253,62,FALSE) -> 17
A13: 262 | B13: BAS-RHIN | C13: 5101 | D13: SELESTAT | E13: =VLOOKUP($C13,'RECAP SECT'!$G$6:$CU$253,3,FALSE) -> 48.9 | F13: =VLOOKUP($C13,'RECAP SECT'!$G$6:$CU$253,48,FALSE) -> 1,324 | G13: =VLOOKUP($C13,'RECAP SECT'!$G$6:$CU$253,49,FALSE) -> 27.05 | H13: =VLOOKUP($C13,'RECAP SECT'!$G$6:$CU$253,50,FALSE) -> 61% | I13: =VLOOKUP($C13,'RECAP SECT'!$G$6:$CU$253,51,FALSE) -> 13 | J13: =VLOOKUP($C13,'RECAP SECT'!$G$6:$CU$253,52,FALSE) -> 1,331 | K13: =VLOOKUP($C13,'RECAP SECT'!$G$6:$CU$253,53,FALSE) -> 27.20 | L13: =VLOOKUP($C13,'RECAP SECT'!$G$6:$CU$253,54,FALSE) -> 20% | M13: =VLOOKUP($C13,'RECAP SECT'!$G$6:$CU$253,55,FALSE) -> 12 | N13: =VLOOKUP($C13,'RECAP SECT'!$G$6:$CU$253,56,FALSE) -> 395 | O13: =VLOOKUP($C13,'RECAP SECT'!$G$6:$CU$253,57,FALSE) -> 8.07 | P13: =VLOOKUP($C13,'RECAP SECT'!$G$6:$CU$253,58,FALSE) -> 48% | Q13: =VLOOKUP($C13,'RECAP SECT'!$G$6:$CU$253,59,FALSE) -> 15 | R13: =VLOOKUP($C13,'RECAP SECT'!$G$6:$CU$253,60,FALSE) -> 43% | S13: =VLOOKUP($C13,'RECAP SECT'!$G$6:$CU$253,61,FALSE) -> 40% | T13: =VLOOKUP($C13,'RECAP SECT'!$G$6:$CU$253,62,FALSE) -> 14
A14: 262 | B14: BAS-RHIN | C14: 5006 | D14: STRASBOURG | E14: =VLOOKUP($C14,'RECAP SECT'!$G$6:$CU$253,3,FALSE) -> 65.1 | F14: =VLOOKUP($C14,'RECAP SECT'!$G$6:$CU$253,48,FALSE) -> 1,948 | G14: =VLOOKUP($C14,'RECAP SECT'!$G$6:$CU$253,49,FALSE) -> 29.93 | H14: =VLOOKUP($C14,'RECAP SECT'!$G$6:$CU$253,50,FALSE) -> 56% | I14: =VLOOKUP($C14,'RECAP SECT'!$G$6:$CU$253,51,FALSE) -> 11 | J14: =VLOOKUP($C14,'RECAP SECT'!$G$6:$CU$253,52,FALSE) -> 1,614 | K14: =VLOOKUP($C14,'RECAP SECT'!$G$6:$CU$253,53,FALSE) -> 24.81 | L14: =VLOOKUP($C14,'RECAP SECT'!$G$6:$CU$253,54,FALSE) -> 27% | M14: =VLOOKUP($C14,'RECAP SECT'!$G$6:$CU$253,55,FALSE) -> 14 | N14: =VLOOKUP($C14,'RECAP SECT'!$G$6:$CU$253,56,FALSE) -> 637 | O14: =VLOOKUP($C14,'RECAP SECT'!$G$6:$CU$253,57,FALSE) -> 9.79 | P14: =VLOOKUP($C14,'RECAP SECT'!$G$6:$CU$253,58,FALSE) -> 37% | Q14: =VLOOKUP($C14,'RECAP SECT'!$G$6:$CU$253,59,FALSE) -> 12 | R14: =VLOOKUP($C14,'RECAP SECT'!$G$6:$CU$253,60,FALSE) -> 40% | S14: =VLOOKUP($C14,'RECAP SECT'!$G$6:$CU$253,61,FALSE) -> 36% | T14: =VLOOKUP($C14,'RECAP SECT'!$G$6:$CU$253,62,FALSE) -> 12
A15: 264 | B15: HAUT-RHIN | C15: 5130 | D15: COLMAR | E15: =VLOOKUP($C15,'RECAP SECT'!$G$6:$CU$253,3,FALSE) -> 50.5 | F15: =VLOOKUP($C15,'RECAP SECT'!$G$6:$CU$253,48,FALSE) -> 953 | G15: =VLOOKUP($C15,'RECAP SECT'!$G$6:$CU$253,49,FALSE) -> 18.88 | H15: =VLOOKUP($C15,'RECAP SECT'!$G$6:$CU$253,50,FALSE) -> 73% | I15: =VLOOKUP($C15,'RECAP SECT'!$G$6:$CU$253,51,FALSE) -> 18 | J15: =VLOOKUP($C15,'RECAP SECT'!$G$6:$CU$253,52,FALSE) -> 1,176 | K15: =VLOOKUP($C15,'RECAP SECT'!$G$6:$CU$253,53,FALSE) -> 23.31 | L15: =VLOOKUP($C15,'RECAP SECT'!$G$6:$CU$253,54,FALSE) -> 31% | M15: =VLOOKUP($C15,'RECAP SECT'!$G$6:$CU$253,55,FALSE) -> 16 | N15: =VLOOKUP($C15,'RECAP SECT'!$G$6:$CU$253,56,FALSE) -> 366 | O15: =VLOOKUP($C15,'RECAP SECT'!$G$6:$CU$253,57,FALSE) -> 7.25 | P15: =VLOOKUP($C15,'RECAP SECT'!$G$6:$CU$253,58,FALSE) -> 53% | Q15: =VLOOKUP($C15,'RECAP SECT'!$G$6:$CU$253,59,FALSE) -> 17 | R15: =VLOOKUP($C15,'RECAP SECT'!$G$6:$CU$253,60,FALSE) -> 53% | S15: =VLOOKUP($C15,'RECAP SECT'!$G$6:$CU$253,61,FALSE) -> 49% | T15: =VLOOKUP($C15,'RECAP SECT'!$G$6:$CU$253,62,FALSE) -> 18
A16: 264 | B16: HAUT-RHIN | C16: 5169 | D16: MULHOUSE | E16: =VLOOKUP($C16,'RECAP SECT'!$G$6:$CU$253,3,FALSE) -> 46.0 | F16: =VLOOKUP($C16,'RECAP SECT'!$G$6:$CU$253,48,FALSE) -> 1,414 | G16: =VLOOKUP($C16,'RECAP SECT'!$G$6:$CU$253,49,FALSE) -> 30.73 | H16: =VLOOKUP($C16,'RECAP SECT'!$G$6:$CU$253,50,FALSE) -> 55% | I16: =VLOOKUP($C16,'RECAP SECT'!$G$6:$CU$253,51,FALSE) -> 10 | J16: =VLOOKUP($C16,'RECAP SECT'!$G$6:$CU$253,52,FALSE) -> 1,051 | K16: =VLOOKUP($C16,'RECAP SECT'!$G$6:$CU$253,53,FALSE) -> 22.83 | L16: =VLOOKUP($C16,'RECAP SECT'!$G$6:$CU$253,54,FALSE) -> 33% | M16: =VLOOKUP($C16,'RECAP SECT'!$G$6:$CU$253,55,FALSE) -> 17 | N16: =VLOOKUP($C16,'RECAP SECT'!$G$6:$CU$253,56,FALSE) -> 337 | O16: =VLOOKUP($C16,'RECAP SECT'!$G$6:$CU$253,57,FALSE) -> 7.32 | P16: =VLOOKUP($C16,'RECAP SECT'!$G$6:$CU$253,58,FALSE) -> 53% | Q16: =VLOOKUP($C16,'RECAP SECT'!$G$6:$CU$253,59,FALSE) -> 16 | R16: =VLOOKUP($C16,'RECAP SECT'!$G$6:$CU$253,60,FALSE) -> 48% | S16: =VLOOKUP($C16,'RECAP SECT'!$G$6:$CU$253,61,FALSE) -> 44% | T16: =VLOOKUP($C16,'RECAP SECT'!$G$6:$CU$253,62,FALSE) -> 16
A17: 30 | B17: MARNE-ARDENNES | C17: 6 | D17: CHALONS EN CHAMPAGNE | E17: =VLOOKUP($C17,'RECAP SECT'!$G$6:$CU$253,3,FALSE) -> 39.0 | F17: =VLOOKUP($C17,'RECAP SECT'!$G$6:$CU$253,48,FALSE) -> 1,608 | G17: =VLOOKUP($C17,'RECAP SECT'!$G$6:$CU$253,49,FALSE) -> 41.23 | H17: =VLOOKUP($C17,'RECAP SECT'!$G$6:$CU$253,50,FALSE) -> 40% | I17: =VLOOKUP($C17,'RECAP SECT'!$G$6:$CU$253,51,FALSE) -> 7 | J17: =VLOOKUP($C17,'RECAP SECT'!$G$6:$CU$253,52,FALSE) -> 1,114 | K17: =VLOOKUP($C17,'RECAP SECT'!$G$6:$CU$253,53,FALSE) -> 28.57 | L17: =VLOOKUP($C17,'RECAP SECT'!$G$6:$CU$253,54,FALSE) -> 16% | M17: =VLOOKUP($C17,'RECAP SECT'!$G$6:$CU$253,55,FALSE) -> 8 | N17: =VLOOKUP($C17,'RECAP SECT'!$G$6:$CU$253,56,FALSE) -> 403 | O17: =VLOOKUP($C17,'RECAP SECT'!$G$6:$CU$253,57,FALSE) -> 10.33 | P17: =VLOOKUP($C17,'RECAP SECT'!$G$6:$CU$253,58,FALSE) -> 34% | Q17: =VLOOKUP($C17,'RECAP SECT'!$G$6:$CU$253,59,FALSE) -> 10 | R17: =VLOOKUP($C17,'RECAP SECT'!$G$6:$CU$253,60,FALSE) -> 30% | S17: =VLOOKUP($C17,'RECAP SECT'!$G$6:$CU$253,61,FALSE) -> 26% | T17: =VLOOKUP($C17,'RECAP SECT'!$G$6:$CU$253,62,FALSE) -> 9
A18: 30 | B18: MARNE-ARDENNES | C18: 2 | D18: CHARLEVILLE MEZIERES | E18: =VLOOKUP($C18,'RECAP SECT'!$G$6:$CU$253,3,FALSE) -> 49.1 | F18: =VLOOKUP($C18,'RECAP SECT'!$G$6:$CU$253,48,FALSE) -> 2,767 | G18: =VLOOKUP($C18,'RECAP SECT'!$G$6:$CU$253,49,FALSE) -> 56.33 | H18: =VLOOKUP($C18,'RECAP SECT'!$G$6:$CU$253,50,FALSE) -> 18% | I18: =VLOOKUP($C18,'RECAP SECT'!$G$6:$CU$253,51,FALSE) -> 3 | J18: =VLOOKUP($C18,'RECAP SECT'!$G$6:$CU$253,52,FALSE) -> 1,197 | K18: =VLOOKUP($C18,'RECAP SECT'!$G$6:$CU$253,53,FALSE) -> 24.36 | L18: =VLOOKUP($C18,'RECAP SECT'!$G$6:$CU$253,54,FALSE) -> 28% | M18: =VLOOKUP($C18,'RECAP SECT'!$G$6:$CU$253,55,FALSE) -> 15 | N18: =VLOOKUP($C18,'RECAP SECT'!$G$6:$CU$253,56,FALSE) -> 674 | O18: =VLOOKUP($C18,'RECAP SECT'!$G$6:$CU$253,57,FALSE) -> 13.72 | P18: =VLOOKUP($C18,'RECAP SECT'!$G$6:$CU$253,58,FALSE) -> 12% | Q18: =VLOOKUP($C18,'RECAP SECT'!$G$6:$CU$253,59,FALSE) -> 3 | R18: =VLOOKUP($C18,'RECAP SECT'!$G$6:$CU$253,60,FALSE) -> 19% | S18: =VLOOKUP($C18,'RECAP SECT'!$G$6:$CU$253,61,FALSE) -> 15% | T18: =VLOOKUP($C18,'RECAP SECT'!$G$6:$CU$253,62,FALSE) -> 4
A19: 30 | B19: MARNE-ARDENNES | C19: 11 | D19: REIMS | E19: =VLOOKUP($C19,'RECAP SECT'!$G$6:$CU$253,3,FALSE) -> 69.3 | F19: =VLOOKUP($C19,'RECAP SECT'!$G$6:$CU$253,48,FALSE) -> 4,762 | G19: =VLOOKUP($C19,'RECAP SECT'!$G$6:$CU$253,49,FALSE) -> 68.75 | H19: =VLOOKUP($C19,'RECAP SECT'!$G$6:$CU$253,50,FALSE) -> 0% | I19: =VLOOKUP($C19,'RECAP SECT'!$G$6:$CU$253,51,FALSE) -> 1 | J19: =VLOOKUP($C19,'RECAP SECT'!$G$6:$CU$253,52,FALSE) -> 2,052 | K19: =VLOOKUP($C19,'RECAP SECT'!$G$6:$CU$253,53,FALSE) -> 29.62 | L19: =VLOOKUP($C19,'RECAP SECT'!$G$6:$CU$253,54,FALSE) -> 13% | M19: =VLOOKUP($C19,'RECAP SECT'!$G$6:$CU$253,55,FALSE) -> 5 | N19: =VLOOKUP($C19,'RECAP SECT'!$G$6:$CU$253,56,FALSE) -> 1,079 | O19: =VLOOKUP($C19,'RECAP SECT'!$G$6:$CU$253,57,FALSE) -> 15.58 | P19: =VLOOKUP($C19,'RECAP SECT'!$G$6:$CU$253,58,FALSE) -> 0% | Q19: =VLOOKUP($C19,'RECAP SECT'!$G$6:$CU$253,59,FALSE) -> 1 | R19: =VLOOKUP($C19,'RECAP SECT'!$G$6:$CU$253,60,FALSE) -> 4% | S19: =VLOOKUP($C19,'RECAP SECT'!$G$6:$CU$253,61,FALSE) -> 0% | T19: =VLOOKUP($C19,'RECAP SECT'!$G$6:$CU$253,62,FALSE) -> 1
A20: 110 | B20: MEURTHE ET MOSELLE MEUSE | C20: 26 | D20: NANCY | E20: =VLOOKUP($C20,'RECAP SECT'!$G$6:$CU$253,3,FALSE) -> 55.8 | F20: =VLOOKUP($C20,'RECAP SECT'!$G$6:$CU$253,48,FALSE) -> 2,917 | G20: =VLOOKUP($C20,'RECAP SECT'!$G$6:$CU$253,49,FALSE) -> 52.32 | H20: =VLOOKUP($C20,'RECAP SECT'!$G$6:$CU$253,50,FALSE) -> 24% | I20: =VLOOKUP($C20,'RECAP SECT'!$G$6:$CU$253,51,FALSE) -> 4 | J20: =VLOOKUP($C20,'RECAP SECT'!$G$6:$CU$253,52,FALSE) -> 1,648 | K20: =VLOOKUP($C20,'RECAP SECT'!$G$6:$CU$253,53,FALSE) -> 29.55 | L20: =VLOOKUP($C20,'RECAP SECT'!$G$6:$CU$253,54,FALSE) -> 13% | M20: =VLOOKUP($C20,'RECAP SECT'!$G$6:$CU$253,55,FALSE) -> 6 | N20: =VLOOKUP($C20,'RECAP SECT'!$G$6:$CU$253,56,FALSE) -> 758 | O20: =VLOOKUP($C20,'RECAP SECT'!$G$6:$CU$253,57,FALSE) -> 13.60 | P20: =VLOOKUP($C20,'RECAP SECT'!$G$6:$CU$253,58,FALSE) -> 13% | Q20: =VLOOKUP($C20,'RECAP SECT'!$G$6:$CU$253,59,FALSE) -> 4 | R20: =VLOOKUP($C20,'RECAP SECT'!$G$6:$CU$253,60,FALSE) -> 16% | S20: =VLOOKUP($C20,'RECAP SECT'!$G$6:$CU$253,61,FALSE) -> 12% | T20: =VLOOKUP($C20,'RECAP SECT'!$G$6:$CU$253,62,FALSE) -> 3
A21: 110 | B21: MEURTHE ET MOSELLE MEUSE | C21: 27 | D21: PONT A MOUSSON | E21: =VLOOKUP($C21,'RECAP SECT'!$G$6:$CU$253,3,FALSE) -> 59.5 | F21: =VLOOKUP($C21,'RECAP SECT'!$G$6:$CU$253,48,FALSE) -> 3,025 | G21: =VLOOKUP($C21,'RECAP SECT'!$G$6:$CU$253,49,FALSE) -> 50.86 | H21: =VLOOKUP($C21,'RECAP SECT'!$G$6:$CU$253,50,FALSE) -> 26% | I21: =VLOOKUP($C21,'RECAP SECT'!$G$6:$CU$253,51,FALSE) -> 5 | J21: =VLOOKUP($C21,'RECAP SECT'!$G$6:$CU$253,52,FALSE) -> 1,699 | K21: =VLOOKUP($C21,'RECAP SECT'!$G$6:$CU$253,53,FALSE) -> 28.57 | L21: =VLOOKUP($C21,'RECAP SECT'!$G$6:$CU$253,54,FALSE) -> 16% | M21: =VLOOKUP($C21,'RECAP SECT'!$G$6:$CU$253,55,FALSE) -> 9 | N21: =VLOOKUP($C21,'RECAP SECT'!$G$6:$CU$253,56,FALSE) -> 728 | O21: =VLOOKUP($C21,'RECAP SECT'!$G$6:$CU$253,57,FALSE) -> 12.24 | P21: =VLOOKUP($C21,'RECAP SECT'!$G$6:$CU$253,58,FALSE) -> 21% | Q21: =VLOOKUP($C21,'RECAP SECT'!$G$6:$CU$253,59,FALSE) -> 5 | R21: =VLOOKUP($C21,'RECAP SECT'!$G$6:$CU$253,60,FALSE) -> 21% | S21: =VLOOKUP($C21,'RECAP SECT'!$G$6:$CU$253,61,FALSE) -> 17% | T21: =VLOOKUP($C21,'RECAP SECT'!$G$6:$CU$253,62,FALSE) -> 5
A22: 110 | B22: MEURTHE ET MOSELLE MEUSE | C22: 31 | D22: VERDUN | E22: =VLOOKUP($C22,'RECAP SECT'!$G$6:$CU$253,3,FALSE) -> 47.9 | F22: =VLOOKUP($C22,'RECAP SECT'!$G$6:$CU$253,48,FALSE) -> 2,140 | G22: =VLOOKUP($C22,'RECAP SECT'!$G$6:$CU$253,49,FALSE) -> 44.68 | H22: =VLOOKUP($C22,'RECAP SECT'!$G$6:$CU$253,50,FALSE) -> 35% | I22: =VLOOKUP($C22,'RECAP SECT'!$G$6:$CU$253,51,FALSE) -> 6 | J22: =VLOOKUP($C22,'RECAP SECT'!$G$6:$CU$253,52,FALSE) -> 1,623 | K22: =VLOOKUP($C22,'RECAP SECT'!$G$6:$CU$253,53,FALSE) -> 33.87 | L22: =VLOOKUP($C22,'RECAP SECT'!$G$6:$CU$253,54,FALSE) -> 0% | M22: =VLOOKUP($C22,'RECAP SECT'!$G$6:$CU$253,55,FALSE) -> 1 | N22: =VLOOKUP($C22,'RECAP SECT'!$G$6:$CU$253,56,FALSE) -> 515 | O22: =VLOOKUP($C22,'RECAP SECT'!$G$6:$CU$253,57,FALSE) -> 10.75 | P22: =VLOOKUP($C22,'RECAP SECT'!$G$6:$CU$253,58,FALSE) -> 31% | Q22: =VLOOKUP($C22,'RECAP SECT'!$G$6:$CU$253,59,FALSE) -> 8 | R22: =VLOOKUP($C22,'RECAP SECT'!$G$6:$CU$253,60,FALSE) -> 23% | S22: =VLOOKUP($C22,'RECAP SECT'!$G$6:$CU$253,61,FALSE) -> 19% | T22: =VLOOKUP($C22,'RECAP SECT'!$G$6:$CU$253,62,FALSE) -> 6
A23: 160 | B23: MOSELLE | C23: 45 | D23: METZ | E23: =VLOOKUP($C23,'RECAP SECT'!$G$6:$CU$253,3,FALSE) -> 72.4 | F23: =VLOOKUP($C23,'RECAP SECT'!$G$6:$CU$253,48,FALSE) -> 2,763 | G23: =VLOOKUP($C23,'RECAP SECT'!$G$6:$CU$253,49,FALSE) -> 38.18 | H23: =VLOOKUP($C23,'RECAP SECT'!$G$6:$CU$253,50,FALSE) -> 44% | I23: =VLOOKUP($C23,'RECAP SECT'!$G$6:$CU$253,51,FALSE) -> 9 | J23: =VLOOKUP($C23,'RECAP SECT'!$G$6:$CU$253,52,FALSE) -> 2,123 | K23: =VLOOKUP($C23,'RECAP SECT'!$G$6:$CU$253,53,FALSE) -> 29.34 | L23: =VLOOKUP($C23,'RECAP SECT'!$G$6:$CU$253,54,FALSE) -> 13% | M23: =VLOOKUP($C23,'RECAP SECT'!$G$6:$CU$253,55,FALSE) -> 7 | N23: =VLOOKUP($C23,'RECAP SECT'!$G$6:$CU$253,56,FALSE) -> 772 | O23: =VLOOKUP($C23,'RECAP SECT'!$G$6:$CU$253,57,FALSE) -> 10.67 | P23: =VLOOKUP($C23,'RECAP SECT'!$G$6:$CU$253,58,FALSE) -> 32% | Q23: =VLOOKUP($C23,'RECAP SECT'!$G$6:$CU$253,59,FALSE) -> 9 | R23: =VLOOKUP($C23,'RECAP SECT'!$G$6:$CU$253,60,FALSE) -> 30% | S23: =VLOOKUP($C23,'RECAP SECT'!$G$6:$CU$253,61,FALSE) -> 26% | T23: =VLOOKUP($C23,'RECAP SECT'!$G$6:$CU$253,62,FALSE) -> 8
A24: 160 | B24: MOSELLE | C24: 42 | D24: MOSELLE EST | E24: =VLOOKUP($C24,'RECAP SECT'!$G$6:$CU$253,3,FALSE) -> 60.8 | F24: =VLOOKUP($C24,'RECAP SECT'!$G$6:$CU$253,48,FALSE) -> 2,475 | G24: =VLOOKUP($C24,'RECAP SECT'!$G$6:$CU$253,49,FALSE) -> 40.70 | H24: =VLOOKUP($C24,'RECAP SECT'!$G$6:$CU$253,50,FALSE) -> 41% | I24: =VLOOKUP($C24,'RECAP SECT'!$G$6:$CU$253,51,FALSE) -> 8 | J24: =VLOOKUP($C24,'RECAP SECT'!$G$6:$CU$253,52,FALSE) -> 2,021 | K24: =VLOOKUP($C24,'RECAP SECT'!$G$6:$CU$253,53,FALSE) -> 33.23 | L24: =VLOOKUP($C24,'RECAP SECT'!$G$6:$CU$253,54,FALSE) -> 2% | M24: =VLOOKUP($C24,'RECAP SECT'!$G$6:$CU$253,55,FALSE) -> 2 | N24: =VLOOKUP($C24,'RECAP SECT'!$G$6:$CU$253,56,FALSE) -> 679 | O24: =VLOOKUP($C24,'RECAP SECT'!$G$6:$CU$253,57,FALSE) -> 11.16 | P24: =VLOOKUP($C24,'RECAP SECT'!$G$6:$CU$253,58,FALSE) -> 28% | Q24: =VLOOKUP($C24,'RECAP SECT'!$G$6:$CU$253,59,FALSE) -> 6 | R24: =VLOOKUP($C24,'RECAP SECT'!$G$6:$CU$253,60,FALSE) -> 24% | S24: =VLOOKUP($C24,'RECAP SECT'!$G$6:$CU$253,61,FALSE) -> 20% | T24: =VLOOKUP($C24,'RECAP SECT'!$G$6:$CU$253,62,FALSE) -> 7
A25: 160 | B25: MOSELLE | C25: 44 | D25: MOSELLE NORD | E25: =VLOOKUP($C25,'RECAP SECT'!$G$6:$CU$253,3,FALSE) -> 57.4 | F25: =VLOOKUP($C25,'RECAP SECT'!$G$6:$CU$253,48,FALSE) -> 3,549 | G25: =VLOOKUP($C25,'RECAP SECT'!$G$6:$CU$253,49,FALSE) -> 61.78 | H25: =VLOOKUP($C25,'RECAP SECT'!$G$6:$CU$253,50,FALSE) -> 10% | I25: =VLOOKUP($C25,'RECAP SECT'!$G$6:$CU$253,51,FALSE) -> 2 | J25: =VLOOKUP($C25,'RECAP SECT'!$G$6:$CU$253,52,FALSE) -> 1,823 | K25: =VLOOKUP($C25,'RECAP SECT'!$G$6:$CU$253,53,FALSE) -> 31.73 | L25: =VLOOKUP($C25,'RECAP SECT'!$G$6:$CU$253,54,FALSE) -> 6% | M25: =VLOOKUP($C25,'RECAP SECT'!$G$6:$CU$253,55,FALSE) -> 4 | N25: =VLOOKUP($C25,'RECAP SECT'!$G$6:$CU$253,56,FALSE) -> 838 | O25: =VLOOKUP($C25,'RECAP SECT'!$G$6:$CU$253,57,FALSE) -> 14.59 | P25: =VLOOKUP($C25,'RECAP SECT'!$G$6:$CU$253,58,FALSE) -> 6% | Q25: =VLOOKUP($C25,'RECAP SECT'!$G$6:$CU$253,59,FALSE) -> 2 | R25: =VLOOKUP($C25,'RECAP SECT'!$G$6:$CU$253,60,FALSE) -> 7% | S25: =VLOOKUP($C25,'RECAP SECT'!$G$6:$CU$253,61,FALSE) -> 4% | T25: =VLOOKUP($C25,'RECAP SECT'!$G$6:$CU$253,62,FALSE) -> 2
A26: 80 | B26: VOSGES | C26: 57 | D26: EPINAL | E26: =VLOOKUP($C26,'RECAP SECT'!$G$6:$CU$253,3,FALSE) -> 54.1 | F26: =VLOOKUP($C26,'RECAP SECT'!$G$6:$CU$253,48,FALSE) -> 1,274 | G26: =VLOOKUP($C26,'RECAP SECT'!$G$6:$CU$253,49,FALSE) -> 23.57 | H26: =VLOOKUP($C26,'RECAP SECT'!$G$6:$CU$253,50,FALSE) -> 66% | I26: =VLOOKUP($C26,'RECAP SECT'!$G$6:$CU$253,51,FALSE) -> 16 | J26: =VLOOKUP($C26,'RECAP SECT'!$G$6:$CU$253,52,FALSE) -> 1,203 | K26: =VLOOKUP($C26,'RECAP SECT'!$G$6:$CU$253,53,FALSE) -> 22.26 | L26: =VLOOKUP($C26,'RECAP SECT'!$G$6:$CU$253,54,FALSE) -> 34% | M26: =VLOOKUP($C26,'RECAP SECT'!$G$6:$CU$253,55,FALSE) -> 18 | N26: =VLOOKUP($C26,'RECAP SECT'!$G$6:$CU$253,56,FALSE) -> 507 | O26: =VLOOKUP($C26,'RECAP SECT'!$G$6:$CU$253,57,FALSE) -> 9.38 | P26: =VLOOKUP($C26,'RECAP SECT'!$G$6:$CU$253,58,FALSE) -> 40% | Q26: =VLOOKUP($C26,'RECAP SECT'!$G$6:$CU$253,59,FALSE) -> 13 | R26: =VLOOKUP($C26,'RECAP SECT'!$G$6:$CU$253,60,FALSE) -> 46% | S26: =VLOOKUP($C26,'RECAP SECT'!$G$6:$CU$253,61,FALSE) -> 42% | T26: =VLOOKUP($C26,'RECAP SECT'!$G$6:$CU$253,62,FALSE) -> 15
A27: 80 | B27: VOSGES | C27: 55 | D27: SAINT DIE | E27: =VLOOKUP($C27,'RECAP SECT'!$G$6:$CU$253,3,FALSE) -> 40.7 | F27: =VLOOKUP($C27,'RECAP SECT'!$G$6:$CU$253,48,FALSE) -> 1,015 | G27: =VLOOKUP($C27,'RECAP SECT'!$G$6:$CU$253,49,FALSE) -> 24.94 | H27: =VLOOKUP($C27,'RECAP SECT'!$G$6:$CU$253,50,FALSE) -> 64% | I27: =VLOOKUP($C27,'RECAP SECT'!$G$6:$CU$253,51,FALSE) -> 14 | J27: =VLOOKUP($C27,'RECAP SECT'!$G$6:$CU$253,52,FALSE) -> 1,125 | K27: =VLOOKUP($C27,'RECAP SECT'!$G$6:$CU$253,53,FALSE) -> 27.65 | L27: =VLOOKUP($C27,'RECAP SECT'!$G$6:$CU$253,54,FALSE) -> 18% | M27: =VLOOKUP($C27,'RECAP SECT'!$G$6:$CU$253,55,FALSE) -> 11 | N27: =VLOOKUP($C27,'RECAP SECT'!$G$6:$CU$253,56,FALSE) -> 405 | O27: =VLOOKUP($C27,'RECAP SECT'!$G$6:$CU$253,57,FALSE) -> 9.96 | P27: =VLOOKUP($C27,'RECAP SECT'!$G$6:$CU$253,58,FALSE) -> 36% | Q27: =VLOOKUP($C27,'RECAP SECT'!$G$6:$CU$253,59,FALSE) -> 11 | R27: =VLOOKUP($C27,'RECAP SECT'!$G$6:$CU$253,60,FALSE) -> 39% | S27: =VLOOKUP($C27,'RECAP SECT'!$G$6:$CU$253,61,FALSE) -> 35% | T27: =VLOOKUP($C27,'RECAP SECT'!$G$6:$CU$253,62,FALSE) -> 11
A28: Total CEGEE Directions Régionales | E28: =SUM(E10:E27) -> 962

Sheet SE_IARD
B1: Accueil | F1: BAROMETRE BDD - TERRITOIRES
F2: IARD ET PREVOYANCE
F3: =ACCUEIL!F7 -> 2022-04-24
F7: Ventes Nettes produits pondérés | J7: Ventes sur client non détenteur de l’univers | N7: Total IARD Prévoyance
F8: =DATEMAJ!C23 -> au 24/04 | H8: coef | I8: ='RECAP DIRCOM'!BX4 -> 12% | J8: =DATEMAJ!C24 -> au 24/04 | L8: coef | M8: ='RECAP DIRCOM'!CB4 -> 8% | O8: coef | P8: ='RECAP DIRCOM'!CE4 -> 20%
B9: Direction | C9: eds | D9: Territoire | E9: ="ETP perf "&DATEMAJ!$C$28 -> ETP perf 24-avr | F9: VN | G9: VN / ETP | H9: % Ecart au 1er | I9: Rang | J9: VB | K9: VB / ETP | L9: % Ecart au 1er | M9: Rang | N9: Moyenne ecart au 1er | O9: % Ecart au 1er | P9: Rang CEGEE
A10: 50 | B10: AUBE HAUTE MARNE | C10: 21 | D10: CHAUMONT | E10: =VLOOKUP($C10,'RECAP SECT'!$G$6:$CU$253,3,FALSE) -> 34.0 | F10: =VLOOKUP($C10,'RECAP SECT'!$G$6:$CU$253,67,FALSE) -> 2,271 | G10: =VLOOKUP($C10,'RECAP SECT'!$G$6:$CU$253,68,FALSE) -> 66.79 | H10: =VLOOKUP($C10,'RECAP SECT'!$G$6:$CU$253,69,FALSE) -> 33% | I10: =VLOOKUP($C10,'RECAP SECT'!$G$6:$CU$253,70,FALSE) -> 8 | J10: =VLOOKUP($C10,'RECAP SECT'!$G$6:$CU$253,71,FALSE) -> 640 | K10: =VLOOKUP($C10,'RECAP SECT'!$G$6:$CU$253,72,FALSE) -> 18.82 | L10: =VLOOKUP($C10,'RECAP SECT'!$G$6:$CU$253,73,FALSE) -> 28% | M10: =VLOOKUP($C10,'RECAP SECT'!$G$6:$CU$253,74,FALSE) -> 10 | N10: =VLOOKUP($C10,'RECAP SECT'!$G$6:$CU$253,75,FALSE) -> 31% | O10: =VLOOKUP($C10,'RECAP SECT'!$G$6:$CU$253,76,FALSE) -> 29% | P10: =VLOOKUP($C10,'RECAP SECT'!$G$6:$CU$253,77,FALSE) -> 9
A11: 50 | B11: AUBE HAUTE MARNE | C11: 14 | D11: TROYES | E11: =VLOOKUP($C11,'RECAP SECT'!$G$6:$CU$253,3,FALSE) -> 54.6 | F11: =VLOOKUP($C11,'RECAP SECT'!$G$6:$CU$253,67,FALSE) -> 3,185 | G11: =VLOOKUP($C11,'RECAP SECT'!$G$6:$CU$253,68,FALSE) -> 58.34 | H11: =VLOOKUP($C11,'RECAP SECT'!$G$6:$CU$253,69,FALSE) -> 41% | I11: =VLOOKUP($C11,'RECAP SECT'!$G$6:$CU$253,70,FALSE) -> 11 | J11: =VLOOKUP($C11,'RECAP SECT'!$G$6:$CU$253,71,FALSE) -> 1,009 | K11: =VLOOKUP($C11,'RECAP SECT'!$G$6:$CU$253,72,FALSE) -> 18.48 | L11: =VLOOKUP($C11,'RECAP SECT'!$G$6:$CU$253,73,FALSE) -> 29% | M11: =VLOOKUP($C11,'RECAP SECT'!$G$6:$CU$253,74,FALSE) -> 11 | N11: =VLOOKUP($C11,'RECAP SECT'!$G$6:$CU$253,75,FALSE) -> 36% | O11: =VLOOKUP($C11,'RECAP SECT'!$G$6:$CU$253,76,FALSE) -> 34% | P11: =VLOOKUP($C11,'RECAP SECT'!$G$6:$CU$253,77,FALSE) -> 10
A12: 262 | B12: BAS-RHIN | C12: 5060 | D12: HAGUENAU | E12: =VLOOKUP($C12,'RECAP SECT'!$G$6:$CU$253,3,FALSE) -> 56.7 | F12: =VLOOKUP($C12,'RECAP SECT'!$G$6:$CU$253,67,FALSE) -> 3,167 | G12: =VLOOKUP($C12,'RECAP SECT'!$G$6:$CU$253,68,FALSE) -> 55.88 | H12: =VLOOKUP($C12,'RECAP SECT'!$G$6:$CU$253,69,FALSE) -> 44% | I12: =VLOOKUP($C12,'RECAP SECT'!$G$6:$CU$253,70,FALSE) -> 13 | J12: =VLOOKUP($C12,'RECAP SECT'!$G$6:$CU$253,71,FALSE) -> 964 | K12: =VLOOKUP($C12,'RECAP SECT'!$G$6:$CU$253,72,FALSE) -> 17.01 | L12: =VLOOKUP($C12,'RECAP SECT'!$G$6:$CU$253,73,FALSE) -> 35% | M12: =VLOOKUP($C12,'RECAP SECT'!$G$6:$CU$253,74,FALSE) -> 15 | N12: =VLOOKUP($C12,'RECAP SECT'!$G$6:$CU$253,75,FALSE) -> 40% | O12: =VLOOKUP($C12,'RECAP SECT'!$G$6:$CU$253,76,FALSE) -> 38% | P12: =VLOOKUP($C12,'RECAP SECT'!$G$6:$CU$253,77,FALSE) -> 15
A13: 262 | B13: BAS-RHIN | C13: 5101 | D13: SELESTAT | E13: =VLOOKUP($C13,'RECAP SECT'!$G$6:$CU$253,3,FALSE) -> 48.9 | F13: =VLOOKUP($C13,'RECAP SECT'!$G$6:$CU$253,67,FALSE) -> 2,855 | G13: =VLOOKUP($C13,'RECAP SECT'!$G$6:$CU$253,68,FALSE) -> 58.36 | H13: =VLOOKUP($C13,'RECAP SECT'!$G$6:$CU$253,69,FALSE) -> 41% | I13: =VLOOKUP($C13,'RECAP SECT'!$G$6:$CU$253,70,FALSE) -> 10 | J13: =VLOOKUP($C13,'RECAP SECT'!$G$6:$CU$253,71,FALSE) -> 896 | K13: =VLOOKUP($C13,'RECAP SECT'!$G$6:$CU$253,72,FALSE) -> 18.32 | L13: =VLOOKUP($C13,'RECAP SECT'!$G$6:$CU$253,73,FALSE) -> 30% | M13: =VLOOKUP($C13,'RECAP SECT'!$G$6:$CU$253,74,FALSE) -> 12 | N13: =VLOOKUP($C13,'RECAP SECT'!$G$6:$CU$253,75,FALSE) -> 37% | O13: =VLOOKUP($C13,'RECAP SECT'!$G$6:$CU$253,76,FALSE) -> 35% | P13: =VLOOKUP($C13,'RECAP SECT'!$G$6:$CU$253,77,FALSE) -> 11
A14: 262 | B14: BAS-RHIN | C14: 5006 | D14: STRASBOURG | E14: =VLOOKUP($C14,'RECAP SECT'!$G$6:$CU$253,3,FALSE) -> 65.1 | F14: =VLOOKUP($C14,'RECAP SECT'!$G$6:$CU$253,67,FALSE) -> 4,986 | G14: =VLOOKUP($C14,'RECAP SECT'!$G$6:$CU$253,68,FALSE) -> 76.61 | H14: =VLOOKUP($C14,'RECAP SECT'!$G$6:$CU$253,69,FALSE) -> 23% | I14: =VLOOKUP($C14,'RECAP SECT'!$G$6:$CU$253,70,FALSE) -> 4 | J14: =VLOOKUP($C14,'RECAP SECT'!$G$6:$CU$253,71,FALSE) -> 1,691 | K14: =VLOOKUP($C14,'RECAP SECT'!$G$6:$CU$253,72,FALSE) -> 25.98 | L14: =VLOOKUP($C14,'RECAP SECT'!$G$6:$CU$253,73,FALSE) -> 0% | M14: =VLOOKUP($C14,'RECAP SECT'!$G$6:$CU$253,74,FALSE) -> 1 | N14: =VLOOKUP($C14,'RECAP SECT'!$G$6:$CU$253,75,FALSE) -> 14% | O14: =VLOOKUP($C14,'RECAP SECT'!$G$6:$CU$253,76,FALSE) -> 12% | P14: =VLOOKUP($C14,'RECAP SECT'!$G$6:$CU$253,77,FALSE) -> 3
A15: 264 | B15: HAUT-RHIN | C15: 5130 | D15: COLMAR | E15: =VLOOKUP($C15,'RECAP SECT'!$G$6:$CU$253,3,FALSE) -> 50.5 | F15: =VLOOKUP($C15,'RECAP SECT'!$G$6:$CU$253,67,FALSE) -> 2,744 | G15: =VLOOKUP($C15,'RECAP SECT'!$G$6:$CU$253,68,FALSE) -> 54.37 | H15: =VLOOKUP($C15,'RECAP SECT'!$G$6:$CU$253,69,FALSE) -> 45% | I15: =VLOOKUP($C15,'RECAP SECT'!$G$6:$CU$253,70,FALSE) -> 14 | J15: =VLOOKUP($C15,'RECAP SECT'!$G$6:$CU$253,71,FALSE) -> 819 | K15: =VLOOKUP($C15,'RECAP SECT'!$G$6:$CU$253,72,FALSE) -> 16.23 | L15: =VLOOKUP($C15,'RECAP SECT'!$G$6:$CU$253,73,FALSE) -> 38% | M15: =VLOOKUP($C15,'RECAP SECT'!$G$6:$CU$253,74,FALSE) -> 17 | N15: =VLOOKUP($C15,'RECAP SECT'!$G$6:$CU$253,75,FALSE) -> 42% | O15: =VLOOKUP($C15,'RECAP SECT'!$G$6:$CU$253,76,FALSE) -> 40% | P15: =VLOOKUP($C15,'RECAP SECT'!$G$6:$CU$253,77,FALSE) -> 16
A16: 264 | B16: HAUT-RHIN | C16: 5169 | D16: MULHOUSE | E16: =VLOOKUP($C16,'RECAP SECT'!$G$6:$CU$253,3,FALSE) -> 46.0 | F16: =VLOOKUP($C16,'RECAP SECT'!$G$6:$CU$253,67,FALSE) -> 1,277 | G16: =VLOOKUP($C16,'RECAP SECT'!$G$6:$CU$253,68,FALSE) -> 27.75 | H16: =VLOOKUP($C16,'RECAP SECT'!$G$6:$CU$253,69,FALSE) -> 72% | I16: =VLOOKUP($C16,'RECAP SECT'!$G$6:$CU$253,70,FALSE) -> 18 | J16: =VLOOKUP($C16,'RECAP SECT'!$G$6:$CU$253,71,FALSE) -> 775 | K16: =VLOOKUP($C16,'RECAP SECT'!$G$6:$CU$253,72,FALSE) -> 16.84 | L16: =VLOOKUP($C16,'RECAP SECT'!$G$6:$CU$253,73,FALSE) -> 35% | M16: =VLOOKUP($C16,'RECAP SECT'!$G$6:$CU$253,74,FALSE) -> 16 | N16: =VLOOKUP($C16,'RECAP SECT'!$G$6:$CU$253,75,FALSE) -> 57% | O16: =VLOOKUP($C16,'RECAP SECT'!$G$6:$CU$253,76,FALSE) -> 55% | P16: =VLOOKUP($C16,'RECAP SECT'!$G$6:$CU$253,77,FALSE) -> 17
A17: 30 | B17: MARNE-ARDENNES | C17: 6 | D17: CHALONS EN CHAMPAGNE | E17: =VLOOKUP($C17,'RECAP SECT'!$G$6:$CU$253,3,FALSE) -> 39.0 | F17: =VLOOKUP($C17,'RECAP SECT'!$G$6:$CU$253,67,FALSE) -> 2,926 | G17: =VLOOKUP($C17,'RECAP SECT'!$G$6:$CU$253,68,FALSE) -> 75.03 | H17: =VLOOKUP($C17,'RECAP SECT'!$G$6:$CU$253,69,FALSE) -> 25% | I17: =VLOOKUP($C17,'RECAP SECT'!$G$6:$CU$253,70,FALSE) -> 6 | J17: =VLOOKUP($C17,'RECAP SECT'!$G$6:$CU$253,71,FALSE) -> 764 | K17: =VLOOKUP($C17,'RECAP SECT'!$G$6:$CU$253,72,FALSE) -> 19.59 | L17: =VLOOKUP($C17,'RECAP SECT'!$G$6:$CU$253,73,FALSE) -> 25% | M17: =VLOOKUP($C17,'RECAP SECT'!$G$6:$CU$253,74,FALSE) -> 8 | N17: =VLOOKUP($C17,'RECAP SECT'!$G$6:$CU$253,75,FALSE) -> 25% | O17: =VLOOKUP($C17,'RECAP SECT'!$G$6:$CU$253,76,FALSE) -> 23% | P17: =VLOOKUP($C17,'RECAP SECT'!$G$6:$CU$253,77,FALSE) -> 7
A18: 30 | B18: MARNE-ARDENNES | C18: 2 | D18: CHARLEVILLE MEZIERES | E18: =VLOOKUP($C18,'RECAP SECT'!$G$6:$CU$253,3,FALSE) -> 49.1 | F18: =VLOOKUP($C18,'RECAP SECT'!$G$6:$CU$253,67,FALSE) -> 3,955 | G18: =VLOOKUP($C18,'RECAP SECT'!$G$6:$CU$253,68,FALSE) -> 80.52 | H18: =VLOOKUP($C18,'RECAP SECT'!$G$6:$CU$253,69,FALSE) -> 19% | I18: =VLOOKUP($C18,'RECAP SECT'!$G$6:$CU$253,70,FALSE) -> 3 | J18: =VLOOKUP($C18,'RECAP SECT'!$G$6:$CU$253,71,FALSE) -> 1,057 | K18: =VLOOKUP($C18,'RECAP SECT'!$G$6:$CU$253,72,FALSE) -> 21.52 | L18: =VLOOKUP($C18,'RECAP SECT'!$G$6:$CU$253,73,FALSE) -> 17% | M18: =VLOOKUP($C18,'RECAP SECT'!$G$6:$CU$253,74,FALSE) -> 6 | N18: =VLOOKUP($C18,'RECAP SECT'!$G$6:$CU$253,75,FALSE) -> 18% | O18: =VLOOKUP($C18,'RECAP SECT'!$G$6:$CU$253,76,FALSE) -> 16% | P18: =VLOOKUP($C18,'RECAP SECT'!$G$6:$CU$253,77,FALSE) -> 4
A19: 30 | B19: MARNE-ARDENNES | C19: 11 | D19: REIMS | E19: =VLOOKUP($C19,'RECAP SECT'!$G$6:$CU$253,3,FALSE) -> 69.3 | F19: =VLOOKUP($C19,'RECAP SECT'!$G$6:$CU$253,67,FALSE) -> 5,201 | G19: =VLOOKUP($C19,'RECAP SECT'!$G$6:$CU$253,68,FALSE) -> 75.08 | H19: =VLOOKUP($C19,'RECAP SECT'!$G$6:$CU$253,69,FALSE) -> 25% | I19: =VLOOKUP($C19,'RECAP SECT'!$G$6:$CU$253,70,FALSE) -> 5 | J19: =VLOOKUP($C19,'RECAP SECT'!$G$6:$CU$253,71,FALSE) -> 1,625 | K19: =VLOOKUP($C19,'RECAP SECT'!$G$6:$CU$253,72,FALSE) -> 23.46 | L19: =VLOOKUP($C19,'RECAP SECT'!$G$6:$CU$253,73,FALSE) -> 10% | M19: =VLOOKUP($C19,'RECAP SECT'!$G$6:$CU$253,74,FALSE) -> 3 | N19: =VLOOKUP($C19,'RECAP SECT'!$G$6:$CU$253,75,FALSE) -> 19% | O19: =VLOOKUP($C19,'RECAP SECT'!$G$6:$CU$253,76,FALSE) -> 17% | P19: =VLOOKUP($C19,'RECAP SECT'!$G$6:$CU$253,77,FALSE) -> 5
A20: 110 | B20: MEURTHE ET MOSELLE MEUSE | C20: 26 | D20: NANCY | E20: =VLOOKUP($C20,'RECAP SECT'!$G$6:$CU$253,3,FALSE) -> 55.8 | F20: =VLOOKUP($C20,'RECAP SECT'!$G$6:$CU$253,67,FALSE) -> 2,802 | G20: =VLOOKUP($C20,'RECAP SECT'!$G$6:$CU$253,68,FALSE) -> 50.26 | H20: =VLOOKUP($C20,'RECAP SECT'!$G$6:$CU$253,69,FALSE) -> 49% | I20: =VLOOKUP($C20,'RECAP SECT'!$G$6:$CU$253,70,FALSE) -> 16 | J20: =VLOOKUP($C20,'RECAP SECT'!$G$6:$CU$253,71,FALSE) -> 1,134 | K20: =VLOOKUP($C20,'RECAP SECT'!$G$6:$CU$253,72,FALSE) -> 20.34 | L20: =VLOOKUP($C20,'RECAP SECT'!$G$6:$CU$253,73,FALSE) -> 22% | M20: =VLOOKUP($C20,'RECAP SECT'!$G$6:$CU$253,74,FALSE) -> 7 | N20: =VLOOKUP($C20,'RECAP SECT'!$G$6:$CU$253,75,FALSE) -> 38% | O20: =VLOOKUP($C20,'RECAP SECT'!$G$6:$CU$253,76,FALSE) -> 36% | P20: =VLOOKUP($C20,'RECAP SECT'!$G$6:$CU$253,77,FALSE) -> 12
A21: 110 | B21: MEURTHE ET MOSELLE MEUSE | C21: 27 | D21: PONT A MOUSSON | E21: =VLOOKUP($C21,'RECAP SECT'!$G$6:$CU$253,3,FALSE) -> 59.5 | F21: =VLOOKUP($C21,'RECAP SECT'!$G$6:$CU$253,67,FALSE) -> 4,072 | G21: =VLOOKUP($C21,'RECAP SECT'!$G$6:$CU$253,68,FALSE) -> 68.46 | H21: =VLOOKUP($C21,'RECAP SECT'!$G$6:$CU$253,69,FALSE) -> 31% | I21: =VLOOKUP($C21,'RECAP SECT'!$G$6:$CU$253,70,FALSE) -> 7 | J21: =VLOOKUP($C21,'RECAP SECT'!$G$6:$CU$253,71,FALSE) -> 1,347 | K21: =VLOOKUP($C21,'RECAP SECT'!$G$6:$CU$253,72,FALSE) -> 22.65 | L21: =VLOOKUP($C21,'RECAP SECT'!$G$6:$CU$253,73,FALSE) -> 13% | M21: =VLOOKUP($C21,'RECAP SECT'!$G$6:$CU$253,74,FALSE) -> 4 | N21: =VLOOKUP($C21,'RECAP SECT'!$G$6:$CU$253,75,FALSE) -> 24% | O21: =VLOOKUP($C21,'RECAP SECT'!$G$6:$CU$253,76,FALSE) -> 22% | P21: =VLOOKUP($C21,'RECAP SECT'!$G$6:$CU$253,77,FALSE) -> 6
A22: 110 | B22: MEURTHE ET MOSELLE MEUSE | C22: 31 | D22: VERDUN | E22: =VLOOKUP($C22,'RECAP SECT'!$G$6:$CU$253,3,FALSE) -> 47.9 | F22: =VLOOKUP($C22,'RECAP SECT'!$G$6:$CU$253,67,FALSE) -> 2,587 | G22: =VLOOKUP($C22,'RECAP SECT'!$G$6:$CU$253,68,FALSE) -> 54.01 | H22: =VLOOKUP($C22,'RECAP SECT'!$G$6:$CU$253,69,FALSE) -> 46% | I22: =VLOOKUP($C22,'RECAP SECT'!$G$6:$CU$253,70,FALSE) -> 15 | J22: =VLOOKUP($C22,'RECAP SECT'!$G$6:$CU$253,71,FALSE) -> 870 | K22: =VLOOKUP($C22,'RECAP SECT'!$G$6:$CU$253,72,FALSE) -> 18.16 | L22: =VLOOKUP($C22,'RECAP SECT'!$G$6:$CU$253,73,FALSE) -> 30% | M22: =VLOOKUP($C22,'RECAP SECT'!$G$6:$CU$253,74,FALSE) -> 13 | N22: =VLOOKUP($C22,'RECAP SECT'!$G$6:$CU$253,75,FALSE) -> 39% | O22: =VLOOKUP($C22,'RECAP SECT'!$G$6:$CU$253,76,FALSE) -> 37% | P22: =VLOOKUP($C22,'RECAP SECT'!$G$6:$CU$253,77,FALSE) -> 14
A23: 160 | B23: MOSELLE | C23: 45 | D23: METZ | E23: =VLOOKUP($C23,'RECAP SECT'!$G$6:$CU$253,3,FALSE) -> 72.4 | F23: =VLOOKUP($C23,'RECAP SECT'!$G$6:$CU$253,67,FALSE) -> 4,753 | G23: =VLOOKUP($C23,'RECAP SECT'!$G$6:$CU$253,68,FALSE) -> 65.68 | H23: =VLOOKUP($C23,'RECAP SECT'!$G$6:$CU$253,69,FALSE) -> 34% | I23: =VLOOKUP($C23,'RECAP SECT'!$G$6:$CU$253,70,FALSE) -> 9 | J23: =VLOOKUP($C23,'RECAP SECT'!$G$6:$CU$253,71,FALSE) -> 1,394 | K23: =VLOOKUP($C23,'RECAP SECT'!$G$6:$CU$253,72,FALSE) -> 19.26 | L23: =VLOOKUP($C23,'RECAP SECT'!$G$6:$CU$253,73,FALSE) -> 26% | M23: =VLOOKUP($C23,'RECAP SECT'!$G$6:$CU$253,74,FALSE) -> 9 | N23: =VLOOKUP($C23,'RECAP SECT'!$G$6:$CU$253,75,FALSE) -> 31% | O23: =VLOOKUP($C23,'RECAP SECT'!$G$6:$CU$253,76,FALSE) -> 29% | P23: =VLOOKUP($C23,'RECAP SECT'!$G$6:$CU$253,77,FALSE) -> 8
A24: 160 | B24: MOSELLE | C24: 42 | D24: MOSELLE EST | E24: =VLOOKUP($C24,'RECAP SECT'!$G$6:$CU$253,3,FALSE) -> 60.8 | F24: =VLOOKUP($C24,'RECAP SECT'!$G$6:$CU$253,67,FALSE) -> 5,432 | G24: =VLOOKUP($C24,'RECAP SECT'!$G$6:$CU$253,68,FALSE) -> 89.31 | H24: =VLOOKUP($C24,'RECAP SECT'!$G$6:$CU$253,69,FALSE) -> 10% | I24: =VLOOKUP($C24,'RECAP SECT'!$G$6:$CU$253,70,FALSE) -> 2 | J24: =VLOOKUP($C24,'RECAP SECT'!$G$6:$CU$253,71,FALSE) -> 1,313 | K24: =VLOOKUP($C24,'RECAP SECT'!$G$6:$CU$253,72,FALSE) -> 21.59 | L24: =VLOOKUP($C24,'RECAP SECT'!$G$6:$CU$253,73,FALSE) -> 17% | M24: =VLOOKUP($C24,'RECAP SECT'!$G$6:$CU$253,74,FALSE) -> 5 | N24: =VLOOKUP($C24,'RECAP SECT'!$G$6:$CU$253,75,FALSE) -> 13% | O24: =VLOOKUP($C24,'RECAP SECT'!$G$6:$CU$253,76,FALSE) -> 11% | P24: =VLOOKUP($C24,'RECAP SECT'!$G$6:$CU$253,77,FALSE) -> 2
A25: 160 | B25: MOSELLE | C25: 44 | D25: MOSELLE NORD | E25: =VLOOKUP($C25,'RECAP SECT'!$G$6:$CU$253,3,FALSE) -> 57.4 | F25: =VLOOKUP($C25,'RECAP SECT'!$G$6:$CU$253,67,FALSE) -> 5,716 | G25: =VLOOKUP($C25,'RECAP SECT'!$G$6:$CU$253,68,FALSE) -> 99.51 | H25: =VLOOKUP($C25,'RECAP SECT'!$G$6:$CU$253,69,FALSE) -> 0% | I25: =VLOOKUP($C25,'RECAP SECT'!$G$6:$CU$253,70,FALSE) -> 1 | J25: =VLOOKUP($C25,'RECAP SECT'!$G$6:$CU$253,71,FALSE) -> 1,417 | K25: =VLOOKUP($C25,'RECAP SECT'!$G$6:$CU$253,72,FALSE) -> 24.67 | L25: =VLOOKUP($C25,'RECAP SECT'!$G$6:$CU$253,73,FALSE) -> 5% | M25: =VLOOKUP($C25,'RECAP SECT'!$G$6:$CU$253,74,FALSE) -> 2 | N25: =VLOOKUP($C25,'RECAP SECT'!$G$6:$CU$253,75,FALSE) -> 2% | O25: =VLOOKUP($C25,'RECAP SECT'!$G$6:$CU$253,76,FALSE) -> 0% | P25: =VLOOKUP($C25,'RECAP SECT'!$G$6:$CU$253,77,FALSE) -> 1
A26: 80 | B26: VOSGES | C26: 57 | D26: EPINAL | E26: =VLOOKUP($C26,'RECAP SECT'!$G$6:$CU$253,3,FALSE) -> 54.1 | F26: =VLOOKUP($C26,'RECAP SECT'!$G$6:$CU$253,67,FALSE) -> 3,087 | G26: =VLOOKUP($C26,'RECAP SECT'!$G$6:$CU$253,68,FALSE) -> 57.11 | H26: =VLOOKUP($C26,'RECAP SECT'!$G$6:$CU$253,69,FALSE) -> 43% | I26: =VLOOKUP($C26,'RECAP SECT'!$G$6:$CU$253,70,FALSE) -> 12 | J26: =VLOOKUP($C26,'RECAP SECT'!$G$6:$CU$253,71,FALSE) -> 944 | K26: =VLOOKUP($C26,'RECAP SECT'!$G$6:$CU$253,72,FALSE) -> 17.47 | L26: =VLOOKUP($C26,'RECAP SECT'!$G$6:$CU$253,73,FALSE) -> 33% | M26: =VLOOKUP($C26,'RECAP SECT'!$G$6:$CU$253,74,FALSE) -> 14 | N26: =VLOOKUP($C26,'RECAP SECT'!$G$6:$CU$253,75,FALSE) -> 39% | O26: =VLOOKUP($C26,'RECAP SECT'!$G$6:$CU$253,76,FALSE) -> 37% | P26: =VLOOKUP($C26,'RECAP SECT'!$G$6:$CU$253,77,FALSE) -> 13
A27: 80 | B27: VOSGES | C27: 55 | D27: SAINT DIE | E27: =VLOOKUP($C27,'RECAP SECT'!$G$6:$CU$253,3,FALSE) -> 40.7 | F27: =VLOOKUP($C27,'RECAP SECT'!$G$6:$CU$253,67,FALSE) -> 1,225 | G27: =VLOOKUP($C27,'RECAP SECT'!$G$6:$CU$253,68,FALSE) -> 30.11 | H27: =VLOOKUP($C27,'RECAP SECT'!$G$6:$CU$253,69,FALSE) -> 70% | I27: =VLOOKUP($C27,'RECAP SECT'!$G$6:$CU$253,70,FALSE) -> 17 | J27: =VLOOKUP($C27,'RECAP SECT'!$G$6:$CU$253,71,FALSE) -> 578 | K27: =VLOOKUP($C27,'RECAP SECT'!$G$6:$CU$253,72,FALSE) -> 14.21 | L27: =VLOOKUP($C27,'RECAP SECT'!$G$6:$CU$253,73,FALSE) -> 45% | M27: =VLOOKUP($C27,'RECAP SECT'!$G$6:$CU$253,74,FALSE) -> 18 | N27: =VLOOKUP($C27,'RECAP SECT'!$G$6:$CU$253,75,FALSE) -> 60% | O27: =VLOOKUP($C27,'RECAP SECT'!$G$6:$CU$253,76,FALSE) -> 58% | P27: =VLOOKUP($C27,'RECAP SECT'!$G$6:$CU$253,77,FALSE) -> 18
A28: Total CEGEE Directions Régionales | E28: =SUM(E10:E27) -> 962

Sheet SE_SATISFACTION
B1: Accueil | F1: BAROMETRE BDD - TERRITOIRES
F2: SATISFACTION
F3: =ACCUEIL!F7 -> 2022-04-24
F7: NPS à froid (SAE) | I7: NPS à chaud (QHD) | L7: Total Satisfaction Clients
F8: =DATEMAJ!E4 -> au 31/03 | G8: coef | H8: ='RECAP DIRCOM'!M4 -> 10% | I8: =DATEMAJ!C5 -> au 28/02 | J8: coef | K8: ='RECAP DIRCOM'!P4 -> 10% | M8: coef | N8: ='RECAP DIRCOM'!S4 -> 20%
B9: Direction | C9: eds | D9: Territoire | E9: ="ETP perf "&DATEMAJ!$C$28 -> ETP perf 24-avr | G9: % Ecart au 1er | H9: Rang | J9: % Ecart au 1er | K9: Rang | L9: Moyenne ecart au 1er | M9: % Ecart au 1er | N9: Rang CEGEE
A10: 50 | B10: AUBE HAUTE MARNE | C10: 21 | D10: CHAUMONT | E10: =VLOOKUP($C10,'RECAP SECT'!$G$6:$CU$253,3,FALSE) -> 34.0 | F10: =VLOOKUP($C10,'RECAP SECT'!$G$6:$CU$253,5,FALSE) -> 15.25 | G10: =VLOOKUP($C10,'RECAP SECT'!$G$6:$CU$253,6,FALSE) -> 45% | H10: =VLOOKUP($C10,'RECAP SECT'!$G$6:$CU$253,7,FALSE) -> 7 | I10: =VLOOKUP($C10,'RECAP SECT'!$G$6:$CU$253,8,FALSE) -> 64% | J10: =VLOOKUP($C10,'RECAP SECT'!$G$6:$CU$253,9,FALSE) -> 14% | K10: =VLOOKUP($C10,'RECAP SECT'!$G$6:$CU$253,10,FALSE) -> 7 | L10: =VLOOKUP($C10,'RECAP SECT'!$G$6:$CU$253,11,FALSE) -> 29% | M10: =VLOOKUP($C10,'RECAP SECT'!$G$6:$CU$253,12,FALSE) -> 25% | N10: =VLOOKUP($C10,'RECAP SECT'!$G$6:$CU$253,13,FALSE) -> 8
A11: 50 | B11: AUBE HAUTE MARNE | C11: 14 | D11: TROYES | E11: =VLOOKUP($C11,'RECAP SECT'!$G$6:$CU$253,3,FALSE) -> 54.6 | F11: =VLOOKUP($C11,'RECAP SECT'!$G$6:$CU$253,5,FALSE) -> 0 | G11: =VLOOKUP($C11,'RECAP SECT'!$G$6:$CU$253,6,FALSE) -> 100% | H11: =VLOOKUP($C11,'RECAP SECT'!$G$6:$CU$253,7,FALSE) -> 17 | I11: =VLOOKUP($C11,'RECAP SECT'!$G$6:$CU$253,8,FALSE) -> 47% | J11: =VLOOKUP($C11,'RECAP SECT'!$G$6:$CU$253,9,FALSE) -> 37% | K11: =VLOOKUP($C11,'RECAP SECT'!$G$6:$CU$253,10,FALSE) -> 18 | L11: =VLOOKUP($C11,'RECAP SECT'!$G$6:$CU$253,11,FALSE) -> 68% | M11: =VLOOKUP($C11,'RECAP SECT'!$G$6:$CU$253,12,FALSE) -> 64% | N11: =VLOOKUP($C11,'RECAP SECT'!$G$6:$CU$253,13,FALSE) -> 18
A12: 262 | B12: BAS-RHIN | C12: 5060 | D12: HAGUENAU | E12: =VLOOKUP($C12,'RECAP SECT'!$G$6:$CU$253,3,FALSE) -> 56.7 | F12: =VLOOKUP($C12,'RECAP SECT'!$G$6:$CU$253,5,FALSE) -> 13.75 | G12: =VLOOKUP($C12,'RECAP SECT'!$G$6:$CU$253,6,FALSE) -> 50% | H12: =VLOOKUP($C12,'RECAP SECT'!$G$6:$CU$253,7,FALSE) -> 10 | I12: =VLOOKUP($C12,'RECAP SECT'!$G$6:$CU$253,8,FALSE) -> 61% | J12: =VLOOKUP($C12,'RECAP SECT'!$G$6:$CU$253,9,FALSE) -> 18% | K12: =VLOOKUP($C12,'RECAP SECT'!$G$6:$CU$253,10,FALSE) -> 11 | L12: =VLOOKUP($C12,'RECAP SECT'!$G$6:$CU$253,11,FALSE) -> 34% | M12: =VLOOKUP($C12,'RECAP SECT'!$G$6:$CU$253,12,FALSE) -> 30% | N12: =VLOOKUP($C12,'RECAP SECT'!$G$6:$CU$253,13,FALSE) -> 10
A13: 262 | B13: BAS-RHIN | C13: 5101 | D13: SELESTAT | E13: =VLOOKUP($C13,'RECAP SECT'!$G$6:$CU$253,3,FALSE) -> 48.9 | F13: =VLOOKUP($C13,'RECAP SECT'!$G$6:$CU$253,5,FALSE) -> 0 | G13: =VLOOKUP($C13,'RECAP SECT'!$G$6:$CU$253,6,FALSE) -> 100% | H13: =VLOOKUP($C13,'RECAP SECT'!$G$6:$CU$253,7,FALSE) -> 17 | I13: =VLOOKUP($C13,'RECAP SECT'!$G$6:$CU$253,8,FALSE) -> 54% | J13: =VLOOKUP($C13,'RECAP SECT'!$G$6:$CU$253,9,FALSE) -> 27% | K13: =VLOOKUP($C13,'RECAP SECT'!$G$6:$CU$253,10,FALSE) -> 14 | L13: =VLOOKUP($C13,'RECAP SECT'!$G$6:$CU$253,11,FALSE) -> 63% | M13: =VLOOKUP($C13,'RECAP SECT'!$G$6:$CU$253,12,FALSE) -> 59% | N13: =VLOOKUP($C13,'RECAP SECT'!$G$6:$CU$253,13,FALSE) -> 17
A14: 262 | B14: BAS-RHIN | C14: 5006 | D14: STRASBOURG | E14: =VLOOKUP($C14,'RECAP SECT'!$G$6:$CU$253,3,FALSE) -> 65.1 | F14: =VLOOKUP($C14,'RECAP SECT'!$G$6:$CU$253,5,FALSE) -> 12.25 | G14: =VLOOKUP($C14,'RECAP SECT'!$G$6:$CU$253,6,FALSE) -> 56% | H14: =VLOOKUP($C14,'RECAP SECT'!$G$6:$CU$253,7,FALSE) -> 11 | I14: =VLOOKUP($C14,'RECAP SECT'!$G$6:$CU$253,8,FALSE) -> 62% | J14: =VLOOKUP($C14,'RECAP SECT'!$G$6:$CU$253,9,FALSE) -> 17% | K14: =VLOOKUP($C14,'RECAP SECT'!$G$6:$CU$253,10,FALSE) -> 9 | L14: =VLOOKUP($C14,'RECAP SECT'!$G$6:$CU$253,11,FALSE) -> 36% | M14: =VLOOKUP($C14,'RECAP SECT'!$G$6:$CU$253,12,FALSE) -> 32% | N14: =VLOOKUP($C14,'RECAP SECT'!$G$6:$CU$253,13,FALSE) -> 11
A15: 264 | B15: HAUT-RHIN | C15: 5130 | D15: COLMAR | E15: =VLOOKUP($C15,'RECAP SECT'!$G$6:$CU$253,3,FALSE) -> 50.5 | F15: =VLOOKUP($C15,'RECAP SECT'!$G$6:$CU$253,5,FALSE) -> 3.25 | G15: =VLOOKUP($C15,'RECAP SECT'!$G$6:$CU$253,6,FALSE) -> 88% | H15: =VLOOKUP($C15,'RECAP SECT'!$G$6:$CU$253,7,FALSE) -> 14 | I15: =VLOOKUP($C15,'RECAP SECT'!$G$6:$CU$253,8,FALSE) -> 52% | J15: =VLOOKUP($C15,'RECAP SECT'!$G$6:$CU$253,9,FALSE) -> 30% | K15: =VLOOKUP($C15,'RECAP SECT'!$G$6:$CU$253,10,FALSE) -> 15 | L15: =VLOOKUP($C15,'RECAP SECT'!$G$6:$CU$253,11,FALSE) -> 59% | M15: =VLOOKUP($C15,'RECAP SECT'!$G$6:$CU$253,12,FALSE) -> 55% | N15: =VLOOKUP($C15,'RECAP SECT'!$G$6:$CU$253,13,FALSE) -> 14
A16: 264 | B16: HAUT-RHIN | C16: 5169 | D16: MULHOUSE | E16: =VLOOKUP($C16,'RECAP SECT'!$G$6:$CU$253,3,FALSE) -> 46.0 | F16: =VLOOKUP($C16,'RECAP SECT'!$G$6:$CU$253,5,FALSE) -> 3 | G16: =VLOOKUP($C16,'RECAP SECT'!$G$6:$CU$253,6,FALSE) -> 89% | H16: =VLOOKUP($C16,'RECAP SECT'!$G$6:$CU$253,7,FALSE) -> 15 | I16: =VLOOKUP($C16,'RECAP SECT'!$G$6:$CU$253,8,FALSE) -> 47% | J16: =VLOOKUP($C16,'RECAP SECT'!$G$6:$CU$253,9,FALSE) -> 36% | K16: =VLOOKUP($C16,'RECAP SECT'!$G$6:$CU$253,10,FALSE) -> 17 | L16: =VLOOKUP($C16,'RECAP SECT'!$G$6:$CU$253,11,FALSE) -> 63% | M16: =VLOOKUP($C16,'RECAP SECT'!$G$6:$CU$253,12,FALSE) -> 58% | N16: =VLOOKUP($C16,'RECAP SECT'!$G$6:$CU$253,13,FALSE) -> 15
A17: 30 | B17: MARNE-ARDENNES | C17: 6 | D17: CHALONS EN CHAMPAGNE | E17: =VLOOKUP($C17,'RECAP SECT'!$G$6:$CU$253,3,FALSE) -> 39.0 | F17: =VLOOKUP($C17,'RECAP SECT'!$G$6:$CU$253,5,FALSE) -> 23.75 | G17: =VLOOKUP($C17,'RECAP SECT'!$G$6:$CU$253,6,FALSE) -> 14% | H17: =VLOOKUP($C17,'RECAP SECT'!$G$6:$CU$253,7,FALSE) -> 2 | I17: =VLOOKUP($C17,'RECAP SECT'!$G$6:$CU$253,8,FALSE) -> 74% | J17: =VLOOKUP($C17,'RECAP SECT'!$G$6:$CU$253,9,FALSE) -> 0% | K17: =VLOOKUP($C17,'RECAP SECT'!$G$6:$CU$253,10,FALSE) -> 1 | L17: =VLOOKUP($C17,'RECAP SECT'!$G$6:$CU$253,11,FALSE) -> 7% | M17: =VLOOKUP($C17,'RECAP SECT'!$G$6:$CU$253,12,FALSE) -> 3% | N17: =VLOOKUP($C17,'RECAP SECT'!$G$6:$CU$253,13,FALSE) -> 2
A18: 30 | B18: MARNE-ARDENNES | C18: 2 | D18: CHARLEVILLE MEZIERES | E18: =VLOOKUP($C18,'RECAP SECT'!$G$6:$CU$253,3,FALSE) -> 49.1 | F18: =VLOOKUP($C18,'RECAP SECT'!$G$6:$CU$253,5,FALSE) -> 14.5 | G18: =VLOOKUP($C18,'RECAP SECT'!$G$6:$CU$253,6,FALSE) -> 48% | H18: =VLOOKUP($C18,'RECAP SECT'!$G$6:$CU$253,7,FALSE) -> 9 | I18: =VLOOKUP($C18,'RECAP SECT'!$G$6:$CU$253,8,FALSE) -> 67% | J18: =VLOOKUP($C18,'RECAP SECT'!$G$6:$CU$253,9,FALSE) -> 10% | K18: =VLOOKUP($C18,'RECAP SECT'!$G$6:$CU$253,10,FALSE) -> 5 | L18: =VLOOKUP($C18,'RECAP SECT'!$G$6:$CU$253,11,FALSE) -> 29% | M18: =VLOOKUP($C18,'RECAP SECT'!$G$6:$CU$253,12,FALSE) -> 25% | N18: =VLOOKUP($C18,'RECAP SECT'!$G$6:$CU$253,13,FALSE) -> 6
A19: 30 | B19: MARNE-ARDENNES | C19: 11 | D19: REIMS | E19: =VLOOKUP($C19,'RECAP SECT'!$G$6:$CU$253,3,FALSE) -> 69.3 | F19: =VLOOKUP($C19,'RECAP SECT'!$G$6:$CU$253,5,FALSE) -> 15 | G19: =VLOOKUP($C19,'RECAP SECT'!$G$6:$CU$253,6,FALSE) -> 46% | H19: =VLOOKUP($C19,'RECAP SECT'!$G$6:$CU$253,7,FALSE) -> 8 | I19: =VLOOKUP($C19,'RECAP SECT'!$G$6:$CU$253,8,FALSE) -> 65% | J19: =VLOOKUP($C19,'RECAP SECT'!$G$6:$CU$253,9,FALSE) -> 13% | K19: =VLOOKUP($C19,'RECAP SECT'!$G$6:$CU$253,10,FALSE) -> 6 | L19: =VLOOKUP($C19,'RECAP SECT'!$G$6:$CU$253,11,FALSE) -> 29% | M19: =VLOOKUP($C19,'RECAP SECT'!$G$6:$CU$253,12,FALSE) -> 25% | N19: =VLOOKUP($C19,'RECAP SECT'!$G$6:$CU$253,13,FALSE) -> 7
A20: 110 | B20: MEURTHE ET MOSELLE MEUSE | C20: 26 | D20: NANCY | E20: =VLOOKUP($C20,'RECAP SECT'!$G$6:$CU$253,3,FALSE) -> 55.8 | F20: =VLOOKUP($C20,'RECAP SECT'!$G$6:$CU$253,5,FALSE) -> 8.25 | G20: =VLOOKUP($C20,'RECAP SECT'!$G$6:$CU$253,6,FALSE) -> 70% | H20: =VLOOKUP($C20,'RECAP SECT'!$G$6:$CU$253,7,FALSE) -> 13 | I20: =VLOOKUP($C20,'RECAP SECT'!$G$6:$CU$253,8,FALSE) -> 56% | J20: =VLOOKUP($C20,'RECAP SECT'!$G$6:$CU$253,9,FALSE) -> 24% | K20: =VLOOKUP($C20,'RECAP SECT'!$G$6:$CU$253,10,FALSE) -> 13 | L20: =VLOOKUP($C20,'RECAP SECT'!$G$6:$CU$253,11,FALSE) -> 47% | M20: =VLOOKUP($C20,'RECAP SECT'!$G$6:$CU$253,12,FALSE) -> 43% | N20: =VLOOKUP($C20,'RECAP SECT'!$G$6:$CU$253,13,FALSE) -> 13
A21: 110 | B21: MEURTHE ET MOSELLE MEUSE | C21: 27 | D21: PONT A MOUSSON | E21: =VLOOKUP($C21,'RECAP SECT'!$G$6:$CU$253,3,FALSE) -> 59.5 | F21: =VLOOKUP($C21,'RECAP SECT'!$G$6:$CU$253,5,FALSE) -> 2.25 | G21: =VLOOKUP($C21,'RECAP SECT'!$G$6:$CU$253,6,FALSE) -> 92% | H21: =VLOOKUP($C21,'RECAP SECT'!$G$6:$CU$253,7,FALSE) -> 16 | I21: =VLOOKUP($C21,'RECAP SECT'!$G$6:$CU$253,8,FALSE) -> 49% | J21: =VLOOKUP($C21,'RECAP SECT'!$G$6:$CU$253,9,FALSE) -> 34% | K21: =VLOOKUP($C21,'RECAP SECT'!$G$6:$CU$253,10,FALSE) -> 16 | L21: =VLOOKUP($C21,'RECAP SECT'!$G$6:$CU$253,11,FALSE) -> 63% | M21: =VLOOKUP($C21,'RECAP SECT'!$G$6:$CU$253,12,FALSE) -> 59% | N21: =VLOOKUP($C21,'RECAP SECT'!$G$6:$CU$253,13,FALSE) -> 16
A22: 110 | B22: MEURTHE ET MOSELLE MEUSE | C22: 31 | D22: VERDUN | E22: =VLOOKUP($C22,'RECAP SECT'!$G$6:$CU$253,3,FALSE) -> 47.9 | F22: =VLOOKUP($C22,'RECAP SECT'!$G$6:$CU$253,5,FALSE) -> 17 | G22: =VLOOKUP($C22,'RECAP SECT'!$G$6:$CU$253,6,FALSE) -> 39% | H22: =VLOOKUP($C22,'RECAP SECT'!$G$6:$CU$253,7,FALSE) -> 4 | I22: =VLOOKUP($C22,'RECAP SECT'!$G$6:$CU$253,8,FALSE) -> 62% | J22: =VLOOKUP($C22,'RECAP SECT'!$G$6:$CU$253,9,FALSE) -> 17% | K22: =VLOOKUP($C22,'RECAP SECT'!$G$6:$CU$253,10,FALSE) -> 10 | L22: =VLOOKUP($C22,'RECAP SECT'!$G$6:$CU$253,11,FALSE) -> 28% | M22: =VLOOKUP($C22,'RECAP SECT'!$G$6:$CU$253,12,FALSE) -> 23% | N22: =VLOOKUP($C22,'RECAP SECT'!$G$6:$CU$253,13,FALSE) -> 5
A23: 160 | B23: MOSELLE | C23: 45 | D23: METZ | E23: =VLOOKUP($C23,'RECAP SECT'!$G$6:$CU$253,3,FALSE) -> 72.4 | F23: =VLOOKUP($C23,'RECAP SECT'!$G$6:$CU$253,5,FALSE) -> 16.5 | G23: =VLOOKUP($C23,'RECAP SECT'!$G$6:$CU$253,6,FALSE) -> 41% | H23: =VLOOKUP($C23,'RECAP SECT'!$G$6:$CU$253,7,FALSE) -> 5 | I23: =VLOOKUP($C23,'RECAP SECT'!$G$6:$CU$253,8,FALSE) -> 60% | J23: =VLOOKUP($C23,'RECAP SECT'!$G$6:$CU$253,9,FALSE) -> 20% | K23: =VLOOKUP($C23,'RECAP SECT'!$G$6:$CU$253,10,FALSE) -> 12 | L23: =VLOOKUP($C23,'RECAP SECT'!$G$6:$CU$253,11,FALSE) -> 30% | M23: =VLOOKUP($C23,'RECAP SECT'!$G$6:$CU$253,12,FALSE) -> 26% | N23: =VLOOKUP($C23,'RECAP SECT'!$G$6:$CU$253,13,FALSE) -> 9
A24: 160 | B24: MOSELLE | C24: 42 | D24: MOSELLE EST | E24: =VLOOKUP($C24,'RECAP SECT'!$G$6:$CU$253,3,FALSE) -> 60.8 | F24: =VLOOKUP($C24,'RECAP SECT'!$G$6:$CU$253,5,FALSE) -> 16.25 | G24: =VLOOKUP($C24,'RECAP SECT'!$G$6:$CU$253,6,FALSE) -> 41% | H24: =VLOOKUP($C24,'RECAP SECT'!$G$6:$CU$253,7,FALSE) -> 6 | I24: =VLOOKUP($C24,'RECAP SECT'!$G$6:$CU$253,8,FALSE) -> 68% | J24: =VLOOKUP($C24,'RECAP SECT'!$G$6:$CU$253,9,FALSE) -> 9% | K24: =VLOOKUP($C24,'RECAP SECT'!$G$6:$CU$253,10,FALSE) -> 4 | L24: =VLOOKUP($C24,'RECAP SECT'!$G$6:$CU$253,11,FALSE) -> 25% | M24: =VLOOKUP($C24,'RECAP SECT'!$G$6:$CU$253,12,FALSE) -> 21% | N24: =VLOOKUP($C24,'RECAP SECT'!$G$6:$CU$253,13,FALSE) -> 4
A25: 160 | B25: MOSELLE | C25: 44 | D25: MOSELLE NORD | E25: =VLOOKUP($C25,'RECAP SECT'!$G$6:$CU$253,3,FALSE) -> 57.4 | F25: =VLOOKUP($C25,'RECAP SECT'!$G$6:$CU$253,5,FALSE) -> 9.5 | G25: =VLOOKUP($C25,'RECAP SECT'!$G$6:$CU$253,6,FALSE) -> 66% | H25: =VLOOKUP($C25,'RECAP SECT'!$G$6:$CU$253,7,FALSE) -> 12 | I25: =VLOOKUP($C25,'RECAP SECT'!$G$6:$CU$253,8,FALSE) -> 63% | J25: =VLOOKUP($C25,'RECAP SECT'!$G$6:$CU$253,9,FALSE) -> 15% | K25: =VLOOKUP($C25,'RECAP SECT'!$G$6:$CU$253,10,FALSE) -> 8 | L25: =VLOOKUP($C25,'RECAP SECT'!$G$6:$CU$253,11,FALSE) -> 40% | M25: =VLOOKUP($C25,'RECAP SECT'!$G$6:$CU$253,12,FALSE) -> 36% | N25: =VLOOKUP($C25,'RECAP SECT'!$G$6:$CU$253,13,FALSE) -> 12
A26: 80 | B26: VOSGES | C26: 57 | D26: EPINAL | E26: =VLOOKUP($C26,'RECAP SECT'!$G$6:$CU$253,3,FALSE) -> 54.1 | F26: =VLOOKUP($C26,'RECAP SECT'!$G$6:$CU$253,5,FALSE) -> 21 | G26: =VLOOKUP($C26,'RECAP SECT'!$G$6:$CU$253,6,FALSE) -> 24% | H26: =VLOOKUP($C26,'RECAP SECT'!$G$6:$CU$253,7,FALSE) -> 3 | I26: =VLOOKUP($C26,'RECAP SECT'!$G$6:$CU$253,8,FALSE) -> 68% | J26: =VLOOKUP($C26,'RECAP SECT'!$G$6:$CU$253,9,FALSE) -> 8% | K26: =VLOOKUP($C26,'RECAP SECT'!$G$6:$CU$253,10,FALSE) -> 2 | L26: =VLOOKUP($C26,'RECAP SECT'!$G$6:$CU$253,11,FALSE) -> 16% | M26: =VLOOKUP($C26,'RECAP SECT'!$G$6:$CU$253,12,FALSE) -> 12% | N26: =VLOOKUP($C26,'RECAP SECT'!$G$6:$CU$253,13,FALSE) -> 3
A27: 80 | B27: VOSGES | C27: 55 | D27: SAINT DIE | E27: =VLOOKUP($C27,'RECAP SECT'!$G$6:$CU$253,3,FALSE) -> 40.7 | F27: =VLOOKUP($C27,'RECAP SECT'!$G$6:$CU$253,5,FALSE) -> 27.75 | G27: =VLOOKUP($C27,'RECAP SECT'!$G$6:$CU$253,6,FALSE) -> 0% | H27: =VLOOKUP($C27,'RECAP SECT'!$G$6:$CU$253,7,FALSE) -> 1 | I27: =VLOOKUP($C27,'RECAP SECT'!$G$6:$CU$253,8,FALSE) -> 68% | J27: =VLOOKUP($C27,'RECAP SECT'!$G$6:$CU$253,9,FALSE) -> 9% | K27: =VLOOKUP($C27,'RECAP SECT'!$G$6:$CU$253,10,FALSE) -> 3 | L27: =VLOOKUP($C27,'RECAP SECT'!$G$6:$CU$253,11,FALSE) -> 4% | M27: =VLOOKUP($C27,'RECAP SECT'!$G$6:$CU$253,12,FALSE) -> 0% | N27: =VLOOKUP($C27,'RECAP SECT'!$G$6:$CU$253,13,FALSE) -> 1
A28: Total CEGEE Directions Régionales | E28: =SUM(E10:E27) -> 962

Sheet AG_CLASS
B1: Accueil | H1: BAROMETRE BDD - AGENCES
H2: CLASSEMENTS
H3: =ACCUEIL!F7 -> 2022-04-24
H8: CLASSEMENT GENERAL | I8: CRITERE Satisfaction Clients | J8: NPS à froid (SAE) | K8: NPS à chaud (QHD) | L8: CRITERE BANCARISATION | M8: Ventes Nettes produits pondérés | N8: Ventes sur client non détenteur de l’univers | O8: CRITERE EPARGNE | P8: Excédent Epargne hors DAV pondéré | Q8: Ventes sur client non détenteur de l’univers | R8: CRITERE IARD PREVOYANCE | S8: Ventes Nettes produits pondérés | T8: Ventes sur client non détenteur de l’univers | U8: CRITERE CREDITS | V8: Engagements et ventes accessoires pondérés Immo | W8: Engagements et ventes accessoires pondérés Conso | X8: Ventes sur client non détenteur de l’univers
B9: Direction | C9: eds | D9: Territoire | E9: eds | F9: Agence | G9: ="ETP perf "&DATEMAJ!$C$28 -> ETP perf 24-avr | H9: Rang | I9: Rang | J9: Rang | K9: Rang | L9: Rang | M9: Rang | N9: Rang | O9: Rang | P9: Rang | Q9: Rang | R9: Rang | S9: Rang | T9: Rang | U9: Rang | V9: Rang | W9: Rang | X9: Rang
A10: 50 | B10: MOSELLE | C10: 44 | D10: MOSELLE NORD | E10: 557508 | F10: NILVANGE | G10: 1.8 | H10: 1 | I10: 113 | J10: 134 | K10: 50 | L10: 2 | M10: 2 | N10: 2 | O10: 6 | P10: 206 | Q10: 1 | R10: 2 | S10: 2 | T10: 3 | U10: 3 | V10: 4 | W10: 20 | X10: 3
A11: 50 | B11: MEURTHE ET MOSELLE MEUSE | C11: 26 | D11: NANCY | E11: 454171 | F11: BLAMONT | G11: 0.6 | H11: 2 | I11: 241 | J11: 62 | K11: 249 | L11: 1 | M11: 1 | N11: 1 | O11: 14 | P11: 64 | Q11: 4 | R11: 12 | S11: 234 | T11: 2 | U11: 1 | V11: 1 | W11: 2 | X11: 1
A12: 50 | B12: MOSELLE | C12: 42 | D12: MOSELLE EST | E12: 457163 | F12: BEHREN LES FORBACH | G12: 1.9 | H12: 3 | I12: 7 | J12: 17 | K12: 2 | L12: 3 | M12: 6 | N12: 5 | O12: 16 | P12: 91 | Q12: 3 | R12: 64 | S12: 142 | T12: 7 | U12: 4 | V12: 2 | W12: 4 | X12: 4
A13: 50 | B13: MEURTHE ET MOSELLE MEUSE | C13: 31 | D13: VERDUN | E13: 455676 | F13: VAUCOULEURS | G13: 0.2 | H13: 4 | I13: 142 | J13: 182 | K13: 80 | L13: 249 | M13: 249 | N13: 6 | O13: 117 | P13: 245 | Q13: 2 | R13: 1 | S13: 1 | T13: 1 | U13: 2 | V13: 3 | W13: 1 | X13: 2
A14: 50 | B14: MARNE ARDENNES | C14: 2 | D14: CHARLEVILLE MEZIERES | E14: 508820 | F14: VOUZIERS | G14: 2.9 | H14: 5 | I14: 12 | J14: 6 | K14: 83 | L14: 75 | M14: 77 | N14: 83 | O14: 38 | P14: 34 | Q14: 146 | R14: 3 | S14: 3 | T14: 8 | U14: 78 | V14: 96 | W14: 18 | X14: 88
A15: 50 | B15: MEURTHE ET MOSELLE MEUSE | C15: 26 | D15: NANCY | E15: 554601 | F15: SAINT MAX | G15: 3.8 | H15: 6 | I15: 8 | J15: 10 | K15: 29 | L15: 49 | M15: 49 | N15: 78 | O15: 23 | P15: 24 | Q15: 109 | R15: 30 | S15: 25 | T15: 59 | U15: 18 | V15: 13 | W15: 46 | X15: 62
A16: 50 | B16: MARNE ARDENNES | C16: 6 | D16: CHALONS EN CHAMPAGNE | E16: 551330 | F16: MONTMIRAIL | G16: 2.7 | H16: 7 | I16: 28 | J16: 37 | K16: 23 | L16: 16 | M16: 10 | N16: 53 | O16: 77 | P16: 81 | Q16: 60 | R16: 8 | S16: 12 | T16: 18 | U16: 57 | V16: 54 | W16: 170 | X16: 50
A17: 50 | B17: VOSGES | C17: 57 | D17: EPINAL | E17: 488288 | F17: EPINAL LEOPOLD BOURG | G17: 2.0 | H17: 8 | I17: 39 | J17: 67 | K17: 3 | L17: 23 | M17: 16 | N17: 100 | O17: 15 | P17: 11 | Q17: 95 | R17: 44 | S17: 23 | T17: 171 | U17: 43 | V17: 46 | W17: 69 | X17: 49
A18: 50 | B18: MOSELLE | C18: 45 | D18: METZ | E18: 457443 | F18: METZ REPUBLIQUE | G18: 3.7 | H18: 9 | I18: 11 | J18: 18 | K18: 6 | L18: 179 | M18: 177 | N18: 174 | O18: 5 | P18: 4 | Q18: 142 | R18: 19 | S18: 13 | T18: 48 | U18: 210 | V18: 204 | W18: 168 | X18: 196
A19: 50 | B19: MARNE ARDENNES | C19: 11 | D19: REIMS | E19: 551305 | F19: REIMS HIPPODROME | G19: 5.4 | H19: 10 | I19: 66 | J19: 71 | K19: 52 | L19: 42 | M19: 97 | N19: 17 | O19: 11 | P19: 9 | Q19: 75 | R19: 29 | S19: 33 | T19: 26 | U19: 28 | V19: 44 | W19: 92 | X19: 17
A20: 50 | B20: MARNE ARDENNES | C20: 11 | D20: REIMS | E20: 551349 | F20: REIMS SAINT REMI | G20: 2.9 | H20: 11 | I20: 75 | J20: 68 | K20: 92 | L20: 4 | M20: 5 | N20: 9 | O20: 220 | P20: 231 | Q20: 29 | R20: 21 | S20: 34 | T20: 13 | U20: 6 | V20: 6 | W20: 73 | X20: 9
A21: 50 | B21: MARNE ARDENNES | C21: 2 | D21: CHARLEVILLE MEZIERES | E21: 408801 | F21: CHARLEVILLE JEAN JAURES | G21: 8.8 | H21: 12 | I21: 35 | J21: 49 | K21: 14 | L21: 45 | M21: 63 | N21: 39 | O21: 80 | P21: 103 | Q21: 30 | R21: 33 | S21: 27 | T21: 69 | U21: 17 | V21: 17 | W21: 182 | X21: 19
A22: 50 | B22: BAS RHIN | C22: 5006 | D22: STRASBOURG | E22: 4038 | F22: OBERHAUSBERGEN | G22: 2.9 | H22: 13 | I22: 44 | J22: 39 | K22: 88 | L22: 22 | M22: 40 | N22: 16 | O22: 3 | P22: 5 | Q22: 13 | R22: 213 | S22: 240 | T22: 40 | U22: 26 | V22: 20 | W22: 109 | X22: 40
A23: 50 | B23: MOSELLE | C23: 45 | D23: METZ | E23: 457453 | F23: MONTIGNY LES METZ | G23: 6.9 | H23: 14 | I23: 9 | J23: 15 | K23: 13 | L23: 60 | M23: 52 | N23: 117 | O23: 63 | P23: 96 | Q23: 16 | R23: 107 | S23: 90 | T23: 166 | U23: 80 | V23: 94 | W23: 57 | X23: 65
A24: 50 | B24: MOSELLE | C24: 42 | D24: MOSELLE EST | E24: 457165 | F24: BITCHE | G24: 2.4 | H24: 15 | I24: 91 | J24: 116 | K24: 58 | L24: 6 | M24: 4 | N24: 33 | O24: 73 | P24: 133 | Q24: 11 | R24: 14 | S24: 11 | T24: 43 | U24: 92 | V24: 89 | W24: 22 | X24: 160
A25: 50 | B25: MARNE ARDENNES | C25: 11 | D25: REIMS | E25: 551365 | F25: DORMANS | G25: 2.6 | H25: 16 | I25: 68 | J25: 52 | K25: 112 | L25: 9 | M25: 8 | N25: 25 | O25: 122 | P25: 161 | Q25: 23 | R25: 51 | S25: 51 | T25: 54 | U25: 21 | V25: 26 | W25: 157 | X25: 14
A26: 50 | B26: BAS RHIN | C26: 5006 | D26: STRASBOURG | E26: 4010 | F26: STRASBOURG MEINAU | G26: 2.6 | H26: 17 | I26: 17 | J26: 5 | K26: 138 | L26: 145 | M26: 181 | N26: 61 | O26: 57 | P26: 55 | Q26: 93 | R26: 13 | S26: 18 | T26: 15 | U26: 181 | V26: 217 | W26: 11 | X26: 185
A27: 50 | B27: MEURTHE ET MOSELLE MEUSE | C27: 27 | D27: PONT A MOUSSON | E27: 554531 | F27: POMPEY | G27: 2.7 | H27: 18 | I27: 218 | J27: 182 | K27: 209 | L27: 10 | M27: 29 | N27: 4 | O27: 49 | P27: 87 | Q27: 12 | R27: 24 | S27: 50 | T27: 11 | U27: 5 | V27: 5 | W27: 10 | X27: 7
A28: 262 | B28: MARNE ARDENNES | C28: 6 | D28: CHALONS EN CHAMPAGNE | E28: 451115 | F28: MOURMELON LE GRAND | G28: 2.7 | H28: 19 | I28: 76 | J28: 116 | K28: 15 | L28: 35 | M28: 42 | N28: 35 | O28: 37 | P28: 62 | Q28: 25 | R28: 26 | S28: 29 | T28: 35 | U28: 72 | V28: 100 | W28: 12 | X28: 75
A29: 262 | B29: MOSELLE | C29: 44 | D29: MOSELLE NORD | E29: 457348 | F29: HAGONDANGE | G29: 7.7 | H29: 20 | I29: 36 | J29: 28 | K29: 99 | L29: 48 | M29: 53 | N29: 70 | O29: 124 | P29: 134 | Q29: 79 | R29: 43 | S29: 38 | T29: 71 | U29: 37 | V29: 33 | W29: 76 | X29: 42
A30: 262 | B30: MOSELLE | C30: 45 | D30: METZ | E30: 457574 | F30: ROMBAS | G30: 3.4 | H30: 21 | I30: 18 | J30: 20 | K30: 34 | L30: 79 | M30: 70 | N30: 122 | O30: 91 | P30: 119 | Q30: 32 | R30: 38 | S30: 22 | T30: 123 | U30: 171 | V30: 174 | W30: 86 | X30: 177
A31: 262 | B31: MOSELLE | C31: 45 | D31: METZ | E31: 557447 | F31: METZ SAINT MAXIMIN | G31: 1.9 | H31: 22 | I31: 128 | J31: 120 | K31: 136 | L31: 29 | M31: 66 | N31: 10 | O31: 52 | P31: 125 | Q31: 5 | R31: 4 | S31: 4 | T31: 9 | U31: 63 | V31: 71 | W31: 45 | X31: 79
A32: 262 | B32: BAS RHIN | C32: 5101 | D32: SELESTAT | E32: 4113 | F32: BARR | G32: 2.9 | H32: 23 | I32: 3 | J32: 7 | K32: 5 | L32: 17 | M32: 11 | N32: 64 | O32: 229 | P32: 236 | Q32: 36 | R32: 128 | S32: 111 | T32: 186 | U32: 59 | V32: 37 | W32: 246 | X32: 60
A33: 262 | B33: BAS RHIN | C33: 5006 | D33: STRASBOURG | E33: 4037 | F33: MUNDOLSHEIM | G33: 3.7 | H33: 24 | I33: 49 | J33: 44 | K33: 75 | L33: 51 | M33: 84 | N33: 24 | O33: 120 | P33: 153 | Q33: 38 | R33: 16 | S33: 19 | T33: 20 | U33: 51 | V33: 82 | W33: 176 | X33: 20
A34: 262 | B34: VOSGES | C34: 55 | D34: SAINT DIE | E34: 488246 | F34: CORNIMONT LA BRESSE | G34: 2.4 | H34: 25 | I34: 2 | J34: 2 | K34: 51 | L34: 56 | M34: 67 | N34: 68 | O34: 155 | P34: 136 | Q34: 209 | R34: 68 | S34: 54 | T34: 146 | U34: 224 | V34: 249 | W34: 61 | X34: 136
A35: 262 | B35: BAS RHIN | C35: 5060 | D35: HAGUENAU | E35: 4031 | F35: TRUCHTERSHEIM | G35: 2.4 | H35: 26 | I35: 1 | J35: 1 | K35: 40 | L35: 99 | M35: 44 | N35: 241 | O35: 22 | P35: 12 | Q35: 236 | R35: 237 | S35: 227 | T35: 241 | U35: 197 | V35: 161 | W35: 226 | X35: 216
A36: 262 | B36: MARNE ARDENNES | C36: 6 | D36: CHALONS EN CHAMPAGNE | E36: 451120 | F36: SARRY | G36: 2.3 | H36: 27 | I36: 20 | J36: 25 | K36: 16 | L36: 43 | M36: 36 | N36: 106 | O36: 136 | P36: 155 | Q36: 56 | R36: 118 | S36: 97 | T36: 182 | U36: 60 | V36: 51 | W36: 119 | X36: 82
A37: 262 | B37: MOSELLE | C37: 44 | D37: MOSELLE NORD | E37: 457350 | F37: HAYANGE | G37: 6.9 | H37: 28 | I37: 93 | J37: 66 | K37: 156 | L37: 21 | M37: 15 | N37: 54 | O37: 79 | P37: 111 | Q37: 19 | R37: 34 | S37: 32 | T37: 49 | U37: 46 | V37: 40 | W37: 149 | X37: 51
A38: 262 | B38: BAS RHIN | C38: 5006 | D38: STRASBOURG | E38: 4048 | F38: STRASBOURG KOENIGSHOFFEN | G38: 2.3 | H38: 29 | I38: 155 | J38: 182 | K38: 121 | L38: 13 | M38: 14 | N38: 21 | O38: 27 | P38: 66 | Q38: 9 | R38: 9 | S38: 37 | T38: 4 | U38: 81 | V38: 119 | W38: 89 | X38: 31
A39: 262 | B39: MEURTHE ET MOSELLE MEUSE | C39: 31 | D39: VERDUN | E39: 555679 | F39: VERDUN MAZEL | G39: 3.5 | H39: 30 | I39: 13 | J39: 12 | K39: 19 | L39: 67 | M39: 59 | N39: 110 | O39: 118 | P39: 108 | Q39: 147 | R39: 142 | S39: 132 | T39: 189 | U39: 74 | V39: 53 | W39: 187 | X39: 99
A40: 262 | B40: VOSGES | C40: 57 | D40: EPINAL | E40: 588336 | F40: GOLBEY | G40: 2.8 | H40: 31 | I40: 25 | J40: 18 | K40: 81 | L40: 97 | M40: 85 | N40: 132 | O40: 18 | P40: 17 | Q40: 101 | R40: 124 | S40: 118 | T40: 129 | U40: 169 | V40: 203 | W40: 177 | X40: 80
A41: 262 | B41: MARNE ARDENNES | C41: 2 | D41: CHARLEVILLE MEZIERES | E41: 508839 | F41: GIVET | G41: 3.4 | H41: 32 | I41: 51 | J41: 52 | K41: 62 | L41: 68 | M41: 99 | N41: 40 | O41: 166 | P41: 189 | Q41: 43 | R41: 17 | S41: 15 | T41: 28 | U41: 33 | V41: 23 | W41: 117 | X41: 46
A42: 262 | B42: MEURTHE ET MOSELLE MEUSE | C42: 26 | D42: NANCY | E42: 554476 | F42: NANCY ARTEM | G42: 2.8 | H42: 33 | I42: 57 | J42: 61 | K42: 55 | L42: 39 | M42: 51 | N42: 38 | O42: 194 | P42: 186 | Q42: 160 | R42: 84 | S42: 76 | T42: 125 | U42: 7 | V42: 8 | W42: 137 | X42: 6
A43: 262 | B43: MEURTHE ET MOSELLE MEUSE | C43: 31 | D43: VERDUN | E43: 455678 | F43: VERDUN CENTRALE | G43: 8.6 | H43: 34 | I43: 21 | J43: 11 | K43: 85 | L43: 64 | M43: 69 | N43: 71 | O43: 187 | P43: 182 | Q43: 127 | R43: 140 | S43: 151 | T43: 130 | U43: 15 | V43: 16 | W43: 78 | X43: 25
A44: 262 | B44: MOSELLE | C44: 42 | D44: MOSELLE EST | E44: 557668 | F44: VALMONT | G44: 2.5 | H44: 35 | I44: 42 | J44: 32 | K44: 118 | L44: 109 | M44: 109 | N44: 123 | O44: 9 | P44: 7 | Q44: 159 | R44: 121 | S44: 107 | T44: 162 | U44: 128 | V44: 137 | W44: 72 | X44: 138
A45: 262 | B45: MOSELLE | C45: 44 | D45: MOSELLE NORD | E45: 557113 | F45: AUDUN LE TICHE | G45: 2.2 | H45: 36 | I45: 112 | J45: 182 | K45: 9 | L45: 50 | M45: 111 | N45: 14 | O45: 114 | P45: 185 | Q45: 6 | R45: 20 | S45: 26 | T45: 19 | U45: 12 | V45: 12 | W45: 79 | X45: 36
A46: 262 | B46: AUBE HAUTE MARNE | C46: 14 | D46: TROYES | E46: 510570 | F46: NOGENT SUR SEINE | G46: 4.7 | H46: 37 | I46: 6 | J46: 3 | K46: 107 | L46: 81 | M46: 96 | N46: 74 | O46: 206 | P46: 212 | Q46: 81 | R46: 99 | S46: 83 | T46: 179 | U46: 61 | V46: 35 | W46: 166 | X46: 116
A47: 262 | B47: MARNE ARDENNES | C47: 11 | D47: REIMS | E47: 551340 | F47: BETHENY | G47: 2.8 | H47: 38 | I47: 52 | J47: 47 | K47: 72 | L47: 40 | M47: 55 | N47: 45 | O47: 67 | P47: 100 | Q47: 18 | R47: 180 | S47: 180 | T47: 160 | U47: 19 | V47: 10 | W47: 194 | X47: 85
A48: 262 | B48: MARNE ARDENNES | C48: 11 | D48: REIMS | E48: 451301 | F48: REIMS HOTEL DE VILLE | G48: 7.4 | H48: 39 | I48: 98 | J48: 104 | K48: 91 | L48: 91 | M48: 81 | N48: 124 | O48: 83 | P48: 93 | Q48: 41 | R48: 11 | S48: 8 | T48: 37 | U48: 38 | V48: 30 | W48: 96 | X48: 63
A49: 262 | B49: MARNE ARDENNES | C49: 11 | D49: REIMS | E49: 551367 | F49: AY CHAMPAGNE | G49: 2.7 | H49: 40 | I49: 34 | J49: 33 | K49: 82 | L49: 136 | M49: 149 | N49: 103 | O49: 62 | P49: 37 | Q49: 216 | R49: 83 | S49: 78 | T49: 118 | U49: 56 | V49: 38 | W49: 211 | X49: 75
A50: 262 | B50: MOSELLE | C50: 45 | D50: METZ | E50: 557439 | F50: METZ POMPIDOU | G50: 2.8 | H50: 41 | I50: 40 | J50: 35 | K50: 102 | L50: 86 | M50: 120 | N50: 49 | O50: 25 | P50: 23 | Q50: 112 | R50: 102 | S50: 103 | T50: 110 | U50: 136 | V50: 165 | W50: 62 | X50: 117
A51: 262 | B51: VOSGES | C51: 57 | D51: EPINAL | E51: 488561 | F51: REMIREMONT | G51: 7.0 | H51: 42 | I51: 4 | J51: 4 | K51: 57 | L51: 120 | M51: 89 | N51: 210 | O51: 158 | P51: 142 | Q51: 175 | R51: 106 | S51: 65 | T51: 233 | U51: 158 | V51: 156 | W51: 209 | X51: 122
A52: 262 | B52: BAS RHIN | C52: 5060 | D52: HAGUENAU | E52: 4079 | F52: SOULTZ SOUS FORETS | G52: 1.8 | H52: 43 | I52: 38 | J52: 84 | K52: 1 | L52: 34 | M52: 27 | N52: 90 | O52: 46 | P52: 46 | Q52: 83 | R52: 77 | S52: 84 | T52: 77 | U52: 234 | V52: 234 | W52: 74 | X52: 239
A53: 262 | B53: BAS RHIN | C53: 5006 | D53: STRASBOURG | E53: 4043 | F53: STRASBOURG HALLES | G53: 7.2 | H53: 44 | I53: 141 | J53: 182 | K53: 79 | L53: 26 | M53: 38 | N53: 23 | O53: 41 | P53: 67 | Q53: 20 | R53: 5 | S53: 10 | T53: 10 | U53: 134 | V53: 125 | W53: 213 | X53: 100
A54: 262 | B54: MOSELLE | C54: 42 | D54: MOSELLE EST | E54: 557250 | F54: CREUTZWALD | G54: 2.4 | H54: 45 | I54: 26 | J54: 21 | K54: 48 | L54: 176 | M54: 185 | N54: 145 | O54: 93 | P54: 131 | Q54: 22 | R54: 56 | S54: 44 | T54: 116 | U54: 98 | V54: 115 | W54: 9 | X54: 172
A55: 262 | B55: MEURTHE ET MOSELLE MEUSE | C55: 31 | D55: VERDUN | E55: 554413 | F55: LONGWY BAS | G55: 3.6 | H55: 46 | I55: 24 | J55: 23 | K55: 35 | L55: 87 | M55: 82 | N55: 108 | O55: 103 | P55: 74 | Q55: 189 | R55: 134 | S55: 117 | T55: 192 | U55: 85 | V55: 69 | W55: 51 | X55: 171
A56: 262 | B56: MOSELLE | C56: 42 | D56: MOSELLE EST | E56: 457583 | F56: SAINT AVOLD | G56: 7.1 | H56: 47 | I56: 69 | J56: 68 | K56: 69 | L56: 25 | M56: 20 | N56: 81 | O56: 88 | P56: 90 | Q56: 61 | R56: 62 | S56: 66 | T56: 66 | U56: 122 | V56: 134 | W56: 108 | X56: 98
A57: 262 | B57: MOSELLE | C57: 45 | D57: METZ | E57: 557434 | F57: MARLY | G57: 3.1 | H57: 48 | I57: 22 | J57: 21 | K57: 37 | L57: 131 | M57: 113 | N57: 193 | O57: 43 | P57: 32 | Q57: 174 | R57: 151 | S57: 129 | T57: 206 | U57: 161 | V57: 166 | W57: 174 | X57: 130
A58: 262 | B58: MEURTHE ET MOSELLE MEUSE | C58: 27 | D58: PONT A MOUSSON | E58: 554516 | F58: PAGNY SUR MOSELLE | G58: 2.8 | H58: 49 | I58: 61 | J58: 29 | K58: 169 | L58: 146 | M58: 124 | N58: 203 | O58: 48 | P58: 33 | Q58: 191 | R58: 59 | S58: 81 | T58: 41 | U58: 68 | V58: 39 | W58: 150 | X58: 167
A59: 262 | B59: MOSELLE | C59: 42 | D59: MOSELLE EST | E59: 457308 | F59: FORBACH CENTRALE | G59: 9.3 | H59: 50 | I59: 92 | J59: 93 | K59: 106 | L59: 20 | M59: 17 | N59: 46 | O59: 106 | P59: 118 | Q59: 65 | R59: 39 | S59: 42 | T59: 61 | U59: 100 | V59: 117 | W59: 33 | X59: 114
A60: 262 | B60: MARNE ARDENNES | C60: 11 | D60: REIMS | E60: 451350 | F60: REIMS CENTRE VILLE | G60: 6.7 | H60: 51 | I60: 150 | J60: 155 | K60: 128 | L60: 15 | M60: 18 | N60: 20 | O60: 205 | P60: 217 | Q60: 50 | R60: 27 | S60: 28 | T60: 45 | U60: 9 | V60: 15 | W60: 7 | X60: 11
A61: 262 | B61: MOSELLE | C61: 44 | D61: MOSELLE NORD | E61: 557303 | F61: FAMECK | G61: 2.3 | H61: 52 | I61: 46 | J61: 56 | K61: 39 | L61: 113 | M61: 199 | N61: 8 | O61: 78 | P61: 104 | Q61: 27 | R61: 179 | S61: 191 | T61: 103 | U61: 22 | V61: 50 | W61: 38 | X61: 13
A62: 262 | B62: MOSELLE | C62: 45 | D62: METZ | E62: 557441 | F62: METZ PLAPPEVILLE | G62: 2.0 | H62: 53 | I62: 166 | J62: 140 | K62: 184 | L62: 90 | M62: 107 | N62: 73 | O62: 1 | P62: 1 | Q62: 51 | R62: 129 | S62: 128 | T62: 131 | U62: 150 | V62: 187 | W62: 23 | X62: 142
A63: 262 | B63: VOSGES | C63: 55 | D63: SAINT DIE | E63: 588666 | F63: VAGNEY | G63: 3.3 | H63: 54 | I63: 15 | J63: 14 | K63: 45 | L63: 155 | M63: 112 | N63: 239 | O63: 33 | P63: 25 | Q63: 167 | R63: 204 | S63: 181 | T63: 237 | U63: 182 | V63: 200 | W63: 115 | X63: 161
A64: 262 | B64: MEURTHE ET MOSELLE MEUSE | C64: 26 | D64: NANCY | E64: 554356 | F64: JARVILLE LA MALGRANGE | G64: 4.3 | H64: 55 | I64: 143 | J64: 128 | K64: 139 | L64: 12 | M64: 9 | N64: 30 | O64: 148 | P64: 160 | Q64: 74 | R64: 35 | S64: 39 | T64: 39 | U64: 32 | V64: 42 | W64: 106 | X64: 21
A65: 262 | B65: MARNE ARDENNES | C65: 6 | D65: CHALONS EN CHAMPAGNE | E65: 551354 | F65: VERTUS | G65: 2.0 | H65: 56 | I65: 16 | J65: 25 | K65: 4 | L65: 174 | M65: 136 | N65: 236 | O65: 26 | P65: 20 | Q65: 135 | R65: 212 | S65: 213 | T65: 188 | U65: 157 | V65: 141 | W65: 130 | X65: 189
A66: 262 | B66: AUBE HAUTE MARNE | C66: 21 | D66: CHAUMONT | E66: 510590 | F66: CHAUMONT REPUBLIQUE | G66: 2.9 | H66: 57 | I66: 81 | J66: 77 | K66: 96 | L66: 159 | M66: 175 | N66: 113 | O66: 72 | P66: 78 | Q66: 52 | R66: 28 | S66: 21 | T66: 67 | U66: 75 | V66: 131 | W66: 28 | X66: 32
A67: 262 | B67: MEURTHE ET MOSELLE MEUSE | C67: 27 | D67: PONT A MOUSSON | E67: 554416 | F67: LUDRES | G67: 3.7 | H67: 58 | I67: 74 | J67: 78 | K67: 68 | L67: 114 | M67: 98 | N67: 170 | O67: 30 | P67: 18 | Q67: 187 | R67: 130 | S67: 99 | T67: 220 | U67: 67 | V67: 57 | W67: 179 | X67: 81
A68: 262 | B68: MOSELLE | C68: 45 | D68: METZ | E68: 457446 | F68: METZ SAINT LOUIS | G68: 5.4 | H68: 59 | I68: 110 | J68: 114 | K68: 90 | L68: 71 | M68: 86 | N68: 60 | O68: 68 | P68: 85 | Q68: 39 | R68: 66 | S68: 63 | T68: 104 | U68: 44 | V68: 45 | W68: 125 | X68: 44
A69: 262 | B69: MARNE ARDENNES | C69: 11 | D69: REIMS | E69: 551306 | F69: REIMS SAINT MARCEAUX | G69: 4.6 | H69: 60 | I69: 121 | J69: 182 | K69: 26 | L69: 7 | M69: 7 | N69: 22 | O69: 232 | P69: 240 | Q69: 24 | R69: 42 | S69: 45 | T69: 46 | U69: 14 | V69: 18 | W69: 145 | X69: 15
A70: 262 | B70: MARNE ARDENNES | C70: 6 | D70: CHALONS EN CHAMPAGNE | E70: 551103 | F70: FAGNIERES LECLERC | G70: 2.9 | H70: 61 | I70: 58 | J70: 78 | K70: 27 | L70: 206 | M70: 198 | N70: 182 | O70: 159 | P70: 180 | Q70: 48 | R70: 10 | S70: 5 | T70: 44 | U70: 77 | V70: 72 | W70: 40 | X70: 141
A71: 262 | B71: MOSELLE | C71: 44 | D71: MOSELLE NORD | E71: 457632 | F71: THIONVILLE CENTRALE | G71: 11.0 | H71: 62 | I71: 125 | J71: 155 | K71: 77 | L71: 27 | M71: 26 | N71: 66 | O71: 150 | P71: 173 | Q71: 46 | R71: 23 | S71: 17 | T71: 52 | U71: 54 | V71: 63 | W71: 105 | X71: 41
A72: 262 | B72: MOSELLE | C72: 42 | D72: MOSELLE EST | E72: 557210 | F72: CHATEAU SALINS | G72: 1.1 | H72: 63 | I72: 133 | J72: 182 | K72: 61 | L72: 119 | M72: 160 | N72: 48 | O72: 35 | P72: 30 | Q72: 133 | R72: 32 | S72: 35 | T72: 36 | U72: 48 | V72: 74 | W72: 5 | X72: 95
A73: 262 | B73: VOSGES | C73: 57 | D73: EPINAL | E73: 488706 | F73: VITTEL | G73: 2.8 | H73: 64 | I73: 41 | J73: 45 | K73: 43 | L73: 138 | M73: 131 | N73: 166 | O73: 86 | P73: 54 | Q73: 215 | R73: 93 | S73: 94 | T73: 96 | U73: 127 | V73: 206 | W73: 85 | X73: 30
A74: 262 | B74: MARNE ARDENNES | C74: 11 | D74: REIMS | E74: 451370 | F74: EPERNAY | G74: 8.4 | H74: 65 | I74: 59 | J74: 68 | K74: 41 | L74: 80 | M74: 74 | N74: 105 | O74: 126 | P74: 146 | Q74: 57 | R74: 112 | S74: 119 | T74: 99 | U74: 53 | V74: 70 | W74: 60 | X74: 43
A75: 264 | B75: MOSELLE | C75: 42 | D75: MOSELLE EST | E75: 557523 | F75: PHALSBOURG | G75: 2.1 | H75: 66 | I75: 67 | J75: 52 | K75: 105 | L75: 216 | M75: 227 | N75: 98 | O75: 39 | P75: 45 | Q75: 67 | R75: 40 | S75: 16 | T75: 190 | U75: 123 | V75: 95 | W75: 75 | X75: 194
A76: 264 | B76: BAS RHIN | C76: 5101 | D76: SELESTAT | E76: 4104 | F76: ERSTEIN | G76: 4.3 | H76: 67 | I76: 211 | J76: 182 | K76: 197 | L76: 5 | M76: 3 | N76: 51 | O76: 115 | P76: 128 | Q76: 72 | R76: 25 | S76: 9 | T76: 152 | U76: 70 | V76: 64 | W76: 141 | X76: 77
A77: 264 | B77: MARNE ARDENNES | C77: 6 | D77: CHALONS EN CHAMPAGNE | E77: 551110 | F77: CHALONS ROOSEVELT | G77: 4.1 | H77: 68 | I77: 19 | J77: 12 | K77: 71 | L77: 132 | M77: 143 | N77: 109 | O77: 225 | P77: 222 | Q77: 103 | R77: 46 | S77: 36 | T77: 102 | U77: 139 | V77: 167 | W77: 169 | X77: 74
A78: 264 | B78: MEURTHE ET MOSELLE MEUSE | C78: 26 | D78: NANCY | E78: 454481 | F78: NANCY PLACE DOMBASLE | G78: 7.5 | H78: 69 | I78: 214 | J78: 175 | K78: 206 | L78: 47 | M78: 95 | N78: 19 | O78: 13 | P78: 27 | Q78: 10 | R78: 159 | S78: 186 | T78: 58 | U78: 10 | V78: 11 | W78: 163 | X78: 12
A79: 264 | B79: BAS RHIN | C79: 5006 | D79: STRASBOURG | E79: 4047 | F79: STRASBOURG CRONENBOURG | G79: 4.5 | H79: 70 | I79: 80 | J79: 87 | K79: 76 | L79: 63 | M79: 58 | N79: 107 | O79: 105 | P79: 139 | Q79: 37 | R79: 92 | S79: 96 | T79: 73 | U79: 79 | V79: 58 | W79: 198 | X79: 101
A80: 264 | B80: MOSELLE | C80: 45 | D80: METZ | E80: 557105 | F80: ARS SUR MOSELLE | G80: 3.8 | H80: 71 | I80: 64 | J80: 36 | K80: 158 | L80: 70 | M80: 73 | N80: 72 | O80: 165 | P80: 177 | Q80: 70 | R80: 110 | S80: 120 | T80: 75 | U80: 39 | V80: 47 | W80: 70 | X80: 35
A81: 264 | B81: BAS RHIN | C81: 5060 | D81: HAGUENAU | E81: 4092 | F81: HOCHFELDEN | G81: 2.0 | H81: 72 | I81: 87 | J81: 93 | K81: 74 | L81: 84 | M81: 76 | N81: 115 | O81: 54 | P81: 35 | Q81: 198 | R81: 54 | S81: 49 | T81: 85 | U81: 202 | V81: 196 | W81: 180 | X81: 178
A82: 264 | B82: AUBE HAUTE MARNE | C82: 21 | D82: CHAUMONT | E82: 451154 | F82: JOINVILLE | G82: 1.8 | H82: 73 | I82: 29 | J82: 33 | K82: 53 | L82: 52 | M82: 62 | N82: 59 | O82: 240 | P82: 241 | Q82: 211 | R82: 22 | S82: 24 | T82: 24 | U82: 121 | V82: 197 | W82: 131 | X82: 26
A83: 264 | B83: MEURTHE ET MOSELLE MEUSE | C83: 27 | D83: PONT A MOUSSON | E83: 554506 | F83: CHALIGNY NEUVES MAISONS | G83: 3.6 | H83: 74 | I83: 180 | J83: 140 | K83: 199 | L83: 11 | M83: 12 | N83: 18 | O83: 219 | P83: 227 | Q83: 64 | R83: 7 | S83: 6 | T83: 27 | U83: 27 | V83: 43 | W83: 25 | X83: 24
A84: 264 | B84: MARNE ARDENNES | C84: 6 | D84: CHALONS EN CHAMPAGNE | E84: 551128 | F84: SAINTE MENEHOULD | G84: 3.4 | H84: 75 | I84: 45 | J84: 38 | K84: 94 | L84: 59 | M84: 25 | N84: 235 | O84: 183 | P84: 167 | Q84: 204 | R84: 67 | S84: 56 | T84: 140 | U84: 167 | V84: 140 | W84: 110 | X84: 225
A85: 264 | B85: HAUT RHIN | C85: 5130 | D85: COLMAR | E85: 4132 | F85: COLMAR MARAICHERS | G85: 3.7 | H85: 76 | I85: 65 | J85: 57 | K85: 93 | L85: 85 | M85: 88 | N85: 96 | O85: 81 | P85: 77 | Q85: 69 | R85: 82 | S85: 68 | T85: 155 | U85: 208 | V85: 202 | W85: 160 | X85: 195
A86: 264 | B86: BAS RHIN | C86: 5060 | D86: HAGUENAU | E86: 4071 | F86: WISSEMBOURG | G86: 6.6 | H86: 77 | I86: 31 | J86: 41 | K86: 25 | L86: 122 | M86: 119 | N86: 136 | O86: 107 | P86: 107 | Q86: 98 | R86: 105 | S86: 113 | T86: 92 | U86: 231 | V86: 231 | W86: 162 | X86: 211
A87: 264 | B87: BAS RHIN | C87: 5006 | D87: STRASBOURG | E87: 4006 | F87: STRASBOURG NEUDORF | G87: 8.0 | H87: 78 | I87: 10 | J87: 16 | K87: 11 | L87: 164 | M87: 169 | N87: 140 | O87: 207 | P87: 200 | Q87: 182 | R87: 97 | S87: 95 | T87: 107 | U87: 216 | V87: 214 | W87: 192 | X87: 187
A88: 264 | B88: VOSGES | C88: 55 | D88: SAINT DIE | E88: 588186 | F88: BRUYERES | G88: 3.6 | H88: 79 | I88: 37 | J88: 23 | K88: 114 | L88: 101 | M88: 93 | N88: 129 | O88: 145 | P88: 156 | Q88: 77 | R88: 194 | S88: 203 | T88: 109 | U88: 73 | V88: 97 | W88: 88 | X88: 38
A89: 264 | B89: MOSELLE | C89: 42 | D89: MOSELLE EST | E89: 557305 | F89: FAULQUEMONT | G89: 4.5 | H89: 80 | I89: 158 | J89: 104 | K89: 212 | L89: 24 | M89: 31 | N89: 32 | O89: 152 | P89: 176 | Q89: 47 | R89: 58 | S89: 64 | T89: 51 | U89: 20 | V89: 24 | W89: 127 | X89: 10
A90: 264 | B90: MARNE ARDENNES | C90: 2 | D90: CHARLEVILLE MEZIERES | E90: 408822 | F90: CHARLEVILLE MEZIERES | G90: 5.2 | H90: 81 | I90: 203 | J90: 182 | K90: 190 | L90: 157 | M90: 204 | N90: 28 | O90: 12 | P90: 29 | Q90: 7 | R90: 45 | S90: 58 | T90: 25 | U90: 35 | V90: 36 | W90: 217 | X90: 18
A91: 264 | B91: MOSELLE | C91: 44 | D91: MOSELLE NORD | E91: 557660 | F91: UCKANGE | G91: 1.7 | H91: 82 | I91: 237 | J91: 182 | K91: 233 | L91: 14 | M91: 22 | N91: 12 | O91: 157 | P91: 215 | Q91: 8 | R91: 6 | S91: 14 | T91: 5 | U91: 25 | V91: 84 | W91: 44 | X91: 8
A92: 264 | B92: MARNE ARDENNES | C92: 2 | D92: CHARLEVILLE MEZIERES | E92: 408840 | F92: RETHEL | G92: 4.2 | H92: 83 | I92: 146 | J92: 128 | K92: 157 | L92: 30 | M92: 21 | N92: 114 | O92: 139 | P92: 132 | Q92: 137 | R92: 65 | S92: 59 | T92: 119 | U92: 30 | V92: 22 | W92: 48 | X92: 66
A93: 264 | B93: MARNE ARDENNES | C93: 11 | D93: REIMS | E93: 451361 | F93: PIERRY LECLERC | G93: 1.9 | H93: 84 | I93: 115 | J93: 116 | K93: 113 | L93: 37 | M93: 32 | N93: 102 | O93: 53 | P93: 49 | Q93: 116 | R93: 193 | S93: 179 | T93: 221 | U93: 52 | V93: 32 | W93: 181 | X93: 93
A94: 264 | B94: BAS RHIN | C94: 5101 | D94: SELESTAT | E94: 4126 | F94: MUTZIG | G94: 2.6 | H94: 85 | I94: 153 | J94: 182 | K94: 108 | L94: 32 | M94: 19 | N94: 130 | O94: 10 | P94: 8 | Q94: 82 | R94: 153 | S94: 145 | T94: 178 | U94: 159 | V94: 154 | W94: 242 | X94: 96
A95: 264 | B95: MEURTHE ET MOSELLE MEUSE | C95: 31 | D95: VERDUN | E95: 454414 | F95: LONGWY HAUT | G95: 3.3 | H95: 86 | I95: 94 | J95: 84 | K95: 126 | L95: 61 | M95: 71 | N95: 62 | O95: 146 | P95: 137 | Q95: 153 | R95: 49 | S95: 52 | T95: 47 | U95: 144 | V95: 170 | W95: 124 | X95: 86
A96: 264 | B96: MOSELLE | C96: 42 | D96: MOSELLE EST | E96: 457617 | F96: SARREGUEMINES | G96: 7.1 | H96: 87 | I96: 130 | J96: 119 | K96: 146 | L96: 92 | M96: 100 | N96: 92 | O96: 89 | P96: 98 | Q96: 55 | R96: 74 | S96: 72 | T96: 100 | U96: 47 | V96: 48 | W96: 101 | X96: 54
A97: 30 | B97: AUBE HAUTE MARNE | C97: 21 | D97: CHAUMONT | E97: 410541 | F97: LANGRES | G97: 8.3 | H97: 88 | I97: 63 | J97: 65 | K97: 65 | L97: 78 | M97: 54 | N97: 173 | O97: 140 | P97: 123 | Q97: 162 | R97: 98 | S97: 89 | T97: 138 | U97: 168 | V97: 207 | W97: 67 | X97: 107
A98: 30 | B98: MOSELLE | C98: 45 | D98: METZ | E98: 557612 | F98: SAINTE MARIE AUX CHENES | G98: 3.6 | H98: 89 | I98: 27 | J98: 42 | K98: 8 | L98: 223 | M98: 205 | N98: 238 | O98: 44 | P98: 21 | Q98: 241 | R98: 189 | S98: 164 | T98: 230 | U98: 200 | V98: 188 | W98: 232 | X98: 164
A99: 30 | B99: MARNE ARDENNES | C99: 2 | D99: CHARLEVILLE MEZIERES | E99: 508802 | F99: CHARLEVILLE NEVERS | G99: 2.8 | H99: 90 | I99: 43 | J99: 57 | K99: 21 | L99: 191 | M99: 179 | N99: 200 | O99: 154 | P99: 138 | Q99: 199 | R99: 60 | S99: 48 | T99: 142 | U99: 163 | V99: 127 | W99: 173 | X99: 197
A100: 30 | B100: MOSELLE | C100: 42 | D100: MOSELLE EST | E100: 457543 | F100: PUTTELANGE AUX LACS | G100: 2.5 | H100: 91 | I100: 99 | J100: 96 | K100: 119 | L100: 103 | M100: 108 | N100: 99 | O100: 169 | P100: 203 | Q100: 28 | R100: 41 | S100: 46 | T100: 42 | U100: 86 | V100: 78 | W100: 189 | X100: 69
A101: 30 | B101: VOSGES | C101: 57 | D101: EPINAL | E101: 588716 | F101: XERTIGNY | G101: 2.6 | H101: 92 | I101: 32 | J101: 47 | K101: 10 | L101: 208 | M101: 186 | N101: 233 | O101: 113 | P101: 95 | Q101: 166 | R101: 78 | S101: 52 | T101: 208 | U101: 227 | V101: 205 | W101: 128 | X101: 246
A102: 30 | B102: MEURTHE ET MOSELLE MEUSE | C102: 27 | D102: PONT A MOUSSON | E102: 554376 | F102: LAXOU BOUFFLERS | G102: 2.9 | H102: 93 | I102: 236 | J102: 182 | K102: 231 | L102: 8 | M102: 24 | N102: 3 | O102: 204 | P102: 207 | Q102: 96 | R102: 52 | S102: 106 | T102: 6 | U102: 8 | V102: 19 | W102: 30 | X102: 5
A103: 30 | B103: MARNE ARDENNES | C103: 11 | D103: REIMS | E103: 451336 | F103: TINQUEUX | G103: 4.3 | H103: 94 | I103: 107 | J103: 87 | K103: 143 | L103: 98 | M103: 126 | N103: 56 | O103: 125 | P103: 150 | Q103: 45 | R103: 132 | S103: 170 | T103: 60 | U103: 29 | V103: 28 | W103: 93 | X103: 33
A104: 30 | B104: BAS RHIN | C104: 5006 | D104: STRASBOURG | E104: 4020 | F104: STRASBOURG ROBERTSAU | G104: 5.2 | H104: 95 | I104: 163 | J104: 182 | K104: 135 | L104: 162 | M104: 142 | N104: 202 | O104: 2 | P104: 2 | Q104: 132 | R104: 162 | S104: 143 | T104: 201 | U104: 207 | V104: 213 | W104: 55 | X104: 214
A105: 30 | B105: VOSGES | C105: 55 | D105: SAINT DIE | E105: 488326 | F105: GERARDMER | G105: 4.2 | H105: 96 | I105: 72 | J105: 49 | K105: 123 | L105: 148 | M105: 127 | N105: 198 | O105: 74 | P105: 56 | Q105: 170 | R105: 154 | S105: 139 | T105: 193 | U105: 115 | V105: 110 | W105: 121 | X105: 111
A106: 30 | B106: MEURTHE ET MOSELLE MEUSE | C106: 26 | D106: NANCY | E106: 554636 | F106: TOMBLAINE | G106: 2.7 | H106: 97 | I106: 62 | J106: 78 | K106: 33 | L106: 89 | M106: 94 | N106: 89 | O106: 99 | P106: 102 | Q106: 76 | R106: 136 | S106: 144 | T106: 127 | U106: 203 | V106: 223 | W106: 107 | X106: 151
A107: 30 | B107: VOSGES | C107: 57 | D107: EPINAL | E107: 588201 | F107: CHANTRAINE | G107: 3.6 | H107: 98 | I107: 85 | J107: 89 | K107: 84 | L107: 65 | M107: 60 | N107: 95 | O107: 56 | P107: 58 | Q107: 80 | R107: 143 | S107: 126 | T107: 198 | U107: 213 | V107: 218 | W107: 206 | X107: 155
A108: 30 | B108: MOSELLE | C108: 42 | D108: MOSELLE EST | E108: 557503 | F108: NEUNKIRCH | G108: 3.5 | H108: 99 | I108: 5 | J108: 9 | K108: 7 | L108: 200 | M108: 187 | N108: 224 | O108: 176 | P108: 149 | Q108: 223 | R108: 217 | S108: 199 | T108: 243 | U108: 199 | V108: 189 | W108: 139 | X108: 206
A109: 30 | B109: BAS RHIN | C109: 5006 | D109: STRASBOURG | E109: 4027 | F109: SCHILTIGHEIM CENTRE | G109: 3.2 | H109: 100 | I109: 168 | J109: 180 | K109: 155 | L109: 28 | M109: 28 | N109: 55 | O109: 45 | P109: 51 | Q109: 63 | R109: 80 | S109: 109 | T109: 34 | U109: 125 | V109: 128 | W109: 80 | X109: 132
A110: 30 | B110: HAUT RHIN | C110: 5130 | D110: COLMAR | E110: 4157 | F110: NEUF BRISACH | G110: 3.3 | H110: 101 | I110: 116 | J110: 82 | K110: 171 | L110: 184 | M110: 190 | N110: 126 | O110: 40 | P110: 39 | Q110: 89 | R110: 53 | S110: 41 | T110: 106 | U110: 165 | V110: 177 | W110: 116 | X110: 140
A111: 30 | B111: VOSGES | C111: 57 | D111: EPINAL | E111: 588396 | F111: LE VAL D AJOL | G111: 2.6 | H111: 102 | I111: 30 | J111: 39 | K111: 22 | L111: 171 | M111: 144 | N111: 216 | O111: 171 | P111: 163 | Q111: 156 | R111: 113 | S111: 85 | T111: 205 | U111: 184 | V111: 143 | W111: 234 | X111: 203
A112: 30 | B112: HAUT RHIN | C112: 5130 | D112: COLMAR | E112: 4143 | F112: MUNSTER | G112: 4.6 | H112: 103 | I112: 119 | J112: 158 | K112: 49 | L112: 69 | M112: 35 | N112: 223 | O112: 32 | P112: 16 | Q112: 227 | R112: 160 | S112: 127 | T112: 219 | U112: 154 | V112: 151 | W112: 97 | X112: 179
A113: 30 | B113: MARNE ARDENNES | C113: 11 | D113: REIMS | E113: 551314 | F113: FISMES | G113: 2.6 | H113: 104 | I113: 86 | J113: 125 | K113: 12 | L113: 41 | M113: 65 | N113: 31 | O113: 175 | P113: 190 | Q113: 58 | R113: 195 | S113: 202 | T113: 112 | U113: 41 | V113: 29 | W113: 164 | X113: 67
A114: 30 | B114: MARNE ARDENNES | C114: 6 | D114: CHALONS EN CHAMPAGNE | E114: 451381 | F114: SEZANNE | G114: 5.5 | H114: 105 | I114: 89 | J114: 108 | K114: 59 | L114: 135 | M114: 129 | N114: 160 | O114: 19 | P114: 15 | Q114: 165 | R114: 206 | S114: 194 | T114: 213 | U114: 129 | V114: 106 | W114: 183 | X114: 159
A115: 30 | B115: BAS RHIN | C115: 5060 | D115: HAGUENAU | E115: 4057 | F115: BISCHWILLER | G115: 7.0 | H115: 106 | I115: 79 | J115: 98 | K115: 47 | L115: 57 | M115: 34 | N115: 194 | O115: 127 | P115: 101 | Q115: 192 | R115: 95 | S115: 86 | T115: 121 | U115: 228 | V115: 229 | W115: 66 | X115: 234
A116: 30 | B116: MOSELLE | C116: 44 | D116: MOSELLE NORD | E116: 457306 | F116: FLORANGE | G116: 5.0 | H116: 107 | I116: 225 | J116: 182 | K116: 221 | L116: 18 | M116: 13 | N116: 47 | O116: 123 | P116: 152 | Q116: 42 | R116: 122 | S116: 141 | T116: 82 | U116: 11 | V116: 7 | W116: 64 | X116: 29
A117: 30 | B117: MEURTHE ET MOSELLE MEUSE | C117: 31 | D117: VERDUN | E117: 455151 | F117: BAR LE DUC | G117: 9.9 | H117: 108 | I117: 71 | J117: 76 | K117: 64 | L117: 115 | M117: 102 | N117: 169 | O117: 144 | P117: 127 | Q117: 173 | R117: 91 | S117: 70 | T117: 167 | U117: 172 | V117: 198 | W117: 58 | X117: 147
A118: 30 | B118: AUBE HAUTE MARNE | C118: 14 | D118: TROYES | E118: 510513 | F118: TROYES 1ER MAI | G118: 2.3 | H118: 109 | I118: 217 | J118: 170 | K118: 214 | L118: 76 | M118: 150 | N118: 15 | O118: 61 | P118: 97 | Q118: 15 | R118: 18 | S118: 20 | T118: 21 | U118: 87 | V118: 80 | W118: 87 | X118: 106
A119: 30 | B119: MOSELLE | C119: 44 | D119: MOSELLE NORD | E119: 557347 | F119: GUENANGE | G119: 4.7 | H119: 110 | I119: 173 | J119: 176 | K119: 164 | L119: 33 | M119: 23 | N119: 112 | O119: 121 | P119: 117 | Q119: 119 | R119: 69 | S119: 77 | T119: 72 | U119: 40 | V119: 56 | W119: 122 | X119: 27
A120: 30 | B120: MARNE ARDENNES | C120: 6 | D120: CHALONS EN CHAMPAGNE | E120: 451101 | F120: CHALONS VIVIERS | G120: 9.7 | H120: 111 | I120: 48 | J120: 62 | K120: 28 | L120: 129 | M120: 121 | N120: 162 | O120: 208 | P120: 210 | Q120: 104 | R120: 103 | S120: 104 | T120: 108 | U120: 114 | V120: 102 | W120: 133 | X120: 118
A121: 30 | B121: VOSGES | C121: 55 | D121: SAINT DIE | E121: 588551 | F121: RAMBERVILLERS | G121: 3.2 | H121: 112 | I121: 33 | J121: 29 | K121: 78 | L121: 213 | M121: 218 | N121: 155 | O121: 82 | P121: 44 | Q121: 235 | R121: 235 | S121: 226 | T121: 239 | U121: 90 | V121: 88 | W121: 134 | X121: 72
A122: 30 | B122: MOSELLE | C122: 44 | D122: MOSELLE NORD | E122: 557352 | F122: HETTANGE GRANDE | G122: 2.9 | H122: 113 | I122: 126 | J122: 139 | K122: 100 | L122: 46 | M122: 64 | N122: 43 | O122: 184 | P122: 193 | Q122: 78 | R122: 123 | S122: 140 | T122: 83 | U122: 31 | V122: 67 | W122: 8 | X122: 23
A123: 30 | B123: MEURTHE ET MOSELLE MEUSE | C123: 27 | D123: PONT A MOUSSON | E123: 554381 | F123: LAXOU ARISTIDE BRIAND | G123: 2.3 | H123: 114 | I123: 206 | J123: 182 | K123: 194 | L123: 38 | M123: 46 | N123: 50 | O123: 192 | P123: 219 | Q123: 21 | R123: 37 | S123: 47 | T123: 23 | U123: 16 | V123: 14 | W123: 82 | X123: 39
A124: 30 | B124: MARNE ARDENNES | C124: 11 | D124: REIMS | E124: 551369 | F124: DAMERY | G124: 1.9 | H124: 115 | I124: 170 | J124: 144 | K124: 185 | L124: 19 | M124: 33 | N124: 13 | O124: 108 | P124: 76 | Q124: 207 | R124: 197 | S124: 214 | T124: 63 | U124: 23 | V124: 21 | W124: 140 | X124: 22
A125: 30 | B125: MOSELLE | C125: 45 | D125: METZ | E125: 557444 | F125: SAINT JULIEN LES METZ | G125: 3.7 | H125: 116 | I125: 240 | J125: 182 | K125: 236 | L125: 36 | M125: 41 | N125: 44 | O125: 29 | P125: 40 | Q125: 33 | R125: 63 | S125: 105 | T125: 17 | U125: 64 | V125: 66 | W125: 35 | X125: 113
A126: 30 | B126: BAS RHIN | C126: 5006 | D126: STRASBOURG | E126: 4054 | F126: STRASBOURG MONTAGNE VERTE | G126: 2.6 | H126: 117 | I126: 159 | J126: 182 | K126: 129 | L126: 53 | M126: 80 | N126: 27 | O126: 69 | P126: 75 | Q126: 53 | R126: 48 | S126: 55 | T126: 33 | U126: 211 | V126: 224 | W126: 172 | X126: 144
A127: 30 | B127: MARNE ARDENNES | C127: 2 | D127: CHARLEVILLE MEZIERES | E127: 408862 | F127: REVIN | G127: 3.4 | H127: 118 | I127: 23 | J127: 29 | K127: 18 | L127: 212 | M127: 216 | N127: 146 | O127: 195 | P127: 201 | Q127: 107 | R127: 201 | S127: 215 | T127: 70 | U127: 118 | V127: 121 | W127: 231 | X127: 52
A128: 30 | B128: MOSELLE | C128: 44 | D128: MOSELLE NORD | E128: 457158 | F128: YUTZ | G128: 4.3 | H128: 119 | I128: 169 | J128: 182 | K128: 154 | L128: 73 | M128: 48 | N128: 171 | O128: 133 | P128: 113 | Q128: 177 | R128: 36 | S128: 31 | T128: 64 | U128: 89 | V128: 91 | W128: 24 | X128: 124
A129: 30 | B129: VOSGES | C129: 57 | D129: EPINAL | E129: 488281 | F129: ELOYES | G129: 3.2 | H129: 120 | I129: 111 | J129: 104 | K129: 116 | L129: 177 | M129: 157 | N129: 215 | O129: 28 | P129: 28 | Q129: 84 | R129: 152 | S129: 121 | T129: 222 | U129: 162 | V129: 155 | W129: 49 | X129: 210
A130: 30 | B130: MEURTHE ET MOSELLE MEUSE | C130: 31 | D130: VERDUN | E130: 554700 | F130: VILLERUPT | G130: 2.8 | H130: 121 | I130: 47 | J130: 57 | K130: 44 | L130: 83 | M130: 75 | N130: 111 | O130: 223 | P130: 224 | Q130: 85 | R130: 133 | S130: 131 | T130: 142 | U130: 152 | V130: 129 | W130: 114 | X130: 197
A131: 30 | B131: MEURTHE ET MOSELLE MEUSE | C131: 27 | D131: PONT A MOUSSON | E131: 554686 | F131: VEZELISE | G131: 1.9 | H131: 122 | I131: 97 | J131: 150 | K131: 17 | L131: 62 | M131: 91 | N131: 37 | O131: 85 | P131: 68 | Q131: 131 | R131: 200 | S131: 195 | T131: 158 | U131: 176 | V131: 163 | W131: 113 | X131: 213
A132: 30 | B132: MEURTHE ET MOSELLE MEUSE | C132: 26 | D132: NANCY | E132: 554486 | F132: NANCY POINT CENTRAL | G132: 2.8 | H132: 123 | I132: 194 | J132: 127 | K132: 219 | L132: 137 | M132: 176 | N132: 65 | O132: 8 | P132: 10 | Q132: 34 | R132: 125 | S132: 134 | T132: 94 | U132: 135 | V132: 160 | W132: 47 | X132: 135
A133: 30 | B133: VOSGES | C133: 55 | D133: SAINT DIE | E133: 588316 | F133: FRAIZE | G133: 3.6 | H133: 124 | I133: 138 | J133: 182 | K133: 73 | L133: 169 | M133: 161 | N133: 176 | O133: 116 | P133: 115 | Q133: 111 | R133: 55 | S133: 40 | T133: 149 | U133: 84 | V133: 85 | W133: 77 | X133: 84
A134: 30 | B134: MEURTHE ET MOSELLE MEUSE | C134: 27 | D134: PONT A MOUSSON | E134: 554257 | F134: DIEULOUARD | G134: 2.7 | H134: 125 | I134: 100 | J134: 100 | K134: 109 | L134: 117 | M134: 87 | N134: 207 | O134: 21 | P134: 13 | Q134: 231 | R134: 178 | S134: 154 | T134: 229 | U134: 246 | V134: 243 | W134: 208 | X134: 240
A135: 30 | B135: BAS RHIN | C135: 5006 | D135: STRASBOURG | E135: 4019 | F135: STRASBOURG ANVERS | G135: 4.7 | H135: 126 | I135: 200 | J135: 162 | K135: 200 | L135: 31 | M135: 37 | N135: 42 | O135: 92 | P135: 109 | Q135: 44 | R135: 94 | S135: 100 | T135: 76 | U135: 96 | V135: 87 | W135: 167 | X135: 91
A136: 110 | B136: MOSELLE | C136: 44 | D136: MOSELLE NORD | E136: 457192 | F136: CATTENOM | G136: 1.6 | H136: 127 | I136: 131 | J136: 182 | K136: 60 | L136: 100 | M136: 72 | N136: 177 | O136: 97 | P136: 114 | Q136: 49 | R136: 117 | S136: 101 | T136: 173 | U136: 126 | V136: 112 | W136: 184 | X136: 123
A137: 110 | B137: BAS RHIN | C137: 5101 | D137: SELESTAT | E137: 4007 | F137: ILLKIRCH CENTRE | G137: 6.6 | H137: 128 | I137: 192 | J137: 182 | K137: 179 | L137: 107 | M137: 83 | N137: 164 | O137: 104 | P137: 88 | Q137: 140 | R137: 15 | S137: 7 | T137: 62 | U137: 179 | V137: 173 | W137: 98 | X137: 207
A138: 110 | B138: BAS RHIN | C138: 5060 | D138: HAGUENAU | E138: 4085 | F138: INGWILLER | G138: 3.4 | H138: 129 | I138: 90 | J138: 62 | K138: 147 | L138: 133 | M138: 133 | N138: 143 | O138: 128 | P138: 110 | Q138: 169 | R138: 120 | S138: 116 | T138: 126 | U138: 201 | V138: 241 | W138: 29 | X138: 137
A139: 110 | B139: MARNE ARDENNES | C139: 2 | D139: CHARLEVILLE MEZIERES | E139: 508833 | F139: VILLERS SEMEUSE CORA | G139: 3.4 | H139: 130 | I139: 181 | J139: 182 | K139: 167 | L139: 194 | M139: 200 | N139: 104 | O139: 51 | P139: 59 | Q139: 54 | R139: 81 | S139: 93 | T139: 65 | U139: 50 | V139: 52 | W139: 159 | X139: 47
A140: 110 | B140: MOSELLE | C140: 45 | D140: METZ | E140: 557432 | F140: MAIZIERES LES METZ | G140: 2.8 | H140: 131 | I140: 185 | J140: 182 | K140: 172 | L140: 128 | M140: 165 | N140: 58 | O140: 98 | P140: 84 | Q140: 124 | R140: 173 | S140: 165 | T140: 185 | U140: 13 | V140: 9 | W140: 147 | X140: 70
A141: 110 | B141: MEURTHE ET MOSELLE MEUSE | C141: 26 | D141: NANCY | E141: 554266 | F141: DOMBASLE SUR MEURTHE | G141: 3.3 | H141: 132 | I141: 187 | J141: 182 | K141: 173 | L141: 236 | M141: 231 | N141: 212 | O141: 7 | P141: 6 | Q141: 148 | R141: 100 | S141: 112 | T141: 90 | U141: 108 | V141: 122 | W141: 16 | X141: 149
A142: 110 | B142: MOSELLE | C142: 42 | D142: MOSELLE EST | E142: 457258 | F142: DIEUZE | G142: 3.1 | H142: 133 | I142: 60 | J142: 71 | K142: 38 | L142: 150 | M142: 134 | N142: 184 | O142: 167 | P142: 141 | Q142: 233 | R142: 163 | S142: 155 | T142: 172 | U142: 219 | V142: 219 | W142: 185 | X142: 191
A143: 110 | B143: MOSELLE | C143: 45 | D143: METZ | E143: 557436 | F143: METZ CATHEDRALE | G143: 3.3 | H143: 134 | I143: 234 | J143: 182 | K143: 228 | L143: 54 | M143: 57 | N143: 82 | O143: 17 | P143: 14 | Q143: 136 | R143: 115 | S143: 114 | T143: 120 | U143: 148 | V143: 144 | W143: 207 | X143: 102
A144: 110 | B144: AUBE HAUTE MARNE | C144: 21 | D144: CHAUMONT | E144: 410566 | F144: CHAUMONT HOTEL DE VILLE | G144: 10.4 | H144: 135 | I144: 105 | J144: 103 | K144: 111 | L144: 165 | M144: 155 | N144: 161 | O144: 65 | P144: 52 | Q144: 151 | R144: 187 | S144: 174 | T144: 199 | U144: 198 | V144: 220 | W144: 71 | X144: 156
A145: 110 | B145: MEURTHE ET MOSELLE MEUSE | C145: 27 | D145: PONT A MOUSSON | E145: 554196 | F145: CHAMPIGNEULLES | G145: 2.4 | H145: 136 | I145: 202 | J145: 182 | K145: 187 | L145: 170 | M145: 151 | N145: 197 | O145: 76 | P145: 65 | Q145: 141 | R145: 75 | S145: 82 | T145: 81 | U145: 49 | V145: 25 | W145: 240 | X145: 83
A146: 110 | B146: MEURTHE ET MOSELLE MEUSE | C146: 31 | D146: VERDUN | E146: 455566 | F146: REVIGNY SUR ORNAIN | G146: 2.7 | H146: 137 | I146: 120 | J146: 89 | K146: 170 | L146: 105 | M146: 79 | N146: 153 | O146: 138 | P146: 124 | Q146: 157 | R146: 169 | S146: 147 | T146: 216 | U146: 133 | V146: 118 | W146: 26 | X146: 218
A147: 110 | B147: MEURTHE ET MOSELLE MEUSE | C147: 27 | D147: PONT A MOUSSON | E147: 454651 | F147: TOUL | G147: 10.0 | H147: 138 | I147: 196 | J147: 123 | K147: 225 | L147: 106 | M147: 118 | N147: 84 | O147: 142 | P147: 144 | Q147: 88 | R147: 88 | S147: 108 | T147: 53 | U147: 42 | V147: 34 | W147: 118 | X147: 64
A148: 110 | B148: AUBE HAUTE MARNE | C148: 14 | D148: TROYES | E148: 410550 | F148: BAR SUR AUBE | G148: 4.7 | H148: 139 | I148: 77 | J148: 43 | K148: 153 | L148: 190 | M148: 189 | N148: 139 | O148: 180 | P148: 154 | Q148: 224 | R148: 150 | S148: 160 | T148: 124 | U148: 138 | V148: 135 | W148: 59 | X148: 176
A149: 110 | B149: MOSELLE | C149: 42 | D149: MOSELLE EST | E149: 457614 | F149: SARREBOURG | G149: 8.8 | H149: 140 | I149: 124 | J149: 134 | K149: 97 | L149: 125 | M149: 110 | N149: 183 | O149: 156 | P149: 164 | Q149: 91 | R149: 73 | S149: 57 | T149: 169 | U149: 189 | V149: 183 | W149: 136 | X149: 190
A150: 110 | B150: VOSGES | C150: 57 | D150: EPINAL | E150: 588631 | F150: THAON LES VOSGES | G150: 4.0 | H150: 141 | I150: 134 | J150: 134 | K150: 122 | L150: 121 | M150: 117 | N150: 141 | O150: 216 | P150: 216 | Q150: 123 | R150: 57 | S150: 73 | T150: 30 | U150: 82 | V150: 90 | W150: 31 | X150: 89
A151: 110 | B151: MOSELLE | C151: 45 | D151: METZ | E151: 557440 | F151: METZ MOZART | G151: 2.7 | H151: 142 | I151: 156 | J151: 182 | K151: 124 | L151: 108 | M151: 92 | N151: 157 | O151: 109 | P151: 105 | Q151: 110 | R151: 96 | S151: 79 | T151: 168 | U151: 156 | V151: 152 | W151: 191 | X151: 131
A152: 110 | B152: MEURTHE ET MOSELLE MEUSE | C152: 31 | D152: VERDUN | E152: 555406 | F152: LIGNY EN BARROIS | G152: 2.5 | H152: 143 | I152: 88 | J152: 104 | K152: 54 | L152: 110 | M152: 114 | N152: 116 | O152: 60 | P152: 42 | Q152: 172 | R152: 245 | S152: 242 | T152: 225 | U152: 195 | V152: 184 | W152: 154 | X152: 205
A153: 110 | B153: MARNE ARDENNES | C153: 2 | D153: CHARLEVILLE MEZIERES | E153: 408806 | F153: SEDAN | G153: 7.7 | H153: 144 | I153: 84 | J153: 97 | K153: 66 | L153: 153 | M153: 148 | N153: 149 | O153: 172 | P153: 175 | Q153: 94 | R153: 208 | S153: 190 | T153: 236 | U153: 99 | V153: 103 | W153: 171 | X153: 78
A154: 110 | B154: MEURTHE ET MOSELLE MEUSE | C154: 27 | D154: PONT A MOUSSON | E154: 554357 | F154: JOEUF | G154: 3.2 | H154: 145 | I154: 109 | J154: 100 | K154: 117 | L154: 142 | M154: 163 | N154: 87 | O154: 149 | P154: 151 | Q154: 121 | R154: 186 | S154: 197 | T154: 93 | U154: 130 | V154: 147 | W154: 21 | X154: 174
A155: 110 | B155: MOSELLE | C155: 42 | D155: MOSELLE EST | E155: 457435 | F155: MERLEBACH | G155: 2.7 | H155: 146 | I155: 152 | J155: 176 | K155: 110 | L155: 156 | M155: 211 | N155: 26 | O155: 178 | P155: 205 | Q155: 31 | R155: 71 | S155: 98 | T155: 31 | U155: 88 | V155: 105 | W155: 13 | X155: 112
A156: 110 | B156: AUBE HAUTE MARNE | C156: 21 | D156: CHAUMONT | E156: 451156 | F156: SAINT DIZIER CENTRE | G156: 8.7 | H156: 147 | I156: 136 | J156: 123 | K156: 149 | L156: 127 | M156: 152 | N156: 75 | O156: 170 | P156: 162 | Q156: 152 | R156: 86 | S156: 87 | T156: 95 | U156: 143 | V156: 169 | W156: 91 | X156: 97
A157: 110 | B157: VOSGES | C157: 57 | D157: EPINAL | E157: 488286 | F157: EPINAL ARISTIDE BRIAND | G157: 8.2 | H157: 148 | I157: 182 | J157: 182 | K157: 168 | L157: 93 | M157: 106 | N157: 86 | O157: 34 | P157: 41 | Q157: 59 | R157: 158 | S157: 171 | T157: 111 | U157: 196 | V157: 208 | W157: 228 | X157: 110
A158: 110 | B158: MEURTHE ET MOSELLE MEUSE | C158: 26 | D158: NANCY | E158: 554116 | F158: BACCARAT | G158: 2.8 | H158: 149 | I158: 55 | J158: 71 | K158: 30 | L158: 77 | M158: 56 | N158: 165 | O158: 224 | P158: 208 | Q158: 225 | R158: 207 | S158: 209 | T158: 156 | U158: 204 | V158: 182 | W158: 175 | X158: 221
A159: 110 | B159: BAS RHIN | C159: 5101 | D159: SELESTAT | E159: 4121 | F159: SCHIRMECK | G159: 2.8 | H159: 150 | I159: 118 | J159: 182 | K159: 20 | L159: 74 | M159: 68 | N159: 127 | O159: 217 | P159: 218 | Q159: 106 | R159: 181 | S159: 157 | T159: 228 | U159: 62 | V159: 59 | W159: 42 | X159: 109
A160: 110 | B160: HAUT RHIN | C160: 5130 | D160: COLMAR | E160: 4144 | F160: RIBEAUVILLE | G160: 3.9 | H160: 151 | I160: 148 | J160: 180 | K160: 101 | L160: 95 | M160: 61 | N160: 208 | O160: 135 | P160: 106 | Q160: 195 | R160: 76 | S160: 60 | T160: 154 | U160: 233 | V160: 222 | W160: 203 | X160: 212
A161: 110 | B161: VOSGES | C161: 57 | D161: EPINAL | E161: 488451 | F161: MIRECOURT | G161: 4.0 | H161: 152 | I161: 56 | J161: 46 | K161: 89 | L161: 188 | M161: 183 | N161: 179 | O161: 179 | P161: 170 | Q161: 126 | R161: 223 | S161: 224 | T161: 175 | U161: 149 | V161: 107 | W161: 235 | X161: 165
A162: 110 | B162: BAS RHIN | C162: 5006 | D162: STRASBOURG | E162: 4039 | F162: REICHSTETT | G162: 1.6 | H162: 153 | I162: 160 | J162: 182 | K162: 130 | L162: 205 | M162: 195 | N162: 192 | O162: 90 | P162: 83 | Q162: 92 | R162: 70 | S162: 61 | T162: 136 | U162: 137 | V162: 175 | W162: 165 | X162: 55
A163: 110 | B163: HAUT RHIN | C163: 5130 | D163: COLMAR | E163: 4130 | F163: COLMAR REPUBLIQUE | G163: 6.4 | H163: 154 | I163: 186 | J163: 113 | K163: 234 | L163: 149 | M163: 132 | N163: 188 | O163: 129 | P163: 99 | Q163: 208 | R163: 47 | S163: 30 | T163: 128 | U163: 155 | V163: 159 | W163: 120 | X163: 162
A164: 110 | B164: MEURTHE ET MOSELLE MEUSE | C164: 31 | D164: VERDUN | E164: 554412 | F164: LONGUYON | G164: 2.9 | H164: 155 | I164: 96 | J164: 71 | K164: 142 | L164: 116 | M164: 130 | N164: 91 | O164: 203 | P164: 194 | Q164: 176 | R164: 175 | S164: 167 | T164: 196 | U164: 141 | V164: 133 | W164: 158 | X164: 143
A165: 110 | B165: VOSGES | C165: 55 | D165: SAINT DIE | E165: 488586 | F165: SAINT DIE | G165: 11.1 | H165: 156 | I165: 53 | J165: 52 | K165: 67 | L165: 193 | M165: 173 | N165: 221 | O165: 162 | P165: 140 | Q165: 219 | R165: 226 | S165: 222 | T165: 227 | U165: 192 | V165: 172 | W165: 193 | X165: 181
A166: 110 | B166: HAUT RHIN | C166: 5169 | D166: MULHOUSE | E166: 4178 | F166: SAINT LOUIS | G166: 6.4 | H166: 157 | I166: 175 | J166: 158 | K166: 182 | L166: 181 | M166: 180 | N166: 168 | O166: 50 | P166: 36 | Q166: 158 | R166: 104 | S166: 102 | T166: 114 | U166: 170 | V166: 120 | W166: 199 | X166: 222
A167: 110 | B167: MOSELLE | C167: 45 | D167: METZ | E167: 557712 | F167: WOIPPY | G167: 3.9 | H167: 158 | I167: 172 | J167: 122 | K167: 211 | L167: 94 | M167: 116 | N167: 67 | O167: 143 | P167: 174 | Q167: 26 | R167: 72 | S167: 80 | T167: 74 | U167: 190 | V167: 216 | W167: 103 | X167: 126
A168: 110 | B168: BAS RHIN | C168: 5060 | D168: HAGUENAU | E168: 4060 | F168: HAGUENAU HOUBLON | G168: 8.4 | H168: 159 | I168: 176 | J168: 162 | K168: 178 | L168: 173 | M168: 158 | N168: 196 | O168: 84 | P168: 57 | Q168: 185 | R168: 126 | S168: 110 | T168: 165 | U168: 111 | V168: 73 | W168: 148 | X168: 202
A169: 110 | B169: MEURTHE ET MOSELLE MEUSE | C169: 27 | D169: PONT A MOUSSON | E169: 454535 | F169: PONT A MOUSSON CENTRALE | G169: 5.4 | H169: 160 | I169: 226 | J169: 166 | K169: 232 | L169: 88 | M169: 128 | N169: 36 | O169: 111 | P169: 82 | Q169: 202 | R169: 119 | S169: 133 | T169: 88 | U169: 55 | V169: 76 | W169: 126 | X169: 28
A170: 110 | B170: BAS RHIN | C170: 5060 | D170: HAGUENAU | E170: 4030 | F170: BRUMATH | G170: 5.0 | H170: 161 | I170: 213 | J170: 182 | K170: 201 | L170: 143 | M170: 104 | N170: 232 | O170: 4 | P170: 3 | Q170: 214 | R170: 216 | S170: 207 | T170: 231 | U170: 218 | V170: 192 | W170: 227 | X170: 226
A171: 110 | B171: MEURTHE ET MOSELLE MEUSE | C171: 31 | D171: VERDUN | E171: 555624 | F171: STENAY | G171: 2.7 | H171: 162 | I171: 210 | J171: 182 | K171: 196 | L171: 44 | M171: 50 | N171: 57 | O171: 193 | P171: 197 | Q171: 114 | R171: 172 | S171: 188 | T171: 91 | U171: 24 | V171: 49 | W171: 3 | X171: 56
A172: 110 | B172: MEURTHE ET MOSELLE MEUSE | C172: 27 | D172: PONT A MOUSSON | E172: 554496 | F172: NANCY TROIS MAISONS | G172: 2.1 | H172: 163 | I172: 230 | J172: 182 | K172: 226 | L172: 141 | M172: 167 | N172: 85 | O172: 131 | P172: 122 | Q172: 125 | R172: 31 | S172: 43 | T172: 22 | U172: 113 | V172: 130 | W172: 41 | X172: 104
A173: 110 | B173: BAS RHIN | C173: 5101 | D173: SELESTAT | E173: 4107 | F173: VILLE | G173: 1.9 | H173: 164 | I173: 224 | J173: 182 | K173: 220 | L173: 55 | M173: 30 | N173: 206 | O173: 24 | P173: 19 | Q173: 134 | R173: 144 | S173: 130 | T173: 194 | U173: 232 | V173: 245 | W173: 90 | X173: 186
A174: 110 | B174: HAUT RHIN | C174: 5169 | D174: MULHOUSE | E174: 4180 | F174: RIEDISHEIM | G174: 3.3 | H174: 165 | I174: 123 | J174: 114 | K174: 137 | L174: 130 | M174: 101 | N174: 222 | O174: 200 | P174: 187 | Q174: 186 | R174: 101 | S174: 74 | T174: 203 | U174: 180 | V174: 132 | W174: 218 | X174: 227
A175: 110 | B175: MARNE ARDENNES | C175: 11 | D175: REIMS | E175: 551310 | F175: REIMS CHATILLONS | G175: 4.2 | H175: 166 | I175: 162 | J175: 182 | K175: 134 | L175: 154 | M175: 140 | N175: 181 | O175: 102 | P175: 86 | Q175: 149 | R175: 141 | S175: 158 | T175: 117 | U175: 145 | V175: 153 | W175: 201 | X175: 87
A176: 110 | B176: MOSELLE | C176: 45 | D176: METZ | E176: 557445 | F176: METZ SAINT LIVIER | G176: 2.7 | H176: 167 | I176: 14 | J176: 8 | K176: 70 | L176: 239 | M176: 228 | N176: 247 | O176: 199 | P176: 179 | Q176: 221 | R176: 243 | S176: 232 | T176: 247 | U176: 239 | V176: 211 | W176: 222 | X176: 243
A177: 110 | B177: MOSELLE | C177: 45 | D177: METZ | E177: 557433 | F177: MARANGE SILVANGE | G177: 2.8 | H177: 168 | I177: 201 | J177: 182 | K177: 186 | L177: 183 | M177: 170 | N177: 209 | O177: 94 | P177: 71 | Q177: 164 | R177: 89 | S177: 67 | T177: 174 | U177: 124 | V177: 150 | W177: 14 | X177: 150
A178: 110 | B178: MEURTHE ET MOSELLE MEUSE | C178: 26 | D178: NANCY | E178: 454426 | F178: LUNEVILLE CARNOT | G178: 7.7 | H178: 169 | I178: 219 | J178: 176 | K178: 213 | L178: 111 | M178: 123 | N178: 88 | O178: 64 | P178: 60 | Q178: 113 | R178: 202 | S178: 205 | T178: 122 | U178: 71 | V178: 79 | W178: 111 | X178: 58
A179: 110 | B179: MEURTHE ET MOSELLE MEUSE | C179: 27 | D179: PONT A MOUSSON | E179: 454696 | F179: VILLERS GENERAL LECLERC | G179: 4.7 | H179: 170 | I179: 164 | J179: 182 | K179: 145 | L179: 195 | M179: 188 | N179: 178 | O179: 36 | P179: 26 | Q179: 200 | R179: 149 | S179: 122 | T179: 217 | U179: 215 | V179: 193 | W179: 210 | X179: 215
A180: 110 | B180: MOSELLE | C180: 45 | D180: METZ | E180: 557559 | F180: REMILLY | G180: 3.3 | H180: 171 | I180: 149 | J180: 111 | K180: 189 | L180: 166 | M180: 153 | N180: 175 | O180: 141 | P180: 126 | Q180: 155 | R180: 188 | S180: 184 | T180: 163 | U180: 93 | V180: 157 | W180: 19 | X180: 59
A181: 110 | B181: BAS RHIN | C181: 5006 | D181: STRASBOURG | E181: 4029 | F181: SCHILTIGHEIM KLEBER | G181: 1.4 | H181: 172 | I181: 157 | J181: 182 | K181: 127 | L181: 233 | M181: 232 | N181: 150 | O181: 66 | P181: 61 | Q181: 116 | R181: 127 | S181: 200 | T181: 12 | U181: 147 | V181: 116 | W181: 205 | X181: 148
A182: 160 | B182: MOSELLE | C182: 44 | D182: MOSELLE NORD | E182: 557307 | F182: FONTOY | G182: 1.8 | H182: 173 | I182: 135 | J182: 150 | K182: 103 | L182: 161 | M182: 156 | N182: 152 | O182: 130 | P182: 80 | Q182: 242 | R182: 241 | S182: 230 | T182: 244 | U182: 45 | V182: 27 | W182: 43 | X182: 145
A183: 160 | B183: BAS RHIN | C183: 5060 | D183: HAGUENAU | E183: 4082 | F183: BOUXWILLER | G183: 2.8 | H183: 174 | I183: 95 | J183: 125 | K183: 36 | L183: 172 | M183: 174 | N183: 154 | O183: 242 | P183: 242 | Q183: 206 | R183: 61 | S183: 62 | T183: 86 | U183: 106 | V183: 114 | W183: 83 | X183: 103
A184: 160 | B184: MEURTHE ET MOSELLE MEUSE | C184: 26 | D184: NANCY | E184: 554296 | F184: ESSEY LES NANCY | G184: 3.5 | H184: 175 | I184: 78 | J184: 108 | K184: 24 | L184: 207 | M184: 208 | N184: 151 | O184: 188 | P184: 171 | Q184: 180 | R184: 184 | S184: 172 | T184: 197 | U184: 222 | V184: 248 | W184: 161 | X184: 94
A185: 160 | B185: AUBE HAUTE MARNE | C185: 14 | D185: TROYES | E185: 410571 | F185: ROMILLY SUR SEINE | G185: 4.9 | H185: 176 | I185: 103 | J185: 83 | K185: 144 | L185: 167 | M185: 184 | N185: 119 | O185: 235 | P185: 234 | Q185: 105 | R185: 116 | S185: 123 | T185: 101 | U185: 117 | V185: 123 | W185: 37 | X185: 133
A186: 160 | B186: VOSGES | C186: 55 | D186: SAINT DIE | E186: 588461 | F186: MOYENMOUTIER | G186: 4.9 | H186: 177 | I186: 127 | J186: 91 | K186: 183 | L186: 104 | M186: 47 | N186: 243 | O186: 174 | P186: 143 | Q186: 234 | R186: 198 | S186: 182 | T186: 209 | U186: 206 | V186: 210 | W186: 132 | X186: 180
A187: 160 | B187: AUBE HAUTE MARNE | C187: 14 | D187: TROYES | E187: 510523 | F187: LA CHAPELLE ST LUC | G187: 4.2 | H187: 178 | I187: 227 | J187: 182 | K187: 222 | L187: 187 | M187: 209 | N187: 77 | O187: 110 | P187: 129 | Q187: 62 | R187: 50 | S187: 69 | T187: 16 | U187: 132 | V187: 181 | W187: 81 | X187: 73
A188: 160 | B188: BAS RHIN | C188: 5101 | D188: SELESTAT | E188: 4109 | F188: MARCKOLSHEIM | G188: 2.7 | H188: 179 | I188: 129 | J188: 171 | K188: 56 | L188: 147 | M188: 135 | N188: 167 | O188: 210 | P188: 209 | Q188: 120 | R188: 138 | S188: 146 | T188: 137 | U188: 142 | V188: 111 | W188: 129 | X188: 199
A189: 160 | B189: BAS RHIN | C189: 5060 | D189: HAGUENAU | E189: 4041 | F189: HOERDT | G189: 1.6 | H189: 180 | I189: 114 | J189: 150 | K189: 42 | L189: 186 | M189: 146 | N189: 240 | O189: 112 | P189: 94 | Q189: 161 | R189: 222 | S189: 206 | T189: 242 | U189: 187 | V189: 126 | W189: 151 | X189: 247
A190: 160 | B190: VOSGES | C190: 57 | D190: EPINAL | E190: 588501 | F190: NEUFCHATEAU | G190: 5.7 | H190: 181 | I190: 117 | J190: 100 | K190: 148 | L190: 210 | M190: 203 | N190: 186 | O190: 147 | P190: 121 | Q190: 200 | R190: 139 | S190: 138 | T190: 161 | U190: 220 | V190: 201 | W190: 237 | X190: 201
A191: 160 | B191: MARNE ARDENNES | C191: 2 | D191: CHARLEVILLE MEZIERES | E191: 508819 | F191: MOUZON | G191: 1.8 | H191: 182 | I191: 82 | J191: 71 | K191: 104 | L191: 240 | M191: 247 | N191: 34 | O191: 119 | P191: 116 | Q191: 114 | R191: 239 | S191: 244 | T191: 86 | U191: 103 | V191: 180 | W191: 219 | X191: 16
A192: 160 | B192: MARNE ARDENNES | C192: 11 | D192: REIMS | E192: 551341 | F192: REIMS JEAN JAURES | G192: 2.6 | H192: 183 | I192: 184 | J192: 134 | K192: 203 | L192: 180 | M192: 206 | N192: 69 | O192: 71 | P192: 69 | Q192: 73 | R192: 227 | S192: 236 | T192: 141 | U192: 58 | V192: 60 | W192: 202 | X192: 34
A193: 160 | B193: AUBE HAUTE MARNE | C193: 14 | D193: TROYES | E193: 510520 | F193: SAINT ANDRE LES VERGERS | G193: 3.8 | H193: 184 | I193: 242 | J193: 182 | K193: 237 | L193: 139 | M193: 141 | N193: 134 | O193: 75 | P193: 63 | Q193: 145 | R193: 111 | S193: 115 | T193: 98 | U193: 116 | V193: 104 | W193: 39 | X193: 173
A194: 160 | B194: VOSGES | C194: 57 | D194: EPINAL | E194: 588206 | F194: CHARMES | G194: 2.6 | H194: 185 | I194: 144 | J194: 182 | K194: 86 | L194: 231 | M194: 229 | N194: 148 | O194: 95 | P194: 73 | Q194: 144 | R194: 168 | S194: 187 | T194: 78 | U194: 185 | V194: 221 | W194: 95 | X194: 108
A195: 160 | B195: MEURTHE ET MOSELLE MEUSE | C195: 31 | D195: VERDUN | E195: 455298 | F195: ETAIN | G195: 1.0 | H195: 186 | I195: 139 | J195: 120 | K195: 162 | L195: 214 | M195: 233 | N195: 63 | O195: 202 | P195: 225 | Q195: 17 | R195: 157 | S195: 198 | T195: 29 | U195: 83 | V195: 86 | W195: 123 | X195: 68
A196: 160 | B196: MEURTHE ET MOSELLE MEUSE | C196: 26 | D196: NANCY | E196: 554166 | F196: BLAINVILLE | G196: 2.5 | H196: 187 | I196: 191 | J196: 168 | K196: 188 | L196: 158 | M196: 172 | N196: 120 | O196: 190 | P196: 178 | Q196: 184 | R196: 90 | S196: 71 | T196: 159 | U196: 110 | V196: 158 | W196: 68 | X196: 53
A197: 160 | B197: BAS RHIN | C197: 5101 | D197: SELESTAT | E197: 4101 | F197: SELESTAT CENTRE | G197: 7.2 | H197: 188 | I197: 197 | J197: 168 | K197: 193 | L197: 66 | M197: 39 | N197: 180 | O197: 196 | P197: 184 | Q197: 171 | R197: 137 | S197: 163 | T197: 89 | U197: 140 | V197: 145 | W197: 56 | X197: 166
A198: 160 | B198: HAUT RHIN | C198: 5169 | D198: MULHOUSE | E198: 4194 | F198: THANN | G198: 9.6 | H198: 189 | I198: 73 | J198: 99 | K198: 31 | L198: 218 | M198: 207 | N198: 218 | O198: 201 | P198: 188 | Q198: 188 | R198: 221 | S198: 218 | T198: 226 | U198: 183 | V198: 176 | W198: 144 | X198: 184
A199: 160 | B199: BAS RHIN | C199: 5060 | D199: HAGUENAU | E199: 4087 | F199: SAVERNE | G199: 5.9 | H199: 190 | I199: 228 | J199: 140 | K199: 243 | L199: 82 | M199: 45 | N199: 214 | O199: 173 | P199: 166 | Q199: 154 | R199: 85 | S199: 75 | T199: 132 | U199: 153 | V199: 124 | W199: 104 | X199: 217
A200: 160 | B200: VOSGES | C200: 55 | D200: SAINT DIE | E200: 588386 | F200: LE THILLOT | G200: 2.0 | H200: 191 | I200: 106 | J200: 128 | K200: 46 | L200: 123 | M200: 90 | N200: 217 | O200: 186 | P200: 191 | Q200: 97 | R200: 230 | S200: 228 | T200: 214 | U200: 212 | V200: 238 | W200: 135 | X200: 127
A201: 160 | B201: BAS RHIN | C201: 5006 | D201: STRASBOURG | E201: 4023 | F201: STRASBOURG VOSGES | G201: 2.7 | H201: 192 | I201: 243 | J201: 182 | K201: 238 | L201: 189 | M201: 194 | N201: 121 | O201: 20 | P201: 22 | Q201: 90 | R201: 148 | S201: 136 | T201: 183 | U201: 178 | V201: 136 | W201: 195 | X201: 224
A202: 160 | B202: BAS RHIN | C202: 5006 | D202: STRASBOURG | E202: 4026 | F202: STRASBOURG DANUBE | G202: 3.3 | H202: 193 | I202: 220 | J202: 146 | K202: 230 | L202: 202 | M202: 212 | N202: 131 | O202: 42 | P202: 38 | Q202: 108 | R202: 109 | S202: 148 | T202: 38 | U202: 229 | V202: 235 | W202: 54 | X202: 233
A203: 160 | B203: HAUT RHIN | C203: 5169 | D203: MULHOUSE | E203: 4181 | F203: WITTELSHEIM | G203: 2.7 | H203: 194 | I203: 171 | J203: 176 | K203: 160 | L203: 235 | M203: 235 | N203: 157 | O203: 189 | P203: 168 | Q203: 221 | R203: 87 | S203: 91 | T203: 79 | U203: 69 | V203: 92 | W203: 32 | X203: 56
A204: 160 | B204: MARNE ARDENNES | C204: 2 | D204: CHARLEVILLE MEZIERES | E204: 508815 | F204: CARIGNAN | G204: 2.7 | H204: 195 | I204: 122 | J204: 134 | K204: 87 | L204: 144 | M204: 159 | N204: 97 | O204: 153 | P204: 169 | Q204: 71 | R204: 238 | S204: 238 | T204: 215 | U204: 177 | V204: 142 | W204: 216 | X204: 199
... 55 more rows

Sheet AG_FICHE
A1: Accueil
A2: BAROMETRE GRAND PUBLIC
A4: UNITE: | B4: Agence | E4: ETP perf : | F4: =VLOOKUP(A5,'RECAP AG'!$G$6:$CY$256,3,FALSE) -> 4.90
A5: =VLOOKUP(B5,LISTES!$C$6:$D$263,2,FALSE) -> 4189 | B5: ALTKIRCH
C6: Coefficient du critère | E6: Résultats | I6: Ecart au 1ier | K6: =IF(OR(A5=4017,A5=4022),"Rang estimé","Rang") -> Rang
E7: du 1ier | G7: de l'Agence | I7: Du mois
A9: RANG GRAND PUBLIC | K9: =VLOOKUP($A$5,'RECAP AG'!$G$6:$CY$256,104,FALSE) -> 
A11: SATISFACTION CLIENTS | C11: 20% | K11: =VLOOKUP($A$5,'RECAP AG'!$G$6:$CY$256,13,FALSE) -> 248
B12: NPS à froid (SAE) | C12: 10% | E12: =+'RECAP AG'!K4 -> 62 | G12: =VLOOKUP($A$5,'RECAP AG'!$G$6:$CY$256,5,FALSE) -> 0.0 | I12: =VLOOKUP($A$5,'RECAP AG'!$G$6:$CY$256,6,FALSE) -> 100% | K12: =VLOOKUP($A$5,'RECAP AG'!$G$6:$CY$256,7,FALSE) -> 182
B13: NPS à chaud (QHD) | C13: 10% | E13: =+'RECAP AG'!M4 -> 10% | G13: =VLOOKUP($A$5,'RECAP AG'!$G$6:$CY$256,8,FALSE) -> 15% | I13: =VLOOKUP($A$5,'RECAP AG'!$G$6:$CY$256,9,FALSE) -> 83% | K13: =VLOOKUP($A$5,'RECAP AG'!$G$6:$CY$256,10,FALSE) -> 247
A15: BANCARISATION | C15: 20% | K15: =VLOOKUP($A$5,'RECAP AG'!$G$6:$CY$256,36,FALSE) -> 230
B16: Ventes Nettes produits pondérés | C16: 10% | E16: ='RECAP AG'!X4 -> 57.9 | G16: =VLOOKUP($A$5,'RECAP AG'!$G$6:$CY$256,19,FALSE) -> -9.3 | I16: =VLOOKUP($A$5,'RECAP AG'!$G$6:$CY$256,20,FALSE) -> 90% | K16: =VLOOKUP($A$5,'RECAP AG'!$G$6:$CY$256,21,FALSE) -> 243
B17: Ventes sur client non détenteur de l’univers | C17: 4% | E17: ='RECAP AG'!AB4 -> 132.1 | G17: =VLOOKUP($A$5,'RECAP AG'!$G$6:$CY$256,23,FALSE) -> 14.5 | I17: =VLOOKUP($A$5,'RECAP AG'!$G$6:$CY$256,24,FALSE) -> 89% | K17: =VLOOKUP($A$5,'RECAP AG'!$G$6:$CY$256,25,FALSE) -> 230
A19: EPARGNE | C19: 20% | K19: =VLOOKUP($A$5,'RECAP AG'!$G$6:$CY$256,51,FALSE) -> 226
B20: Excédent Epargne hors DAV pondéré | C20: 14% | E20: ='RECAP AG'!AM4 -> 1242.3 | G20: =VLOOKUP($A$5,'RECAP AG'!$G$6:$CY$256,42,FALSE) -> 0.6 | I20: =VLOOKUP($A$5,'RECAP AG'!$G$6:$CY$256,43,FALSE) -> 23400% | K20: =VLOOKUP($A$5,'RECAP AG'!$G$6:$CY$256,44,FALSE) -> 0
B21: Ventes sur client non détenteur de l’univers | C21: 6% | E21: ='RECAP AG'!AQ4 -> 132.4 | G21: =VLOOKUP($A$5,'RECAP AG'!$G$6:$CY$256,46,FALSE) -> 0.0 | I21: =VLOOKUP($A$5,'RECAP AG'!$G$6:$CY$256,47,FALSE) -> 0% | K21: =VLOOKUP($A$5,'RECAP AG'!$G$6:$CY$256,48,FALSE) -> 46.98467064
A23: IARD PREVOYANCE | C23: 20% | K23: =VLOOKUP($A$5,'RECAP AG'!$G$6:$CY$256,85,FALSE) -> 0
B24: Ventes Nettes produits pondérés | C24: 14% | E24: ='RECAP AG'!BU4 -> 361.9 | G24: =VLOOKUP($A$5,'RECAP AG'!$G$6:$CY$256,76,FALSE) -> 1.0 | I24: =VLOOKUP($A$5,'RECAP AG'!$G$6:$CY$256,77,FALSE) -> 24400% | K24: =VLOOKUP($A$5,'RECAP AG'!$G$6:$CY$256,78,FALSE) -> 0
B25: Ventes sur client non détenteur de l’univers | C25: 6% | E25: ='RECAP AG'!BY4 -> 104.8 | G25: =VLOOKUP($A$5,'RECAP AG'!$G$6:$CY$256,80,FALSE) -> 0.0 | I25: =VLOOKUP($A$5,'RECAP AG'!$G$6:$CY$256,81,FALSE) -> 0% | K25: =VLOOKUP($A$5,'RECAP AG'!$G$6:$CY$256,82,FALSE) -> 0
A27: CREDITS | C27: 20% | K27: =VLOOKUP($A$5,'RECAP AG'!$G$6:$CY$256,70,FALSE) -> 241
B28: Engagements et ventes accessoires pondérés Immo | C28: 8% | E28: ='RECAP AG'!BB4 -> 154.7 | G28: =VLOOKUP($A$5,'RECAP AG'!$G$6:$CY$256,57,FALSE) -> 4.7 | I28: =VLOOKUP($A$5,'RECAP AG'!$G$6:$CY$256,58,FALSE) -> 93% | K28: =VLOOKUP($A$5,'RECAP AG'!$G$6:$CY$256,59,FALSE) -> 242
B29: Engagements et ventes accessoires pondérés Conso | C29: 6% | E29: ='RECAP AG'!BF4 -> 282.9 | G29: =VLOOKUP($A$5,'RECAP AG'!$G$6:$CY$256,61,FALSE) -> 0.8 | I29: =VLOOKUP($A$5,'RECAP AG'!$G$6:$CY$256,62,FALSE) -> 24500% | K29: =VLOOKUP($A$5,'RECAP AG'!$G$6:$CY$256,63,FALSE) -> 0
B30: Ventes sur client non détenteur de l’univers | C30: 6% | E30: ='RECAP AG'!BJ4 -> 71.4 | G30: =VLOOKUP($A$5,'RECAP AG'!$G$6:$CY$256,65,FALSE) -> 0.0 | I30: =VLOOKUP($A$5,'RECAP AG'!$G$6:$CY$256,66,FALSE) -> 0% | K30: =VLOOKUP($A$5,'RECAP AG'!$G$6:$CY$256,67,FALSE) -> -138

Sheet AG_TOTAL
B1: Accueil | H1: BAROMETRE BDD - AGENCES
H2: TOTAL GENERAL
H3: =ACCUEIL!F7 -> 2022-04-24
H7: TOTAL GENERAL | K7: Total Satisfaction Clients | N7: Total Bancarisation | Q7: Total Epargne | T7: Total IARD Prévoyance | W7: Total Crédits
I8: coef | J8: =M8+P8+S8+V8+Y8 -> 100% | L8: coef | M8: =AG_SATISFACTION!P8 -> 20% | O8: coef | P8: =AG_BANCA!R8 -> 20% | R8: coef | S8: =AG_EPARGNE!R8 -> 20% | U8: coef | V8: =AG_IARD!R8 -> 20% | X8: coef | Y8: =AG_CREDIT!V8 -> 20%
B9: Direction | C9: eds | D9: Territoire | E9: eds | F9: Agence | G9: ="ETP perf "&DATEMAJ!$C$28 -> ETP perf 24-avr | H9: Moyenne ecart au 1er | I9: % Ecart au 1er | J9: Rang CEGEE | K9: Moyenne ecart au 1er | L9: % Ecart au 1er | M9: Rang CEGEE | N9: Moyenne ecart au 1er | O9: % Ecart au 1er | P9: Rang CEGEE | Q9: Moyenne ecart au 1er | R9: % Ecart au 1er | S9: Rang CEGEE | T9: Moyenne ecart au 1er | U9: % Ecart au 1er | V9: Rang CEGEE | W9: Moyenne ecart au 1er | X9: % Ecart au 1er | Y9: Rang CEGEE
A10: 50 | B10: MOSELLE | C10: 44 | D10: MOSELLE NORD | E10: 557508 | F10: NILVANGE | G10: 1.8 | H10: 28% | I10: 0% | J10: 1 | K10: 54% | L10: 46% | M10: 113 | N10: 20% | O10: 20% | P10: 2 | Q10: 49% | R10: 19% | S10: 6 | T10: 15% | U10: 15% | V10: 2 | W10: 52% | X10: 39% | Y10: 3
A11: 50 | B11: MEURTHE ET MOSELLE MEUSE | C11: 26 | D11: NANCY | E11: 454171 | F11: BLAMONT | G11: 0.6 | H11: 32% | I11: 4% | J11: 2 | K11: 82% | L11: 74% | M11: 241 | N11: 0% | O11: 0% | P11: 1 | Q11: 53% | R11: 23% | S11: 14 | T11: 65% | U11: 65% | V11: 12 | W11: 13% | X11: 0% | Y11: 1
A12: 50 | B12: MOSELLE | C12: 42 | D12: MOSELLE EST | E12: 457163 | F12: BEHREN LES FORBACH | G12: 1.9 | H12: 39% | I12: 11% | J12: 3 | K12: 18% | L12: 10% | M12: 7 | N12: 45% | O12: 45% | P12: 3 | Q12: 54% | R12: 24% | S12: 16 | T12: 77% | U12: 77% | V12: 64 | W12: 54% | X12: 41% | Y12: 4
A13: 50 | B13: MEURTHE ET MOSELLE MEUSE | C13: 31 | D13: VERDUN | E13: 455676 | F13: VAUCOULEURS | G13: 0.2 | H13: 43% | I13: 14% | J13: 4 | K13: 62% | L13: 53% | M13: 142 | N13: 114% | O13: 114% | P13: 249 | Q13: 71% | R13: 41% | S13: 117 | T13: 0% | U13: 0% | V13: 1 | W13: 17% | X13: 4% | Y13: 2
A14: 50 | B14: MARNE ARDENNES | C14: 2 | D14: CHARLEVILLE MEZIERES | E14: 508820 | F14: VOUZIERS | G14: 2.9 | H14: 45% | I14: 17% | J14: 5 | K14: 20% | L14: 12% | M14: 12 | N14: 68% | O14: 68% | P14: 75 | Q14: 61% | R14: 31% | S14: 38 | T14: 44% | U14: 44% | V14: 3 | W14: 81% | X14: 68% | Y14: 78
A15: 50 | B15: MEURTHE ET MOSELLE MEUSE | C15: 26 | D15: NANCY | E15: 554601 | F15: SAINT MAX | G15: 3.8 | H15: 47% | I15: 18% | J15: 6 | K15: 20% | L15: 11% | M15: 8 | N15: 65% | O15: 65% | P15: 49 | Q15: 58% | R15: 28% | S15: 23 | T15: 70% | U15: 70% | V15: 30 | W15: 70% | X15: 58% | Y15: 18
A16: 50 | B16: MARNE ARDENNES | C16: 6 | D16: CHALONS EN CHAMPAGNE | E16: 551330 | F16: MONTMIRAIL | G16: 2.7 | H16: 49% | I16: 21% | J16: 7 | K16: 32% | L16: 23% | M16: 28 | N16: 57% | O16: 57% | P16: 16 | Q16: 66% | R16: 36% | S16: 77 | T16: 64% | U16: 64% | V16: 8 | W16: 79% | X16: 66% | Y16: 57
A17: 50 | B17: VOSGES | C17: 57 | D17: EPINAL | E17: 488288 | F17: EPINAL LEOPOLD BOURG | G17: 2.0 | H17: 50% | I17: 22% | J17: 8 | K17: 36% | L17: 28% | M17: 39 | N17: 60% | O17: 60% | P17: 23 | Q17: 54% | R17: 24% | S17: 15 | T17: 73% | U17: 73% | V17: 44 | W17: 77% | X17: 65% | Y17: 43
A18: 50 | B18: MOSELLE | C18: 45 | D18: METZ | E18: 457443 | F18: METZ REPUBLIQUE | G18: 3.7 | H18: 50% | I18: 22% | J18: 9 | K18: 20% | L18: 12% | M18: 11 | N18: 77% | O18: 77% | P18: 179 | Q18: 46% | R18: 16% | S18: 5 | T18: 67% | U18: 67% | V18: 19 | W18: 90% | X18: 78% | Y18: 210
A19: 50 | B19: MARNE ARDENNES | C19: 11 | D19: REIMS | E19: 551305 | F19: REIMS HIPPODROME | G19: 5.4 | H19: 51% | I19: 23% | J19: 10 | K19: 43% | L19: 35% | M19: 66 | N19: 64% | O19: 64% | P19: 42 | Q19: 52% | R19: 22% | S19: 11 | T19: 70% | U19: 70% | V19: 29 | W19: 74% | X19: 62% | Y19: 28
A20: 50 | B20: MARNE ARDENNES | C20: 11 | D20: REIMS | E20: 551349 | F20: REIMS SAINT REMI | G20: 2.9 | H20: 51% | I20: 23% | J20: 11 | K20: 46% | L20: 38% | M20: 75 | N20: 46% | O20: 46% | P20: 4 | Q20: 85% | R20: 55% | S20: 220 | T20: 68% | U20: 68% | V20: 21 | W20: 61% | X20: 49% | Y20: 6
A21: 50 | B21: MARNE ARDENNES | C21: 2 | D21: CHARLEVILLE MEZIERES | E21: 408801 | F21: CHARLEVILLE JEAN JAURES | G21: 8.8 | H21: 51% | I21: 23% | J21: 12 | K21: 34% | L21: 26% | M21: 35 | N21: 64% | O21: 64% | P21: 45 | Q21: 66% | R21: 36% | S21: 80 | T21: 71% | U21: 71% | V21: 33 | W21: 70% | X21: 58% | Y21: 17
A22: 50 | B22: BAS RHIN | C22: 5006 | D22: STRASBOURG | E22: 4038 | F22: OBERHAUSBERGEN | G22: 2.9 | H22: 51% | I22: 23% | J22: 13 | K22: 38% | L22: 30% | M22: 44 | N22: 60% | O22: 60% | P22: 22 | Q22: 42% | R22: 12% | S22: 3 | T22: 92% | U22: 92% | V22: 213 | W22: 74% | X22: 62% | Y22: 26
A23: 50 | B23: MOSELLE | C23: 45 | D23: METZ | E23: 457453 | F23: MONTIGNY LES METZ | G23: 6.9 | H23: 52% | I23: 24% | J23: 14 | K23: 20% | L23: 12% | M23: 9 | N23: 66% | O23: 66% | P23: 60 | Q23: 65% | R23: 35% | S23: 63 | T23: 81% | U23: 81% | V23: 107 | W23: 81% | X23: 68% | Y23: 80
A24: 50 | B24: MOSELLE | C24: 42 | D24: MOSELLE EST | E24: 457165 | F24: BITCHE | G24: 2.4 | H24: 53% | I24: 25% | J24: 15 | K24: 51% | L24: 43% | M24: 91 | N24: 50% | O24: 50% | P24: 6 | Q24: 66% | R24: 36% | S24: 73 | T24: 66% | U24: 66% | V24: 14 | W24: 82% | X24: 70% | Y24: 92
A25: 50 | B25: MARNE ARDENNES | C25: 11 | D25: REIMS | E25: 551365 | F25: DORMANS | G25: 2.6 | H25: 53% | I25: 25% | J25: 16 | K25: 44% | L25: 36% | M25: 68 | N25: 53% | O25: 53% | P25: 9 | Q25: 72% | R25: 42% | S25: 122 | T25: 74% | U25: 74% | V25: 51 | W25: 72% | X25: 60% | Y25: 21
A26: 50 | B26: BAS RHIN | C26: 5006 | D26: STRASBOURG | E26: 4010 | F26: STRASBOURG MEINAU | G26: 2.6 | H26: 53% | I26: 25% | J26: 17 | K26: 25% | L26: 17% | M26: 17 | N26: 74% | O26: 74% | P26: 145 | Q26: 64% | R26: 34% | S26: 57 | T26: 65% | U26: 65% | V26: 13 | W26: 89% | X26: 76% | Y26: 181
A27: 50 | B27: MEURTHE ET MOSELLE MEUSE | C27: 27 | D27: PONT A MOUSSON | E27: 554531 | F27: POMPEY | G27: 2.7 | H27: 54% | I27: 26% | J27: 18 | K27: 76% | L27: 68% | M27: 218 | N27: 54% | O27: 54% | P27: 10 | Q27: 63% | R27: 33% | S27: 49 | T27: 69% | U27: 69% | V27: 24 | W27: 58% | X27: 45% | Y27: 5
A28: 262 | B28: MARNE ARDENNES | C28: 6 | D28: CHALONS EN CHAMPAGNE | E28: 451115 | F28: MOURMELON LE GRAND | G28: 2.7 | H28: 54% | I28: 26% | J28: 19 | K28: 46% | L28: 38% | M28: 76 | N28: 63% | O28: 63% | P28: 35 | Q28: 61% | R28: 31% | S28: 37 | T28: 69% | U28: 69% | V28: 26 | W28: 80% | X28: 68% | Y28: 72
A29: 262 | B29: MOSELLE | C29: 44 | D29: MOSELLE NORD | E29: 457348 | F29: HAGONDANGE | G29: 7.7 | H29: 54% | I29: 26% | J29: 20 | K29: 35% | L29: 27% | M29: 36 | N29: 65% | O29: 65% | P29: 48 | Q29: 72% | R29: 42% | S29: 124 | T29: 73% | U29: 73% | V29: 43 | W29: 76% | X29: 63% | Y29: 37
A30: 262 | B30: MOSELLE | C30: 45 | D30: METZ | E30: 457574 | F30: ROMBAS | G30: 3.4 | H30: 54% | I30: 26% | J30: 21 | K30: 25% | L30: 17% | M30: 18 | N30: 68% | O30: 68% | P30: 79 | Q30: 68% | R30: 38% | S30: 91 | T30: 72% | U30: 72% | V30: 38 | W30: 88% | X30: 75% | Y30: 171
A31: 262 | B31: MOSELLE | C31: 45 | D31: METZ | E31: 557447 | F31: METZ SAINT MAXIMIN | G31: 1.9 | H31: 54% | I31: 26% | J31: 22 | K31: 59% | L31: 51% | M31: 128 | N31: 61% | O31: 61% | P31: 29 | Q31: 63% | R31: 33% | S31: 52 | T31: 58% | U31: 58% | V31: 4 | W31: 80% | X31: 67% | Y31: 63
A32: 262 | B32: BAS RHIN | C32: 5101 | D32: SELESTAT | E32: 4113 | F32: BARR | G32: 2.9 | H32: 54% | I32: 26% | J32: 23 | K32: 14% | L32: 5% | M32: 3 | N32: 58% | O32: 58% | P32: 17 | Q32: 88% | R32: 58% | S32: 229 | T32: 83% | U32: 83% | V32: 128 | W32: 79% | X32: 66% | Y32: 59
A33: 262 | B33: BAS RHIN | C33: 5006 | D33: STRASBOURG | E33: 4037 | F33: MUNDOLSHEIM | G33: 3.7 | H33: 54% | I33: 26% | J33: 24 | K33: 40% | L33: 31% | M33: 49 | N33: 65% | O33: 65% | P33: 51 | Q33: 72% | R33: 42% | S33: 120 | T33: 67% | U33: 67% | V33: 16 | W33: 78% | X33: 66% | Y33: 51
A34: 262 | B34: VOSGES | C34: 55 | D34: SAINT DIE | E34: 488246 | F34: CORNIMONT LA BRESSE | G34: 2.4 | H34: 54% | I34: 26% | J34: 25 | K34: 13% | L34: 4% | M34: 2 | N34: 66% | O34: 66% | P34: 56 | Q34: 75% | R34: 45% | S34: 155 | T34: 77% | U34: 77% | V34: 68 | W34: 92% | X34: 79% | Y34: 224
A35: 262 | B35: BAS RHIN | C35: 5060 | D35: HAGUENAU | E35: 4031 | F35: TRUCHTERSHEIM | G35: 2.4 | H35: 54% | I35: 26% | J35: 26 | K35: 8% | L35: 0% | M35: 1 | N35: 70% | O35: 70% | P35: 99 | Q35: 58% | R35: 28% | S35: 22 | T35: 97% | U35: 97% | V35: 237 | W35: 89% | X35: 77% | Y35: 197
A36: 262 | B36: MARNE ARDENNES | C36: 6 | D36: CHALONS EN CHAMPAGNE | E36: 451120 | F36: SARRY | G36: 2.3 | H36: 55% | I36: 27% | J36: 27 | K36: 26% | L36: 18% | M36: 20 | N36: 64% | O36: 64% | P36: 43 | Q36: 73% | R36: 43% | S36: 136 | T36: 82% | U36: 82% | V36: 118 | W36: 79% | X36: 67% | Y36: 60
A37: 262 | B37: MOSELLE | C37: 44 | D37: MOSELLE NORD | E37: 457350 | F37: HAYANGE | G37: 6.9 | H37: 55% | I37: 27% | J37: 28 | K37: 51% | L37: 43% | M37: 93 | N37: 58% | O37: 58% | P37: 21 | Q37: 66% | R37: 36% | S37: 79 | T37: 71% | U37: 71% | V37: 34 | W37: 78% | X37: 65% | Y37: 46
A38: 262 | B38: BAS RHIN | C38: 5006 | D38: STRASBOURG | E38: 4048 | F38: STRASBOURG KOENIGSHOFFEN | G38: 2.3 | H38: 55% | I38: 27% | J38: 29 | K38: 65% | L38: 57% | M38: 155 | N38: 56% | O38: 56% | P38: 13 | Q38: 59% | R38: 29% | S38: 27 | T38: 64% | U38: 64% | V38: 9 | W38: 81% | X38: 69% | Y38: 81
A39: 262 | B39: MEURTHE ET MOSELLE MEUSE | C39: 31 | D39: VERDUN | E39: 555679 | F39: VERDUN MAZEL | G39: 3.5 | H39: 55% | I39: 27% | J39: 30 | K39: 21% | L39: 13% | M39: 13 | N39: 67% | O39: 67% | P39: 67 | Q39: 71% | R39: 41% | S39: 118 | T39: 85% | U39: 85% | V39: 142 | W39: 81% | X39: 68% | Y39: 74
A40: 262 | B40: VOSGES | C40: 57 | D40: EPINAL | E40: 588336 | F40: GOLBEY | G40: 2.8 | H40: 55% | I40: 27% | J40: 31 | K40: 28% | L40: 20% | M40: 25 | N40: 70% | O40: 70% | P40: 97 | Q40: 57% | R40: 27% | S40: 18 | T40: 82% | U40: 82% | V40: 124 | W40: 88% | X40: 75% | Y40: 169
A41: 262 | B41: MARNE ARDENNES | C41: 2 | D41: CHARLEVILLE MEZIERES | E41: 508839 | F41: GIVET | G41: 3.4 | H41: 55% | I41: 27% | J41: 32 | K41: 40% | L41: 32% | M41: 51 | N41: 67% | O41: 67% | P41: 68 | Q41: 76% | R41: 46% | S41: 166 | T41: 67% | U41: 67% | V41: 17 | W41: 75% | X41: 63% | Y41: 33
A42: 262 | B42: MEURTHE ET MOSELLE MEUSE | C42: 26 | D42: NANCY | E42: 554476 | F42: NANCY ARTEM | G42: 2.8 | H42: 55% | I42: 27% | J42: 33 | K42: 41% | L42: 33% | M42: 57 | N42: 64% | O42: 64% | P42: 39 | Q42: 80% | R42: 50% | S42: 194 | T42: 79% | U42: 79% | V42: 84 | W42: 62% | X42: 49% | Y42: 7
A43: 262 | B43: MEURTHE ET MOSELLE MEUSE | C43: 31 | D43: VERDUN | E43: 455678 | F43: VERDUN CENTRALE | G43: 8.6 | H43: 55% | I43: 27% | J43: 34 | K43: 26% | L43: 18% | M43: 21 | N43: 67% | O43: 67% | P43: 64 | Q43: 79% | R43: 49% | S43: 187 | T43: 85% | U43: 85% | V43: 140 | W43: 70% | X43: 57% | Y43: 15
A44: 262 | B44: MOSELLE | C44: 42 | D44: MOSELLE EST | E44: 557668 | F44: VALMONT | G44: 2.5 | H44: 55% | I44: 27% | J44: 35 | K44: 37% | L44: 29% | M44: 42 | N44: 71% | O44: 71% | P44: 109 | Q44: 52% | R44: 22% | S44: 9 | T44: 82% | U44: 82% | V44: 121 | W44: 85% | X44: 72% | Y44: 128
A45: 262 | B45: MOSELLE | C45: 44 | D45: MOSELLE NORD | E45: 557113 | F45: AUDUN LE TICHE | G45: 2.2 | H45: 55% | I45: 27% | J45: 36 | K45: 54% | L45: 46% | M45: 112 | N45: 65% | O45: 65% | P45: 50 | Q45: 71% | R45: 41% | S45: 114 | T45: 68% | U45: 68% | V45: 20 | W45: 69% | X45: 57% | Y45: 12
A46: 262 | B46: AUBE HAUTE MARNE | C46: 14 | D46: TROYES | E46: 510570 | F46: NOGENT SUR SEINE | G46: 4.7 | H46: 55% | I46: 27% | J46: 37 | K46: 18% | L46: 10% | M46: 6 | N46: 68% | O46: 68% | P46: 81 | Q46: 82% | R46: 52% | S46: 206 | T46: 81% | U46: 81% | V46: 99 | W46: 79% | X46: 67% | Y46: 61
A47: 262 | B47: MARNE ARDENNES | C47: 11 | D47: REIMS | E47: 551340 | F47: BETHENY | G47: 2.8 | H47: 55% | I47: 27% | J47: 38 | K47: 40% | L47: 32% | M47: 52 | N47: 64% | O47: 64% | P47: 40 | Q47: 65% | R47: 35% | S47: 67 | T47: 88% | U47: 88% | V47: 180 | W47: 71% | X47: 58% | Y47: 19
A48: 262 | B48: MARNE ARDENNES | C48: 11 | D48: REIMS | E48: 451301 | F48: REIMS HOTEL DE VILLE | G48: 7.4 | H48: 56% | I48: 28% | J48: 39 | K48: 52% | L48: 44% | M48: 98 | N48: 69% | O48: 69% | P48: 91 | Q48: 67% | R48: 37% | S48: 83 | T48: 65% | U48: 65% | V48: 11 | W48: 76% | X48: 64% | Y48: 38
A49: 262 | B49: MARNE ARDENNES | C49: 11 | D49: REIMS | E49: 551367 | F49: AY CHAMPAGNE | G49: 2.7 | H49: 56% | I49: 28% | J49: 40 | K49: 34% | L49: 26% | M49: 34 | N49: 73% | O49: 73% | P49: 136 | Q49: 65% | R49: 35% | S49: 62 | T49: 79% | U49: 79% | V49: 83 | W49: 79% | X49: 66% | Y49: 56
A50: 262 | B50: MOSELLE | C50: 45 | D50: METZ | E50: 557439 | F50: METZ POMPIDOU | G50: 2.8 | H50: 56% | I50: 28% | J50: 41 | K50: 37% | L50: 28% | M50: 40 | N50: 69% | O50: 69% | P50: 86 | Q50: 58% | R50: 28% | S50: 25 | T50: 81% | U50: 81% | V50: 102 | W50: 86% | X50: 73% | Y50: 136
A51: 262 | B51: VOSGES | C51: 57 | D51: EPINAL | E51: 488561 | F51: REMIREMONT | G51: 7.0 | H51: 56% | I51: 28% | J51: 42 | K51: 16% | L51: 7% | M51: 4 | N51: 72% | O51: 72% | P51: 120 | Q51: 75% | R51: 45% | S51: 158 | T51: 81% | U51: 81% | V51: 106 | W51: 87% | X51: 74% | Y51: 158
A52: 262 | B52: BAS RHIN | C52: 5060 | D52: HAGUENAU | E52: 4079 | F52: SOULTZ SOUS FORETS | G52: 1.8 | H52: 56% | I52: 28% | J52: 43 | K52: 35% | L52: 27% | M52: 38 | N52: 62% | O52: 62% | P52: 34 | Q52: 62% | R52: 32% | S52: 46 | T52: 78% | U52: 78% | V52: 77 | W52: 92% | X52: 80% | Y52: 234
A53: 262 | B53: BAS RHIN | C53: 5006 | D53: STRASBOURG | E53: 4043 | F53: STRASBOURG HALLES | G53: 7.2 | H53: 56% | I53: 28% | J53: 44 | K53: 62% | L53: 53% | M53: 141 | N53: 61% | O53: 61% | P53: 26 | Q53: 62% | R53: 32% | S53: 41 | T53: 61% | U53: 61% | V53: 5 | W53: 85% | X53: 73% | Y53: 134
A54: 262 | B54: MOSELLE | C54: 42 | D54: MOSELLE EST | E54: 557250 | F54: CREUTZWALD | G54: 2.4 | H54: 56% | I54: 28% | J54: 45 | K54: 29% | L54: 20% | M54: 26 | N54: 77% | O54: 77% | P54: 176 | Q54: 68% | R54: 38% | S54: 93 | T54: 75% | U54: 75% | V54: 56 | W54: 83% | X54: 70% | Y54: 98
A55: 262 | B55: MEURTHE ET MOSELLE MEUSE | C55: 31 | D55: VERDUN | E55: 554413 | F55: LONGWY BAS | G55: 3.6 | H55: 56% | I55: 28% | J55: 46 | K55: 28% | L55: 20% | M55: 24 | N55: 69% | O55: 69% | P55: 87 | Q55: 70% | R55: 40% | S55: 103 | T55: 84% | U55: 84% | V55: 134 | W55: 82% | X55: 69% | Y55: 85
A56: 262 | B56: MOSELLE | C56: 42 | D56: MOSELLE EST | E56: 457583 | F56: SAINT AVOLD | G56: 7.1 | H56: 56% | I56: 28% | J56: 47 | K56: 44% | L56: 36% | M56: 69 | N56: 61% | O56: 61% | P56: 25 | Q56: 67% | R56: 37% | S56: 88 | T56: 76% | U56: 76% | V56: 62 | W56: 84% | X56: 72% | Y56: 122
A57: 262 | B57: MOSELLE | C57: 45 | D57: METZ | E57: 557434 | F57: MARLY | G57: 3.1 | H57: 57% | I57: 29% | J57: 48 | K57: 28% | L57: 20% | M57: 22 | N57: 73% | O57: 73% | P57: 131 | Q57: 62% | R57: 32% | S57: 43 | T57: 85% | U57: 85% | V57: 151 | W57: 87% | X57: 74% | Y57: 161
A58: 262 | B58: MEURTHE ET MOSELLE MEUSE | C58: 27 | D58: PONT A MOUSSON | E58: 554516 | F58: PAGNY SUR MOSELLE | G58: 2.8 | H58: 57% | I58: 29% | J58: 49 | K58: 42% | L58: 34% | M58: 61 | N58: 74% | O58: 74% | P58: 146 | Q58: 63% | R58: 33% | S58: 48 | T58: 76% | U58: 76% | V58: 59 | W58: 80% | X58: 68% | Y58: 68
A59: 262 | B59: MOSELLE | C59: 42 | D59: MOSELLE EST | E59: 457308 | F59: FORBACH CENTRALE | G59: 9.3 | H59: 57% | I59: 29% | J59: 50 | K59: 51% | L59: 43% | M59: 92 | N59: 58% | O59: 58% | P59: 20 | Q59: 70% | R59: 40% | S59: 106 | T59: 72% | U59: 72% | V59: 39 | W59: 83% | X59: 71% | Y59: 100
A60: 262 | B60: MARNE ARDENNES | C60: 11 | D60: REIMS | E60: 451350 | F60: REIMS CENTRE VILLE | G60: 6.7 | H60: 57% | I60: 29% | J60: 51 | K60: 63% | L60: 55% | M60: 150 | N60: 57% | O60: 57% | P60: 15 | Q60: 82% | R60: 52% | S60: 205 | T60: 70% | U60: 70% | V60: 27 | W60: 65% | X60: 53% | Y60: 9
A61: 262 | B61: MOSELLE | C61: 44 | D61: MOSELLE NORD | E61: 557303 | F61: FAMECK | G61: 2.3 | H61: 57% | I61: 29% | J61: 52 | K61: 39% | L61: 30% | M61: 46 | N61: 71% | O61: 71% | P61: 113 | Q61: 66% | R61: 36% | S61: 78 | T61: 88% | U61: 88% | V61: 179 | W61: 73% | X61: 61% | Y61: 22
A62: 262 | B62: MOSELLE | C62: 45 | D62: METZ | E62: 557441 | F62: METZ PLAPPEVILLE | G62: 2.0 | H62: 57% | I62: 29% | J62: 53 | K62: 68% | L62: 60% | M62: 166 | N62: 69% | O62: 69% | P62: 90 | Q62: 30% | R62: 0% | S62: 1 | T62: 83% | U62: 83% | V62: 129 | W62: 86% | X62: 74% | Y62: 150
A63: 262 | B63: VOSGES | C63: 55 | D63: SAINT DIE | E63: 588666 | F63: VAGNEY | G63: 3.3 | H63: 57% | I63: 29% | J63: 54 | K63: 24% | L63: 15% | M63: 15 | N63: 75% | O63: 75% | P63: 155 | Q63: 60% | R63: 30% | S63: 33 | T63: 90% | U63: 90% | V63: 204 | W63: 89% | X63: 76% | Y63: 182
A64: 262 | B64: MEURTHE ET MOSELLE MEUSE | C64: 26 | D64: NANCY | E64: 554356 | F64: JARVILLE LA MALGRANGE | G64: 4.3 | H64: 57% | I64: 29% | J64: 55 | K64: 62% | L64: 53% | M64: 143 | N64: 55% | O64: 55% | P64: 12 | Q64: 75% | R64: 45% | S64: 148 | T64: 71% | U64: 71% | V64: 35 | W64: 75% | X64: 63% | Y64: 32
A65: 262 | B65: MARNE ARDENNES | C65: 6 | D65: CHALONS EN CHAMPAGNE | E65: 551354 | F65: VERTUS | G65: 2.0 | H65: 57% | I65: 29% | J65: 56 | K65: 24% | L65: 16% | M65: 16 | N65: 76% | O65: 76% | P65: 174 | Q65: 59% | R65: 29% | S65: 26 | T65: 92% | U65: 92% | V65: 212 | W65: 87% | X65: 74% | Y65: 157
A66: 262 | B66: AUBE HAUTE MARNE | C66: 21 | D66: CHAUMONT | E66: 510590 | F66: CHAUMONT REPUBLIQUE | G66: 2.9 | H66: 58% | I66: 29% | J66: 57 | K66: 47% | L66: 39% | M66: 81 | N66: 75% | O66: 75% | P66: 159 | Q66: 66% | R66: 36% | S66: 72 | T66: 70% | U66: 70% | V66: 28 | W66: 81% | X66: 68% | Y66: 75
A67: 262 | B67: MEURTHE ET MOSELLE MEUSE | C67: 27 | D67: PONT A MOUSSON | E67: 554416 | F67: LUDRES | G67: 3.7 | H67: 58% | I67: 30% | J67: 58 | K67: 46% | L67: 37% | M67: 74 | N67: 71% | O67: 71% | P67: 114 | Q67: 59% | R67: 29% | S67: 30 | T67: 84% | U67: 84% | V67: 130 | W67: 80% | X67: 68% | Y67: 67
A68: 262 | B68: MOSELLE | C68: 45 | D68: METZ | E68: 457446 | F68: METZ SAINT LOUIS | G68: 5.4 | H68: 58% | I68: 30% | J68: 59 | K68: 53% | L68: 45% | M68: 110 | N68: 67% | O68: 67% | P68: 71 | Q68: 65% | R68: 35% | S68: 68 | T68: 77% | U68: 77% | V68: 66 | W68: 77% | X68: 65% | Y68: 44
A69: 262 | B69: MARNE ARDENNES | C69: 11 | D69: REIMS | E69: 551306 | F69: REIMS SAINT MARCEAUX | G69: 4.6 | H69: 58% | I69: 30% | J69: 60 | K69: 57% | L69: 49% | M69: 121 | N69: 52% | O69: 52% | P69: 7 | Q69: 90% | R69: 60% | S69: 232 | T69: 73% | U69: 73% | V69: 42 | W69: 70% | X69: 57% | Y69: 14
A70: 262 | B70: MARNE ARDENNES | C70: 6 | D70: CHALONS EN CHAMPAGNE | E70: 551103 | F70: FAGNIERES LECLERC | G70: 2.9 | H70: 58% | I70: 30% | J70: 61 | K70: 42% | L70: 33% | M70: 58 | N70: 79% | O70: 79% | P70: 206 | Q70: 75% | R70: 45% | S70: 159 | T70: 64% | U70: 64% | V70: 10 | W70: 81% | X70: 68% | Y70: 77
A71: 262 | B71: MOSELLE | C71: 44 | D71: MOSELLE NORD | E71: 457632 | F71: THIONVILLE CENTRALE | G71: 11.0 | H71: 58% | I71: 30% | J71: 62 | K71: 59% | L71: 50% | M71: 125 | N71: 61% | O71: 61% | P71: 27 | Q71: 75% | R71: 45% | S71: 150 | T71: 68% | U71: 68% | V71: 23 | W71: 79% | X71: 66% | Y71: 54
A72: 262 | B72: MOSELLE | C72: 42 | D72: MOSELLE EST | E72: 557210 | F72: CHATEAU SALINS | G72: 1.1 | H72: 58% | I72: 30% | J72: 63 | K72: 60% | L72: 52% | M72: 133 | N72: 72% | O72: 72% | P72: 119 | Q72: 61% | R72: 31% | S72: 35 | T72: 71% | U72: 71% | V72: 32 | W72: 78% | X72: 66% | Y72: 48
A73: 262 | B73: VOSGES | C73: 57 | D73: EPINAL | E73: 488706 | F73: VITTEL | G73: 2.8 | H73: 58% | I73: 30% | J73: 64 | K73: 37% | L73: 29% | M73: 41 | N73: 73% | O73: 73% | P73: 138 | Q73: 67% | R73: 37% | S73: 86 | T73: 80% | U73: 80% | V73: 93 | W73: 85% | X73: 72% | Y73: 127
A74: 262 | B74: MARNE ARDENNES | C74: 11 | D74: REIMS | E74: 451370 | F74: EPERNAY | G74: 8.4 | H74: 58% | I74: 30% | J74: 65 | K74: 42% | L74: 33% | M74: 59 | N74: 68% | O74: 68% | P74: 80 | Q74: 72% | R74: 42% | S74: 126 | T74: 82% | U74: 82% | V74: 112 | W74: 79% | X74: 66% | Y74: 53
A75: 264 | B75: MOSELLE | C75: 42 | D75: MOSELLE EST | E75: 557523 | F75: PHALSBOURG | G75: 2.1 | H75: 58% | I75: 30% | J75: 66 | K75: 44% | L75: 35% | M75: 67 | N75: 80% | O75: 80% | P75: 216 | Q75: 62% | R75: 31% | S75: 39 | T75: 72% | U75: 72% | V75: 40 | W75: 84% | X75: 72% | Y75: 123
A76: 264 | B76: BAS RHIN | C76: 5101 | D76: SELESTAT | E76: 4104 | F76: ERSTEIN | G76: 4.3 | H76: 58% | I76: 30% | J76: 67 | K76: 75% | L76: 66% | M76: 211 | N76: 48% | O76: 48% | P76: 5 | Q76: 71% | R76: 41% | S76: 115 | T76: 69% | U76: 69% | V76: 25 | W76: 80% | X76: 68% | Y76: 70
A77: 264 | B77: MARNE ARDENNES | C77: 6 | D77: CHALONS EN CHAMPAGNE | E77: 551110 | F77: CHALONS ROOSEVELT | G77: 4.1 | H77: 58% | I77: 30% | J77: 68 | K77: 26% | L77: 18% | M77: 19 | N77: 73% | O77: 73% | P77: 132 | Q77: 85% | R77: 55% | S77: 225 | T77: 73% | U77: 73% | V77: 46 | W77: 86% | X77: 73% | Y77: 139
A78: 264 | B78: MEURTHE ET MOSELLE MEUSE | C78: 26 | D78: NANCY | E78: 454481 | F78: NANCY PLACE DOMBASLE | G78: 7.5 | H78: 58% | I78: 30% | J78: 69 | K78: 75% | L78: 67% | M78: 214 | N78: 65% | O78: 65% | P78: 47 | Q78: 53% | R78: 23% | S78: 13 | T78: 85% | U78: 85% | V78: 159 | W78: 65% | X78: 53% | Y78: 10
A79: 264 | B79: BAS RHIN | C79: 5006 | D79: STRASBOURG | E79: 4047 | F79: STRASBOURG CRONENBOURG | G79: 4.5 | H79: 59% | I79: 30% | J79: 70 | K79: 47% | L79: 39% | M79: 80 | N79: 67% | O79: 67% | P79: 63 | Q79: 70% | R79: 40% | S79: 105 | T79: 79% | U79: 79% | V79: 92 | W79: 81% | X79: 68% | Y79: 79
A80: 264 | B80: MOSELLE | C80: 45 | D80: METZ | E80: 557105 | F80: ARS SUR MOSELLE | G80: 3.8 | H80: 59% | I80: 31% | J80: 71 | K80: 43% | L80: 35% | M80: 64 | N80: 67% | O80: 67% | P80: 70 | Q80: 76% | R80: 46% | S80: 165 | T80: 81% | U80: 81% | V80: 110 | W80: 77% | X80: 64% | Y80: 39
A81: 264 | B81: BAS RHIN | C81: 5060 | D81: HAGUENAU | E81: 4092 | F81: HOCHFELDEN | G81: 2.0 | H81: 59% | I81: 31% | J81: 72 | K81: 48% | L81: 40% | M81: 87 | N81: 69% | O81: 69% | P81: 84 | Q81: 64% | R81: 34% | S81: 54 | T81: 75% | U81: 75% | V81: 54 | W81: 90% | X81: 77% | Y81: 202
A82: 264 | B82: AUBE HAUTE MARNE | C82: 21 | D82: CHAUMONT | E82: 451154 | F82: JOINVILLE | G82: 1.8 | H82: 59% | I82: 31% | J82: 73 | K82: 32% | L82: 24% | M82: 29 | N82: 65% | O82: 65% | P82: 52 | Q82: 97% | R82: 67% | S82: 240 | T82: 68% | U82: 68% | V82: 22 | W82: 84% | X82: 72% | Y82: 121
A83: 264 | B83: MEURTHE ET MOSELLE MEUSE | C83: 27 | D83: PONT A MOUSSON | E83: 554506 | F83: CHALIGNY NEUVES MAISONS | G83: 3.6 | H83: 59% | I83: 31% | J83: 74 | K83: 70% | L83: 62% | M83: 180 | N83: 55% | O83: 55% | P83: 11 | Q83: 84% | R83: 54% | S83: 219 | T83: 64% | U83: 64% | V83: 7 | W83: 74% | X83: 62% | Y83: 27
A84: 264 | B84: MARNE ARDENNES | C84: 6 | D84: CHALONS EN CHAMPAGNE | E84: 551128 | F84: SAINTE MENEHOULD | G84: 3.4 | H84: 59% | I84: 31% | J84: 75 | K84: 38% | L84: 30% | M84: 45 | N84: 66% | O84: 66% | P84: 59 | Q84: 78% | R84: 48% | S84: 183 | T84: 77% | U84: 77% | V84: 67 | W84: 87% | X84: 75% | Y84: 167
A85: 264 | B85: HAUT RHIN | C85: 5130 | D85: COLMAR | E85: 4132 | F85: COLMAR MARAICHERS | G85: 3.7 | H85: 59% | I85: 31% | J85: 76 | K85: 43% | L85: 35% | M85: 65 | N85: 69% | O85: 69% | P85: 85 | Q85: 66% | R85: 36% | S85: 81 | T85: 79% | U85: 79% | V85: 82 | W85: 90% | X85: 78% | Y85: 208
A86: 264 | B86: BAS RHIN | C86: 5060 | D86: HAGUENAU | E86: 4071 | F86: WISSEMBOURG | G86: 6.6 | H86: 59% | I86: 31% | J86: 77 | K86: 33% | L86: 25% | M86: 31 | N86: 72% | O86: 72% | P86: 122 | Q86: 70% | R86: 40% | S86: 107 | T86: 81% | U86: 81% | V86: 105 | W86: 92% | X86: 80% | Y86: 231
A87: 264 | B87: BAS RHIN | C87: 5006 | D87: STRASBOURG | E87: 4006 | F87: STRASBOURG NEUDORF | G87: 8.0 | H87: 59% | I87: 31% | J87: 78 | K87: 20% | L87: 12% | M87: 10 | N87: 75% | O87: 75% | P87: 164 | Q87: 82% | R87: 52% | S87: 207 | T87: 80% | U87: 80% | V87: 97 | W87: 91% | X87: 78% | Y87: 216
A88: 264 | B88: VOSGES | C88: 55 | D88: SAINT DIE | E88: 588186 | F88: BRUYERES | G88: 3.6 | H88: 59% | I88: 31% | J88: 79 | K88: 35% | L88: 27% | M88: 37 | N88: 70% | O88: 70% | P88: 101 | Q88: 74% | R88: 44% | S88: 145 | T88: 89% | U88: 89% | V88: 194 | W88: 80% | X88: 68% | Y88: 73
A89: 264 | B89: MOSELLE | C89: 42 | D89: MOSELLE EST | E89: 557305 | F89: FAULQUEMONT | G89: 4.5 | H89: 59% | I89: 31% | J89: 80 | K89: 66% | L89: 58% | M89: 158 | N89: 61% | O89: 61% | P89: 24 | Q89: 75% | R89: 45% | S89: 152 | T89: 75% | U89: 75% | V89: 58 | W89: 71% | X89: 59% | Y89: 20
A90: 264 | B90: MARNE ARDENNES | C90: 2 | D90: CHARLEVILLE MEZIERES | E90: 408822 | F90: CHARLEVILLE MEZIERES | G90: 5.2 | H90: 60% | I90: 31% | J90: 81 | K90: 73% | L90: 65% | M90: 203 | N90: 75% | O90: 75% | P90: 157 | Q90: 52% | R90: 22% | S90: 12 | T90: 73% | U90: 73% | V90: 45 | W90: 75% | X90: 63% | Y90: 35
A91: 264 | B91: MOSELLE | C91: 44 | D91: MOSELLE NORD | E91: 557660 | F91: UCKANGE | G91: 1.7 | H91: 60% | I91: 32% | J91: 82 | K91: 80% | L91: 72% | M91: 237 | N91: 56% | O91: 56% | P91: 14 | Q91: 75% | R91: 45% | S91: 157 | T91: 63% | U91: 63% | V91: 6 | W91: 74% | X91: 61% | Y91: 25
A92: 264 | B92: MARNE ARDENNES | C92: 2 | D92: CHARLEVILLE MEZIERES | E92: 408840 | F92: RETHEL | G92: 4.2 | H92: 60% | I92: 32% | J92: 83 | K92: 63% | L92: 55% | M92: 146 | N92: 62% | O92: 62% | P92: 30 | Q92: 73% | R92: 43% | S92: 139 | T92: 77% | U92: 77% | V92: 65 | W92: 75% | X92: 62% | Y92: 30
A93: 264 | B93: MARNE ARDENNES | C93: 11 | D93: REIMS | E93: 451361 | F93: PIERRY LECLERC | G93: 1.9 | H93: 60% | I93: 32% | J93: 84 | K93: 56% | L93: 47% | M93: 115 | N93: 63% | O93: 63% | P93: 37 | Q93: 64% | R93: 34% | S93: 53 | T93: 89% | U93: 89% | V93: 193 | W93: 78% | X93: 66% | Y93: 52
A94: 264 | B94: BAS RHIN | C94: 5101 | D94: SELESTAT | E94: 4126 | F94: MUTZIG | G94: 2.6 | H94: 60% | I94: 32% | J94: 85 | K94: 64% | L94: 56% | M94: 153 | N94: 62% | O94: 62% | P94: 32 | Q94: 52% | R94: 22% | S94: 10 | T94: 85% | U94: 85% | V94: 153 | W94: 87% | X94: 74% | Y94: 159
A95: 264 | B95: MEURTHE ET MOSELLE MEUSE | C95: 31 | D95: VERDUN | E95: 454414 | F95: LONGWY HAUT | G95: 3.3 | H95: 60% | I95: 32% | J95: 86 | K95: 51% | L95: 43% | M95: 94 | N95: 66% | O95: 66% | P95: 61 | Q95: 74% | R95: 44% | S95: 146 | T95: 73% | U95: 73% | V95: 49 | W95: 86% | X95: 73% | Y95: 144
A96: 264 | B96: MOSELLE | C96: 42 | D96: MOSELLE EST | E96: 457617 | F96: SARREGUEMINES | G96: 7.1 | H96: 60% | I96: 32% | J96: 87 | K96: 59% | L96: 51% | M96: 130 | N96: 69% | O96: 69% | P96: 92 | Q96: 68% | R96: 38% | S96: 89 | T96: 78% | U96: 78% | V96: 74 | W96: 78% | X96: 65% | Y96: 47
A97: 30 | B97: AUBE HAUTE MARNE | C97: 21 | D97: CHAUMONT | E97: 410541 | F97: LANGRES | G97: 8.3 | H97: 60% | I97: 32% | J97: 88 | K97: 43% | L97: 35% | M97: 63 | N97: 68% | O97: 68% | P97: 78 | Q97: 73% | R97: 43% | S97: 140 | T97: 80% | U97: 80% | V97: 98 | W97: 88% | X97: 75% | Y97: 168
A98: 30 | B98: MOSELLE | C98: 45 | D98: METZ | E98: 557612 | F98: SAINTE MARIE AUX CHENES | G98: 3.6 | H98: 60% | I98: 32% | J98: 89 | K98: 31% | L98: 23% | M98: 27 | N98: 82% | O98: 82% | P98: 223 | Q98: 62% | R98: 32% | S98: 44 | T98: 88% | U98: 88% | V98: 189 | W98: 90% | X98: 77% | Y98: 200
A99: 30 | B99: MARNE ARDENNES | C99: 2 | D99: CHARLEVILLE MEZIERES | E99: 508802 | F99: CHARLEVILLE NEVERS | G99: 2.8 | H99: 60% | I99: 32% | J99: 90 | K99: 37% | L99: 29% | M99: 43 | N99: 77% | O99: 77% | P99: 191 | Q99: 75% | R99: 45% | S99: 154 | T99: 76% | U99: 76% | V99: 60 | W99: 87% | X99: 75% | Y99: 163
A100: 30 | B100: MOSELLE | C100: 42 | D100: MOSELLE EST | E100: 457543 | F100: PUTTELANGE AUX LACS | G100: 2.5 | H100: 60% | I100: 32% | J100: 91 | K100: 52% | L100: 44% | M100: 99 | N100: 70% | O100: 70% | P100: 103 | Q100: 77% | R100: 47% | S100: 169 | T100: 73% | U100: 73% | V100: 41 | W100: 82% | X100: 69% | Y100: 86
A101: 30 | B101: VOSGES | C101: 57 | D101: EPINAL | E101: 588716 | F101: XERTIGNY | G101: 2.6 | H101: 60% | I101: 32% | J101: 92 | K101: 33% | L101: 25% | M101: 32 | N101: 79% | O101: 79% | P101: 208 | Q101: 71% | R101: 41% | S101: 113 | T101: 78% | U101: 78% | V101: 78 | W101: 92% | X101: 79% | Y101: 227
A102: 30 | B102: MEURTHE ET MOSELLE MEUSE | C102: 27 | D102: PONT A MOUSSON | E102: 554376 | F102: LAXOU BOUFFLERS | G102: 2.9 | H102: 60% | I102: 32% | J102: 93 | K102: 80% | L102: 72% | M102: 236 | N102: 53% | O102: 53% | P102: 8 | Q102: 81% | R102: 51% | S102: 204 | T102: 74% | U102: 74% | V102: 52 | W102: 65% | X102: 53% | Y102: 8
A103: 30 | B103: MARNE ARDENNES | C103: 11 | D103: REIMS | E103: 451336 | F103: TINQUEUX | G103: 4.3 | H103: 60% | I103: 32% | J103: 94 | K103: 53% | L103: 45% | M103: 107 | N103: 70% | O103: 70% | P103: 98 | Q103: 72% | R103: 42% | S103: 125 | T103: 84% | U103: 84% | V103: 132 | W103: 75% | X103: 62% | Y103: 29
A104: 30 | B104: BAS RHIN | C104: 5006 | D104: STRASBOURG | E104: 4020 | F104: STRASBOURG ROBERTSAU | G104: 5.2 | H104: 61% | I104: 32% | J104: 95 | K104: 67% | L104: 59% | M104: 163 | N104: 75% | O104: 75% | P104: 162 | Q104: 36% | R104: 6% | S104: 2 | T104: 86% | U104: 86% | V104: 162 | W104: 90% | X104: 78% | Y104: 207
A105: 30 | B105: VOSGES | C105: 55 | D105: SAINT DIE | E105: 488326 | F105: GERARDMER | G105: 4.2 | H105: 61% | I105: 32% | J105: 96 | K105: 45% | L105: 36% | M105: 72 | N105: 74% | O105: 74% | P105: 148 | Q105: 66% | R105: 36% | S105: 74 | T105: 85% | U105: 85% | V105: 154 | W105: 84% | X105: 71% | Y105: 115
A106: 30 | B106: MEURTHE ET MOSELLE MEUSE | C106: 26 | D106: NANCY | E106: 554636 | F106: TOMBLAINE | G106: 2.7 | H106: 61% | I106: 33% | J106: 97 | K106: 42% | L106: 34% | M106: 62 | N106: 69% | O106: 69% | P106: 89 | Q106: 69% | R106: 39% | S106: 99 | T106: 84% | U106: 84% | V106: 136 | W106: 90% | X106: 77% | Y106: 203
A107: 30 | B107: VOSGES | C107: 57 | D107: EPINAL | E107: 588201 | F107: CHANTRAINE | G107: 3.6 | H107: 61% | I107: 33% | J107: 98 | K107: 48% | L107: 40% | M107: 85 | N107: 67% | O107: 67% | P107: 65 | Q107: 64% | R107: 34% | S107: 56 | T107: 85% | U107: 85% | V107: 143 | W107: 91% | X107: 78% | Y107: 213
A108: 30 | B108: MOSELLE | C108: 42 | D108: MOSELLE EST | E108: 557503 | F108: NEUNKIRCH | G108: 3.5 | H108: 61% | I108: 33% | J108: 99 | K108: 16% | L108: 8% | M108: 5 | N108: 79% | O108: 79% | P108: 200 | Q108: 77% | R108: 47% | S108: 176 | T108: 93% | U108: 93% | V108: 217 | W108: 90% | X108: 77% | Y108: 199
A109: 30 | B109: BAS RHIN | C109: 5006 | D109: STRASBOURG | E109: 4027 | F109: SCHILTIGHEIM CENTRE | G109: 3.2 | H109: 61% | I109: 33% | J109: 100 | K109: 68% | L109: 60% | M109: 168 | N109: 61% | O109: 61% | P109: 28 | Q109: 62% | R109: 32% | S109: 45 | T109: 78% | U109: 78% | V109: 80 | W109: 85% | X109: 72% | Y109: 125
A110: 30 | B110: HAUT RHIN | C110: 5130 | D110: COLMAR | E110: 4157 | F110: NEUF BRISACH | G110: 3.3 | H110: 61% | I110: 33% | J110: 101 | K110: 56% | L110: 47% | M110: 116 | N110: 77% | O110: 77% | P110: 184 | Q110: 62% | R110: 32% | S110: 40 | T110: 74% | U110: 74% | V110: 53 | W110: 87% | X110: 75% | Y110: 165
A111: 30 | B111: VOSGES | C111: 57 | D111: EPINAL | E111: 588396 | F111: LE VAL D AJOL | G111: 2.6 | H111: 61% | I111: 33% | J111: 102 | K111: 32% | L111: 24% | M111: 30 | N111: 76% | O111: 76% | P111: 171 | Q111: 77% | R111: 47% | S111: 171 | T111: 82% | U111: 82% | V111: 113 | W111: 89% | X111: 76% | Y111: 184
A112: 30 | B112: HAUT RHIN | C112: 5130 | D112: COLMAR | E112: 4143 | F112: MUNSTER | G112: 4.6 | H112: 61% | I112: 33% | J112: 103 | K112: 57% | L112: 48% | M112: 119 | N112: 67% | O112: 67% | P112: 69 | Q112: 60% | R112: 30% | S112: 32 | T112: 86% | U112: 86% | V112: 160 | W112: 87% | X112: 74% | Y112: 154
A113: 30 | B113: MARNE ARDENNES | C113: 11 | D113: REIMS | E113: 551314 | F113: FISMES | G113: 2.6 | H113: 61% | I113: 33% | J113: 104 | K113: 48% | L113: 40% | M113: 86 | N113: 64% | O113: 64% | P113: 41 | Q113: 77% | R113: 47% | S113: 175 | T113: 89% | U113: 89% | V113: 195 | W113: 77% | X113: 65% | Y113: 41
A114: 30 | B114: MARNE ARDENNES | C114: 6 | D114: CHALONS EN CHAMPAGNE | E114: 451381 | F114: SEZANNE | G114: 5.5 | H114: 61% | I114: 33% | J114: 105 | K114: 50% | L114: 41% | M114: 89 | N114: 73% | O114: 73% | P114: 135 | Q114: 57% | R114: 27% | S114: 19 | T114: 91% | U114: 91% | V114: 206 | W114: 85% | X114: 73% | Y114: 129
A115: 30 | B115: BAS RHIN | C115: 5060 | D115: HAGUENAU | E115: 4057 | F115: BISCHWILLER | G115: 7.0 | H115: 61% | I115: 33% | J115: 106 | K115: 47% | L115: 38% | M115: 79 | N115: 66% | O115: 66% | P115: 57 | Q115: 72% | R115: 42% | S115: 127 | T115: 80% | U115: 80% | V115: 95 | W115: 92% | X115: 79% | Y115: 228
A116: 30 | B116: MOSELLE | C116: 44 | D116: MOSELLE NORD | E116: 457306 | F116: FLORANGE | G116: 5.0 | H116: 61% | I116: 33% | J116: 107 | K116: 79% | L116: 70% | M116: 225 | N116: 58% | O116: 58% | P116: 18 | Q116: 72% | R116: 42% | S116: 123 | T116: 82% | U116: 82% | V116: 122 | W116: 66% | X116: 53% | Y116: 11
A117: 30 | B117: MEURTHE ET MOSELLE MEUSE | C117: 31 | D117: VERDUN | E117: 455151 | F117: BAR LE DUC | G117: 9.9 | H117: 61% | I117: 33% | J117: 108 | K117: 45% | L117: 36% | M117: 71 | N117: 71% | O117: 71% | P117: 115 | Q117: 74% | R117: 44% | S117: 144 | T117: 79% | U117: 79% | V117: 91 | W117: 88% | X117: 75% | Y117: 172
A118: 30 | B118: AUBE HAUTE MARNE | C118: 14 | D118: TROYES | E118: 510513 | F118: TROYES 1ER MAI | G118: 2.3 | H118: 61% | I118: 33% | J118: 109 | K118: 76% | L118: 68% | M118: 217 | N118: 68% | O118: 68% | P118: 76 | Q118: 65% | R118: 34% | S118: 61 | T118: 67% | U118: 67% | V118: 18 | W118: 82% | X118: 69% | Y118: 87
A119: 30 | B119: MOSELLE | C119: 44 | D119: MOSELLE NORD | E119: 557347 | F119: GUENANGE | G119: 4.7 | H119: 61% | I119: 33% | J119: 110 | K119: 70% | L119: 61% | M119: 173 | N119: 62% | O119: 62% | P119: 33 | Q119: 72% | R119: 42% | S119: 121 | T119: 77% | U119: 77% | V119: 69 | W119: 77% | X119: 64% | Y119: 40
A120: 30 | B120: MARNE ARDENNES | C120: 6 | D120: CHALONS EN CHAMPAGNE | E120: 451101 | F120: CHALONS VIVIERS | G120: 9.7 | H120: 61% | I120: 33% | J120: 111 | K120: 39% | L120: 31% | M120: 48 | N120: 73% | O120: 73% | P120: 129 | Q120: 82% | R120: 52% | S120: 208 | T120: 81% | U120: 81% | V120: 103 | W120: 84% | X120: 71% | Y120: 114
A121: 30 | B121: VOSGES | C121: 55 | D121: SAINT DIE | E121: 588551 | F121: RAMBERVILLERS | G121: 3.2 | H121: 62% | I121: 33% | J121: 112 | K121: 33% | L121: 25% | M121: 33 | N121: 80% | O121: 80% | P121: 213 | Q121: 66% | R121: 36% | S121: 82 | T121: 97% | U121: 97% | V121: 235 | W121: 82% | X121: 69% | Y121: 90
A122: 30 | B122: MOSELLE | C122: 44 | D122: MOSELLE NORD | E122: 557352 | F122: HETTANGE GRANDE | G122: 2.9 | H122: 62% | I122: 34% | J122: 113 | K122: 59% | L122: 50% | M122: 126 | N122: 64% | O122: 64% | P122: 46 | Q122: 79% | R122: 49% | S122: 184 | T122: 82% | U122: 82% | V122: 123 | W122: 75% | X122: 62% | Y122: 31
A123: 30 | B123: MEURTHE ET MOSELLE MEUSE | C123: 27 | D123: PONT A MOUSSON | E123: 554381 | F123: LAXOU ARISTIDE BRIAND | G123: 2.3 | H123: 62% | I123: 34% | J123: 114 | K123: 74% | L123: 66% | M123: 206 | N123: 63% | O123: 63% | P123: 38 | Q123: 80% | R123: 50% | S123: 192 | T123: 72% | U123: 72% | V123: 37 | W123: 70% | X123: 58% | Y123: 16
A124: 30 | B124: MARNE ARDENNES | C124: 11 | D124: REIMS | E124: 551369 | F124: DAMERY | G124: 1.9 | H124: 62% | I124: 34% | J124: 115 | K124: 69% | L124: 61% | M124: 170 | N124: 58% | O124: 58% | P124: 19 | Q124: 70% | R124: 40% | S124: 108 | T124: 89% | U124: 89% | V124: 197 | W124: 73% | X124: 61% | Y124: 23
A125: 30 | B125: MOSELLE | C125: 45 | D125: METZ | E125: 557444 | F125: SAINT JULIEN LES METZ | G125: 3.7 | H125: 62% | I125: 34% | J125: 116 | K125: 82% | L125: 74% | M125: 240 | N125: 63% | O125: 63% | P125: 36 | Q125: 59% | R125: 29% | S125: 29 | T125: 76% | U125: 76% | V125: 63 | W125: 80% | X125: 67% | Y125: 64
A126: 30 | B126: BAS RHIN | C126: 5006 | D126: STRASBOURG | E126: 4054 | F126: STRASBOURG MONTAGNE VERTE | G126: 2.6 | H126: 62% | I126: 34% | J126: 117 | K126: 66% | L126: 58% | M126: 159 | N126: 65% | O126: 65% | P126: 53 | Q126: 66% | R126: 35% | S126: 69 | T126: 73% | U126: 73% | V126: 48 | W126: 90% | X126: 78% | Y126: 211
A127: 30 | B127: MARNE ARDENNES | C127: 2 | D127: CHARLEVILLE MEZIERES | E127: 408862 | F127: REVIN | G127: 3.4 | H127: 62% | I127: 34% | J127: 118 | K127: 28% | L127: 20% | M127: 23 | N127: 80% | O127: 80% | P127: 212 | Q127: 80% | R127: 50% | S127: 195 | T127: 90% | U127: 90% | V127: 201 | W127: 84% | X127: 71% | Y127: 118
A128: 30 | B128: MOSELLE | C128: 44 | D128: MOSELLE NORD | E128: 457158 | F128: YUTZ | G128: 4.3 | H128: 62% | I128: 34% | J128: 119 | K128: 69% | L128: 60% | M128: 169 | N128: 68% | O128: 68% | P128: 73 | Q128: 73% | R128: 42% | S128: 133 | T128: 72% | U128: 72% | V128: 36 | W128: 82% | X128: 69% | Y128: 89
A129: 30 | B129: VOSGES | C129: 57 | D129: EPINAL | E129: 488281 | F129: ELOYES | G129: 3.2 | H129: 62% | I129: 34% | J129: 120 | K129: 54% | L129: 46% | M129: 111 | N129: 77% | O129: 77% | P129: 177 | Q129: 59% | R129: 29% | S129: 28 | T129: 85% | U129: 85% | V129: 152 | W129: 87% | X129: 75% | Y129: 162
A130: 30 | B130: MEURTHE ET MOSELLE MEUSE | C130: 31 | D130: VERDUN | E130: 554700 | F130: VILLERUPT | G130: 2.8 | H130: 62% | I130: 34% | J130: 121 | K130: 39% | L130: 31% | M130: 47 | N130: 69% | O130: 69% | P130: 83 | Q130: 85% | R130: 55% | S130: 223 | T130: 84% | U130: 84% | V130: 133 | W130: 87% | X130: 74% | Y130: 152
A131: 30 | B131: MEURTHE ET MOSELLE MEUSE | C131: 27 | D131: PONT A MOUSSON | E131: 554686 | F131: VEZELISE | G131: 1.9 | H131: 62% | I131: 34% | J131: 122 | K131: 52% | L131: 44% | M131: 97 | N131: 66% | O131: 66% | P131: 62 | Q131: 67% | R131: 37% | S131: 85 | T131: 89% | U131: 89% | V131: 200 | W131: 88% | X131: 75% | Y131: 176
A132: 30 | B132: MEURTHE ET MOSELLE MEUSE | C132: 26 | D132: NANCY | E132: 554486 | F132: NANCY POINT CENTRAL | G132: 2.8 | H132: 63% | I132: 34% | J132: 123 | K132: 72% | L132: 64% | M132: 194 | N132: 73% | O132: 73% | P132: 137 | Q132: 50% | R132: 20% | S132: 8 | T132: 83% | U132: 83% | V132: 125 | W132: 85% | X132: 73% | Y132: 135
A133: 30 | B133: VOSGES | C133: 55 | D133: SAINT DIE | E133: 588316 | F133: FRAIZE | G133: 3.6 | H133: 63% | I133: 35% | J133: 124 | K133: 61% | L133: 53% | M133: 138 | N133: 76% | O133: 76% | P133: 169 | Q133: 71% | R133: 41% | S133: 116 | T133: 75% | U133: 75% | V133: 55 | W133: 81% | X133: 69% | Y133: 84
A134: 30 | B134: MEURTHE ET MOSELLE MEUSE | C134: 27 | D134: PONT A MOUSSON | E134: 554257 | F134: DIEULOUARD | G134: 2.7 | H134: 63% | I134: 35% | J134: 125 | K134: 53% | L134: 45% | M134: 100 | N134: 71% | O134: 71% | P134: 117 | Q134: 58% | R134: 28% | S134: 21 | T134: 88% | U134: 88% | V134: 178 | W134: 95% | X134: 82% | Y134: 246
A135: 30 | B135: BAS RHIN | C135: 5006 | D135: STRASBOURG | E135: 4019 | F135: STRASBOURG ANVERS | G135: 4.7 | H135: 63% | I135: 35% | J135: 126 | K135: 73% | L135: 65% | M135: 200 | N135: 62% | O135: 62% | P135: 31 | Q135: 68% | R135: 38% | S135: 92 | T135: 80% | U135: 80% | V135: 94 | W135: 83% | X135: 70% | Y135: 96
A136: 110 | B136: MOSELLE | C136: 44 | D136: MOSELLE NORD | E136: 457192 | F136: CATTENOM | G136: 1.6 | H136: 63% | I136: 35% | J136: 127 | K136: 60% | L136: 52% | M136: 131 | N136: 70% | O136: 70% | P136: 100 | Q136: 69% | R136: 39% | S136: 97 | T136: 82% | U136: 82% | V136: 117 | W136: 85% | X136: 72% | Y136: 126
A137: 110 | B137: BAS RHIN | C137: 5101 | D137: SELESTAT | E137: 4007 | F137: ILLKIRCH CENTRE | G137: 6.6 | H137: 63% | I137: 35% | J137: 128 | K137: 72% | L137: 64% | M137: 192 | N137: 70% | O137: 70% | P137: 107 | Q137: 70% | R137: 40% | S137: 104 | T137: 66% | U137: 66% | V137: 15 | W137: 88% | X137: 76% | Y137: 179
A138: 110 | B138: BAS RHIN | C138: 5060 | D138: HAGUENAU | E138: 4085 | F138: INGWILLER | G138: 3.4 | H138: 63% | I138: 35% | J138: 129 | K138: 50% | L138: 42% | M138: 90 | N138: 73% | O138: 73% | P138: 133 | Q138: 72% | R138: 42% | S138: 128 | T138: 82% | U138: 82% | V138: 120 | W138: 90% | X138: 77% | Y138: 201
A139: 110 | B139: MARNE ARDENNES | C139: 2 | D139: CHARLEVILLE MEZIERES | E139: 508833 | F139: VILLERS SEMEUSE CORA | G139: 3.4 | H139: 63% | I139: 35% | J139: 130 | K139: 70% | L139: 62% | M139: 181 | N139: 77% | O139: 77% | P139: 194 | Q139: 63% | R139: 33% | S139: 51 | T139: 79% | U139: 79% | V139: 81 | W139: 78% | X139: 66% | Y139: 50
A140: 110 | B140: MOSELLE | C140: 45 | D140: METZ | E140: 557432 | F140: MAIZIERES LES METZ | G140: 2.8 | H140: 63% | I140: 35% | J140: 131 | K140: 71% | L140: 63% | M140: 185 | N140: 72% | O140: 72% | P140: 128 | Q140: 69% | R140: 39% | S140: 98 | T140: 87% | U140: 87% | V140: 173 | W140: 69% | X140: 57% | Y140: 13
A141: 110 | B141: MEURTHE ET MOSELLE MEUSE | C141: 26 | D141: NANCY | E141: 554266 | F141: DOMBASLE SUR MEURTHE | G141: 3.3 | H141: 64% | I141: 36% | J141: 132 | K141: 71% | L141: 63% | M141: 187 | N141: 84% | O141: 84% | P141: 236 | Q141: 50% | R141: 20% | S141: 7 | T141: 81% | U141: 81% | V141: 100 | W141: 83% | X141: 71% | Y141: 108
A142: 110 | B142: MOSELLE | C142: 42 | D142: MOSELLE EST | E142: 457258 | F142: DIEUZE | G142: 3.1 | H142: 64% | I142: 36% | J142: 133 | K142: 42% | L142: 34% | M142: 60 | N142: 74% | O142: 74% | P142: 150 | Q142: 77% | R142: 47% | S142: 167 | T142: 86% | U142: 86% | V142: 163 | W142: 91% | X142: 79% | Y142: 219
A143: 110 | B143: MOSELLE | C143: 45 | D143: METZ | E143: 557436 | F143: METZ CATHEDRALE | G143: 3.3 | H143: 64% | I143: 36% | J143: 134 | K143: 80% | L143: 72% | M143: 234 | N143: 66% | O143: 66% | P143: 54 | Q143: 56% | R143: 26% | S143: 17 | T143: 82% | U143: 82% | V143: 115 | W143: 86% | X143: 74% | Y143: 148
A144: 110 | B144: AUBE HAUTE MARNE | C144: 21 | D144: CHAUMONT | E144: 410566 | F144: CHAUMONT HOTEL DE VILLE | G144: 10.4 | H144: 64% | I144: 36% | J144: 135 | K144: 53% | L144: 45% | M144: 105 | N144: 75% | O144: 75% | P144: 165 | Q144: 65% | R144: 35% | S144: 65 | T144: 88% | U144: 88% | V144: 187 | W144: 89% | X144: 77% | Y144: 198
A145: 110 | B145: MEURTHE ET MOSELLE MEUSE | C145: 27 | D145: PONT A MOUSSON | E145: 554196 | F145: CHAMPIGNEULLES | G145: 2.4 | H145: 64% | I145: 36% | J145: 136 | K145: 73% | L145: 65% | M145: 202 | N145: 76% | O145: 76% | P145: 170 | Q145: 66% | R145: 36% | S145: 76 | T145: 78% | U145: 78% | V145: 75 | W145: 78% | X145: 66% | Y145: 49
A146: 110 | B146: MEURTHE ET MOSELLE MEUSE | C146: 31 | D146: VERDUN | E146: 455566 | F146: REVIGNY SUR ORNAIN | G146: 2.7 | H146: 64% | I146: 36% | J146: 137 | K146: 57% | L146: 48% | M146: 120 | N146: 70% | O146: 70% | P146: 105 | Q146: 73% | R146: 43% | S146: 138 | T146: 86% | U146: 86% | V146: 169 | W146: 85% | X146: 73% | Y146: 133
A147: 110 | B147: MEURTHE ET MOSELLE MEUSE | C147: 27 | D147: PONT A MOUSSON | E147: 454651 | F147: TOUL | G147: 10.0 | H147: 64% | I147: 36% | J147: 138 | K147: 72% | L147: 64% | M147: 196 | N147: 70% | O147: 70% | P147: 106 | Q147: 73% | R147: 43% | S147: 142 | T147: 79% | U147: 79% | V147: 88 | W147: 77% | X147: 65% | Y147: 42
A148: 110 | B148: AUBE HAUTE MARNE | C148: 14 | D148: TROYES | E148: 410550 | F148: BAR SUR AUBE | G148: 4.7 | H148: 64% | I148: 36% | J148: 139 | K148: 46% | L148: 38% | M148: 77 | N148: 77% | O148: 77% | P148: 190 | Q148: 78% | R148: 48% | S148: 180 | T148: 85% | U148: 85% | V148: 150 | W148: 86% | X148: 73% | Y148: 138
A149: 110 | B149: MOSELLE | C149: 42 | D149: MOSELLE EST | E149: 457614 | F149: SARREBOURG | G149: 8.8 | H149: 64% | I149: 36% | J149: 140 | K149: 58% | L149: 50% | M149: 124 | N149: 72% | O149: 72% | P149: 125 | Q149: 75% | R149: 45% | S149: 156 | T149: 78% | U149: 78% | V149: 73 | W149: 89% | X149: 76% | Y149: 189
A150: 110 | B150: VOSGES | C150: 57 | D150: EPINAL | E150: 588631 | F150: THAON LES VOSGES | G150: 4.0 | H150: 64% | I150: 36% | J150: 141 | K150: 61% | L150: 52% | M150: 134 | N150: 72% | O150: 72% | P150: 121 | Q150: 84% | R150: 54% | S150: 216 | T150: 75% | U150: 75% | V150: 57 | W150: 81% | X150: 69% | Y150: 82
A151: 110 | B151: MOSELLE | C151: 45 | D151: METZ | E151: 557440 | F151: METZ MOZART | G151: 2.7 | H151: 64% | I151: 36% | J151: 142 | K151: 66% | L151: 58% | M151: 156 | N151: 71% | O151: 71% | P151: 108 | Q151: 70% | R151: 40% | S151: 109 | T151: 80% | U151: 80% | V151: 96 | W151: 87% | X151: 74% | Y151: 156
A152: 110 | B152: MEURTHE ET MOSELLE MEUSE | C152: 31 | D152: VERDUN | E152: 555406 | F152: LIGNY EN BARROIS | G152: 2.5 | H152: 65% | I152: 36% | J152: 143 | K152: 49% | L152: 41% | M152: 88 | N152: 71% | O152: 71% | P152: 110 | Q152: 64% | R152: 34% | S152: 60 | T152: 100% | U152: 100% | V152: 245 | W152: 89% | X152: 77% | Y152: 195
A153: 110 | B153: MARNE ARDENNES | C153: 2 | D153: CHARLEVILLE MEZIERES | E153: 408806 | F153: SEDAN | G153: 7.7 | H153: 65% | I153: 37% | J153: 144 | K153: 48% | L153: 40% | M153: 84 | N153: 74% | O153: 74% | P153: 153 | Q153: 77% | R153: 47% | S153: 172 | T153: 91% | U153: 91% | V153: 208 | W153: 83% | X153: 71% | Y153: 99
A154: 110 | B154: MEURTHE ET MOSELLE MEUSE | C154: 27 | D154: PONT A MOUSSON | E154: 554357 | F154: JOEUF | G154: 3.2 | H154: 65% | I154: 37% | J154: 145 | K154: 53% | L154: 45% | M154: 109 | N154: 74% | O154: 74% | P154: 142 | Q154: 75% | R154: 45% | S154: 149 | T154: 88% | U154: 88% | V154: 186 | W154: 85% | X154: 73% | Y154: 130
A155: 110 | B155: MOSELLE | C155: 42 | D155: MOSELLE EST | E155: 457435 | F155: MERLEBACH | G155: 2.7 | H155: 65% | I155: 37% | J155: 146 | K155: 64% | L155: 56% | M155: 152 | N155: 75% | O155: 75% | P155: 156 | Q155: 77% | R155: 47% | S155: 178 | T155: 78% | U155: 78% | V155: 71 | W155: 82% | X155: 69% | Y155: 88
A156: 110 | B156: AUBE HAUTE MARNE | C156: 21 | D156: CHAUMONT | E156: 451156 | F156: SAINT DIZIER CENTRE | G156: 8.7 | H156: 65% | I156: 37% | J156: 147 | K156: 61% | L156: 53% | M156: 136 | N156: 72% | O156: 72% | P156: 127 | Q156: 77% | R156: 47% | S156: 170 | T156: 79% | U156: 79% | V156: 86 | W156: 86% | X156: 73% | Y156: 143
A157: 110 | B157: VOSGES | C157: 57 | D157: EPINAL | E157: 488286 | F157: EPINAL ARISTIDE BRIAND | G157: 8.2 | H157: 65% | I157: 37% | J157: 148 | K157: 70% | L157: 62% | M157: 182 | N157: 69% | O157: 69% | P157: 93 | Q157: 61% | R157: 31% | S157: 34 | T157: 85% | U157: 85% | V157: 158 | W157: 89% | X157: 77% | Y157: 196
A158: 110 | B158: MEURTHE ET MOSELLE MEUSE | C158: 26 | D158: NANCY | E158: 554116 | F158: BACCARAT | G158: 2.8 | H158: 65% | I158: 37% | J158: 149 | K158: 41% | L158: 33% | M158: 55 | N158: 68% | O158: 68% | P158: 77 | Q158: 85% | R158: 55% | S158: 224 | T158: 91% | U158: 91% | V158: 207 | W158: 90% | X158: 77% | Y158: 204
A159: 110 | B159: BAS RHIN | C159: 5101 | D159: SELESTAT | E159: 4121 | F159: SCHIRMECK | G159: 2.8 | H159: 65% | I159: 37% | J159: 150 | K159: 57% | L159: 48% | M159: 118 | N159: 68% | O159: 68% | P159: 74 | Q159: 84% | R159: 54% | S159: 217 | T159: 88% | U159: 88% | V159: 181 | W159: 79% | X159: 67% | Y159: 62
A160: 110 | B160: HAUT RHIN | C160: 5130 | D160: COLMAR | E160: 4144 | F160: RIBEAUVILLE | G160: 3.9 | H160: 65% | I160: 37% | J160: 151 | K160: 63% | L160: 55% | M160: 148 | N160: 69% | O160: 69% | P160: 95 | Q160: 73% | R160: 43% | S160: 135 | T160: 78% | U160: 78% | V160: 76 | W160: 92% | X160: 80% | Y160: 233
A161: 110 | B161: VOSGES | C161: 57 | D161: EPINAL | E161: 488451 | F161: MIRECOURT | G161: 4.0 | H161: 65% | I161: 37% | J161: 152 | K161: 41% | L161: 33% | M161: 56 | N161: 77% | O161: 77% | P161: 188 | Q161: 77% | R161: 47% | S161: 179 | T161: 94% | U161: 94% | V161: 223 | W161: 86% | X161: 74% | Y161: 149
A162: 110 | B162: BAS RHIN | C162: 5006 | D162: STRASBOURG | E162: 4039 | F162: REICHSTETT | G162: 1.6 | H162: 65% | I162: 37% | J162: 153 | K162: 66% | L162: 58% | M162: 160 | N162: 79% | O162: 79% | P162: 205 | Q162: 68% | R162: 38% | S162: 90 | T162: 78% | U162: 78% | V162: 70 | W162: 86% | X162: 73% | Y162: 137
A163: 110 | B163: HAUT RHIN | C163: 5130 | D163: COLMAR | E163: 4130 | F163: COLMAR REPUBLIQUE | G163: 6.4 | H163: 65% | I163: 37% | J163: 154 | K163: 71% | L163: 63% | M163: 186 | N163: 74% | O163: 74% | P163: 149 | Q163: 72% | R163: 42% | S163: 129 | T163: 73% | U163: 73% | V163: 47 | W163: 87% | X163: 74% | Y163: 155
A164: 110 | B164: MEURTHE ET MOSELLE MEUSE | C164: 31 | D164: VERDUN | E164: 554412 | F164: LONGUYON | G164: 2.9 | H164: 65% | I164: 37% | J164: 155 | K164: 51% | L164: 43% | M164: 96 | N164: 71% | O164: 71% | P164: 116 | Q164: 81% | R164: 51% | S164: 203 | T164: 87% | U164: 87% | V164: 175 | W164: 86% | X164: 73% | Y164: 141
A165: 110 | B165: VOSGES | C165: 55 | D165: SAINT DIE | E165: 488586 | F165: SAINT DIE | G165: 11.1 | H165: 65% | I165: 37% | J165: 156 | K165: 41% | L165: 32% | M165: 53 | N165: 77% | O165: 77% | P165: 193 | Q165: 76% | R165: 46% | S165: 162 | T165: 95% | U165: 95% | V165: 226 | W165: 89% | X165: 76% | Y165: 192
A166: 110 | B166: HAUT RHIN | C166: 5169 | D166: MULHOUSE | E166: 4178 | F166: SAINT LOUIS | G166: 6.4 | H166: 65% | I166: 37% | J166: 157 | K166: 70% | L166: 61% | M166: 175 | N166: 77% | O166: 77% | P166: 181 | Q166: 63% | R166: 33% | S166: 50 | T166: 81% | U166: 81% | V166: 104 | W166: 88% | X166: 75% | Y166: 170
A167: 110 | B167: MOSELLE | C167: 45 | D167: METZ | E167: 557712 | F167: WOIPPY | G167: 3.9 | H167: 66% | I167: 37% | J167: 158 | K167: 69% | L167: 61% | M167: 172 | N167: 69% | O167: 69% | P167: 94 | Q167: 74% | R167: 43% | S167: 143 | T167: 78% | U167: 78% | V167: 72 | W167: 89% | X167: 76% | Y167: 190
A168: 110 | B168: BAS RHIN | C168: 5060 | D168: HAGUENAU | E168: 4060 | F168: HAGUENAU HOUBLON | G168: 8.4 | H168: 66% | I168: 38% | J168: 159 | K168: 70% | L168: 62% | M168: 176 | N168: 76% | O168: 76% | P168: 173 | Q168: 67% | R168: 37% | S168: 84 | T168: 83% | U168: 83% | V168: 126 | W168: 84% | X168: 71% | Y168: 111
A169: 110 | B169: MEURTHE ET MOSELLE MEUSE | C169: 27 | D169: PONT A MOUSSON | E169: 454535 | F169: PONT A MOUSSON CENTRALE | G169: 5.4 | H169: 66% | I169: 38% | J169: 160 | K169: 79% | L169: 71% | M169: 226 | N169: 69% | O169: 69% | P169: 88 | Q169: 71% | R169: 41% | S169: 111 | T169: 82% | U169: 82% | V169: 119 | W169: 79% | X169: 66% | Y169: 55
A170: 110 | B170: BAS RHIN | C170: 5060 | D170: HAGUENAU | E170: 4030 | F170: BRUMATH | G170: 5.0 | H170: 66% | I170: 38% | J170: 161 | K170: 75% | L170: 67% | M170: 213 | N170: 74% | O170: 74% | P170: 143 | Q170: 46% | R170: 16% | S170: 4 | T170: 93% | U170: 93% | V170: 216 | W170: 91% | X170: 79% | Y170: 218
A171: 110 | B171: MEURTHE ET MOSELLE MEUSE | C171: 31 | D171: VERDUN | E171: 555624 | F171: STENAY | G171: 2.7 | H171: 66% | I171: 38% | J171: 162 | K171: 74% | L171: 66% | M171: 210 | N171: 64% | O171: 64% | P171: 44 | Q171: 80% | R171: 50% | S171: 193 | T171: 87% | U171: 87% | V171: 172 | W171: 74% | X171: 61% | Y171: 24
A172: 110 | B172: MEURTHE ET MOSELLE MEUSE | C172: 27 | D172: PONT A MOUSSON | E172: 554496 | F172: NANCY TROIS MAISONS | G172: 2.1 | H172: 66% | I172: 38% | J172: 163 | K172: 79% | L172: 71% | M172: 230 | N172: 73% | O172: 73% | P172: 141 | Q172: 72% | R172: 42% | S172: 131 | T172: 71% | U172: 71% | V172: 31 | W172: 84% | X172: 71% | Y172: 113
A173: 110 | B173: BAS RHIN | C173: 5101 | D173: SELESTAT | E173: 4107 | F173: VILLE | G173: 1.9 | H173: 66% | I173: 38% | J173: 164 | K173: 79% | L173: 70% | M173: 224 | N173: 66% | O173: 66% | P173: 55 | Q173: 58% | R173: 28% | S173: 24 | T173: 85% | U173: 85% | V173: 144 | W173: 92% | X173: 80% | Y173: 232
A174: 110 | B174: HAUT RHIN | C174: 5169 | D174: MULHOUSE | E174: 4180 | F174: RIEDISHEIM | G174: 3.3 | H174: 66% | I174: 38% | J174: 165 | K174: 58% | L174: 49% | M174: 123 | N174: 73% | O174: 73% | P174: 130 | Q174: 81% | R174: 51% | S174: 200 | T174: 81% | U174: 81% | V174: 101 | W174: 89% | X174: 76% | Y174: 180
A175: 110 | B175: MARNE ARDENNES | C175: 11 | D175: REIMS | E175: 551310 | F175: REIMS CHATILLONS | G175: 4.2 | H175: 66% | I175: 38% | J175: 166 | K175: 67% | L175: 58% | M175: 162 | N175: 74% | O175: 74% | P175: 154 | Q175: 69% | R175: 39% | S175: 102 | T175: 85% | U175: 85% | V175: 141 | W175: 86% | X175: 73% | Y175: 145
A176: 110 | B176: MOSELLE | C176: 45 | D176: METZ | E176: 557445 | F176: METZ SAINT LIVIER | G176: 2.7 | H176: 66% | I176: 38% | J176: 167 | K176: 23% | L176: 14% | M176: 14 | N176: 86% | O176: 86% | P176: 239 | Q176: 81% | R176: 51% | S176: 199 | T176: 99% | U176: 99% | V176: 243 | W176: 93% | X176: 80% | Y176: 239
A177: 110 | B177: MOSELLE | C177: 45 | D177: METZ | E177: 557433 | F177: MARANGE SILVANGE | G177: 2.8 | H177: 66% | I177: 38% | J177: 168 | K177: 73% | L177: 65% | M177: 201 | N177: 77% | O177: 77% | P177: 183 | Q177: 68% | R177: 38% | S177: 94 | T177: 79% | U177: 79% | V177: 89 | W177: 85% | X177: 72% | Y177: 124
A178: 110 | B178: MEURTHE ET MOSELLE MEUSE | C178: 26 | D178: NANCY | E178: 454426 | F178: LUNEVILLE CARNOT | G178: 7.7 | H178: 66% | I178: 38% | J178: 169 | K178: 76% | L178: 68% | M178: 219 | N178: 71% | O178: 71% | P178: 111 | Q178: 65% | R178: 35% | S178: 64 | T178: 90% | U178: 90% | V178: 202 | W178: 80% | X178: 68% | Y178: 71
A179: 110 | B179: MEURTHE ET MOSELLE MEUSE | C179: 27 | D179: PONT A MOUSSON | E179: 454696 | F179: VILLERS GENERAL LECLERC | G179: 4.7 | H179: 66% | I179: 38% | J179: 170 | K179: 68% | L179: 59% | M179: 164 | N179: 78% | O179: 78% | P179: 195 | Q179: 61% | R179: 31% | S179: 36 | T179: 85% | U179: 85% | V179: 149 | W179: 91% | X179: 78% | Y179: 215
A180: 110 | B180: MOSELLE | C180: 45 | D180: METZ | E180: 557559 | F180: REMILLY | G180: 3.3 | H180: 66% | I180: 38% | J180: 171 | K180: 63% | L180: 55% | M180: 149 | N180: 75% | O180: 75% | P180: 166 | Q180: 73% | R180: 43% | S180: 141 | T180: 88% | U180: 88% | V180: 188 | W180: 83% | X180: 70% | Y180: 93
A181: 110 | B181: BAS RHIN | C181: 5006 | D181: STRASBOURG | E181: 4029 | F181: SCHILTIGHEIM KLEBER | G181: 1.4 | H181: 66% | I181: 38% | J181: 172 | K181: 66% | L181: 58% | M181: 157 | N181: 83% | O181: 83% | P181: 233 | Q181: 65% | R181: 35% | S181: 66 | T181: 83% | U181: 83% | V181: 127 | W181: 86% | X181: 73% | Y181: 147
A182: 160 | B182: MOSELLE | C182: 44 | D182: MOSELLE NORD | E182: 557307 | F182: FONTOY | G182: 1.8 | H182: 67% | I182: 38% | J182: 173 | K182: 61% | L182: 52% | M182: 135 | N182: 75% | O182: 75% | P182: 161 | Q182: 72% | R182: 42% | S182: 130 | T182: 98% | U182: 98% | V182: 241 | W182: 77% | X182: 65% | Y182: 45
A183: 160 | B183: BAS RHIN | C183: 5060 | D183: HAGUENAU | E183: 4082 | F183: BOUXWILLER | G183: 2.8 | H183: 67% | I183: 39% | J183: 174 | K183: 51% | L183: 43% | M183: 95 | N183: 76% | O183: 76% | P183: 172 | Q183: 97% | R183: 67% | S183: 242 | T183: 76% | U183: 76% | V183: 61 | W183: 83% | X183: 71% | Y183: 106
A184: 160 | B184: MEURTHE ET MOSELLE MEUSE | C184: 26 | D184: NANCY | E184: 554296 | F184: ESSEY LES NANCY | G184: 3.5 | H184: 67% | I184: 39% | J184: 175 | K184: 46% | L184: 38% | M184: 78 | N184: 79% | O184: 79% | P184: 207 | Q184: 79% | R184: 49% | S184: 188 | T184: 88% | U184: 88% | V184: 184 | W184: 92% | X184: 79% | Y184: 222
A185: 160 | B185: AUBE HAUTE MARNE | C185: 14 | D185: TROYES | E185: 410571 | F185: ROMILLY SUR SEINE | G185: 4.9 | H185: 67% | I185: 39% | J185: 176 | K185: 53% | L185: 45% | M185: 103 | N185: 76% | O185: 76% | P185: 167 | Q185: 90% | R185: 60% | S185: 235 | T185: 82% | U185: 82% | V185: 116 | W185: 84% | X185: 71% | Y185: 117
A186: 160 | B186: VOSGES | C186: 55 | D186: SAINT DIE | E186: 588461 | F186: MOYENMOUTIER | G186: 4.9 | H186: 67% | I186: 39% | J186: 177 | K186: 59% | L186: 50% | M186: 127 | N186: 70% | O186: 70% | P186: 104 | Q186: 77% | R186: 47% | S186: 174 | T186: 89% | U186: 89% | V186: 198 | W186: 90% | X186: 78% | Y186: 206
A187: 160 | B187: AUBE HAUTE MARNE | C187: 14 | D187: TROYES | E187: 510523 | F187: LA CHAPELLE ST LUC | G187: 4.2 | H187: 67% | I187: 39% | J187: 178 | K187: 79% | L187: 71% | M187: 227 | N187: 77% | O187: 77% | P187: 187 | Q187: 71% | R187: 40% | S187: 110 | T187: 73% | U187: 73% | V187: 50 | W187: 85% | X187: 73% | Y187: 132
A188: 160 | B188: BAS RHIN | C188: 5101 | D188: SELESTAT | E188: 4109 | F188: MARCKOLSHEIM | G188: 2.7 | H188: 67% | I188: 39% | J188: 179 | K188: 59% | L188: 51% | M188: 129 | N188: 74% | O188: 74% | P188: 147 | Q188: 82% | R188: 52% | S188: 210 | T188: 84% | U188: 84% | V188: 138 | W188: 86% | X188: 73% | Y188: 142
A189: 160 | B189: BAS RHIN | C189: 5060 | D189: HAGUENAU | E189: 4041 | F189: HOERDT | G189: 1.6 | H189: 67% | I189: 39% | J189: 180 | K189: 55% | L189: 47% | M189: 114 | N189: 77% | O189: 77% | P189: 186 | Q189: 71% | R189: 41% | S189: 112 | T189: 94% | U189: 94% | V189: 222 | W189: 89% | X189: 76% | Y189: 187
A190: 160 | B190: VOSGES | C190: 57 | D190: EPINAL | E190: 588501 | F190: NEUFCHATEAU | G190: 5.7 | H190: 67% | I190: 39% | J190: 181 | K190: 57% | L190: 48% | M190: 117 | N190: 80% | O190: 80% | P190: 210 | Q190: 74% | R190: 44% | S190: 147 | T190: 85% | U190: 85% | V190: 139 | W190: 91% | X190: 79% | Y190: 220
A191: 160 | B191: MARNE ARDENNES | C191: 2 | D191: CHARLEVILLE MEZIERES | E191: 508819 | F191: MOUZON | G191: 1.8 | H191: 67% | I191: 39% | J191: 182 | K191: 48% | L191: 39% | M191: 82 | N191: 86% | O191: 86% | P191: 240 | Q191: 72% | R191: 41% | S191: 119 | T191: 98% | U191: 98% | V191: 239 | W191: 83% | X191: 71% | Y191: 103
A192: 160 | B192: MARNE ARDENNES | C192: 11 | D192: REIMS | E192: 551341 | F192: REIMS JEAN JAURES | G192: 2.6 | H192: 67% | I192: 39% | J192: 183 | K192: 70% | L192: 62% | M192: 184 | N192: 77% | O192: 77% | P192: 180 | Q192: 66% | R192: 36% | S192: 71 | T192: 95% | U192: 95% | V192: 227 | W192: 79% | X192: 66% | Y192: 58
A193: 160 | B193: AUBE HAUTE MARNE | C193: 14 | D193: TROYES | E193: 510520 | F193: SAINT ANDRE LES VERGERS | G193: 3.8 | H193: 67% | I193: 39% | J193: 184 | K193: 83% | L193: 74% | M193: 242 | N193: 73% | O193: 73% | P193: 139 | Q193: 66% | R193: 36% | S193: 75 | T193: 81% | U193: 81% | V193: 111 | W193: 84% | X193: 71% | Y193: 116
A194: 160 | B194: VOSGES | C194: 57 | D194: EPINAL | E194: 588206 | F194: CHARMES | G194: 2.6 | H194: 67% | I194: 39% | J194: 185 | K194: 62% | L194: 54% | M194: 144 | N194: 82% | O194: 82% | P194: 231 | Q194: 68% | R194: 38% | S194: 95 | T194: 86% | U194: 86% | V194: 168 | W194: 89% | X194: 76% | Y194: 185
A195: 160 | B195: MEURTHE ET MOSELLE MEUSE | C195: 31 | D195: VERDUN | E195: 455298 | F195: ETAIN | G195: 1.0 | H195: 68% | I195: 40% | J195: 186 | K195: 61% | L195: 53% | M195: 139 | N195: 80% | O195: 80% | P195: 214 | Q195: 81% | R195: 51% | S195: 202 | T195: 85% | U195: 85% | V195: 157 | W195: 81% | X195: 69% | Y195: 83
A196: 160 | B196: MEURTHE ET MOSELLE MEUSE | C196: 26 | D196: NANCY | E196: 554166 | F196: BLAINVILLE | G196: 2.5 | H196: 68% | I196: 40% | J196: 187 | K196: 72% | L196: 64% | M196: 191 | N196: 75% | O196: 75% | P196: 158 | Q196: 80% | R196: 50% | S196: 190 | T196: 79% | U196: 79% | V196: 90 | W196: 84% | X196: 71% | Y196: 110
A197: 160 | B197: BAS RHIN | C197: 5101 | D197: SELESTAT | E197: 4101 | F197: SELESTAT CENTRE | G197: 7.2 | H197: 68% | I197: 40% | J197: 188 | K197: 72% | L197: 64% | M197: 197 | N197: 67% | O197: 67% | P197: 66 | Q197: 80% | R197: 50% | S197: 196 | T197: 84% | U197: 84% | V197: 137 | W197: 86% | X197: 73% | Y197: 140
A198: 160 | B198: HAUT RHIN | C198: 5169 | D198: MULHOUSE | E198: 4194 | F198: THANN | G198: 9.6 | H198: 68% | I198: 40% | J198: 189 | K198: 46% | L198: 37% | M198: 73 | N198: 81% | O198: 81% | P198: 218 | Q198: 81% | R198: 51% | S198: 201 | T198: 94% | U198: 94% | V198: 221 | W198: 89% | X198: 76% | Y198: 183
A199: 160 | B199: BAS RHIN | C199: 5060 | D199: HAGUENAU | E199: 4087 | F199: SAVERNE | G199: 5.9 | H199: 68% | I199: 40% | J199: 190 | K199: 79% | L199: 71% | M199: 228 | N199: 68% | O199: 68% | P199: 82 | Q199: 77% | R199: 47% | S199: 173 | T199: 79% | U199: 79% | V199: 85 | W199: 87% | X199: 74% | Y199: 153
A200: 160 | B200: VOSGES | C200: 55 | D200: SAINT DIE | E200: 588386 | F200: LE THILLOT | G200: 2.0 | H200: 68% | I200: 40% | J200: 191 | K200: 53% | L200: 45% | M200: 106 | N200: 72% | O200: 72% | P200: 123 | Q200: 79% | R200: 49% | S200: 186 | T200: 96% | U200: 96% | V200: 230 | W200: 91% | X200: 78% | Y200: 212
A201: 160 | B201: BAS RHIN | C201: 5006 | D201: STRASBOURG | E201: 4023 | F201: STRASBOURG VOSGES | G201: 2.7 | H201: 68% | I201: 40% | J201: 192 | K201: 83% | L201: 74% | M201: 243 | N201: 77% | O201: 77% | P201: 189 | Q201: 58% | R201: 28% | S201: 20 | T201: 85% | U201: 85% | V201: 148 | W201: 88% | X201: 76% | Y201: 178
A202: 160 | B202: BAS RHIN | C202: 5006 | D202: STRASBOURG | E202: 4026 | F202: STRASBOURG DANUBE | G202: 3.3 | H202: 68% | I202: 40% | J202: 193 | K202: 77% | L202: 69% | M202: 220 | N202: 79% | O202: 79% | P202: 202 | Q202: 62% | R202: 32% | S202: 42 | T202: 81% | U202: 81% | V202: 109 | W202: 92% | X202: 79% | Y202: 229
A203: 160 | B203: HAUT RHIN | C203: 5169 | D203: MULHOUSE | E203: 4181 | F203: WITTELSHEIM | G203: 2.7 | H203: 68% | I203: 40% | J203: 194 | K203: 69% | L203: 61% | M203: 171 | N203: 84% | O203: 84% | P203: 235 | Q203: 79% | R203: 49% | S203: 189 | T203: 79% | U203: 79% | V203: 87 | W203: 80% | X203: 68% | Y203: 69
... 56 more rows

Sheet AG_BANCA
B1: Accueil | H1: BAROMETRE BDD - AGENCES
H2: BANCARISATION
H3: =ACCUEIL!F7 -> 2022-04-24
H7: Ventes Nettes produits pondérés | L7: Ventes sur client non détenteur de l’univers | P7: Total Bancarisation
H8: =DATEMAJ!C8 -> au 24/04 | J8: coef | K8: ='RECAP DIRCOM'!AA4 -> 12% | L8: =DATEMAJ!C9 -> au 24/04 | N8: coef | O8: ='RECAP DIRCOM'!AE4 -> 8% | Q8: coef | R8: ='RECAP DIRCOM'!$AH$4 -> 20%
B9: Direction | C9: eds | D9: Territoire | E9: eds | F9: Agence | G9: ="ETP perf "&DATEMAJ!$C$28 -> ETP perf 24-avr | H9: VN | I9: VN / ETP | J9: % Ecart au 1er | K9: Rang | L9: VB | M9: VB / ETP | N9: % Ecart au 1er | O9: Rang | P9: Moyenne ecart au 1er | Q9: % Ecart au 1er | R9: Rang CEGEE
A10: 50 | B10: AUBE HAUTE MARNE | C10: 21 | D10: CHAUMONT | E10: 410541 | F10: LANGRES | G10: =VLOOKUP($E10,'RECAP AG'!$G$6:$CU$255,3,FALSE) -> 8.3 | H10: =VLOOKUP($E10,'RECAP AG'!$G$6:$CU$255,18,FALSE) -> 124.2 | I10: =VLOOKUP($E10,'RECAP AG'!$G$6:$CU$255,19,FALSE) -> 15.04 | J10: =VLOOKUP($E10,'RECAP AG'!$G$6:$CU$255,20,FALSE) -> 57% | K10: =VLOOKUP($E10,'RECAP AG'!$G$6:$CU$255,21,FALSE) -> 54 | L10: =VLOOKUP($E10,'RECAP AG'!$G$6:$CU$255,22,FALSE) -> 173 | M10: =VLOOKUP($E10,'RECAP AG'!$G$6:$CU$255,23,FALSE) -> 20.94 | N10: =VLOOKUP($E10,'RECAP AG'!$G$6:$CU$255,24,FALSE) -> 84% | O10: =VLOOKUP($E10,'RECAP AG'!$G$6:$CU$255,25,FALSE) -> 173 | P10: =VLOOKUP($E10,'RECAP AG'!$G$6:$CU$255,26,FALSE) -> 68% | Q10: =VLOOKUP($E10,'RECAP AG'!$G$6:$CU$255,27,FALSE) -> 68% | R10: =VLOOKUP($E10,'RECAP AG'!$G$6:$CU$255,28,FALSE) -> 78
A11: 50 | B11: AUBE HAUTE MARNE | C11: 21 | D11: CHAUMONT | E11: 410566 | F11: CHAUMONT HOTEL DE VILLE | G11: =VLOOKUP($E11,'RECAP AG'!$G$6:$CU$255,3,FALSE) -> 10.4 | H11: =VLOOKUP($E11,'RECAP AG'!$G$6:$CU$255,18,FALSE) -> 61.3 | I11: =VLOOKUP($E11,'RECAP AG'!$G$6:$CU$255,19,FALSE) -> 5.88 | J11: =VLOOKUP($E11,'RECAP AG'!$G$6:$CU$255,20,FALSE) -> 70% | K11: =VLOOKUP($E11,'RECAP AG'!$G$6:$CU$255,21,FALSE) -> 155 | L11: =VLOOKUP($E11,'RECAP AG'!$G$6:$CU$255,22,FALSE) -> 225 | M11: =VLOOKUP($E11,'RECAP AG'!$G$6:$CU$255,23,FALSE) -> 21.59 | N11: =VLOOKUP($E11,'RECAP AG'!$G$6:$CU$255,24,FALSE) -> 84% | O11: =VLOOKUP($E11,'RECAP AG'!$G$6:$CU$255,25,FALSE) -> 161 | P11: =VLOOKUP($E11,'RECAP AG'!$G$6:$CU$255,26,FALSE) -> 75% | Q11: =VLOOKUP($E11,'RECAP AG'!$G$6:$CU$255,27,FALSE) -> 75% | R11: =VLOOKUP($E11,'RECAP AG'!$G$6:$CU$255,28,FALSE) -> 165
A12: 50 | B12: AUBE HAUTE MARNE | C12: 21 | D12: CHAUMONT | E12: 510590 | F12: CHAUMONT REPUBLIQUE | G12: =VLOOKUP($E12,'RECAP AG'!$G$6:$CU$255,3,FALSE) -> 2.9 | H12: =VLOOKUP($E12,'RECAP AG'!$G$6:$CU$255,18,FALSE) -> 13.0 | I12: =VLOOKUP($E12,'RECAP AG'!$G$6:$CU$255,19,FALSE) -> 4.50 | J12: =VLOOKUP($E12,'RECAP AG'!$G$6:$CU$255,20,FALSE) -> 71% | K12: =VLOOKUP($E12,'RECAP AG'!$G$6:$CU$255,21,FALSE) -> 175 | L12: =VLOOKUP($E12,'RECAP AG'!$G$6:$CU$255,22,FALSE) -> 76 | M12: =VLOOKUP($E12,'RECAP AG'!$G$6:$CU$255,23,FALSE) -> 26.30 | N12: =VLOOKUP($E12,'RECAP AG'!$G$6:$CU$255,24,FALSE) -> 80% | O12: =VLOOKUP($E12,'RECAP AG'!$G$6:$CU$255,25,FALSE) -> 113 | P12: =VLOOKUP($E12,'RECAP AG'!$G$6:$CU$255,26,FALSE) -> 75% | Q12: =VLOOKUP($E12,'RECAP AG'!$G$6:$CU$255,27,FALSE) -> 75% | R12: =VLOOKUP($E12,'RECAP AG'!$G$6:$CU$255,28,FALSE) -> 159
A13: 50 | B13: AUBE HAUTE MARNE | C13: 21 | D13: CHAUMONT | E13: 451154 | F13: JOINVILLE | G13: =VLOOKUP($E13,'RECAP AG'!$G$6:$CU$255,3,FALSE) -> 1.8 | H13: =VLOOKUP($E13,'RECAP AG'!$G$6:$CU$255,18,FALSE) -> 26.1 | I13: =VLOOKUP($E13,'RECAP AG'!$G$6:$CU$255,19,FALSE) -> 14.34 | J13: =VLOOKUP($E13,'RECAP AG'!$G$6:$CU$255,20,FALSE) -> 58% | K13: =VLOOKUP($E13,'RECAP AG'!$G$6:$CU$255,21,FALSE) -> 62 | L13: =VLOOKUP($E13,'RECAP AG'!$G$6:$CU$255,22,FALSE) -> 58 | M13: =VLOOKUP($E13,'RECAP AG'!$G$6:$CU$255,23,FALSE) -> 31.87 | N13: =VLOOKUP($E13,'RECAP AG'!$G$6:$CU$255,24,FALSE) -> 76% | O13: =VLOOKUP($E13,'RECAP AG'!$G$6:$CU$255,25,FALSE) -> 59 | P13: =VLOOKUP($E13,'RECAP AG'!$G$6:$CU$255,26,FALSE) -> 65% | Q13: =VLOOKUP($E13,'RECAP AG'!$G$6:$CU$255,27,FALSE) -> 65% | R13: =VLOOKUP($E13,'RECAP AG'!$G$6:$CU$255,28,FALSE) -> 52
A14: 50 | B14: AUBE HAUTE MARNE | C14: 21 | D14: CHAUMONT | E14: 451156 | F14: SAINT DIZIER CENTRE | G14: =VLOOKUP($E14,'RECAP AG'!$G$6:$CU$255,3,FALSE) -> 8.7 | H14: =VLOOKUP($E14,'RECAP AG'!$G$6:$CU$255,18,FALSE) -> 53.6 | I14: =VLOOKUP($E14,'RECAP AG'!$G$6:$CU$255,19,FALSE) -> 6.19 | J14: =VLOOKUP($E14,'RECAP AG'!$G$6:$CU$255,20,FALSE) -> 69% | K14: =VLOOKUP($E14,'RECAP AG'!$G$6:$CU$255,21,FALSE) -> 152 | L14: =VLOOKUP($E14,'RECAP AG'!$G$6:$CU$255,22,FALSE) -> 259 | M14: =VLOOKUP($E14,'RECAP AG'!$G$6:$CU$255,23,FALSE) -> 29.91 | N14: =VLOOKUP($E14,'RECAP AG'!$G$6:$CU$255,24,FALSE) -> 77% | O14: =VLOOKUP($E14,'RECAP AG'!$G$6:$CU$255,25,FALSE) -> 75 | P14: =VLOOKUP($E14,'RECAP AG'!$G$6:$CU$255,26,FALSE) -> 72% | Q14: =VLOOKUP($E14,'RECAP AG'!$G$6:$CU$255,27,FALSE) -> 72% | R14: =VLOOKUP($E14,'RECAP AG'!$G$6:$CU$255,28,FALSE) -> 127
A15: 50 | B15: AUBE HAUTE MARNE | C15: 21 | D15: CHAUMONT | E15: 451151 | F15: WASSY | G15: =VLOOKUP($E15,'RECAP AG'!$G$6:$CU$255,3,FALSE) -> 2.0 | H15: =VLOOKUP($E15,'RECAP AG'!$G$6:$CU$255,18,FALSE) -> 18.8 | I15: =VLOOKUP($E15,'RECAP AG'!$G$6:$CU$255,19,FALSE) -> 9.64 | J15: =VLOOKUP($E15,'RECAP AG'!$G$6:$CU$255,20,FALSE) -> 64% | K15: =VLOOKUP($E15,'RECAP AG'!$G$6:$CU$255,21,FALSE) -> 115 | L15: =VLOOKUP($E15,'RECAP AG'!$G$6:$CU$255,22,FALSE) -> 47 | M15: =VLOOKUP($E15,'RECAP AG'!$G$6:$CU$255,23,FALSE) -> 24.10 | N15: =VLOOKUP($E15,'RECAP AG'!$G$6:$CU$255,24,FALSE) -> 82% | O15: =VLOOKUP($E15,'RECAP AG'!$G$6:$CU$255,25,FALSE) -> 135 | P15: =VLOOKUP($E15,'RECAP AG'!$G$6:$CU$255,26,FALSE) -> 71% | Q15: =VLOOKUP($E15,'RECAP AG'!$G$6:$CU$255,27,FALSE) -> 71% | R15: =VLOOKUP($E15,'RECAP AG'!$G$6:$CU$255,28,FALSE) -> 118
A16: 50 | B16: AUBE HAUTE MARNE | C16: 14 | D16: TROYES | E16: 510523 | F16: LA CHAPELLE ST LUC | G16: =VLOOKUP($E16,'RECAP AG'!$G$6:$CU$255,3,FALSE) -> 4.2 | H16: =VLOOKUP($E16,'RECAP AG'!$G$6:$CU$255,18,FALSE) -> 2.0 | I16: =VLOOKUP($E16,'RECAP AG'!$G$6:$CU$255,19,FALSE) -> 0.48 | J16: =VLOOKUP($E16,'RECAP AG'!$G$6:$CU$255,20,FALSE) -> 77% | K16: =VLOOKUP($E16,'RECAP AG'!$G$6:$CU$255,21,FALSE) -> 209 | L16: =VLOOKUP($E16,'RECAP AG'!$G$6:$CU$255,22,FALSE) -> 125 | M16: =VLOOKUP($E16,'RECAP AG'!$G$6:$CU$255,23,FALSE) -> 29.83 | N16: =VLOOKUP($E16,'RECAP AG'!$G$6:$CU$255,24,FALSE) -> 77% | O16: =VLOOKUP($E16,'RECAP AG'!$G$6:$CU$255,25,FALSE) -> 77 | P16: =VLOOKUP($E16,'RECAP AG'!$G$6:$CU$255,26,FALSE) -> 77% | Q16: =VLOOKUP($E16,'RECAP AG'!$G$6:$CU$255,27,FALSE) -> 77% | R16: =VLOOKUP($E16,'RECAP AG'!$G$6:$CU$255,28,FALSE) -> 187
A17: 50 | B17: AUBE HAUTE MARNE | C17: 14 | D17: TROYES | E17: 510530 | F17: ARCIS SUR AUBE | G17: =VLOOKUP($E17,'RECAP AG'!$G$6:$CU$255,3,FALSE) -> 3.6 | H17: =VLOOKUP($E17,'RECAP AG'!$G$6:$CU$255,18,FALSE) -> 31.3 | I17: =VLOOKUP($E17,'RECAP AG'!$G$6:$CU$255,19,FALSE) -> 8.77 | J17: =VLOOKUP($E17,'RECAP AG'!$G$6:$CU$255,20,FALSE) -> 66% | K17: =VLOOKUP($E17,'RECAP AG'!$G$6:$CU$255,21,FALSE) -> 125 | L17: =VLOOKUP($E17,'RECAP AG'!$G$6:$CU$255,22,FALSE) -> 71 | M17: =VLOOKUP($E17,'RECAP AG'!$G$6:$CU$255,23,FALSE) -> 19.89 | N17: =VLOOKUP($E17,'RECAP AG'!$G$6:$CU$255,24,FALSE) -> 85% | O17: =VLOOKUP($E17,'RECAP AG'!$G$6:$CU$255,25,FALSE) -> 190 | P17: =VLOOKUP($E17,'RECAP AG'!$G$6:$CU$255,26,FALSE) -> 73% | Q17: =VLOOKUP($E17,'RECAP AG'!$G$6:$CU$255,27,FALSE) -> 73% | R17: =VLOOKUP($E17,'RECAP AG'!$G$6:$CU$255,28,FALSE) -> 140
A18: 50 | B18: AUBE HAUTE MARNE | C18: 14 | D18: TROYES | E18: 410550 | F18: BAR SUR AUBE | G18: =VLOOKUP($E18,'RECAP AG'!$G$6:$CU$255,3,FALSE) -> 4.7 | H18: =VLOOKUP($E18,'RECAP AG'!$G$6:$CU$255,18,FALSE) -> 12.2 | I18: =VLOOKUP($E18,'RECAP AG'!$G$6:$CU$255,19,FALSE) -> 2.59 | J18: =VLOOKUP($E18,'RECAP AG'!$G$6:$CU$255,20,FALSE) -> 74% | K18: =VLOOKUP($E18,'RECAP AG'!$G$6:$CU$255,21,FALSE) -> 189 | L18: =VLOOKUP($E18,'RECAP AG'!$G$6:$CU$255,22,FALSE) -> 112 | M18: =VLOOKUP($E18,'RECAP AG'!$G$6:$CU$255,23,FALSE) -> 23.78 | N18: =VLOOKUP($E18,'RECAP AG'!$G$6:$CU$255,24,FALSE) -> 82% | O18: =VLOOKUP($E18,'RECAP AG'!$G$6:$CU$255,25,FALSE) -> 139 | P18: =VLOOKUP($E18,'RECAP AG'!$G$6:$CU$255,26,FALSE) -> 77% | Q18: =VLOOKUP($E18,'RECAP AG'!$G$6:$CU$255,27,FALSE) -> 77% | R18: =VLOOKUP($E18,'RECAP AG'!$G$6:$CU$255,28,FALSE) -> 190
A19: 50 | B19: AUBE HAUTE MARNE | C19: 14 | D19: TROYES | E19: 510556 | F19: BAR SUR SEINE | G19: =VLOOKUP($E19,'RECAP AG'!$G$6:$CU$255,3,FALSE) -> 2.8 | H19: =VLOOKUP($E19,'RECAP AG'!$G$6:$CU$255,18,FALSE) -> -1.3 | I19: =VLOOKUP($E19,'RECAP AG'!$G$6:$CU$255,19,FALSE) -> -0.47 | J19: =VLOOKUP($E19,'RECAP AG'!$G$6:$CU$255,20,FALSE) -> 78% | K19: =VLOOKUP($E19,'RECAP AG'!$G$6:$CU$255,21,FALSE) -> 217 | L19: =VLOOKUP($E19,'RECAP AG'!$G$6:$CU$255,22,FALSE) -> 49 | M19: =VLOOKUP($E19,'RECAP AG'!$G$6:$CU$255,23,FALSE) -> 17.82 | N19: =VLOOKUP($E19,'RECAP AG'!$G$6:$CU$255,24,FALSE) -> 87% | O19: =VLOOKUP($E19,'RECAP AG'!$G$6:$CU$255,25,FALSE) -> 211 | P19: =VLOOKUP($E19,'RECAP AG'!$G$6:$CU$255,26,FALSE) -> 81% | Q19: =VLOOKUP($E19,'RECAP AG'!$G$6:$CU$255,27,FALSE) -> 81% | R19: =VLOOKUP($E19,'RECAP AG'!$G$6:$CU$255,28,FALSE) -> 221
A20: 50 | B20: AUBE HAUTE MARNE | C20: 14 | D20: TROYES | E20: 510570 | F20: NOGENT SUR SEINE | G20: =VLOOKUP($E20,'RECAP AG'!$G$6:$CU$255,3,FALSE) -> 4.7 | H20: =VLOOKUP($E20,'RECAP AG'!$G$6:$CU$255,18,FALSE) -> 52.7 | I20: =VLOOKUP($E20,'RECAP AG'!$G$6:$CU$255,19,FALSE) -> 11.31 | J20: =VLOOKUP($E20,'RECAP AG'!$G$6:$CU$255,20,FALSE) -> 62% | K20: =VLOOKUP($E20,'RECAP AG'!$G$6:$CU$255,21,FALSE) -> 96 | L20: =VLOOKUP($E20,'RECAP AG'!$G$6:$CU$255,22,FALSE) -> 140 | M20: =VLOOKUP($E20,'RECAP AG'!$G$6:$CU$255,23,FALSE) -> 30.04 | N20: =VLOOKUP($E20,'RECAP AG'!$G$6:$CU$255,24,FALSE) -> 77% | O20: =VLOOKUP($E20,'RECAP AG'!$G$6:$CU$255,25,FALSE) -> 74 | P20: =VLOOKUP($E20,'RECAP AG'!$G$6:$CU$255,26,FALSE) -> 68% | Q20: =VLOOKUP($E20,'RECAP AG'!$G$6:$CU$255,27,FALSE) -> 68% | R20: =VLOOKUP($E20,'RECAP AG'!$G$6:$CU$255,28,FALSE) -> 81
A21: 50 | B21: AUBE HAUTE MARNE | C21: 14 | D21: TROYES | E21: 410571 | F21: ROMILLY SUR SEINE | G21: =VLOOKUP($E21,'RECAP AG'!$G$6:$CU$255,3,FALSE) -> 4.9 | H21: =VLOOKUP($E21,'RECAP AG'!$G$6:$CU$255,18,FALSE) -> 18.8 | I21: =VLOOKUP($E21,'RECAP AG'!$G$6:$CU$255,19,FALSE) -> 3.84 | J21: =VLOOKUP($E21,'RECAP AG'!$G$6:$CU$255,20,FALSE) -> 72% | K21: =VLOOKUP($E21,'RECAP AG'!$G$6:$CU$255,21,FALSE) -> 184 | L21: =VLOOKUP($E21,'RECAP AG'!$G$6:$CU$255,22,FALSE) -> 127 | M21: =VLOOKUP($E21,'RECAP AG'!$G$6:$CU$255,23,FALSE) -> 25.92 | N21: =VLOOKUP($E21,'RECAP AG'!$G$6:$CU$255,24,FALSE) -> 80% | O21: =VLOOKUP($E21,'RECAP AG'!$G$6:$CU$255,25,FALSE) -> 119 | P21: =VLOOKUP($E21,'RECAP AG'!$G$6:$CU$255,26,FALSE) -> 76% | Q21: =VLOOKUP($E21,'RECAP AG'!$G$6:$CU$255,27,FALSE) -> 76% | R21: =VLOOKUP($E21,'RECAP AG'!$G$6:$CU$255,28,FALSE) -> 167
A22: 50 | B22: AUBE HAUTE MARNE | C22: 14 | D22: TROYES | E22: 510520 | F22: SAINT ANDRE LES VERGERS | G22: =VLOOKUP($E22,'RECAP AG'!$G$6:$CU$255,3,FALSE) -> 3.8 | H22: =VLOOKUP($E22,'RECAP AG'!$G$6:$CU$255,18,FALSE) -> 27.2 | I22: =VLOOKUP($E22,'RECAP AG'!$G$6:$CU$255,19,FALSE) -> 7.21 | J22: =VLOOKUP($E22,'RECAP AG'!$G$6:$CU$255,20,FALSE) -> 68% | K22: =VLOOKUP($E22,'RECAP AG'!$G$6:$CU$255,21,FALSE) -> 141 | L22: =VLOOKUP($E22,'RECAP AG'!$G$6:$CU$255,22,FALSE) -> 91 | M22: =VLOOKUP($E22,'RECAP AG'!$G$6:$CU$255,23,FALSE) -> 24.14 | N22: =VLOOKUP($E22,'RECAP AG'!$G$6:$CU$255,24,FALSE) -> 82% | O22: =VLOOKUP($E22,'RECAP AG'!$G$6:$CU$255,25,FALSE) -> 134 | P22: =VLOOKUP($E22,'RECAP AG'!$G$6:$CU$255,26,FALSE) -> 73% | Q22: =VLOOKUP($E22,'RECAP AG'!$G$6:$CU$255,27,FALSE) -> 73% | R22: =VLOOKUP($E22,'RECAP AG'!$G$6:$CU$255,28,FALSE) -> 139
A23: 50 | B23: AUBE HAUTE MARNE | C23: 14 | D23: TROYES | E23: 410524 | F23: SAINT JULIEN LES VILLAS | G23: =VLOOKUP($E23,'RECAP AG'!$G$6:$CU$255,3,FALSE) -> 5.2 | H23: =VLOOKUP($E23,'RECAP AG'!$G$6:$CU$255,18,FALSE) -> 29.3 | I23: =VLOOKUP($E23,'RECAP AG'!$G$6:$CU$255,19,FALSE) -> 5.60 | J23: =VLOOKUP($E23,'RECAP AG'!$G$6:$CU$255,20,FALSE) -> 70% | K23: =VLOOKUP($E23,'RECAP AG'!$G$6:$CU$255,21,FALSE) -> 162 | L23: =VLOOKUP($E23,'RECAP AG'!$G$6:$CU$255,22,FALSE) -> 121 | M23: =VLOOKUP($E23,'RECAP AG'!$G$6:$CU$255,23,FALSE) -> 23.14 | N23: =VLOOKUP($E23,'RECAP AG'!$G$6:$CU$255,24,FALSE) -> 82% | O23: =VLOOKUP($E23,'RECAP AG'!$G$6:$CU$255,25,FALSE) -> 144 | P23: =VLOOKUP($E23,'RECAP AG'!$G$6:$CU$255,26,FALSE) -> 75% | Q23: =VLOOKUP($E23,'RECAP AG'!$G$6:$CU$255,27,FALSE) -> 75% | R23: =VLOOKUP($E23,'RECAP AG'!$G$6:$CU$255,28,FALSE) -> 160
A24: 50 | B24: AUBE HAUTE MARNE | C24: 14 | D24: TROYES | E24: 410521 | F24: SAINTE SAVINE | G24: =VLOOKUP($E24,'RECAP AG'!$G$6:$CU$255,3,FALSE) -> 4.4 | H24: =VLOOKUP($E24,'RECAP AG'!$G$6:$CU$255,18,FALSE) -> -11.2 | I24: =VLOOKUP($E24,'RECAP AG'!$G$6:$CU$255,19,FALSE) -> -2.53 | J24: =VLOOKUP($E24,'RECAP AG'!$G$6:$CU$255,20,FALSE) -> 81% | K24: =VLOOKUP($E24,'RECAP AG'!$G$6:$CU$255,21,FALSE) -> 224 | L24: =VLOOKUP($E24,'RECAP AG'!$G$6:$CU$255,22,FALSE) -> 89 | M24: =VLOOKUP($E24,'RECAP AG'!$G$6:$CU$255,23,FALSE) -> 20.14 | N24: =VLOOKUP($E24,'RECAP AG'!$G$6:$CU$255,24,FALSE) -> 85% | O24: =VLOOKUP($E24,'RECAP AG'!$G$6:$CU$255,25,FALSE) -> 185 | P24: =VLOOKUP($E24,'RECAP AG'!$G$6:$CU$255,26,FALSE) -> 82% | Q24: =VLOOKUP($E24,'RECAP AG'!$G$6:$CU$255,27,FALSE) -> 82% | R24: =VLOOKUP($E24,'RECAP AG'!$G$6:$CU$255,28,FALSE) -> 230
A25: 50 | B25: AUBE HAUTE MARNE | C25: 14 | D25: TROYES | E25: 510513 | F25: TROYES 1ER MAI | G25: =VLOOKUP($E25,'RECAP AG'!$G$6:$CU$255,3,FALSE) -> 2.3 | H25: =VLOOKUP($E25,'RECAP AG'!$G$6:$CU$255,18,FALSE) -> 14.5 | I25: =VLOOKUP($E25,'RECAP AG'!$G$6:$CU$255,19,FALSE) -> 6.44 | J25: =VLOOKUP($E25,'RECAP AG'!$G$6:$CU$255,20,FALSE) -> 69% | K25: =VLOOKUP($E25,'RECAP AG'!$G$6:$CU$255,21,FALSE) -> 150 | L25: =VLOOKUP($E25,'RECAP AG'!$G$6:$CU$255,22,FALSE) -> 99 | M25: =VLOOKUP($E25,'RECAP AG'!$G$6:$CU$255,23,FALSE) -> 44.00 | N25: =VLOOKUP($E25,'RECAP AG'!$G$6:$CU$255,24,FALSE) -> 67% | O25: =VLOOKUP($E25,'RECAP AG'!$G$6:$CU$255,25,FALSE) -> 15 | P25: =VLOOKUP($E25,'RECAP AG'!$G$6:$CU$255,26,FALSE) -> 68% | Q25: =VLOOKUP($E25,'RECAP AG'!$G$6:$CU$255,27,FALSE) -> 68% | R25: =VLOOKUP($E25,'RECAP AG'!$G$6:$CU$255,28,FALSE) -> 76
A26: 50 | B26: AUBE HAUTE MARNE | C26: 14 | D26: TROYES | E26: 410510 | F26: TROYES GAMBETTA | G26: =VLOOKUP($E26,'RECAP AG'!$G$6:$CU$255,3,FALSE) -> 8.8 | H26: =VLOOKUP($E26,'RECAP AG'!$G$6:$CU$255,18,FALSE) -> 44.4 | I26: =VLOOKUP($E26,'RECAP AG'!$G$6:$CU$255,19,FALSE) -> 5.07 | J26: =VLOOKUP($E26,'RECAP AG'!$G$6:$CU$255,20,FALSE) -> 71% | K26: =VLOOKUP($E26,'RECAP AG'!$G$6:$CU$255,21,FALSE) -> 171 | L26: =VLOOKUP($E26,'RECAP AG'!$G$6:$CU$255,22,FALSE) -> 167 | M26: =VLOOKUP($E26,'RECAP AG'!$G$6:$CU$255,23,FALSE) -> 19.06 | N26: =VLOOKUP($E26,'RECAP AG'!$G$6:$CU$255,24,FALSE) -> 86% | O26: =VLOOKUP($E26,'RECAP AG'!$G$6:$CU$255,25,FALSE) -> 199 | P26: =VLOOKUP($E26,'RECAP AG'!$G$6:$CU$255,26,FALSE) -> 77% | Q26: =VLOOKUP($E26,'RECAP AG'!$G$6:$CU$255,27,FALSE) -> 77% | R26: =VLOOKUP($E26,'RECAP AG'!$G$6:$CU$255,28,FALSE) -> 178
A27: 50 | B27: AUBE HAUTE MARNE | C27: 14 | D27: TROYES | E27: 410512 | F27: TROYES ZOLA | G27: =VLOOKUP($E27,'RECAP AG'!$G$6:$CU$255,3,FALSE) -> 5.4 | H27: =VLOOKUP($E27,'RECAP AG'!$G$6:$CU$255,18,FALSE) -> -8.5 | I27: =VLOOKUP($E27,'RECAP AG'!$G$6:$CU$255,19,FALSE) -> -1.58 | J27: =VLOOKUP($E27,'RECAP AG'!$G$6:$CU$255,20,FALSE) -> 80% | K27: =VLOOKUP($E27,'RECAP AG'!$G$6:$CU$255,21,FALSE) -> 222 | L27: =VLOOKUP($E27,'RECAP AG'!$G$6:$CU$255,22,FALSE) -> 116 | M27: =VLOOKUP($E27,'RECAP AG'!$G$6:$CU$255,23,FALSE) -> 21.56 | N27: =VLOOKUP($E27,'RECAP AG'!$G$6:$CU$255,24,FALSE) -> 84% | O27: =VLOOKUP($E27,'RECAP AG'!$G$6:$CU$255,25,FALSE) -> 163 | P27: =VLOOKUP($E27,'RECAP AG'!$G$6:$CU$255,26,FALSE) -> 81% | Q27: =VLOOKUP($E27,'RECAP AG'!$G$6:$CU$255,27,FALSE) -> 81% | R27: =VLOOKUP($E27,'RECAP AG'!$G$6:$CU$255,28,FALSE) -> 220
A28: 262 | B28: BAS RHIN | C28: 5060 | D28: HAGUENAU | E28: 4057 | F28: BISCHWILLER | G28: =VLOOKUP($E28,'RECAP AG'!$G$6:$CU$255,3,FALSE) -> 7.0 | H28: =VLOOKUP($E28,'RECAP AG'!$G$6:$CU$255,18,FALSE) -> 127.7 | I28: =VLOOKUP($E28,'RECAP AG'!$G$6:$CU$255,19,FALSE) -> 18.14 | J28: =VLOOKUP($E28,'RECAP AG'!$G$6:$CU$255,20,FALSE) -> 53% | K28: =VLOOKUP($E28,'RECAP AG'!$G$6:$CU$255,21,FALSE) -> 34 | L28: =VLOOKUP($E28,'RECAP AG'!$G$6:$CU$255,22,FALSE) -> 138 | M28: =VLOOKUP($E28,'RECAP AG'!$G$6:$CU$255,23,FALSE) -> 19.60 | N28: =VLOOKUP($E28,'RECAP AG'!$G$6:$CU$255,24,FALSE) -> 85% | O28: =VLOOKUP($E28,'RECAP AG'!$G$6:$CU$255,25,FALSE) -> 194 | P28: =VLOOKUP($E28,'RECAP AG'!$G$6:$CU$255,26,FALSE) -> 66% | Q28: =VLOOKUP($E28,'RECAP AG'!$G$6:$CU$255,27,FALSE) -> 66% | R28: =VLOOKUP($E28,'RECAP AG'!$G$6:$CU$255,28,FALSE) -> 57
A29: 262 | B29: BAS RHIN | C29: 5060 | D29: HAGUENAU | E29: 4082 | F29: BOUXWILLER | G29: =VLOOKUP($E29,'RECAP AG'!$G$6:$CU$255,3,FALSE) -> 2.8 | H29: =VLOOKUP($E29,'RECAP AG'!$G$6:$CU$255,18,FALSE) -> 13.3 | I29: =VLOOKUP($E29,'RECAP AG'!$G$6:$CU$255,19,FALSE) -> 4.77 | J29: =VLOOKUP($E29,'RECAP AG'!$G$6:$CU$255,20,FALSE) -> 71% | K29: =VLOOKUP($E29,'RECAP AG'!$G$6:$CU$255,21,FALSE) -> 174 | L29: =VLOOKUP($E29,'RECAP AG'!$G$6:$CU$255,22,FALSE) -> 62 | M29: =VLOOKUP($E29,'RECAP AG'!$G$6:$CU$255,23,FALSE) -> 22.22 | N29: =VLOOKUP($E29,'RECAP AG'!$G$6:$CU$255,24,FALSE) -> 83% | O29: =VLOOKUP($E29,'RECAP AG'!$G$6:$CU$255,25,FALSE) -> 154 | P29: =VLOOKUP($E29,'RECAP AG'!$G$6:$CU$255,26,FALSE) -> 76% | Q29: =VLOOKUP($E29,'RECAP AG'!$G$6:$CU$255,27,FALSE) -> 76% | R29: =VLOOKUP($E29,'RECAP AG'!$G$6:$CU$255,28,FALSE) -> 172
A30: 262 | B30: BAS RHIN | C30: 5060 | D30: HAGUENAU | E30: 4030 | F30: BRUMATH | G30: =VLOOKUP($E30,'RECAP AG'!$G$6:$CU$255,3,FALSE) -> 5.0 | H30: =VLOOKUP($E30,'RECAP AG'!$G$6:$CU$255,18,FALSE) -> 53.5 | I30: =VLOOKUP($E30,'RECAP AG'!$G$6:$CU$255,19,FALSE) -> 10.70 | J30: =VLOOKUP($E30,'RECAP AG'!$G$6:$CU$255,20,FALSE) -> 63% | K30: =VLOOKUP($E30,'RECAP AG'!$G$6:$CU$255,21,FALSE) -> 104 | L30: =VLOOKUP($E30,'RECAP AG'!$G$6:$CU$255,22,FALSE) -> 71 | M30: =VLOOKUP($E30,'RECAP AG'!$G$6:$CU$255,23,FALSE) -> 14.20 | N30: =VLOOKUP($E30,'RECAP AG'!$G$6:$CU$255,24,FALSE) -> 89% | O30: =VLOOKUP($E30,'RECAP AG'!$G$6:$CU$255,25,FALSE) -> 232 | P30: =VLOOKUP($E30,'RECAP AG'!$G$6:$CU$255,26,FALSE) -> 74% | Q30: =VLOOKUP($E30,'RECAP AG'!$G$6:$CU$255,27,FALSE) -> 74% | R30: =VLOOKUP($E30,'RECAP AG'!$G$6:$CU$255,28,FALSE) -> 143
A31: 262 | B31: BAS RHIN | C31: 5060 | D31: HAGUENAU | E31: 4060 | F31: HAGUENAU HOUBLON | G31: =VLOOKUP($E31,'RECAP AG'!$G$6:$CU$255,3,FALSE) -> 8.4 | H31: =VLOOKUP($E31,'RECAP AG'!$G$6:$CU$255,18,FALSE) -> 48.2 | I31: =VLOOKUP($E31,'RECAP AG'!$G$6:$CU$255,19,FALSE) -> 5.77 | J31: =VLOOKUP($E31,'RECAP AG'!$G$6:$CU$255,20,FALSE) -> 70% | K31: =VLOOKUP($E31,'RECAP AG'!$G$6:$CU$255,21,FALSE) -> 158 | L31: =VLOOKUP($E31,'RECAP AG'!$G$6:$CU$255,22,FALSE) -> 161 | M31: =VLOOKUP($E31,'RECAP AG'!$G$6:$CU$255,23,FALSE) -> 19.28 | N31: =VLOOKUP($E31,'RECAP AG'!$G$6:$CU$255,24,FALSE) -> 85% | O31: =VLOOKUP($E31,'RECAP AG'!$G$6:$CU$255,25,FALSE) -> 196 | P31: =VLOOKUP($E31,'RECAP AG'!$G$6:$CU$255,26,FALSE) -> 76% | Q31: =VLOOKUP($E31,'RECAP AG'!$G$6:$CU$255,27,FALSE) -> 76% | R31: =VLOOKUP($E31,'RECAP AG'!$G$6:$CU$255,28,FALSE) -> 173
A32: 262 | B32: BAS RHIN | C32: 5060 | D32: HAGUENAU | E32: 4092 | F32: HOCHFELDEN | G32: =VLOOKUP($E32,'RECAP AG'!$G$6:$CU$255,3,FALSE) -> 2.0 | H32: =VLOOKUP($E32,'RECAP AG'!$G$6:$CU$255,18,FALSE) -> 24.8 | I32: =VLOOKUP($E32,'RECAP AG'!$G$6:$CU$255,19,FALSE) -> 12.28 | J32: =VLOOKUP($E32,'RECAP AG'!$G$6:$CU$255,20,FALSE) -> 61% | K32: =VLOOKUP($E32,'RECAP AG'!$G$6:$CU$255,21,FALSE) -> 76 | L32: =VLOOKUP($E32,'RECAP AG'!$G$6:$CU$255,22,FALSE) -> 53 | M32: =VLOOKUP($E32,'RECAP AG'!$G$6:$CU$255,23,FALSE) -> 26.24 | N32: =VLOOKUP($E32,'RECAP AG'!$G$6:$CU$255,24,FALSE) -> 80% | O32: =VLOOKUP($E32,'RECAP AG'!$G$6:$CU$255,25,FALSE) -> 115 | P32: =VLOOKUP($E32,'RECAP AG'!$G$6:$CU$255,26,FALSE) -> 69% | Q32: =VLOOKUP($E32,'RECAP AG'!$G$6:$CU$255,27,FALSE) -> 69% | R32: =VLOOKUP($E32,'RECAP AG'!$G$6:$CU$255,28,FALSE) -> 84
A33: 262 | B33: BAS RHIN | C33: 5060 | D33: HAGUENAU | E33: 4041 | F33: HOERDT | G33: =VLOOKUP($E33,'RECAP AG'!$G$6:$CU$255,3,FALSE) -> 1.6 | H33: =VLOOKUP($E33,'RECAP AG'!$G$6:$CU$255,18,FALSE) -> 10.9 | I33: =VLOOKUP($E33,'RECAP AG'!$G$6:$CU$255,19,FALSE) -> 6.81 | J33: =VLOOKUP($E33,'RECAP AG'!$G$6:$CU$255,20,FALSE) -> 68% | K33: =VLOOKUP($E33,'RECAP AG'!$G$6:$CU$255,21,FALSE) -> 146 | L33: =VLOOKUP($E33,'RECAP AG'!$G$6:$CU$255,22,FALSE) -> 21 | M33: =VLOOKUP($E33,'RECAP AG'!$G$6:$CU$255,23,FALSE) -> 13.13 | N33: =VLOOKUP($E33,'RECAP AG'!$G$6:$CU$255,24,FALSE) -> 90% | O33: =VLOOKUP($E33,'RECAP AG'!$G$6:$CU$255,25,FALSE) -> 240 | P33: =VLOOKUP($E33,'RECAP AG'!$G$6:$CU$255,26,FALSE) -> 77% | Q33: =VLOOKUP($E33,'RECAP AG'!$G$6:$CU$255,27,FALSE) -> 77% | R33: =VLOOKUP($E33,'RECAP AG'!$G$6:$CU$255,28,FALSE) -> 186
A34: 262 | B34: BAS RHIN | C34: 5060 | D34: HAGUENAU | E34: 4085 | F34: INGWILLER | G34: =VLOOKUP($E34,'RECAP AG'!$G$6:$CU$255,3,FALSE) -> 3.4 | H34: =VLOOKUP($E34,'RECAP AG'!$G$6:$CU$255,18,FALSE) -> 27.5 | I34: =VLOOKUP($E34,'RECAP AG'!$G$6:$CU$255,19,FALSE) -> 8.16 | J34: =VLOOKUP($E34,'RECAP AG'!$G$6:$CU$255,20,FALSE) -> 66% | K34: =VLOOKUP($E34,'RECAP AG'!$G$6:$CU$255,21,FALSE) -> 133 | L34: =VLOOKUP($E34,'RECAP AG'!$G$6:$CU$255,22,FALSE) -> 78 | M34: =VLOOKUP($E34,'RECAP AG'!$G$6:$CU$255,23,FALSE) -> 23.15 | N34: =VLOOKUP($E34,'RECAP AG'!$G$6:$CU$255,24,FALSE) -> 82% | O34: =VLOOKUP($E34,'RECAP AG'!$G$6:$CU$255,25,FALSE) -> 143 | P34: =VLOOKUP($E34,'RECAP AG'!$G$6:$CU$255,26,FALSE) -> 73% | Q34: =VLOOKUP($E34,'RECAP AG'!$G$6:$CU$255,27,FALSE) -> 73% | R34: =VLOOKUP($E34,'RECAP AG'!$G$6:$CU$255,28,FALSE) -> 133
A35: 262 | B35: BAS RHIN | C35: 5060 | D35: HAGUENAU | E35: 4066 | F35: NIEDERBRONN LES BAINS | G35: =VLOOKUP($E35,'RECAP AG'!$G$6:$CU$255,3,FALSE) -> 5.6 | H35: =VLOOKUP($E35,'RECAP AG'!$G$6:$CU$255,18,FALSE) -> -34.3 | I35: =VLOOKUP($E35,'RECAP AG'!$G$6:$CU$255,19,FALSE) -> -6.14 | J35: =VLOOKUP($E35,'RECAP AG'!$G$6:$CU$255,20,FALSE) -> 86% | K35: =VLOOKUP($E35,'RECAP AG'!$G$6:$CU$255,21,FALSE) -> 239 | L35: =VLOOKUP($E35,'RECAP AG'!$G$6:$CU$255,22,FALSE) -> 96 | M35: =VLOOKUP($E35,'RECAP AG'!$G$6:$CU$255,23,FALSE) -> 17.17 | N35: =VLOOKUP($E35,'RECAP AG'!$G$6:$CU$255,24,FALSE) -> 87% | O35: =VLOOKUP($E35,'RECAP AG'!$G$6:$CU$255,25,FALSE) -> 220 | P35: =VLOOKUP($E35,'RECAP AG'!$G$6:$CU$255,26,FALSE) -> 86% | Q35: =VLOOKUP($E35,'RECAP AG'!$G$6:$CU$255,27,FALSE) -> 86% | R35: =VLOOKUP($E35,'RECAP AG'!$G$6:$CU$255,28,FALSE) -> 241
A36: 262 | B36: BAS RHIN | C36: 5060 | D36: HAGUENAU | E36: 4067 | F36: PFAFFENHOFFEN | G36: =VLOOKUP($E36,'RECAP AG'!$G$6:$CU$255,3,FALSE) -> 1.9 | H36: =VLOOKUP($E36,'RECAP AG'!$G$6:$CU$255,18,FALSE) -> 14.3 | I36: =VLOOKUP($E36,'RECAP AG'!$G$6:$CU$255,19,FALSE) -> 7.69 | J36: =VLOOKUP($E36,'RECAP AG'!$G$6:$CU$255,20,FALSE) -> 67% | K36: =VLOOKUP($E36,'RECAP AG'!$G$6:$CU$255,21,FALSE) -> 137 | L36: =VLOOKUP($E36,'RECAP AG'!$G$6:$CU$255,22,FALSE) -> 32 | M36: =VLOOKUP($E36,'RECAP AG'!$G$6:$CU$255,23,FALSE) -> 17.20 | N36: =VLOOKUP($E36,'RECAP AG'!$G$6:$CU$255,24,FALSE) -> 87% | O36: =VLOOKUP($E36,'RECAP AG'!$G$6:$CU$255,25,FALSE) -> 219 | P36: =VLOOKUP($E36,'RECAP AG'!$G$6:$CU$255,26,FALSE) -> 75% | Q36: =VLOOKUP($E36,'RECAP AG'!$G$6:$CU$255,27,FALSE) -> 75% | R36: =VLOOKUP($E36,'RECAP AG'!$G$6:$CU$255,28,FALSE) -> 163
A37: 262 | B37: BAS RHIN | C37: 5060 | D37: HAGUENAU | E37: 4095 | F37: SARRE UNION | G37: =VLOOKUP($E37,'RECAP AG'!$G$6:$CU$255,3,FALSE) -> 2.3 | H37: =VLOOKUP($E37,'RECAP AG'!$G$6:$CU$255,18,FALSE) -> 37.3 | I37: =VLOOKUP($E37,'RECAP AG'!$G$6:$CU$255,19,FALSE) -> 16.22 | J37: =VLOOKUP($E37,'RECAP AG'!$G$6:$CU$255,20,FALSE) -> 56% | K37: =VLOOKUP($E37,'RECAP AG'!$G$6:$CU$255,21,FALSE) -> 43 | L37: =VLOOKUP($E37,'RECAP AG'!$G$6:$CU$255,22,FALSE) -> 55 | M37: =VLOOKUP($E37,'RECAP AG'!$G$6:$CU$255,23,FALSE) -> 23.91 | N37: =VLOOKUP($E37,'RECAP AG'!$G$6:$CU$255,24,FALSE) -> 82% | O37: =VLOOKUP($E37,'RECAP AG'!$G$6:$CU$255,25,FALSE) -> 137 | P37: =VLOOKUP($E37,'RECAP AG'!$G$6:$CU$255,26,FALSE) -> 66% | Q37: =VLOOKUP($E37,'RECAP AG'!$G$6:$CU$255,27,FALSE) -> 66% | R37: =VLOOKUP($E37,'RECAP AG'!$G$6:$CU$255,28,FALSE) -> 58
A38: 262 | B38: BAS RHIN | C38: 5060 | D38: HAGUENAU | E38: 4087 | F38: SAVERNE | G38: =VLOOKUP($E38,'RECAP AG'!$G$6:$CU$255,3,FALSE) -> 5.9 | H38: =VLOOKUP($E38,'RECAP AG'!$G$6:$CU$255,18,FALSE) -> 94.5 | I38: =VLOOKUP($E38,'RECAP AG'!$G$6:$CU$255,19,FALSE) -> 16.02 | J38: =VLOOKUP($E38,'RECAP AG'!$G$6:$CU$255,20,FALSE) -> 56% | K38: =VLOOKUP($E38,'RECAP AG'!$G$6:$CU$255,21,FALSE) -> 45 | L38: =VLOOKUP($E38,'RECAP AG'!$G$6:$CU$255,22,FALSE) -> 103 | M38: =VLOOKUP($E38,'RECAP AG'!$G$6:$CU$255,23,FALSE) -> 17.46 | N38: =VLOOKUP($E38,'RECAP AG'!$G$6:$CU$255,24,FALSE) -> 87% | O38: =VLOOKUP($E38,'RECAP AG'!$G$6:$CU$255,25,FALSE) -> 214 | P38: =VLOOKUP($E38,'RECAP AG'!$G$6:$CU$255,26,FALSE) -> 68% | Q38: =VLOOKUP($E38,'RECAP AG'!$G$6:$CU$255,27,FALSE) -> 68% | R38: =VLOOKUP($E38,'RECAP AG'!$G$6:$CU$255,28,FALSE) -> 82
A39: 262 | B39: BAS RHIN | C39: 5060 | D39: HAGUENAU | E39: 4079 | F39: SOULTZ SOUS FORETS | G39: =VLOOKUP($E39,'RECAP AG'!$G$6:$CU$255,3,FALSE) -> 1.8 | H39: =VLOOKUP($E39,'RECAP AG'!$G$6:$CU$255,18,FALSE) -> 35.7 | I39: =VLOOKUP($E39,'RECAP AG'!$G$6:$CU$255,19,FALSE) -> 19.40 | J39: =VLOOKUP($E39,'RECAP AG'!$G$6:$CU$255,20,FALSE) -> 51% | K39: =VLOOKUP($E39,'RECAP AG'!$G$6:$CU$255,21,FALSE) -> 27 | L39: =VLOOKUP($E39,'RECAP AG'!$G$6:$CU$255,22,FALSE) -> 51 | M39: =VLOOKUP($E39,'RECAP AG'!$G$6:$CU$255,23,FALSE) -> 27.72 | N39: =VLOOKUP($E39,'RECAP AG'!$G$6:$CU$255,24,FALSE) -> 79% | O39: =VLOOKUP($E39,'RECAP AG'!$G$6:$CU$255,25,FALSE) -> 90 | P39: =VLOOKUP($E39,'RECAP AG'!$G$6:$CU$255,26,FALSE) -> 62% | Q39: =VLOOKUP($E39,'RECAP AG'!$G$6:$CU$255,27,FALSE) -> 62% | R39: =VLOOKUP($E39,'RECAP AG'!$G$6:$CU$255,28,FALSE) -> 34
A40: 262 | B40: BAS RHIN | C40: 5060 | D40: HAGUENAU | E40: 4031 | F40: TRUCHTERSHEIM | G40: =VLOOKUP($E40,'RECAP AG'!$G$6:$CU$255,3,FALSE) -> 2.4 | H40: =VLOOKUP($E40,'RECAP AG'!$G$6:$CU$255,18,FALSE) -> 38.2 | I40: =VLOOKUP($E40,'RECAP AG'!$G$6:$CU$255,19,FALSE) -> 16.05 | J40: =VLOOKUP($E40,'RECAP AG'!$G$6:$CU$255,20,FALSE) -> 56% | K40: =VLOOKUP($E40,'RECAP AG'!$G$6:$CU$255,21,FALSE) -> 44 | L40: =VLOOKUP($E40,'RECAP AG'!$G$6:$CU$255,22,FALSE) -> 31 | M40: =VLOOKUP($E40,'RECAP AG'!$G$6:$CU$255,23,FALSE) -> 13.03 | N40: =VLOOKUP($E40,'RECAP AG'!$G$6:$CU$255,24,FALSE) -> 90% | O40: =VLOOKUP($E40,'RECAP AG'!$G$6:$CU$255,25,FALSE) -> 241 | P40: =VLOOKUP($E40,'RECAP AG'!$G$6:$CU$255,26,FALSE) -> 70% | Q40: =VLOOKUP($E40,'RECAP AG'!$G$6:$CU$255,27,FALSE) -> 70% | R40: =VLOOKUP($E40,'RECAP AG'!$G$6:$CU$255,28,FALSE) -> 99
A41: 262 | B41: BAS RHIN | C41: 5060 | D41: HAGUENAU | E41: 4071 | F41: WISSEMBOURG | G41: =VLOOKUP($E41,'RECAP AG'!$G$6:$CU$255,3,FALSE) -> 6.6 | H41: =VLOOKUP($E41,'RECAP AG'!$G$6:$CU$255,18,FALSE) -> 61.2 | I41: =VLOOKUP($E41,'RECAP AG'!$G$6:$CU$255,19,FALSE) -> 9.23 | J41: =VLOOKUP($E41,'RECAP AG'!$G$6:$CU$255,20,FALSE) -> 65% | K41: =VLOOKUP($E41,'RECAP AG'!$G$6:$CU$255,21,FALSE) -> 119 | L41: =VLOOKUP($E41,'RECAP AG'!$G$6:$CU$255,22,FALSE) -> 159 | M41: =VLOOKUP($E41,'RECAP AG'!$G$6:$CU$255,23,FALSE) -> 23.98 | N41: =VLOOKUP($E41,'RECAP AG'!$G$6:$CU$255,24,FALSE) -> 82% | O41: =VLOOKUP($E41,'RECAP AG'!$G$6:$CU$255,25,FALSE) -> 136 | P41: =VLOOKUP($E41,'RECAP AG'!$G$6:$CU$255,26,FALSE) -> 72% | Q41: =VLOOKUP($E41,'RECAP AG'!$G$6:$CU$255,27,FALSE) -> 72% | R41: =VLOOKUP($E41,'RECAP AG'!$G$6:$CU$255,28,FALSE) -> 122
A42: 262 | B42: BAS RHIN | C42: 5101 | D42: SELESTAT | E42: 4113 | F42: BARR | G42: =VLOOKUP($E42,'RECAP AG'!$G$6:$CU$255,3,FALSE) -> 2.9 | H42: =VLOOKUP($E42,'RECAP AG'!$G$6:$CU$255,18,FALSE) -> 69.0 | I42: =VLOOKUP($E42,'RECAP AG'!$G$6:$CU$255,19,FALSE) -> 24.13 | J42: =VLOOKUP($E42,'RECAP AG'!$G$6:$CU$255,20,FALSE) -> 45% | K42: =VLOOKUP($E42,'RECAP AG'!$G$6:$CU$255,21,FALSE) -> 11 | L42: =VLOOKUP($E42,'RECAP AG'!$G$6:$CU$255,22,FALSE) -> 90 | M42: =VLOOKUP($E42,'RECAP AG'!$G$6:$CU$255,23,FALSE) -> 31.47 | N42: =VLOOKUP($E42,'RECAP AG'!$G$6:$CU$255,24,FALSE) -> 76% | O42: =VLOOKUP($E42,'RECAP AG'!$G$6:$CU$255,25,FALSE) -> 64 | P42: =VLOOKUP($E42,'RECAP AG'!$G$6:$CU$255,26,FALSE) -> 58% | Q42: =VLOOKUP($E42,'RECAP AG'!$G$6:$CU$255,27,FALSE) -> 58% | R42: =VLOOKUP($E42,'RECAP AG'!$G$6:$CU$255,28,FALSE) -> 17
A43: 262 | B43: BAS RHIN | C43: 5101 | D43: SELESTAT | E43: 4111 | F43: BENFELD | G43: =VLOOKUP($E43,'RECAP AG'!$G$6:$CU$255,3,FALSE) -> 2.9 | H43: =VLOOKUP($E43,'RECAP AG'!$G$6:$CU$255,18,FALSE) -> 15.4 | I43: =VLOOKUP($E43,'RECAP AG'!$G$6:$CU$255,19,FALSE) -> 5.38 | J43: =VLOOKUP($E43,'RECAP AG'!$G$6:$CU$255,20,FALSE) -> 70% | K43: =VLOOKUP($E43,'RECAP AG'!$G$6:$CU$255,21,FALSE) -> 166 | L43: =VLOOKUP($E43,'RECAP AG'!$G$6:$CU$255,22,FALSE) -> 50 | M43: =VLOOKUP($E43,'RECAP AG'!$G$6:$CU$255,23,FALSE) -> 17.48 | N43: =VLOOKUP($E43,'RECAP AG'!$G$6:$CU$255,24,FALSE) -> 87% | O43: =VLOOKUP($E43,'RECAP AG'!$G$6:$CU$255,25,FALSE) -> 213 | P43: =VLOOKUP($E43,'RECAP AG'!$G$6:$CU$255,26,FALSE) -> 77% | Q43: =VLOOKUP($E43,'RECAP AG'!$G$6:$CU$255,27,FALSE) -> 77% | R43: =VLOOKUP($E43,'RECAP AG'!$G$6:$CU$255,28,FALSE) -> 182
A44: 262 | B44: BAS RHIN | C44: 5101 | D44: SELESTAT | E44: 4104 | F44: ERSTEIN | G44: =VLOOKUP($E44,'RECAP AG'!$G$6:$CU$255,3,FALSE) -> 4.3 | H44: =VLOOKUP($E44,'RECAP AG'!$G$6:$CU$255,18,FALSE) -> 154.4 | I44: =VLOOKUP($E44,'RECAP AG'!$G$6:$CU$255,19,FALSE) -> 35.74 | J44: =VLOOKUP($E44,'RECAP AG'!$G$6:$CU$255,20,FALSE) -> 30% | K44: =VLOOKUP($E44,'RECAP AG'!$G$6:$CU$255,21,FALSE) -> 3 | L44: =VLOOKUP($E44,'RECAP AG'!$G$6:$CU$255,22,FALSE) -> 145 | M44: =VLOOKUP($E44,'RECAP AG'!$G$6:$CU$255,23,FALSE) -> 33.56 | N44: =VLOOKUP($E44,'RECAP AG'!$G$6:$CU$255,24,FALSE) -> 75% | O44: =VLOOKUP($E44,'RECAP AG'!$G$6:$CU$255,25,FALSE) -> 51 | P44: =VLOOKUP($E44,'RECAP AG'!$G$6:$CU$255,26,FALSE) -> 48% | Q44: =VLOOKUP($E44,'RECAP AG'!$G$6:$CU$255,27,FALSE) -> 48% | R44: =VLOOKUP($E44,'RECAP AG'!$G$6:$CU$255,28,FALSE) -> 5
A45: 262 | B45: BAS RHIN | C45: 5101 | D45: SELESTAT | E45: 4008 | F45: FEGERSHEIM | G45: =VLOOKUP($E45,'RECAP AG'!$G$6:$CU$255,3,FALSE) -> 2.0 | H45: =VLOOKUP($E45,'RECAP AG'!$G$6:$CU$255,18,FALSE) -> 21.5 | I45: =VLOOKUP($E45,'RECAP AG'!$G$6:$CU$255,19,FALSE) -> 10.70 | J45: =VLOOKUP($E45,'RECAP AG'!$G$6:$CU$255,20,FALSE) -> 63% | K45: =VLOOKUP($E45,'RECAP AG'!$G$6:$CU$255,21,FALSE) -> 105 | L45: =VLOOKUP($E45,'RECAP AG'!$G$6:$CU$255,22,FALSE) -> 26 | M45: =VLOOKUP($E45,'RECAP AG'!$G$6:$CU$255,23,FALSE) -> 12.94 | N45: =VLOOKUP($E45,'RECAP AG'!$G$6:$CU$255,24,FALSE) -> 90% | O45: =VLOOKUP($E45,'RECAP AG'!$G$6:$CU$255,25,FALSE) -> 242 | P45: =VLOOKUP($E45,'RECAP AG'!$G$6:$CU$255,26,FALSE) -> 74% | Q45: =VLOOKUP($E45,'RECAP AG'!$G$6:$CU$255,27,FALSE) -> 74% | R45: =VLOOKUP($E45,'RECAP AG'!$G$6:$CU$255,28,FALSE) -> 151
A46: 262 | B46: BAS RHIN | C46: 5101 | D46: SELESTAT | E46: 4007 | F46: ILLKIRCH CENTRE | G46: =VLOOKUP($E46,'RECAP AG'!$G$6:$CU$255,3,FALSE) -> 6.6 | H46: =VLOOKUP($E46,'RECAP AG'!$G$6:$CU$255,18,FALSE) -> 78.6 | I46: =VLOOKUP($E46,'RECAP AG'!$G$6:$CU$255,19,FALSE) -> 11.93 | J46: =VLOOKUP($E46,'RECAP AG'!$G$6:$CU$255,20,FALSE) -> 61% | K46: =VLOOKUP($E46,'RECAP AG'!$G$6:$CU$255,21,FALSE) -> 83 | L46: =VLOOKUP($E46,'RECAP AG'!$G$6:$CU$255,22,FALSE) -> 142 | M46: =VLOOKUP($E46,'RECAP AG'!$G$6:$CU$255,23,FALSE) -> 21.55 | N46: =VLOOKUP($E46,'RECAP AG'!$G$6:$CU$255,24,FALSE) -> 84% | O46: =VLOOKUP($E46,'RECAP AG'!$G$6:$CU$255,25,FALSE) -> 164 | P46: =VLOOKUP($E46,'RECAP AG'!$G$6:$CU$255,26,FALSE) -> 70% | Q46: =VLOOKUP($E46,'RECAP AG'!$G$6:$CU$255,27,FALSE) -> 70% | R46: =VLOOKUP($E46,'RECAP AG'!$G$6:$CU$255,28,FALSE) -> 107
A47: 262 | B47: BAS RHIN | C47: 5101 | D47: SELESTAT | E47: 4015 | F47: LINGOLSHEIM | G47: =VLOOKUP($E47,'RECAP AG'!$G$6:$CU$255,3,FALSE) -> 1.7 | H47: =VLOOKUP($E47,'RECAP AG'!$G$6:$CU$255,18,FALSE) -> -13.4 | I47: =VLOOKUP($E47,'RECAP AG'!$G$6:$CU$255,19,FALSE) -> -8.12 | J47: =VLOOKUP($E47,'RECAP AG'!$G$6:$CU$255,20,FALSE) -> 88% | K47: =VLOOKUP($E47,'RECAP AG'!$G$6:$CU$255,21,FALSE) -> 242 | L47: =VLOOKUP($E47,'RECAP AG'!$G$6:$CU$255,22,FALSE) -> 61 | M47: =VLOOKUP($E47,'RECAP AG'!$G$6:$CU$255,23,FALSE) -> 36.97 | N47: =VLOOKUP($E47,'RECAP AG'!$G$6:$CU$255,24,FALSE) -> 72% | O47: =VLOOKUP($E47,'RECAP AG'!$G$6:$CU$255,25,FALSE) -> 29 | P47: =VLOOKUP($E47,'RECAP AG'!$G$6:$CU$255,26,FALSE) -> 82% | Q47: =VLOOKUP($E47,'RECAP AG'!$G$6:$CU$255,27,FALSE) -> 82% | R47: =VLOOKUP($E47,'RECAP AG'!$G$6:$CU$255,28,FALSE) -> 222
A48: 262 | B48: BAS RHIN | C48: 5101 | D48: SELESTAT | E48: 4109 | F48: MARCKOLSHEIM | G48: =VLOOKUP($E48,'RECAP AG'!$G$6:$CU$255,3,FALSE) -> 2.7 | H48: =VLOOKUP($E48,'RECAP AG'!$G$6:$CU$255,18,FALSE) -> 21.1 | I48: =VLOOKUP($E48,'RECAP AG'!$G$6:$CU$255,19,FALSE) -> 7.79 | J48: =VLOOKUP($E48,'RECAP AG'!$G$6:$CU$255,20,FALSE) -> 67% | K48: =VLOOKUP($E48,'RECAP AG'!$G$6:$CU$255,21,FALSE) -> 135 | L48: =VLOOKUP($E48,'RECAP AG'!$G$6:$CU$255,22,FALSE) -> 58 | M48: =VLOOKUP($E48,'RECAP AG'!$G$6:$CU$255,23,FALSE) -> 21.40 | N48: =VLOOKUP($E48,'RECAP AG'!$G$6:$CU$255,24,FALSE) -> 84% | O48: =VLOOKUP($E48,'RECAP AG'!$G$6:$CU$255,25,FALSE) -> 167 | P48: =VLOOKUP($E48,'RECAP AG'!$G$6:$CU$255,26,FALSE) -> 74% | Q48: =VLOOKUP($E48,'RECAP AG'!$G$6:$CU$255,27,FALSE) -> 74% | R48: =VLOOKUP($E48,'RECAP AG'!$G$6:$CU$255,28,FALSE) -> 147
A49: 262 | B49: BAS RHIN | C49: 5101 | D49: SELESTAT | E49: 4120 | F49: WASSELONNE | G49: =VLOOKUP($E49,'RECAP AG'!$G$6:$CU$255,3,FALSE) -> 2.9 | H49: =VLOOKUP($E49,'RECAP AG'!$G$6:$CU$255,18,FALSE) -> -10.6 | I49: =VLOOKUP($E49,'RECAP AG'!$G$6:$CU$255,19,FALSE) -> -3.69 | J49: =VLOOKUP($E49,'RECAP AG'!$G$6:$CU$255,20,FALSE) -> 82% | K49: =VLOOKUP($E49,'RECAP AG'!$G$6:$CU$255,21,FALSE) -> 230 | L49: =VLOOKUP($E49,'RECAP AG'!$G$6:$CU$255,22,FALSE) -> 61 | M49: =VLOOKUP($E49,'RECAP AG'!$G$6:$CU$255,23,FALSE) -> 21.25 | N49: =VLOOKUP($E49,'RECAP AG'!$G$6:$CU$255,24,FALSE) -> 84% | O49: =VLOOKUP($E49,'RECAP AG'!$G$6:$CU$255,25,FALSE) -> 172 | P49: =VLOOKUP($E49,'RECAP AG'!$G$6:$CU$255,26,FALSE) -> 83% | Q49: =VLOOKUP($E49,'RECAP AG'!$G$6:$CU$255,27,FALSE) -> 83% | R49: =VLOOKUP($E49,'RECAP AG'!$G$6:$CU$255,28,FALSE) -> 234
